Workbook

Sheet NOTES
A2: The model has actual and test data to illustrate the workings of the model. | D2: ='Model update'!C5 -> 2020
A4: Issue | B4: Location | C4: Item | D4: Comment
A6: 1 | B6: 'Model update'!C25 | C6: CPI | D6: ="Updated June "&D2-1&" CPI for "&D2 -> Updated June 2019 CPI for 2020 | E6: NOTE: This worksheet is programmed to update for each year - use as checklist and note any placeholders or changes
E7: NOTE: Worksheet names in this file are programmed to update each year once each worksheet is accessed and a cell is selected
A8: =A6+1 -> 2 | B8: 'Model update'!G37:G41 | C8: Real Vanilla WACC (rvw) | D8: ="Updated "&$D$2&" values" -> Updated 2020 values
A10: =A8+1 -> 3 | B10: 'Model update'!G54:G58 | C10: ="DuoS Xt for "&D2 -> DuoS Xt for 2020 | D10: ="Updated "&$D$2&" values " -> Updated 2020 values
A12: =A10+1 -> 4 | B12: 'Model update'!G66:G70 | C12: ="Metering Xt for "&D2 -> Metering Xt for 2020 | D12: ="Updated "&$D$2&" values " -> Updated 2020 values
A14: =A12+1 -> 5 | B14: 'Model update'!H79:H83 | C14: Real Pre-tax WACC (rptw) | D14: ="Updated "&$D$2&" values " -> Updated 2020 values
A16: =A14+1 -> 6 | B16: 'Model update'!G94:G98 | C16: ="f factor (t) "&D2 -> f factor (t) 2020 | D16: Updated 2020 values
A18: =A16+1 -> 7 | B18: 'Model update'!G105:G109 | C18: ="S factor (t) "&D2 -> S factor (t) 2020 | D18: Updated 2020 values
A20: =A18+1 -> 8 | B20: 'Model update'!G116:G120 | C20: ="Pass through amounts (t) "&D2 -> Pass through amounts (t) 2020 | D20: ="NIL for "&D2 -> NIL for 2020
A22: =A20+1 -> 9 | B22: 'Model update'!G127:G131 | C22: ="Licence Fee (t-1) "&$D$2-2&"-"&$D$2-1 -> Licence Fee (t-1) 2018-2019 | D22: ="Placeholders used, "&D2-1&" figures escalated" -> Placeholders used, 2019 figures escalated
A24: =A22+1 -> 10 | B24: Metering!E8:E11 | C24: ="Metering - "&D2-1&" tariffs" -> Metering - 2019 tariffs | D24: ="Updated from "&D2-1&" model" -> Updated from 2019 model
B25: Metering!E32 | C25: Metering - Table 2 - B factor t-1
B26: Metering!D36 | C26: Metering - Table 3 - t-1 AAR
B27: Metering!D53:D54 | C27: Metering - Table 4 - T factor and AAR t-2
B28: Metering!D68 | C28: Metering - Table 5 - U/O balance b/f
B29: ="'"&$D$2&" Unmetered supply'!C7:E7" -> '2020 Unmetered supply'!C7:E7 | C29: ="Unmetered Supply - "&D2-1&" tariffs" -> Unmetered Supply - 2019 tariffs
A31: =A24+1 -> 11 | B31: Metering!D49 | C31: Metering - Table 4 - t-2 revenue | D31: ="Updated from "&$D$2-2&" Annual RIN" -> Updated from 2018 Annual RIN
B32: ="'"&$D$2&" Unmetered supply'!M7" -> '2020 Unmetered supply'!M7 | C32: Unmetered Supply - public lights t-2
A34: =A31+1 -> 12 | B34: ="'"&$D$2&"DistRevCapForm'!H21" -> '2020DistRevCapForm'!H21 | C34: Dist - Table 3 - t-2 AAR | D34: ="Updated from "&$D$2-1&" model" -> Updated from 2019 model
B35: ="'"&$D$2&"DistRevCapForm'!H28" -> '2020DistRevCapForm'!H28 | C35: Dist - Table 4 - t-1 approved under/over recovery
B36: ="'"&$D$2&"DistRevCapForm'!C55" -> '2020DistRevCapForm'!C55 | C36: Dist - Table 6 - Licence fee t-2
B37: ="'"&$D$2&"DistRevCapForm'!C57" -> '2020DistRevCapForm'!C57 | C37: Dist - Table 6 - Pass through (2014/15)
B38: ="'"&$D$2&"DistRevCapForm'!C71" -> '2020DistRevCapForm'!C71 | C38: Dist - Table 7 - U/O balance b/f
B39: ="Est"&$D$2-1&"DistRev!D6:P35" -> Est2019DistRev!D6:P35 | C39: ="Dist - "&D2-1&" tariffs" -> Dist - 2019 tariffs
B40: ="Est"&$D$2-1&"DistRev!R6:AD35" -> Est2019DistRev!R6:AD35 | C40: ="Dist - Estimated "&D2-1&" quantities" -> Dist - Estimated 2019 quantities
A42: =A34+1 -> 13 | B42: ="'"&$D$2&"DistRevCapForm'!C47" -> '2020DistRevCapForm'!C47 | C42: Dist - Table 6 - t-2 revenue | D42: ="Updated from "&$D$2-2&" Annual RIN" -> Updated from 2018 Annual RIN
A44: =A42+1 -> 14 | B44: ="'"&$D$2&"TransRevCont'!C20:C23" -> '2020TransRevCont'!C20:C23 | C44: Trans - Table 3 - Trans charges forecasts t | D44: ="Updated from "&$D$2-1&" model" -> Updated from 2019 model
B45: ="'"&$D$2&"TransRevCont'!D42:D45" -> '2020TransRevCont'!D42:D45 | C45: Trans - Table 4 - Trans charges estimates t-1
B46: ="'"&$D$2&"TransRevCont'!C60" -> '2020TransRevCont'!C60 | C46: Trans - Table 5 - U/O balance b/f
B47: ="Est"&$D$2-1&"TransRev!D6:P35" -> Est2019TransRev!D6:P35 | C47: ="Trans - "&D2-1&" tariffs" -> Trans - 2019 tariffs
B48: ="Est"&$D$2-1&"TransRev!R6:AD35" -> Est2019TransRev!R6:AD35 | C48: ="Trans - Estimated "&D2-1&" quantities" -> Trans - Estimated 2019 quantities
A50: =A44+1 -> 15 | B50: ="'"&$D$2&"TransRevCont'!C34" -> '2020TransRevCont'!C34 | C50: Trans - Table 4 - t-2 revenue | D50: ="Updated from "&$D$2-2&" Annual RIN" -> Updated from 2018 Annual RIN
B51: TUoS cost audit template'!F4 | C51: Trans - t-2 AEMO charges
B52: TUoS cost audit template'!F11:F12 | C52: Trans - t-2 connection charges
B53: TUoS cost audit template'!C20:E22 | C53: Trans - t-2 internetwork charges
B54: TUoS cost audit template'!F29 | C54: Trans - t-2 embedded generators
A56: =A50+1 -> 16 | B56: ="'"&$D$2&"JSRevCont'!C20:C21" -> '2020JSRevCont'!C20:C21 | C56: JUoS - Table 3 - FiT charges forecasts t | D56: ="Updated from "&$D$2-1&" model" -> Updated from 2019 model
B57: ="'"&$D$2&"JSRevCont'!D40:D41" -> '2020JSRevCont'!D40:D41 | C57: JUoS - Table 4 - FiT charges estiamtes t-1
B58: ="'"&$D$2&"JSRevCont'!C56" -> '2020JSRevCont'!C56 | C58: JUoS - Table 5 - U/O blance b/f
B59: ="Est"&$D$2-1&"JSRev!D6:P54" -> Est2019JSRev!D6:P54 | C59: ="JUoS - "&D2-1&" tariffs" -> JUoS - 2019 tariffs
B60: ="Est"&$D$2-1&"JSRev!R6:AD54" -> Est2019JSRev!R6:AD54 | C60: ="JUoS - Estimated "&D2-1&" quantities" -> JUoS - Estimated 2019 quantities
A62: =A56+1 -> 17 | B62: ="'"&$D$2&"JSRevCont'!C32" -> '2020JSRevCont'!C32 | C62: JUoS - Table 4 - t-2 revenue | D62: ="Updated from "&$D$2-2&" Annual RIN" -> Updated from 2018 Annual RIN
B63: JS cost audit template'!F4:F5 | C63: JUoS - t-2 FiT charges
A65: =A62+1 -> 18 | B65: ="Prop"&D2&"TSSComp!R6:AD54" -> Prop2020TSSComp!R6:AD54 | C65: ="Indicative "&D2&" tariffs" -> Indicative 2020 tariffs | D65: ="Updated from "&$D$2-1&" model" -> Updated from 2019 model
A67: DNSP required to populate/update with relevant data:
A69: =A65+1 -> 19 | B69: ="'Indicative prices for "&D2+1&"'!A1:O65" -> 'Indicative prices for 2021'!A1:O65 | C69: ="TSS indicative prices for "&D2+1 -> TSS indicative prices for 2021 | D69: DNSP required to populate with relevant data
A71: =A69+1 -> 20 | B71: The following is test data to illustrate the workings of the model. | D71: Input data required from DNSPs
B72: Metering!D8:D11 | C72: ="Proposed Metering Tariffs P(t) for "&D2 -> Proposed Metering Tariffs P(t) for 2020
B73: Metering!F8:F11 | C73: ="Forecast Quantities (Qt) for "&D2 -> Forecast Quantities (Qt) for 2020
B74: Metering!D80:D83 | C74: ="Estimated Quantities (Qt-1) for "&D2-1 -> Estimated Quantities (Qt-1) for 2019
B76: ="'Prop"&$D$2&"DistTar!D6:P54" -> 'Prop2020DistTar!D6:P54 | C76: ="Proposed Distribution Tariffs (Pt) for "&D2 -> Proposed Distribution Tariffs (Pt) for 2020
B77: ="'Prop"&$D$2&"DistTar!AF6:AR54" -> 'Prop2020DistTar!AF6:AR54 | C77: ="Forecast Quantities (Qt) for "&D2 -> Forecast Quantities (Qt) for 2020
B78: ="Est"&$D$2-1&"DistRev!R6:AD54" -> Est2019DistRev!R6:AD54 | C78: ="Estimated Distribution Quantities (Qt-1) for "&D2-1 -> Estimated Distribution Quantities (Qt-1) for 2019
B80: ="'Prop"&D2&"TransTar!D6:P54" -> 'Prop2020TransTar!D6:P54 | C80: ="Proposed Transmission Tariffs (Pt) for "&D2 -> Proposed Transmission Tariffs (Pt) for 2020
B81: ="'"&$D$2&"TransRevCont'!C20:C23" -> '2020TransRevCont'!C20:C23 | C81: Table 3 - Transmission charges for year t
B82: ="'"&$D$2&"TransRevCont'!D42:D45" -> '2020TransRevCont'!D42:D45 | C82: Transmission charges for year t-1
B84: ="'Prop"&D2&"JSTar!D6:P54" -> 'Prop2020JSTar!D6:P54 | C84: ="Proposed Jurisdictional scheme Tariffs (Pt) for "&D2 -> Proposed Jurisdictional scheme Tariffs (Pt) for 2020
B85: ="'"&$D$2&"JSRevCont'!C20:C21" -> '2020JSRevCont'!C20:C21 | C85: Table 3 - PFIT & TFIT charges for year t
B86: ="'"&$D$2&"JSRevCont'!D40:D41" -> '2020JSRevCont'!D40:D41 | C86: PFIT & TFIT charges for year t-1

Sheet Formulae
B2: DUoS
B3: Figure 14.1 Revenue cap formulae
B4: (1) | H4: i=1,..,n and j=1,..,m and t=1,..,5
B5: (2) | H5: t = 1,2,…,5
B6: (3) | H6: t = 1
B7: (4) | H7: t = 2,…,5
B9: where;
C10: is the total annual revenue in year t.
D11: is the price of component 'j' of tariff 'i' in year t.
D12: is the forecast quantity of component 'j' of tariff 'i' in year t.
C13: is the adjusted annual smoothed revenue requirement for year t.
D14: is the annual adjustment f–factor scheme amount in year t. This amount will be calculated as per the method set out in the relevant f–factor scheme.
D15: is the sum of:
B16: · the final carryover amount from the application of the DMIS from the 2011–15 regulatory control period. This amount will be calculated using the method set out in the DMIS and will be deducted from/added to allowed revenue in the 2017 pricing proposal.
D17: is the sum of:
B18: · the recovery of license fee charges by the Victorian Essential Services Commission indexed by one and a half years of interest, calculated using the following method:
B20: where:
C21: are the licence fees paid by DNSP to the Victorian Essential Services Commission in the financial year ending in June of regulatory year t–1,
C22: is the approved nominal weighted average cost of capital (WACC) for the relevant regulatory year using the following method:
B25: · any under or over recovery of actual revenue collected through DUoS charges in regulatory year t–2 as calculated using the method in appendix A,
B26: · the AER approved pass through amounts (positive or negative) with respect to regulatory year t.
C27: is the annual smoothed revenue requirement as stated in the Post Tax Revenue Model (PTRM) for year t (when year t is the first year of the 2016–20 regulatory control period).[43]
C28: is the s‑factor determined in accordance with the service target performance incentive scheme (STPIS) for regulatory year t.[44]
C29: is the annual percentage change in the ABS CPI All Groups, Weighted Average of Eight Capital Cities[45] from the June quarter in year t–2 to the June quarter in year t–1, calculated using the following method :
B30: The ABS CPI All Groups, Weighted Average of Eight Capital Cities for the June quarter in regulatory year t–1
B31: divided by
B32: The ABS CPI All Groups, Weighted Average of Eight Capital Cities for the June quarter in regulatory year t–2
B33: minus one.
B34: For example, for the 2017 regulatory year, t–2 is June quarter 2015 and t–1 is June quarter 2016 and for the 2018 regulatory year, t–2 is June quarter 2016 and t–1 is June quarter 2017 and so on.
C35: is the X factor for each year of the 2016–20 regulatory control period as determined in the PTRM, and annually revised for the return on debt update in accordance with the formula specified in attachment 3—rate of return—calculated for the relevant year.
B38: [43] | C38: Our final F&A stated that if necessary an adjustment for inflation may be required to the annual smoothed revenue requirement for year t. However, as the annual smoothed revenue requirement for year t as stated in our preliminary decision PTRM is in nominal dollars there is no need to adjust it for inflation. This approach is consistent with past regulatory practice.
B39: [44] | C39: For the first two regulatory years of the 2016–20 regulatory control period, the value of St is to be adjusted to account for the change in revenue requirements between the regulatory control periods, as explained in attachment 11. In the formulas in the STPIS, the AR(t+1) is equivalent to ARt in this formula. Calculations of the S factor adjustment are to be made accordingly.
B40: [45] | C40: If the ABS does not or ceases to publish the index, then CPI will mean an index which the AER considers is the best available alternative index
B44: Figure 14.2 Side constraints [46]
C50: where each tariff class has "n" tariffs, with each up to "m" components, and where:
D51: is the proposed price for component ‘j’ of tariff 'i' for year t.
C52: is the price charged for component ‘j’ of tariff 'i' in year t–1.
D53: is the forecast quantity of component ‘j’ of tariff 'i' in year t.
C54: is the annual percentage change in the ABS CPI All Groups, Weighted Average of Eight Capital Cities[4] from the June quarter in year t–2 to the June quarter in year t–1, calculated using the following method :
C55: The ABS CPI All Groups, Weighted Average of Eight Capital Cities[47] for the June quarter in regulatory year t–1
C56: divided by
C57: The ABS CPI All Groups, Weighted Average of Eight Capital Cities for the June quarter in regulatory year t–2
C58: minus one.
B59: For example, for the 2017 regulatory year, t–2 is June quarter 2015 and t–1 is June quarter 2016 and for the 2018 regulatory year, t–2 is June quarter 2016 and t–1 is June quarter 2017 and so on.
D60: is the X factor for each year of the 2016–20 regulatory control period as determined in the PTRM, and annually revised for the return on debt update in accordance with the formula specified in attachment 3—rate of return—calculated for the relevant year. If X>0, then X will be set equal to zero for the purposes of the side constraint formula.
C61: is the s‑factor determined in accordance with the STPIS for regulatory year t.[5]
D62: is the annual percentage change from the f–factor scheme amount in year t. This amount will be calculated as per the method set out in attachment 19—f–factor scheme.
D63: is the annual percentage change from the final carryover amount from the application of the DMIS from the 2011–15 regulatory control period. This amount will be calculated using the method set out in the DMIS and will be deducted from/added to allowed revenue in the 2017 pricing proposal.
D64: is annual percentage change from the sum of:
B65: · the recovery of license fee charges by the Victorian Essential Services Commission indexed by one and a half years of interest, calculated using the following method:
B67: where:
B68: are the licence fees paid byDNSP to the Victorian Essential Services Commission in the financial year ending in June of regulatory year t–1,
C69: is the approved nominal weighted average cost of capital (WACC) for the relevant regulatory year using the following method:
B72: where the
B73: is as set out in our final decision PTRM and updated annually
B74: · the AER approved pass through amounts (positive or negative) with respect to regulatory year t.
B75: With the exception of the CPI, X factor and S factor, the percentage for each of the other factors above can be calculated by dividing the incremental revenues (as used in the total annual revenue formula) for each factor by the expected revenues for regulatory year t–1 (based on the prices in year t–1 multiplied by the forecast quantities for year t).
B77: [46] | C77: All parameters are in nominal terms unless otherwise specified.
B78: [47] | C78: If the ABS does not or ceases to publish the index, then CPI will mean an index which the AER considers is the best available alternative index.
H83: Table 14.1 | I83: Example calculation of DUoS unders and overs account ($'000, nominal)
I84: Year t–2 | J84: Year t–1 | K84: Year t
I85: (actual) | J85: (estimate) | K85: (forecast)
H86: (A) Revenue from DUoS charges | I86: 46 779 | J86: 40 269 | K86: 39 510
H87: (B) Less TAR for regulatory year = | I87: 43 039 | J87: 41 427 | K87: 44 429
H88: + Adjusted annual smoothed revenues (AARt) | I88: 40 189 | J88: 41 393 | K88: 44 393
H89: + f–factor scheme amount (It) | I89: –12 | J89: 10 | K89: 14
H90: + DMIS carryover amount (Tt) | I90: 1013 | J90: 0 | K90: 0
H91: + Annual adjustments (Bt)a = | I91: 1849 | J91: 24 | K91: 22
H92: + License fee recovery | I92: 25 | J92: 24 | K92: 22
H93: + Approved pass through amounts | I93: 1824 | J93: 0 | K93: 0
H95: (A minus B) Under/over recovery of revenue for regulatory year | I95: 3740 | J95: –1158 | K95: –4919b
H97: DUoS unders and overs account
H98: Nominal WACC (per cent) | I98: 0.05 | J98: 0.055 | K98: 0.06
H99: Opening balance | I99: 1737 | J99: 5656c | K99: 4778
H100: Interest on opening balance | I100: 87 | J100: 311 | K100: 287
H101: Under/over recovery of revenue for regulatory year | I101: 3740 | J101: –1158 | K101: –4919b
H102: Interest on under/over recovery for regulatory year | I102: 92 | J102: –31 | K102: –145
H103: Closing balance | I103: 5656 | J103: 4778 | K103: 0d
G104: Notes: | H104: (a) Bt parameter calculations in the DUoS unders and overs account exclude approved DUoS revenue under/over recovery for regulatory year.
H105: (b) Approved DUoS revenue under/over recovery for regulatory year t.
H106: (c) Opening balance is the previous year's closing balance.
H107: (d) The DNSP is expected to achieve a closing balance as close to zero as practicable in its DUoS unders and overs account in each forecast year in its annual pricing proposals in the 2016–20 regulatory control period.
H113: Table 14.2 | I113: Example calculation of designated pricing proposal charges unders and overs account ($'000, nominal)
I114: Year t–2 | J114: Year t–1 | K114: Year t
I115: (actual) | J115: (estimate) | K115: (forecast)
H116: (A) Revenue from designated pricing proposal charges (DPPC) | I116: 40 077 | J116: 34 944 | K116: 36 609
H117: (B) Less DPPC related payments for regulatory year = | I117: 34 365 | J117: 38 734 | K117: 39 200
H118: + DPPC charges to be paid to TNSP | I118: 33 672 | J118: 37 933 | K118: 38 000
H119: + Avoided TUoS/DPPC payments | I119: 572 | J119: 734 | K119: 800
H120: + Inter–distributor payments | I120: 121 | J120: 67 | K120: 400
H122: (A minus B) Under/over recovery of revenue for regulatory year | I122: 5712 | J122: –3790 | K122: –2540a
H124: DPPC unders and overs account
H125: Nominal WACC (per cent) | I125: 0.05 | J125: 0.055 | K125: 0.06
H126: Opening balance | I126: 167 | J126: 6028b | K126: 2467
H127: Interest on opening balance | I127: 8 | J127: 332 | K127: 148
H128: Under/over recovery of revenue for regulatory year | I128: 5712 | J128: –3790 | K128: –2540a
H129: Interest on under/over recovery for regulatory year | I129: 141 | J129: –103 | K129: –75
H130: Closing balance | I130: 6028 | J130: 2467 | K130: 0c
G131: Notes: | H131: (a) Approved DPPC revenue under/over recovery for regulatory year t.
H132: (b) Opening balance is the previous year's closing balance.
H133: (c)The DNSP is expected to achieve a closing balance as close to zero as practicable in its DPPC unders and overs account in each forecast year in its annual pricing proposals in the 2016–20 regulatory control period.
H139: Table 14.3 Example calculation of jurisdictional scheme amounts unders and overs account ($'000, nominal)
I140: Year t–2 | J140: Year t–1 | K140: Year t
I141: (actual) | J141: (estimate) | K141: (forecast)
H142: (A) Revenue from jurisdictional schemes | I142: 19 777 | J142: 23 121 | K142: 26 965
H143: (B) Less jurisdictional scheme payments for regulatory year = | I143: 20 272 | J143: 20 959 | K143: 28 641
H144: + Jurisdictional scheme 1 payments | I144: 14 159 | J144: 13 954 | K144: 13 961
H145: + Jurisdictional scheme 2 payments | I145: 6113 | J145: 7005 | K145: 14 680
H147: (A minus B) Under/over recovery of revenue for regulatory year | I147: –495 | J147: 2162 | K147: –1676a
H149: Jurisdictional scheme amount unders and overs account
H150: Nominal WACC (per cent) | I150: 0.05 | J150: 0.055 | K150: 0.06
H151: Opening balance | I151: –52 | J151: –562b | K151: 1628
H152: Interest on opening balance | I152: –3 | J152: –31 | K152: 98
H153: Under/over recovery of revenue for regulatory year | I153: –495 | J153: 2162 | K153: –1676a
H154: Interest on under/over recovery for regulatory year | I154: –12 | J154: 59 | K154: –50
H155: Closing balance | I155: –562 | J155: 1628 | K155: 0c
G156: Notes: | H156: (a) Approved jurisdictional scheme amounts revenue under/over recovery for regulatory year t.
H157: (b) Opening balance is the previous year's closing balance.
H158: (c) The DNSP is expected to achieve a closing balance as close to zero as practicable in its jurisdictional scheme amount unders and overs account in each forecast year in its annual pricing proposals in the 2016–20 regulatory control period.
B166: Metering
B167: Figure 16.3 | C167: Annual metering charges revenue cap formula
A168: (1) | H168: i=1,..,n and j=1,..,m and t=1,..,5
A170: (2) | H170: t = 1,2,…,5
A172: (3) | H172: t = 1,2,…,5
B175: where;
C176: is the total annual revenue for annual metering charges in year t.
E177: is the price of component 'j' of metering service 'i' in year t.
E178: is the forecast quantity of component 'j' of metering service 'i' in year t.
D179: is the annual revenue requirement for year t. When year t is the first year of the 2016–20 regulatory control period,
D180: is the annual revenue requirement in the annual metering charges Post Tax Revenue Model (PTRM) for year t.
E181: is equal to zero for all years except 2017 and is a once off adjustment to 2017 charges for the unders and overs recoveries relating to Advanced Metering Infrastructure actual revenues and actual costs incurred in 2014 and 2015.
E182: is the sum of annual adjustment factors in year t as calculated in the unders and overs account in appendix C.
D184: is the annual revenue requirement for year t–1.
C185: is the annual percentage change in the ABS CPI All Groups, Weighted Average of Eight Capital Cities[39] from the June quarter in year t–2 to the June quarter in year t–1, calculated using the following method:
B186: The ABS CPI All Groups, Weighted Average of Eight Capital Cities for the June quarter in regulatory year t–1
B187: divided by
B188: The ABS CPI All Groups, Weighted Average of Eight Capital Cities for the June quarter in regulatory year t–2
B189: minus one.
B190: For example, for the 2017 regulatory year, t–2 is June quarter 2015 and t–1 is June quarter 2016 and for the 2018 regulatory year, t–2 is June quarter 2016 and t–1 is June quarter 2017 and so on.
D191: is the X factor for each year of the 2016–20 regulatory control period as determined in the annual metering charges PTRM.
B194: [39] | C194: If the ABS does not or ceases to publish the index, then CPI will mean an index which the AER considers is the best available alternative index
B199: Figure 16.4 Side constraints
B201: where:
E202: is the price of annual metering charges service 'i' in year t.
D203: is the price of annual metering charges service 'i' in year t–1.
C204: is the annual percentage change in the ABS CPI All Groups, Weighted Average of Eight Capital Cities from the June quarter in year t–2 to the June quarter in year t–1, calculated using the following method:
B205: The ABS CPI All Groups, Weighted Average of Eight Capital Cities[40] for the June quarter in regulatory year t–1
B206: divided by
B207: The ABS CPI All Groups, Weighted Average of Eight Capital Cities for the June quarter in regulatory year t–2
B208: minus one.
B209: For example, for the 2017 regulatory year, t–2 is June quarter 2015 and t–1 is June quarter 2016 and for the 2018 regulatory year, t–2 is June quarter 2016 and t–1 is June quarter 2017 and so on.
D210: is the X factor for each year of the 2016–20 regulatory control period as determined in the annual metering charges PTRM.
E211: is the annual percentage change for the unders and overs recoveries relating to Advanced Metering Infrastructure actual revenues and actual costs incurred in 2014 and 2015. It is equal to zero for all years except 2017 and is a once off adjustment to 2017 charges.
E212: is the annual percentage change from the sum of annual adjustment factors in year t as calculated in the unders and overs account in appendix C.
B213: With the exception of the CPI and the X factor, the percentage for each of the other factors above can be calculated by dividing the incremental revenues (as used in the total annual revenue formula) for each factor by the expected revenues for regulatory year t–1 (based on the prices in year t–1 multiplied by the forecast quantities for year t).
B215: [40] | C215: If the ABS does not or ceases to publish the index, then CPI will mean an index which the AER considers is the best available alternative index.
H220: Table 16.xx | I220: Example calculation of annual metering charges unders and overs account ($'000, nominal)
I221: Year t–2 | J221: Year t–1 | K221: Year t
I222: (actual) | J222: (estimate) | K222: (forecast)
H223: (A) Revenue from annual metering charges | I223: 8 449 | J223: 7 389 | K223: 6 460
H224: (B) Less TARM for regulatory year = | I224: 7 366 | J224: 7 422 | K224: 7 573
H225: + Annual revenue requirement (ARt) | I225: 7 349 | J225: 7 412 | K225: 7 559
H226: + T factor (Tt) – true‑ups relating to the AMI–Order in Council | I226: 17 | J226: 10 | K226: 14
H228: (A minus B) Under/over recovery of revenue for regulatory year | I228: 1 083 | J228: –33 | K228: –1 113a
H230: Annual metering charges unders and overs account
H231: Nominal WACC (per cent) | I231: 0.05 | J231: 0.055 | K231: 0.06
H232: Opening balance | I232: –50 | J232: 1 057b | K232: 1 081
H233: Interest on opening balance | I233: –3 | J233: 58 | K233: 65
H234: Under/over recovery of revenue for regulatory year | I234: 1 083 | J234: –33 | K234: –1 113b
H235: Interest on under/over recovery for regulatory year | I235: 27 | J235: –1 | K235: –33
H236: Closing balance | I236: 1 057 | J236: 1 081 | K236: 0c
G237: Notes: | H237: (a) Approved annual metering charges revenue under/over recovery for regulatory year t. This is the Bt parameter in the annual metering charges revenue cap formula.
H238: (b) Opening balance is the previous year's closing balance.
H239: (c) The DNSP is expected to achieve a closing balance as close to zero as practicable in its annual metering charges unders and overs account in each forecast year in its annual pricing proposals in the 2016–20 regulatory control period.

Sheet Model update
A3: Tariff Approval Template for | C3: =A39 -> Powercor
A5: calendar year commencing | C5: 2020
A7: t | B7: = | C7: =C5 -> 2020
A8: t-1 | B8: = | C8: =C7-1 -> 2019
A9: t-2 | B9: = | C9: 2018
A10: t-3 | B10: = | C10: 2017
A11: t-4 | B11: = | C11: 2016
A13: Please fill in yellow highlighted cells where appropriate
A15: CPI | B15: The ABS changed the index reference base in September 2012 from 1989-90 to 2011-12.
A16: CPI Index Sept 2011 | C16: 99.8
A17: CPI Index Sept 2012 | C17: 101.8 | E17: CPI 2013 | F17: =C17/C16-1 -> 0.02004008016
A18: CPI Index Sept 2013 | C18: 104 | E18: CPI 2014 | F18: =C18/C17-1 -> 0.02161100196
A19: CPI Index Sept 2014 | C19: 106.4 | E19: CPI 2015 | F19: =C19/C18-1 -> 0.02307692308
A20: CPI Index Sept 2015 | C20: 108 | E20: CPI 2016 | F20: =C20/C19-1 -> 0.01503759398
A21: CPI Index June 2015 | C21: 107.5
A22: CPI Index June 2016 | C22: 108.6 | E22: CPI 2017 | F22: =IF(OR(C21="",C22=""),0,C22/C21-1) -> 0.01023255814
A23: CPI Index June 2017 | C23: 110.7 | E23: CPI 2018 | F23: =IF(OR(C22="",C23=""),0,C23/C22-1) -> 0.01933701657
A24: CPI Index June 2018 | C24: 113 | E24: CPI 2019 | F24: 0.02077687444
A25: CPI Index June 2019 | C25: 114.8 | E25: CPI 2020 | F25: 0.01592920354
A28: ="CPI " &$C$9 -> CPI 2018 | C28: =VLOOKUP(A28,E$17:F$25,2,FALSE) -> 0.01933701657 | D28: (t-2)
A29: ="CPI " &$C$8 -> CPI 2019 | C29: =VLOOKUP(A29,E$17:F$25,2,FALSE) -> 0.02077687444 | D29: (t-1)
A30: ="CPI " &$C$5 -> CPI 2020 | C30: 0.01592920354 | D30: (t)
A35: Real Vanilla WACC (rvw)
A36: ="rvw for "&C$5 -> rvw for 2020 | D36: rvw for 2016 | E36: rvw for 2017 | F36: rvw for 2018 | G36: rvw for 2019 | H36: rvw for 2020
A37: =$A$54 -> Jemena | B37: =HLOOKUP($A$36,$D$36:$H$41,2,FALSE) -> 0.03656195102 | D37: 0.03932862871 | E37: 0.03873057145 | F37: 0.03821466541 | G37: 0.03766911607 | H37: 0.03656195102
A38: =$A$55 -> CitiPower | B38: =HLOOKUP($A$36,$D$36:$H$41,3,FALSE) -> 0.03362104414 | D38: 0.0367000241 | E38: 0.03612756881 | F38: 0.03563047885 | G38: 0.03508047475 | H38: 0.03362104414
A39: =$A$56 -> Powercor | B39: =HLOOKUP($A$36,$D$36:$H$41,4,FALSE) -> 0.03362104414 | D39: 0.0367000241 | E39: 0.03612756881 | F39: 0.03563047885 | G39: 0.03508047475 | H39: 0.03362104414
A40: =$A$57 -> AusNet Services | B40: =HLOOKUP($A$36,$D$36:$H$41,5,FALSE) -> 0.03625857578 | D40: 0.03871679489 | E40: 0.03826233619 | F40: 0.03801328469 | G40: 0.03742733406 | H40: 0.03625857578
A41: =$A$58 -> United Energy | B41: =HLOOKUP($A$36,$D$36:$H$41,6,FALSE) -> 0.03600205381 | D41: 0.0393301904 | E41: 0.03869503169 | F41: 0.03812382202 | G41: 0.03751614965 | H41: 0.03600205381
A43: ="rvw (t) "&C$5 -> rvw (t) 2020 | B43: =VLOOKUP(C$3,A37:B41,2,FALSE) -> 0.03362104414 | C43: (t) | D43: =VLOOKUP($C$3,$A$37:$H$41,4,FALSE) -> 0.0367000241 | E43: =VLOOKUP($C$3,$A37:$H$41,5,FALSE) -> 0.03612756881 | F43: =VLOOKUP($C$3,$A$37:$H$41,6,FALSE) -> 0.03563047885 | G43: =VLOOKUP($C$3,$A$37:$H$41,7,FALSE) -> 0.03508047475 | H43: =VLOOKUP($C$3,$A$37:$H$41,8,FALSE) -> 0.03362104414
A45: ="rvw for "&C$5-1 -> rvw for 2019 | B45: =IF(C$5=2016,F$184,HLOOKUP($A45,D$36:H$43,8,FALSE)) -> 0.03508047475 | C45: (t-1)
A47: ="rvw for "&C$5-2 -> rvw for 2018 | B47: =IF(OR(C$5=2016,C$5=2017),F$183,HLOOKUP($A47,D$36:H$43,8,FALSE)) -> 0.03563047885 | C47: (t-2)
A52: DuoS
A53: ="Xt for "&C$5 -> Xt for 2020 | D53: AR for 2016 | E53: Xt for 2017 | F53: Xt for 2018 | G53: Xt for 2019 | H53: Xt for 2020
A54: Jemena | B54: =IF(C$5=2016,"n/a",HLOOKUP($A$53,$E$53:$H$58,2,FALSE)) -> -0.01712086467 | D54: 238498758 | E54: -0.0325 | F54: 0.0027 | G54: -0.01194800863 | H54: -0.01712086467
A55: CitiPower | B55: =IF(C$5=2016,"n/a",HLOOKUP($A$53,$E$53:$H$58,3,FALSE)) -> -0.01878550313 | D55: 282881283 | E55: 0.004 | F55: -0.0005 | G55: -0.001232459035 | H55: -0.01878550313
A56: Powercor | B56: =IF(C$5=2016,"n/a",HLOOKUP($A$53,$E$53:$H$58,4,FALSE)) -> -0.02401925855 | D56: 621773294 | E56: 0.0468 | F56: -0.0081 | G56: -0.03021164125 | H56: -0.02401925855
A57: AusNet Services | B57: =IF(C$5=2016,"n/a",HLOOKUP($A$53,$E$53:$H$58,5,FALSE)) -> -0.0216670272 | D57: 586045137 | E57: 0.003 | F57: -0.0184 | G57: -0.03013217637 | H57: -0.0216670272
A58: United Energy | B58: =IF(C$5=2016,"n/a",HLOOKUP($A$53,$E$53:$H$58,6,FALSE)) -> 0.00492058777 | D58: 375069867 | E58: -0.0383 | F58: -0.0316 | G58: -0.02611202001 | H58: 0.00492058777
A60: ="Xt for"&C$5 -> Xt for2020 | B60: =VLOOKUP(C$3,A54:B58,2,FALSE) -> -0.02401925855 | D60: =VLOOKUP($C$3,$A$54:$H$58,4,FALSE) -> 621773294 | E60: =VLOOKUP($C$3,$A$54:$H$58,5,FALSE) -> 0.0468 | F60: =VLOOKUP($C$3,$A$54:$H$58,6,FALSE) -> -0.0081 | G60: =VLOOKUP($C$3,$A$54:$H$58,7,FALSE) -> -0.03021164125 | H60: =VLOOKUP($C$3,$A$54:$H$58,8,FALSE) -> -0.02401925855
A64: Metering
A65: ="Xt for "&C$5 -> Xt for 2020 | D65: AR for 2016 | E65: Xt for 2017 | F65: Xt for 2018 | G65: Xt for 2019 | H65: Xt for 2020
A66: Jemena | B66: =IF(C$5=2016,"n/a",HLOOKUP($A$65,$E$65:$H$70,2,FALSE)) -> -0.01247641622 | D66: 44212949.02 | E66: 0.3473 | F66: -0.0136 | G66: -0.01181844246 | H66: -0.01247641622
A67: CitiPower | B67: =IF(C$5=2016,"n/a",HLOOKUP($A$65,$E$65:$H$70,3,FALSE)) -> 0.07970194511 | D67: 32973195.04 | E67: 0.1402 | F67: 0.0767 | G67: 0.07936799905 | H67: 0.07970194511
A68: Powercor | B68: =IF(C$5=2016,"n/a",HLOOKUP($A$65,$E$65:$H$70,4,FALSE)) -> 0.08534951837 | D68: 79145313.2 | E68: 0.1096 | F68: 0.0819 | G68: 0.08490086085 | H68: 0.08534951837
A69: AusNet Services | B69: =IF(C$5=2016,"n/a",HLOOKUP($A$65,$E$65:$H$70,5,FALSE)) -> 0.1693082632 | D69: 92754610.44 | E69: 0.0231 | F69: 0.1658 | G69: 0.1693485927 | H69: 0.1693082632
A70: United Energy | B70: =IF(C$5=2016,"n/a",HLOOKUP($A$65,$E$65:$H$70,6,FALSE)) -> 0.05978110253 | D70: 62733316.95 | E70: 0.3081 | F70: 0.057 | G70: 0.05954200889 | H70: 0.05978110253
A72: ="Xt for"&C$5 -> Xt for2020 | B72: =VLOOKUP(C$3,A66:B70,2,FALSE) -> 0.08534951837 | D72: =VLOOKUP($C$3,$A$66:$H$70,4,FALSE) -> 79145313.2 | E72: =VLOOKUP($C$3,$A$66:$H$70,5,FALSE) -> 0.1096 | F72: =VLOOKUP($C$3,$A$66:$H$70,6,FALSE) -> 0.0819 | G72: =VLOOKUP($C$3,$A$66:$H$70,7,FALSE) -> 0.08490086085 | H72: =VLOOKUP($C$3,$A$66:$H$70,8,FALSE) -> 0.08534951837
A76: DuoS
A77: Real Pre-tax WACC (rptw)
A78: ="rptw for "&C$5 -> rptw for 2020 | D78: rptw for 2016 | E78: rptw for 2017 | F78: rptw for 2018 | G78: rptw for 2019 | H78: rptw for 2020
A79: =$A$54 -> Jemena | B79: =HLOOKUP($A$78,$D$78:$H$83,2,FALSE) -> 0.04419676788 | D79: 0.04723374708 | E79: 0.04663553542 | F79: 0.04611949618 | G79: 0.04530393293 | H79: 0.04419676788
A80: =$A$55 -> CitiPower | B80: =HLOOKUP($A$78,$D$78:$H$83,3,FALSE) -> 0.04111999903 | D80: 0.04696344556 | E80: 0.04636538831 | F80: 0.04584948227 | G80: 0.04257942963 | H80: 0.04111999903
A81: =$A$56 -> Powercor | B81: =HLOOKUP($A$78,$D$78:$H$83,4,FALSE) -> 0.04012257803 | D81: 0.04347088828 | E81: 0.0428982852 | F81: 0.0424010669 | G81: 0.04158200864 | H81: 0.04012257803
A82: =$A$57 -> AusNet Services | B82: =HLOOKUP($A$78,$D$78:$H$83,5,FALSE) -> 0.04261073895 | D82: 0.04533877046 | E82: 0.04488419444 | F82: 0.04463507863 | G82: 0.04377949723 | H82: 0.04261073895
A83: =$A$58 -> United Energy | B83: =HLOOKUP($A$78,$D$78:$H$83,6,FALSE) -> 0.04459313232 | D83: 0.04819181771 | E83: 0.04755649502 | F83: 0.04698513788 | G83: 0.04610722815 | H83: 0.04459313232
A85: ="rptw (t) "&C$5 -> rptw (t) 2020 | B85: =VLOOKUP(C$3,A79:B83,2,FALSE) -> 0.04012257803 | C85: (t) | D85: =VLOOKUP($C$3,$A$79:$H$83,4,FALSE) -> 0.04347088828 | E85: =VLOOKUP($C$3,$A79:$H$83,5,FALSE) -> 0.0428982852 | F85: =VLOOKUP($C$3,$A$79:$H$83,6,FALSE) -> 0.0424010669 | G85: =VLOOKUP($C$3,$A$79:$H$83,7,FALSE) -> 0.04158200864 | H85: =VLOOKUP($C$3,$A$79:$H$83,8,FALSE) -> 0.04012257803
A87: ="rptw for "&C$5-1 -> rptw for 2019 | B87: =IF(C$5=2016,B$184,HLOOKUP($A87,D$78:H$85,8,FALSE)) -> 0.04158200864 | C87: (t-1)
A89: ="rptw for "&C$5-2 -> rptw for 2018 | B89: =IF(OR(C$5=2016,C$5=2017),B$183,HLOOKUP($A89,D$78:H$85,8,FALSE)) -> 0.0424010669 | C89: (t-2)
A93: F factor Scheme | B93: =$C$5 -> 2020 | D93: 2016 | E93: =+D93+1 -> 2017 | F93: =+E93+1 -> 2018 | G93: 2019 | H93: 2020
A94: =$A$54 -> Jemena | B94: =HLOOKUP($B$93,$D$93:$H$98,2,FALSE) -> 112800 | D94: -680000 | E94: 70000 | F94: 655000 | G94: 117300 | H94: 112800
A95: =$A$55 -> CitiPower | B95: =HLOOKUP($B$93,$D$93:$H$98,3,FALSE) -> 36300 | D95: -15000 | E95: 410000 | F95: 140000 | G95: 43200 | H95: 36300
A96: =$A$56 -> Powercor | B96: =HLOOKUP($B$93,$D$93:$H$98,4,FALSE) -> 995100 | D96: -1530000 | E96: 1420000 | F96: 1755000 | G96: 4639200 | H96: 995100
A97: =$A$57 -> AusNet Services | B97: =HLOOKUP($B$93,$D$93:$H$98,5,FALSE) -> 316200 | D97: 1870000 | E97: 3420000 | F97: 750000 | G97: 1485000 | H97: 316200
A98: =$A$58 -> United Energy | B98: =HLOOKUP($B$93,$D$93:$H$98,6,FALSE) -> 5100 | D98: -2245000 | E98: 555000 | F98: 1000000 | G98: 224400 | H98: 5100
A100: ="Ifactor (t) "&C$5 -> Ifactor (t) 2020 | B100: =VLOOKUP(C$3,A94:B98,2,FALSE) -> 995100 | D100: =VLOOKUP($C$3,$A$94:$H$98,4,FALSE) -> -1530000 | E100: =VLOOKUP($C$3,$A$94:$H$98,5,FALSE) -> 1420000 | F100: =VLOOKUP($C$3,$A$94:$H$98,6,FALSE) -> 1755000 | G100: =VLOOKUP($C$3,$A$94:$H$98,7,FALSE) -> 4639200 | H100: =VLOOKUP($C$3,$A$94:$H$98,8,FALSE) -> 995100
A104: S factor Scheme | B104: =$C$5 -> 2020 | D104: 2016 | E104: =+D104+1 -> 2017 | F104: =+E104+1 -> 2018 | G104: 2019 | H104: 2020
A105: =$A$54 -> Jemena | B105: =HLOOKUP($B$104,$D$104:$H$109,2,FALSE) -> 0.00307537808 | D105: 0.03997406406 | E105: 0.01488310469 | F105: -0.03971153723 | G105: 0.006950679651 | H105: 0.00307537808
A106: =$A$55 -> CitiPower | B106: =HLOOKUP($B$104,$D$104:$H$109,3,FALSE) -> 0.01356911181 | D106: -0.01268789003 | E106: 0.004032145684 | F106: 0.01857052664 | G106: -0.009608708052 | H106: 0.01356911181
A107: =$A$56 -> Powercor | B107: =HLOOKUP($B$104,$D$104:$H$109,4,FALSE) -> 0.003551089156 | D107: -0.01184910821 | E107: 0.05100648542 | F107: -0.01384168227 | G107: -0.0009709084886 | H107: 0.003551089156
A108: =$A$57 -> AusNet Services | B108: =HLOOKUP($B$104,$D$104:$H$109,5,FALSE) -> -0.007004839182 | D108: 0.03357397489 | E108: 0.03217876587 | F108: -0.06343364122 | G108: 0.01506523806 | H108: -0.007004839182
A109: =$A$58 -> United Energy | B109: =HLOOKUP($B$104,$D$104:$H$109,6,FALSE) -> 0.005050561939 | D109: -0.02947870448 | E109: 0.02836672327 | F109: 0.02276703882 | G109: 0.01682414399 | H109: 0.005050561939
A111: ="S factor (t) "&C$5 -> S factor (t) 2020 | B111: =VLOOKUP(C$3,A105:B109,2,FALSE) -> 0.003551089156 | D111: =VLOOKUP($C$3,$A$105:$H$109,4,FALSE) -> -0.01184910821 | E111: =VLOOKUP($C$3,$A$105:$H$109,5,FALSE) -> 0.05100648542 | F111: =VLOOKUP($C$3,$A$105:$H$109,6,FALSE) -> -0.01384168227 | G111: =VLOOKUP($C$3,$A$105:$H$109,7,FALSE) -> -0.0009709084886 | H111: =VLOOKUP($C$3,$A$105:$H$109,8,FALSE) -> 0.003551089156
A115: Pass through Amounts | B115: =$C$5 -> 2020 | D115: 2016 | E115: =+D115+1 -> 2017 | F115: =+E115+1 -> 2018 | G115: 2019 | H115: 2020
A116: =$A$54 -> Jemena | B116: =HLOOKUP($B$115,$D$115:$H$120,2,FALSE) -> 0 | D116: 0 | E116: 0 | F116: 0 | G116: 0 | H116: 0
A117: =$A$55 -> CitiPower | B117: =HLOOKUP($B$115,$D$115:$H$120,3,FALSE) -> 0 | D117: 0 | E117: 0 | F117: 0 | G117: 0 | H117: 0
A118: =$A$56 -> Powercor | B118: =HLOOKUP($B$115,$D$115:$H$120,4,FALSE) -> 0 | D118: 0 | E118: 0 | F118: 0 | G118: 0 | H118: 0
A119: =$A$57 -> AusNet Services | B119: =HLOOKUP($B$115,$D$115:$H$120,5,FALSE) -> 0 | D119: =-(5723000*(1+0.0975)) -> -6280992.5 | E119: 0 | F119: 0 | G119: 0 | H119: 0
A120: =$A$58 -> United Energy | B120: =HLOOKUP($B$115,$D$115:$H$120,6,FALSE) -> 0 | D120: 0 | E120: 0 | F120: 0 | G120: 0 | H120: 0
A122: ="Pass through amounts (t) "&C$5 -> Pass through amounts (t) 2020 | B122: =VLOOKUP(C$3,A116:B120,2,FALSE) -> 0 | D122: =VLOOKUP($C$3,$A$116:$H$120,4,FALSE) -> 0 | E122: =VLOOKUP($C$3,$A$116:$H$120,5,FALSE) -> 0 | F122: =VLOOKUP($C$3,$A$116:$H$120,6,FALSE) -> 0 | G122: =VLOOKUP($C$3,$A$116:$H$120,7,FALSE) -> 0 | H122: =VLOOKUP($C$3,$A$116:$H$120,8,FALSE) -> 0
A126: License Fees | B126: =$C$5 -> 2020 | D126: 2016 | E126: =+D126+1 -> 2017 | F126: =+E126+1 -> 2018 | G126: 2019 | H126: 2020
A127: =$A$54 -> Jemena | B127: =HLOOKUP($B$126,$D$126:$H$131,2,FALSE) -> 130256 | D127: 36033 | E127: 39516 | F127: 76545 | G127: 77350 | H127: 130256
A128: =$A$55 -> CitiPower | B128: =HLOOKUP($B$126,$D$126:$H$131,3,FALSE) -> 132030 | D128: 36475 | E128: 40445 | F128: 78091 | G128: 78912 | H128: 132030
A129: =$A$56 -> Powercor | B129: =HLOOKUP($B$126,$D$126:$H$131,4,FALSE) -> 317568 | D129: 85205 | E129: 94964 | F129: 185081 | G129: 187026 | H129: 317568
A130: =$A$57 -> AusNet Services | B130: =HLOOKUP($B$126,$D$126:$H$131,5,FALSE) -> 285784 | D130: 74811 | E130: 85031 | F130: 168235 | G130: 170003 | H130: 285784
A131: =$A$58 -> United Energy | B131: =HLOOKUP($B$126,$D$126:$H$131,6,FALSE) -> 263285 | D131: 74197 | E131: 81712 | F131: 158262 | G131: 159925 | H131: 263285
A133: ="Licence Fee (t-1) "&TEXT(C$5-2,"####")&"-"&RIGHT(TEXT(C$5-1,"##"),2) -> Licence Fee (t-1) 2018-19 | B133: =VLOOKUP(C$3,A127:B131,2,FALSE) -> 317568 | D133: =VLOOKUP($C$3,$A$127:$H$131,4,FALSE) -> 85205 | E133: =VLOOKUP($C$3,$A$127:$H$131,5,FALSE) -> 94964 | F133: =VLOOKUP($C$3,$A$127:$H$131,6,FALSE) -> 185081 | G133: =VLOOKUP($C$3,$A$127:$H$131,7,FALSE) -> 187026 | H133: =VLOOKUP($C$3,$A$127:$H$131,8,FALSE) -> 317568
A137: DMIA Carryover adjustment | B137: =$C$5 -> 2020 | D137: 2016 | E137: =+D137+1 -> 2017 | F137: =+E137+1 -> 2018 | G137: 2019 | H137: 2020
A138: =$A$54 -> Jemena | B138: =HLOOKUP($B$137,$D$137:$H$142,2,FALSE) -> 0 | E138: =H154 -> -91239.84446
A139: =$A$55 -> CitiPower | B139: =HLOOKUP($B$137,$D$137:$H$142,3,FALSE) -> 0
A140: =$A$56 -> Powercor | B140: =HLOOKUP($B$137,$D$137:$H$142,4,FALSE) -> 0
A141: =$A$57 -> AusNet Services | B141: =HLOOKUP($B$137,$D$137:$H$142,5,FALSE) -> 0
A142: =$A$58 -> United Energy | B142: =HLOOKUP($B$137,$D$137:$H$142,6,FALSE) -> 0 | E142: =H163 -> -479660.6938
A144: ="T factor (t) "&C$5 -> T factor (t) 2020 | B144: =VLOOKUP(C$3,A138:B142,2,FALSE) -> 0 | D144: =VLOOKUP($C$3,$A$138:$H$142,4,FALSE) -> 0 | E144: =VLOOKUP($C$3,$A$138:$H$142,5,FALSE) -> 0 | F144: =VLOOKUP($C$3,$A$138:$H$142,6,FALSE) -> 0 | G144: =VLOOKUP($C$3,$A$138:$H$142,7,FALSE) -> 0 | H144: =VLOOKUP($C$3,$A$138:$H$142,8,FALSE) -> 0
A147: DMIA Carryover adjustment
A148: Jemena | C148: 2011-15 | D148: 2016 | E148: 2017
A149: CPI - PTRM | D149: 0.02323079821 | E149: 0.02323079821
A150: Nominal Vanilla WACC - PTRM | C150: 0.1033058648 | D150: =(1+D149)*(1+D37)-1 -> 0.06347306235 | E150: =(1+E149)*(1+E37)-1 -> 0.06286111175
C152: 2011 | D152: 2012 | E152: 2013 | F152: 2014 | G152: 2015 | H152: Total
A153: Ex-ante revenue minus ex post expenditure ($nominal) | C153: -263938 | D153: -16375.4 | E153: 163676.6714 | F153: 153066.6261 | G153: 125690.5855 | H153: =SUM(C153:G153) -> 162120.4829
A154: DMIA Carryover adjustment | C154: =0-(C153/(1+$C150))*(1+$C150)^5*(1+$D150)*(1+$E150) -> 442067.5528 | D154: =C154-(D153/(1+$C150))*(1+$C150)^4*(1+$D150)*(1+$E150) -> 466926.4987 | E154: =D154-(E153/(1+$C150))*(1+$C150)^3*(1+$D150)*(1+$E150) -> 241719.6213 | F154: =E154-(F153/(1+$C150))*(1+$C150)^2*(1+$D150)*(1+$E150) -> 50831.26114 | G154: =F154-(G153/(1+$C150))*(1+$C150)^1*(1+$D150)*(1+$E150) -> -91239.84446 | H154: =G154 -> -91239.84446
A157: UED | C157: 2011-15 | D157: 2016 | E157: 2017
A158: CPI - PTRM | D158: 0.02323079821 | E158: 0.02323079821
A159: Nominal Vanilla WACC - PTRM | C159: 0.09489772882 | D159: =(1+D158)*(1+D41)-1 -> 0.06347466033 | E159: =(1+E158)*(1+E41)-1 -> 0.06282474637
C161: 2011 | D161: 2012 | E161: 2013 | F161: 2014 | G161: 2015 | H161: Total
A162: Ex-ante revenue minus ex post expenditure ($nominal) | C162: 406960 | D162: 327739.2 | E162: 91075.34272 | F162: -227853.7479 | G162: -450364.8291 | H162: =SUM(C162:G162) -> 147555.9658
A163: DMIA Carryover adjustment | C163: =0-(C162/(1+$C159))*(1+$C159)^5*(1+$D159)*(1+$E159) -> -661050.6678 | D163: =C163-(D162/(1+$C159))*(1+$C159)^4*(1+$D159)*(1+$E159) -> -1147276.309 | E163: =D163-(E162/(1+$C159))*(1+$C159)^3*(1+$D159)*(1+$E159) -> -1270682.438 | F163: =E163-(F162/(1+$C159))*(1+$C159)^2*(1+$D159)*(1+$E159) -> -988702.2892 | G163: =F163-(G162/(1+$C159))*(1+$C159)^1*(1+$D159)*(1+$E159) -> -479660.6938 | H163: =G163 -> -479660.6938
A172: Regulatory Period 2011-15
A174: DuoS
A175: Real Pre-tax WACC for distribution tariffs | D175: Real Vanilla WACC for distribution tariffs
A177: =$A$54 -> Jemena | B177: 0.087 | D177: =$A$54 -> Jemena | F177: 0.0756
A178: =$A$55 -> CitiPower | B178: 0.0786 | D178: =$A$55 -> CitiPower | F178: 0.0674
A179: =$A$56 -> Powercor | B179: 0.0776 | D179: =$A$56 -> Powercor | F179: 0.0674
A180: =$A$57 -> AusNet Services | B180: 0.078 | D180: =$A$57 -> AusNet Services | F180: 0.0699
A181: =$A$58 -> United Energy | B181: 0.0791 | D181: =$A$58 -> United Energy | F181: 0.0674
A183: pretax WACCD | B183: =VLOOKUP($C$3,A177:B181,2,FALSE) -> 0.0776 | D183: Real Vanilla WACCD | F183: =VLOOKUP($C$3,D177:F181,3,FALSE) -> 0.0674
A188: Pass Through Costs | E188: 2014 | F188: 2015
A190: =A204 -> F Factor pass through | E190: 2470000 | F190: -2405000
A191: VBRC | E191: 7193170.454 | F191: 8768550.378
A192: Powerline Replacement program | E192: 0 | F192: 8777690.455
A193: TOTAL PASS THROUGH AMOUNTS | E193: =SUM(E190:E192) -> 9663170.454 | F193: =SUM(F190:F192) -> 15141240.83
A197: F factor Scheme | B197: 2014 | C197: 2015
A198: =$A$54 -> Jemena | B198: 370000 | C198: -855000
A199: =$A$55 -> CitiPower | B199: 10000 | C199: -65000
A200: =$A$56 -> Powercor | B200: 2470000 | C200: -2405000
A201: =$A$57 -> AusNet Services | B201: 1970000 | C201: 2020000
A202: =$A$58 -> United Energy | B202: 980000 | C202: -70000
A204: F Factor pass through | B204: =VLOOKUP($C$3,$A$198:$C$202,2,FALSE) -> 2470000 | C204: =VLOOKUP($C$3,$A$198:$C$202,3,FALSE) -> -2405000
A208: VBRC | B208: 2014 | C208: 2015
A209: =$A$54 -> Jemena | B209: 0 | C209: 0
A210: =$A$55 -> CitiPower | B210: 0 | C210: 0
A211: =$A$56 -> Powercor | B211: =H245 -> 7193170.454 | C211: =I245 -> 8768550.378
A212: =$A$57 -> AusNet Services | B212: =H262 -> 6039778.158 | C212: =I262 -> 8341755.212
A213: =$A$58 -> United Energy | B213: 0 | C213: 0
A215: VBRC pass through | B215: =VLOOKUP($C$3,$A$209:$C$213,2,FALSE) -> 7193170.454 | C215: =VLOOKUP($C$3,$A$209:$C$213,3,FALSE) -> 8768550.378
A219: Powerline Replacement program | B219: 2014 | C219: 2015
A220: =$A$54 -> Jemena | B220: 0 | C220: 0
A221: =$A$55 -> CitiPower | B221: 0 | C221: 0
A222: =$A$56 -> Powercor | B222: =H249 -> 0 | C222: 8777690.455
A223: =$A$57 -> AusNet Services | B223: 0 | C223: 5723419.31
A224: =$A$58 -> United Energy | B224: 0 | C224: 0
A226: Powerline Replacement program | B226: =VLOOKUP($C$3,$A$219:$C$224,2,FALSE) -> 0 | C226: =VLOOKUP($C$3,$A$219:$C$224,3,FALSE) -> 8777690.455
A231: VBRC
A233: Powercor | E233: 2011 | F233: 2012 | G233: 2013 | H233: 2014 | I233: 2015
A234: Pass through amounts approved (Nominal $) - Forecast CPI | G234: 10270612 | H234: 7181525 | I234: 8777217
A235: (As per AER's Final Decision on Powercor's VBRC pass through, table 7.2, 7 March 2012)
A236: Forecast CPI in PTRM | E236: 0.0257487534 | F236: 0.0257487534 | G236: 0.0257487534 | H236: 0.0257487534 | I236: 0.0257487534
E237: =1+E236 -> 1.025748753 | F237: =E237*(1+F236) -> 1.052160505 | G237: =F237*(1+G236) -> 1.079252326 | H237: =G237*(1+H236) -> 1.107041729 | I237: =H237*(1+I236) -> 1.135546673
A239: Pass through amounts approved (Real $2010) | G239: =G234/G237 -> 9516414.047 | H239: =H234/H237 -> 6487131.257 | I239: =I234/I237 -> 7729507.918
A242: Actual CPI | E242: =173.3/168.6-1 -> 0.02787663108 | F242: =179.4/173.3-1 -> 0.03519907675 | G242: =C17/C16-1 -> 0.02004008016 | H242: =C18/C17-1 -> 0.02161100196 | I242: =C19/C18-1 -> 0.02307692308
E243: =1+E242 -> 1.027876631 | F243: =E243*(1+F242) -> 1.06405694 | G243: =F243*(1+G242) -> 1.085380726 | H243: =G243*(1+H242) -> 1.108836891 | I243: 1.134425434
A245: Pass through amounts approved (Nominal $) - Actual CPI | G245: =G239*G243 -> 10328932.39 | H245: =H239*H243 -> 7193170.454 | I245: =I239*I243 -> 8768550.378
A250: AusNet Services | E250: 2011 | F250: 2012 | G250: 2013 | H250: 2014 | I250: 2015
A251: Pass through amounts approved (Nominal $) - Forecast CPI | G251: 5790000 | H251: 6030000 | I251: 8350000
A252: As per AER's Final Decision on AusNet Services's VBRC pass through, table 1.3, 19 October 2012
A253: Forecast CPI in PTRM | E253: 0.0257487534 | F253: 0.0257487534 | G253: 0.0257487534 | H253: 0.0257487534 | I253: 0.0257487534
E254: =1+E253 -> 1.025748753 | F254: =E254*(1+F253) -> 1.052160505 | G254: =F254*(1+G253) -> 1.079252326 | H254: =G254*(1+H253) -> 1.107041729 | I254: =H254*(1+I253) -> 1.135546673
A256: Pass through amounts approved (Real $2010) | G256: =G251/G254 -> 5364825.127 | H256: =H251/H254 -> 5446949.148 | I256: =I251/I254 -> 7353286.482
A259: Actual CPI | E259: =173.3/168.6-1 -> 0.02787663108 | F259: =179.4/173.3-1 -> 0.03519907675 | G259: =C17/C16-1 -> 0.02004008016 | H259: =C18/C17-1 -> 0.02161100196 | I259: =C19/C18-1 -> 0.02307692308
E260: =1+E259 -> 1.027876631 | F260: =E260*(1+F259) -> 1.06405694 | G260: =F260*(1+G259) -> 1.085380726 | H260: =G260*(1+H259) -> 1.108836891 | I260: 1.134425434
A262: Pass through amounts approved (Nominal $) - Actual CPI | G262: =G256*G260 -> 5822877.791 | H262: =H256*H260 -> 6039778.158 | I262: =I256*I260 -> 8341755.212
A270: AMI Transitional Adjustment in 2018 prices ($)
A271: =C3 -> Powercor
C272: 2009 | D272: 2010 | E272: 2011 | F272: 2012 | G272: 2013 | H272: 2014 | I272: 2015 | J272: 2016 | K272: 2017 | L272: 2018 | M272: 2019 | N272: 2020
A273: CPI | C273: 0.04981084489 | D273: 0.01261261261 | E273: 0.02787663108 | F273: 0.03519907675 | G273: =$F17 -> 0.02004008016 | H273: =$F18 -> 0.02161100196 | I273: =$F19 -> 0.02307692308 | J273: =$F20 -> 0.01503759398 | K273: =$F22 -> 0.01023255814 | L273: =$F23 -> 0.01933701657 | M273: =$F24 -> 0.02077687444 | N273: =$F25 -> 0.01592920354
A275: Vanilla' WACC (Real) | C275: 0.06771645866 | D275: =$C275 -> 0.06771645866 | E275: =$C275 -> 0.06771645866 | F275: 0.06771645866 | G275: 0.06771645866 | H275: 0.05023909437 | I275: =H275 -> 0.05023909437 | J275: =D43 -> 0.0367000241 | K275: =E43 -> 0.03612756881 | L275: =F43 -> 0.03563047885 | M275: =G43 -> 0.03508047475 | N275: =H43 -> 0.03362104414
A276: Vanilla' WACC (nominal) | C276: =(1+C275)*(1+C273)-1 -> 0.1209003176 | D276: 0.08118315273 | E276: 0.09748079647 | F276: 0.1052990922 | G276: 0.08911358208 | H276: 0.0729358135 | I276: 0.07447538116 | J276: 0.05228949815 | K276: 0.0467298044 | L276: 0.05565648259 | M276: 0.0565862118 | N276: 0.05008580414
A278: Future value index | C278: =(1+C276)^0.5 -> 1.058725799 | D278: =C278*(D276+1) -> 1.144676497 | E278: 1.256260474 | F278: 1.388543561 | G278: 1.512281652 | H278: 1.622581145 | I278: 1.743423494 | J278: 1.834586233 | K278: 1.920316089 | L278: 2.027194128 | M278: 2.141905365 | N278: 2.249184417
A280: AMI Transitional Adjustment - Revenue and Costs 2009-2015
A281: Over \ (under) recovery of revenue and costs (000's)
A282: NPV at 1 January 2009 | D282: 5766.9529
A284: AMI Transitional Adjustment in 2018 prices ($) | D284: =-D282*L278*10^3 -> -11690733.06
A286: AMI Transitional Adjustment - Revenue 2016-2020
A287: Increase \ (Reduction) in revenue 2016-2020 (000's)
A288: NPV at 1 January 2016 | D288: 1706.091869
A290: AMI Transitional Adjustment in 2018 prices ($) | D290: =D288*L278/I278*10^3 -> 1983786.172
A292: Total AMI Transitional Adjustment in 2018 prices ($) | D292: =SUM(D284,D290) -> -9706946.885

Sheet Metering
B1: ="Tariff Approval - "&'Model update'!C3 -> Tariff Approval - Powercor
B3: ="PROPOSED "&'Model update'!$C$5&" METERING TARIFFS AND REVENUE" -> PROPOSED 2020 METERING TARIFFS AND REVENUE
D5: ="Proposed Metering Tariffs P(t) for " &'Model update'!$C$5 -> Proposed Metering Tariffs P(t) for 2020 | E5: ="Current Metering Tariffs P(t-1) for" &'Model update'!$C$8 -> Current Metering Tariffs P(t-1) for2019 | F5: ="Forecast Quantities (Qt) for "&'Model update'!$C$5 -> Forecast Quantities (Qt) for 2020 | H5: ="Forecast Revenue (Pt "&'Model update'!$C$5&")*(Qt " &'Model update'!$C$5&")" -> Forecast Revenue (Pt 2020)*(Qt 2020) | I5: ="Revenue (Pt-1 "&'Model update'!$C$8&")*(Qt " &'Model update'!$C$5&")" -> Revenue (Pt-1 2019)*(Qt 2020) | K5: Movement | L5: Side Constraint
B6: Proposed tariff | C6: Existing tariff | D6: PropTar $/Cust/year | E6: ExistTar $/Cust/year | F6: FcastVol Cust # | H6: PropRev Fixed | I6: ExistRev Fixed
B8: Single phase | C8: Single phase | D8: 67.3 | E8: 73 | F8: 690736.8558 | H8: =D8*F8 -> 46486590.4 | I8: =E8*F8 -> 50423790.47 | K8: =IFERROR(H8/I8,"") -> 0.9219178082 | L8: =IF(B8="","",IF(K8<$I$30,"COMPLIANT","BREACHED")) -> COMPLIANT
B9: Three phase direct connected meter | C9: Three phase direct connected meter | D9: 74.15 | E9: 80.3 | F9: 135412.8384 | H9: 10040861.97 | I9: 10873650.92 | K9: =IFERROR(H9/I9,"") -> 0.9234122042 | L9: COMPLIANT
B10: Three phase CT connected meter | C10: Three phase CT connected meter | D10: 123.9 | E10: 127.75 | F10: 6032.931512 | H10: 747480.2143 | I10: 770707.0006 | K10: 0.9698630137 | L10: COMPLIANT
H11: 0 | I11: 0
H12: 0 | I12: 0
H13: 0 | I13: 0
H14: 0 | I14: 0
H15: 0 | I15: 0
H16: 0 | I16: 0
H17: =SUM(H7:H16) -> 57274932.58 | I17: =SUM(I7:I16) -> 62068148.4
B22: Year (t) | D22: ='Model update'!C5 -> 2020 | E22: =D22-1 -> 2019
B24: Table 1- Compliance with AER Final Determination Total Metering Annual Revenue | H24: Metering tariff rebalancing control
B25: Revenue from Metering charges for year t | D25: =H17 -> 57274932.58 | H25: ="CPI "&'Model update'!$C$5 -> CPI 2020 | I25: =D37 -> 0.01592920354
B26: Total Annual Metering Revenue for year t | D26: =D33 -> 57274983.46 | H26: ="X "& 'Model update'!$C$5 -> X 2020 | I26: =MIN(D38,0) -> 0
D27: =IF(D25="","",IF(D26>=D25,"METERING REVENUE CAP FORMULA COMPLIANT","METERING REVENUE CAP FORMULA BREACHED")) -> METERING REVENUE CAP FORMULA COMPLIANT | H27: ="Tt "&'Model update'!$C$5 -> Tt 2020 | I27: =(D31-E31)/I$17 -> 0
H28: ="Bt "&'Model update'!$C$5 -> Bt 2020 | I28: =(D32-E32)/I$17 -> 0.008246963384
B29: Table 2 - Total Annual Revenue for year t (TARMt)
B30: Adjusted Annual Smoothed Metering Revenue for year t | D30: =D39 -> 57830517.52 | I30: =(1+I25)*(1-I26)*(1+0.02)+SUM(I27:I28) -> 1.044494751
B31: T factor for year t | D31: 0 | E31: 0
B32: B factor for year t | D32: =-F68*(1+F66)^0.5 -> -555534.0641 | E32: -1067407.811
B33: Total Annual Revenue for year t | D33: =SUM(D30:D32) -> 57274983.46
B35: Table 3 - Adjusted Annual Revenue for year t (ARt)
B36: Adjusted Annual Smoothed Revenue for year t-1 | D36: 62235540.67
B37: CPI for period t | D37: ='Model update'!C30 -> 0.01592920354
B38: X factor for period t | D38: ='Model update'!B72 -> 0.08534951837
B39: Adjusted Annual Smoothed Revenue for year t | D39: =IF(D22=2016,'Model update'!D72,(D36*(1+D37)*(1-D38))) -> 57830517.52
B44: Table 4 - Metering Services Recovery Arrangements
D45: Year t-2 | E45: Year t-1 | F45: Year t
D46: (actual) | E46: (estimate) | F46: (forecast)
D47: =E47-1 -> 2018 | E47: =F47-1 -> 2019 | F47: =D$22 -> 2020
B49: (A) Revenue from Metering proposal charges | D49: 57462396.34 | E49: =E89 -> 60633198.69 | F49: =D25 -> 57274932.58
B52: (B) Less TARM for regulatory year = | D52: =SUM(D53:D54) -> 56918402.18 | E52: =SUM(E53:E54) -> 62235540.67 | F52: =SUM(F53:F54) -> 57830517.52
B53: + Adjusted annual smoothed revenue | D53: 66625349.07 | E53: =D36 -> 62235540.67 | F53: =D30 -> 57830517.52
B54: + T factor | D54: -9706946.885 | E54: =E31 -> 0 | F54: =D31 -> 0
B57: (A minus B) Under/over recovery of revenue for regulatory year | D57: =D49-D52 -> 543994.1582 | E57: =E49-E52 -> -1602341.985 | F57: =F49-F52 -> -555584.9469
B61: Table 5 - Metering Services Unders and Overs Account
D62: Year t-2 | E62: Year t-1 | F62: Year t
D63: (actual) | E63: (estimate) | F63: (forecast)
B64: Calendar year | D64: =E64-1 -> 2018 | E64: =F64-1 -> 2019 | F64: =D$22 -> 2020
B66: Nominal WACC | D66: =(1+'Model update'!$B$47)*(1+'Model update'!$C$28)-1 -> 0.05565648259 | E66: =(1+'Model update'!$B$45)*(1+'Model update'!$C$29)-1 -> 0.0565862118 | F66: =(1+'Model update'!$B$43)*(1+'Model update'!$C$30)-1 -> 0.05008580414
B68: Opening balance | D68: 1433237.542 | E68: =D72 -> 2071934.089 | F68: =E72 -> 542123.5835
B69: Interest on Opening balance | D69: =D68*D66 -> 79768.9603 | E69: =E68*E66 -> 117242.9012 | F69: =F68*F66 -> 27152.69562
B70: Under/over recovery of revenue for regulatory year | D70: =D57 -> 543994.1582 | E70: =E57 -> -1602341.985 | F70: =F57 -> -555584.9469
B71: Interest on under/over recovery for regulatory year | D71: =D70*((1+D66)^0.5-1) -> 14933.42856 | E71: =E70*((1+E66)^0.5-1) -> -44711.42228 | F71: =F70*((1+F66)^0.5-1) -> -13743.47365
B72: Closing balance of Metering Services overs/ (unders) account | D72: =SUM(D68:D71) -> 2071934.089 | E72: =SUM(E68:E71) -> 542123.5835 | F72: -52.14142097
B74: The DNSP is expected to achieve a closing balance as close to zero as practicable in its annual metering charges unders and overs account in each forecast year in its annual pricing proposals in the 2016–20 regulatory control period.
C77: ="Current Metering Tariffs P(t-1) for " &'Model update'!$C$8 -> Current Metering Tariffs P(t-1) for 2019 | D77: ="Estimated Quantities (Qt-1) for "&'Model update'!$C$5-1 -> Estimated Quantities (Qt-1) for 2019 | E77: ="Revenue (Pt-1 "&'Model update'!$C$8&")*(Qt-1 " &'Model update'!$C$5-1&")" -> Revenue (Pt-1 2019)*(Qt-1 2019)
B78: Existing tariff | C78: ExistTar $/Cust/year | D78: FcastVol Cust # | E78: ExistRev Fixed
B80: Single phase | C80: =E8 -> 73 | D80: 675398.1832 | E80: =C80*D80 -> 49304067.38
B81: Three phase direct connected meter | C81: =E9 -> 80.3 | D81: 131787.9873 | E81: 10582575.38
B82: Three phase CT connected meter | C82: 127.75 | D82: 5843.882041 | E82: 746555.9307
E83: 0
E84: 0
E85: 0
E86: 0
E87: 0
E88: 0
E89: =SUM(E79:E88) -> 60633198.69

Sheet Prop2020DistTar
B1: ="Tariff Approval - "&'Model update'!$C$3 -> Tariff Approval - Powercor | C1: ="Prop"&'Model update'!$C$5&"DistTar" -> Prop2020DistTar | R1: =SUM(AG6:AI34)/SUM(Est2019JSRev!S6:U35)-1 -> 0.002646240916
B3: ="PROPOSED "&'Model update'!$C$5&" DISTRIBUTION TARIFFS" -> PROPOSED 2020 DISTRIBUTION TARIFFS
D4: ="Proposed Distribution Tariffs (Pt) for "&'Model update'!$C$5 -> Proposed Distribution Tariffs (Pt) for 2020 | R4: ="Current Distribution Tariffs (Pt-1) for "&'Model update'!$C$8 -> Current Distribution Tariffs (Pt-1) for 2019 | AF4: ="Forecast Quantities (Qt) for "&'Model update'!$C$5 -> Forecast Quantities (Qt) for 2020 | AT4: ="Forecast Revenue (Pt "&'Model update'!$C$5&")*(Qt " &'Model update'!$C$5&")" -> Forecast Revenue (Pt 2020)*(Qt 2020) | BI4: ="Revenue (Pt-1 "&'Model update'!$C$8&")*(Qt " &'Model update'!$C$5&")" -> Revenue (Pt-1 2019)*(Qt 2020)
B5: Proposed tariff | C5: Existing tariff | D5: PropTar Fixed | E5: PropTar Anytime | F5: PropTar PkBlk | G5: PropTar OPkBlk1 | H5: PropTar Dem kVA | I5: PropTar Dem kW Sum | J5: PropTar Dem kW Win | K5: PropTar SumBlk1 | L5: PropTar SumBlk2 | M5: PropTar SumBlk3 | N5: PropTar WtrBlk1 | O5: PropTar WtrBlk2 | P5: PropTar WtrBlk3 | R5: ExistTar Fixed | S5: ExistTar Anytime | T5: ExistTar Pk | U5: ExistTar OPkBlk | V5: ExistTar Dem kVA | W5: ExistTar Dem kW Sum | X5: ExistTar Dem kW Win | Y5: ExistTar SumBlk1 | Z5: ExistTar SumBlk2 | AA5: ExistTar SumBlk3 | AB5: ExistTar WtrBlk1 | AC5: ExistTar WtrBlk2 | AD5: ExistTar WtrBlk3 | AF5: FcastVol Fixed | AG5: FcastVol Anytime | AH5: FcastVol Pk | AI5: FcastVol Opk | AJ5: FcastVol Dem kVA | AK5: FcastVol Dem kW Sum | AL5: FcastVol Dem kW Win | AM5: FcastVol SumBlk1 | AN5: FcastVol SumBlk2 | AO5: FcastVol SumBlk3 | AP5: FcastVol WtrBlk1 | AQ5: FcastVol WtrBlk2 | AR5: FcastVol WtrBlk3 | AT5: PropRev Fixed | AU5: PropRev Anytime | AV5: PropRev Pk | AW5: PropRev Opk | AX5: PropRev Dem kVA | AY5: PropRev Dem kW Sum | AZ5: PropRev Dem kW Win | BA5: PropRev SumBlk1 | BB5: PropRev SumBlk2 | BC5: PropRev SumBlk3 | BD5: PropRev WtrBlk1 | BE5: PropRev WtrBlk2 | BF5: PropRev WtrBlk3 | BG5: PropRev Total | BI5: ExistRev Fixed | BJ5: ExistRev Anytime | BK5: ExistRev Pk | BL5: ExistRev Opk | BM5: ExistRev Dem kVA | BN5: ExistRev Dem kW Sum | BO5: ExistRev Dem kW Win | BP5: ExistRev SumBlk1 | BQ5: ExistRev SumBlk2 | BR5: ExistRev SumBlk3 | BS5: ExistRev WtrBlk1 | BT5: ExistRev WtrBlk2 | BU5: ExistRev WtrBlk3 | BV5: ExistRev Total
A6: =Est2019DistRev!A6 -> D1 | B6: =C6 -> Residential Single Rate | C6: =Est2019DistRev!B6 -> Residential Single Rate | D6: 140 | E6: 5.57 | F6: 0 | G6: 0 | H6: 0 | I6: 0 | J6: 0 | K6: 0 | L6: 0 | M6: 0 | N6: 0 | O6: 0 | P6: 0 | R6: =Est2019DistRev!D6 -> 130 | S6: =Est2019DistRev!E6 -> 5.28 | T6: =Est2019DistRev!F6 -> 0 | U6: =Est2019DistRev!G6 -> 0 | V6: =Est2019DistRev!H6 -> 0 | W6: =Est2019DistRev!I6 -> 0 | X6: =Est2019DistRev!J6 -> 0 | Y6: =Est2019DistRev!K6 -> 0 | Z6: =Est2019DistRev!L6 -> 0 | AA6: =Est2019DistRev!M6 -> 0 | AB6: =Est2019DistRev!N6 -> 0 | AC6: =Est2019DistRev!O6 -> 0 | AD6: =Est2019DistRev!P6 -> 0 | AF6: 572443.2566 | AG6: 2509366847 | AH6: 0 | AI6: 0 | AJ6: 0 | AK6: 0 | AL6: 0 | AM6: 0 | AN6: 0 | AO6: 0 | AP6: 0 | AQ6: 0 | AR6: 0 | AT6: =D6*AF6 -> 80142055.93 | AU6: =E6/100*AG6 -> 139771733.4 | AV6: 0 | AW6: 0 | AX6: =H6*AJ6 -> 0 | AY6: =I6*AK6 -> 0 | AZ6: 0 | BA6: 0 | BB6: 0 | BC6: =M6/100*AO6 -> 0 | BD6: =N6/100*AP6 -> 0 | BE6: =O6/100*AQ6 -> 0 | BF6: =P6/100*AR6 -> 0 | BG6: =SUM(AT6:BF6) -> 219913789.3 | BI6: =R6*AF6 -> 74417623.36 | BJ6: =S6/100*AG6 -> 132494569.5 | BK6: 0 | BL6: 0 | BM6: =V6*AJ6 -> 0 | BN6: =W6*AK6 -> 0 | BO6: 0 | BP6: 0 | BQ6: 0 | BR6: =AA6/100*AO6 -> 0 | BS6: =AB6/100*AP6 -> 0 | BT6: =AC6/100*AQ6 -> 0 | BU6: =AD6/100*AR6 -> 0 | BV6: =SUM(BI6:BU6) -> 206912192.9
A7: =Est2019DistRev!A7 -> D1CS | B7: =C7 -> Climate Saver | C7: =Est2019DistRev!B7 -> Climate Saver | D7: 0 | E7: 0 | F7: 7.9 | G7: 1.57 | H7: 0 | I7: 0 | J7: 0 | K7: 0 | L7: 0 | M7: 0 | N7: 0 | O7: 0 | P7: 0 | R7: =Est2019DistRev!D7 -> 0 | S7: =Est2019DistRev!E7 -> 0 | T7: =Est2019DistRev!F7 -> 7.48 | U7: =Est2019DistRev!G7 -> 1.51 | V7: =Est2019DistRev!H7 -> 0 | W7: =Est2019DistRev!I7 -> 0 | X7: =Est2019DistRev!J7 -> 0 | Y7: =Est2019DistRev!K7 -> 0 | Z7: =Est2019DistRev!L7 -> 0 | AA7: =Est2019DistRev!M7 -> 0 | AB7: =Est2019DistRev!N7 -> 0 | AC7: =Est2019DistRev!O7 -> 0 | AD7: =Est2019DistRev!P7 -> 0 | AF7: 16861.04795 | AG7: 0 | AH7: 9874474.429 | AI7: 17935586.28 | AJ7: 0 | AK7: 0 | AL7: 0 | AM7: 0 | AN7: 0 | AO7: 0 | AP7: 0 | AQ7: 0 | AR7: 0 | AT7: =D7*AF7 -> 0 | AU7: =E7/100*AG7 -> 0 | AV7: 780083.4799 | AW7: 281588.7046 | AX7: =H7*AJ7 -> 0 | AY7: =I7*AK7 -> 0 | AZ7: =J7*AL7 -> 0 | BA7: 0 | BB7: 0 | BC7: 0 | BD7: 0 | BE7: 0 | BF7: 0 | BG7: =SUM(AT7:BF7) -> 1061672.185 | BI7: =R7*AF7 -> 0 | BJ7: =S7/100*AG7 -> 0 | BK7: =T7/100*AH7 -> 738610.6873 | BL7: =U7/100*AI7 -> 270827.3529 | BM7: =V7*AJ7 -> 0 | BN7: =W7*AK7 -> 0 | BO7: =X7*AL7 -> 0 | BP7: =Y7/100*AM7 -> 0 | BQ7: =Z7/100*AN7 -> 0 | BR7: 0 | BS7: 0 | BT7: 0 | BU7: 0 | BV7: =SUM(BI7:BU7) -> 1009438.04
A8: =Est2019DistRev!A8 -> D3CS | B8: Climate Saver Interval | C8: =Est2019DistRev!B8 -> Climate Saver Interval | D8: 0 | E8: 0 | F8: 7.9 | G8: 1.57 | H8: 0 | I8: 0 | J8: 0 | K8: 0 | L8: 0 | M8: 0 | N8: 0 | O8: 0 | P8: 0 | R8: =Est2019DistRev!D8 -> 0 | S8: =Est2019DistRev!E8 -> 0 | T8: =Est2019DistRev!F8 -> 7.48 | U8: =Est2019DistRev!G8 -> 1.51 | V8: =Est2019DistRev!H8 -> 0 | W8: =Est2019DistRev!I8 -> 0 | X8: =Est2019DistRev!J8 -> 0 | Y8: =Est2019DistRev!K8 -> 0 | Z8: =Est2019DistRev!L8 -> 0 | AA8: =Est2019DistRev!M8 -> 0 | AB8: =Est2019DistRev!N8 -> 0 | AC8: =Est2019DistRev!O8 -> 0 | AD8: =Est2019DistRev!P8 -> 0 | AF8: 4615 | AG8: 0 | AH8: 2865633.918 | AI8: 5776403.999 | AJ8: 0 | AK8: 0 | AL8: 0 | AM8: 0 | AN8: 0 | AO8: 0 | AP8: 0 | AQ8: 0 | AR8: 0 | AT8: 0 | AU8: 0 | AV8: 226385.0795 | AW8: 90689.54278 | AX8: 0 | AY8: 0 | AZ8: 0 | BA8: 0 | BB8: 0 | BC8: 0 | BD8: 0 | BE8: 0 | BF8: 0 | BG8: 317074.6223 | BI8: 0 | BJ8: 0 | BK8: 214349.4171 | BL8: 87223.70038 | BM8: 0 | BN8: 0 | BO8: 0 | BP8: 0 | BQ8: 0 | BR8: 0 | BS8: 0 | BT8: 0 | BU8: 0 | BV8: 301573.1175
A9: =Est2019DistRev!A9 -> P13R | B9: Residential - Flexible Pricing | C9: =Est2019DistRev!B9 -> Residential - Flexible Pricing | D9: 140 | E9: 0 | F9: 0 | G9: 0 | H9: 0 | I9: 0 | J9: 0 | K9: 10.27 | L9: 5.8 | M9: 2.24 | N9: 10.27 | O9: 5.8 | P9: 2.24 | R9: =Est2019DistRev!D9 -> 130 | S9: =Est2019DistRev!E9 -> 0 | T9: =Est2019DistRev!F9 -> 0 | U9: =Est2019DistRev!G9 -> 0 | V9: =Est2019DistRev!H9 -> 0 | W9: =Est2019DistRev!I9 -> 0 | X9: =Est2019DistRev!J9 -> 0 | Y9: =Est2019DistRev!K9 -> 9.7 | Z9: =Est2019DistRev!L9 -> 5.49 | AA9: =Est2019DistRev!M9 -> 2.14 | AB9: =Est2019DistRev!N9 -> 9.7 | AC9: =Est2019DistRev!O9 -> 5.49 | AD9: =Est2019DistRev!P9 -> 2.14 | AF9: 3091.114945 | AG9: 0 | AH9: 0 | AI9: 0 | AJ9: 0 | AK9: 0 | AL9: 0 | AM9: 780281.0199 | AN9: 1512255.045 | AO9: 1229126.074 | AP9: 2857752.309 | AQ9: 5538581.917 | AR9: 4501631.832 | AT9: 432756.0923 | AU9: 0 | AV9: 0 | AW9: 0 | AX9: 0 | AY9: 0 | AZ9: 0 | BA9: 80134.86074 | BB9: 87710.79261 | BC9: 27532.42406 | BD9: 293491.1621 | BE9: 321237.7512 | BF9: 100836.553 | BG9: 1343699.636 | BI9: 401844.9429 | BJ9: 0 | BK9: 0 | BL9: 0 | BM9: 0 | BN9: 0 | BO9: 0 | BP9: 75687.25893 | BQ9: 83022.80197 | BR9: 26303.29799 | BS9: 277201.974 | BT9: 304068.1472 | BU9: 96334.9212 | BV9: 1264463.344
A10: =Est2019DistRev!A10 -> P13RDK | B10: Residential Docklands - Flexible Pricing | C10: =Est2019DistRev!B10 -> Residential Docklands - Flexible Pricing | D10: 140 | E10: 0 | F10: 0 | G10: 0 | H10: 0 | I10: 0 | J10: 0 | K10: 10.27 | L10: 5.8 | M10: 2.24 | N10: 10.27 | O10: 5.8 | P10: 2.24 | R10: =Est2019DistRev!D10 -> 130 | S10: =Est2019DistRev!E10 -> 0 | T10: =Est2019DistRev!F10 -> 0 | U10: =Est2019DistRev!G10 -> 0 | V10: =Est2019DistRev!H10 -> 0 | W10: =Est2019DistRev!I10 -> 0 | X10: =Est2019DistRev!J10 -> 0 | Y10: =Est2019DistRev!K10 -> 6.73 | Z10: =Est2019DistRev!L10 -> 3.75 | AA10: =Est2019DistRev!M10 -> 1.38 | AB10: =Est2019DistRev!N10 -> 6.73 | AC10: =Est2019DistRev!O10 -> 3.75 | AD10: =Est2019DistRev!P10 -> 1.38 | AF10: 0.8982790797 | AG10: 0 | AH10: 0 | AI10: 0 | AJ10: 0 | AK10: 0 | AL10: 0 | AM10: 301.2634427 | AN10: 577.0353633 | AO10: 387.0076533 | AP10: 1038.66086 | AQ10: 1989.435033 | AR10: 1334.279721 | AT10: 125.7590712 | AU10: 0 | AV10: 0 | AW10: 0 | AX10: 0 | AY10: 0 | AZ10: 0 | BA10: 30.93975556 | BB10: 33.46805107 | BC10: 8.668971434 | BD10: 106.6704704 | BE10: 115.3872319 | BF10: 29.88786574 | BG10: 450.7814172 | BI10: 116.7762804 | BJ10: 0 | BK10: 0 | BL10: 0 | BM10: 0 | BN10: 0 | BO10: 0 | BP10: 20.27502969 | BQ10: 21.63882612 | BR10: 5.340705616 | BS10: 69.9018759 | BT10: 74.60381372 | BU10: 18.41306014 | BV10: 326.9495916
A11: =Est2019DistRev!A11 -> P13RCS | B11: Climate Saver - Flexible Pricing | C11: =Est2019DistRev!B11 -> Climate Saver - Flexible Pricing | D11: 0 | E11: 0 | F11: 0 | G11: 0 | H11: 0 | I11: 0 | J11: 0 | K11: 7.9 | L11: 0 | M11: 0 | N11: 1.57 | O11: 0 | P11: 0 | R11: =Est2019DistRev!D11 -> 0 | S11: =Est2019DistRev!E11 -> 0 | T11: =Est2019DistRev!F11 -> 0 | U11: =Est2019DistRev!G11 -> 0 | V11: =Est2019DistRev!H11 -> 0 | W11: =Est2019DistRev!I11 -> 0 | X11: =Est2019DistRev!J11 -> 0 | Y11: =Est2019DistRev!K11 -> 7.48 | Z11: =Est2019DistRev!L11 -> 0 | AA11: =Est2019DistRev!M11 -> 0 | AB11: =Est2019DistRev!N11 -> 1.51 | AC11: =Est2019DistRev!O11 -> 0 | AD11: =Est2019DistRev!P11 -> 0 | AF11: 59 | AG11: 0 | AH11: 0 | AI11: 0 | AJ11: 0 | AK11: 0 | AL11: 0 | AM11: 30654.86318 | AN11: 0 | AO11: 0 | AP11: 8569.35181 | AQ11: 0 | AR11: 60941.97198 | AT11: 0 | AU11: 0 | AV11: 0 | AW11: 0 | AX11: 0 | AY11: 0 | AZ11: 0 | BA11: 2421.734191 | BB11: 0 | BC11: 0 | BD11: 134.5388234 | BE11: 0 | BF11: 0 | BG11: 2556.273015 | BI11: 0 | BJ11: 0 | BK11: 0 | BL11: 0 | BM11: 0 | BN11: 0 | BO11: 0 | BP11: 2292.983766 | BQ11: 0 | BR11: 0 | BS11: 129.3972123 | BT11: 0 | BU11: 0 | BV11: 2422.380978
A12: =Est2019DistRev!A12 -> P1DK | B12: Docklands single rate | C12: =Est2019DistRev!B12 -> Docklands single rate | D12: 140 | E12: 5.57 | F12: 0 | G12: 0 | H12: 0 | I12: 0 | J12: 0 | K12: 0 | L12: 0 | M12: 0 | N12: 0 | O12: 0 | P12: 0 | R12: =Est2019DistRev!D12 -> 130 | S12: =Est2019DistRev!E12 -> 4.97 | T12: =Est2019DistRev!F12 -> 0 | U12: =Est2019DistRev!G12 -> 0 | V12: =Est2019DistRev!H12 -> 0 | W12: =Est2019DistRev!I12 -> 0 | X12: =Est2019DistRev!J12 -> 0 | Y12: =Est2019DistRev!K12 -> 0 | Z12: =Est2019DistRev!L12 -> 0 | AA12: =Est2019DistRev!M12 -> 0 | AB12: =Est2019DistRev!N12 -> 0 | AC12: =Est2019DistRev!O12 -> 0 | AD12: =Est2019DistRev!P12 -> 0 | AF12: 2.535344821 | AG12: 47230.70418 | AH12: 0 | AI12: 0 | AJ12: 0 | AK12: 0 | AL12: 0 | AM12: 0 | AN12: 0 | AO12: 0 | AP12: 0 | AQ12: 0 | AR12: 0 | AT12: 354.948275 | AU12: 2630.750223 | AV12: 0 | AW12: 0 | AX12: 0 | AY12: 0 | AZ12: 0 | BA12: 0 | BB12: 0 | BC12: 0 | BD12: 0 | BE12: 0 | BF12: 0 | BG12: 2985.698498 | BI12: 329.5948268 | BJ12: 2347.365997 | BK12: 0 | BL12: 0 | BM12: 0 | BN12: 0 | BO12: 0 | BP12: 0 | BQ12: 0 | BR12: 0 | BS12: 0 | BT12: 0 | BU12: 0 | BV12: 2676.960824
A13: =Est2019DistRev!A13 -> D2 | B13: Residential Two Rate 5d | C13: =Est2019DistRev!B13 -> Residential Two Rate 5d | D13: 140 | E13: 0 | F13: 9.81 | G13: 2.23 | H13: 0 | I13: 0 | J13: 0 | K13: 0 | L13: 0 | M13: 0 | N13: 0 | O13: 0 | P13: 0 | R13: =Est2019DistRev!D13 -> 130 | S13: =Est2019DistRev!E13 -> 0 | T13: =Est2019DistRev!F13 -> 9.26 | U13: =Est2019DistRev!G13 -> 2.12 | V13: =Est2019DistRev!H13 -> 0 | W13: =Est2019DistRev!I13 -> 0 | X13: =Est2019DistRev!J13 -> 0 | Y13: =Est2019DistRev!K13 -> 0 | Z13: =Est2019DistRev!L13 -> 0 | AA13: =Est2019DistRev!M13 -> 0 | AB13: =Est2019DistRev!N13 -> 0 | AC13: =Est2019DistRev!O13 -> 0 | AD13: =Est2019DistRev!P13 -> 0 | AF13: 45021.61273 | AG13: 0 | AH13: 124072246.5 | AI13: 114355033.8 | AJ13: 0 | AK13: 0 | AL13: 0 | AM13: 0 | AN13: 0 | AO13: 0 | AP13: 0 | AQ13: 0 | AR13: 0 | AT13: 6303025.782 | AU13: 0 | AV13: 12171487.39 | AW13: 2550117.253 | AX13: 0 | AY13: 0 | AZ13: 0 | BA13: 0 | BB13: 0 | BC13: 0 | BD13: 0 | BE13: 0 | BF13: 0 | BG13: 21024630.42 | BI13: 5852809.655 | BJ13: 0 | BK13: 11489090.03 | BL13: 2424326.716 | BM13: 0 | BN13: 0 | BO13: 0 | BP13: 0 | BQ13: 0 | BR13: 0 | BS13: 0 | BT13: 0 | BU13: 0 | BV13: 19766226.4
A14: =Est2019DistRev!A14 -> D2DK | B14: Docklands Two Rate 5d | C14: =Est2019DistRev!B14 -> Docklands Two Rate 5d | D14: 140 | E14: 0 | F14: 9.81 | G14: 2.07 | H14: 0 | I14: 0 | J14: 0 | K14: 0 | L14: 0 | M14: 0 | N14: 0 | O14: 0 | P14: 0 | R14: =Est2019DistRev!D14 -> 130 | S14: =Est2019DistRev!E14 -> 0 | T14: =Est2019DistRev!F14 -> 8.87 | U14: =Est2019DistRev!G14 -> 1.97 | V14: =Est2019DistRev!H14 -> 0 | W14: =Est2019DistRev!I14 -> 0 | X14: =Est2019DistRev!J14 -> 0 | Y14: =Est2019DistRev!K14 -> 0 | Z14: =Est2019DistRev!L14 -> 0 | AA14: =Est2019DistRev!M14 -> 0 | AB14: =Est2019DistRev!N14 -> 0 | AC14: =Est2019DistRev!O14 -> 0 | AD14: =Est2019DistRev!P14 -> 0 | AF14: 569.6349375 | AG14: 0 | AH14: 1813572.865 | AI14: 1689527.497 | AJ14: 0 | AK14: 0 | AL14: 0 | AM14: 0 | AN14: 0 | AO14: 0 | AP14: 0 | AQ14: 0 | AR14: 0 | AT14: 79748.89125 | AU14: 0 | AV14: 177911.4981 | AW14: 34973.21919 | AX14: 0 | AY14: 0 | AZ14: 0 | BA14: 0 | BB14: 0 | BC14: 0 | BD14: 0 | BE14: 0 | BF14: 0 | BG14: 292633.6085 | BI14: 74052.54187 | BJ14: 0 | BK14: 160863.9132 | BL14: 33283.69169 | BM14: 0 | BN14: 0 | BO14: 0 | BP14: 0 | BQ14: 0 | BR14: 0 | BS14: 0 | BT14: 0 | BU14: 0 | BV14: 268200.1467
A15: =Est2019DistRev!A15 -> D3 | B15: Residential Interval | C15: =Est2019DistRev!B15 -> Residential Interval | D15: 140 | E15: 0 | F15: 9.81 | G15: 2.23 | H15: 0 | I15: 0 | J15: 0 | K15: 0 | L15: 0 | M15: 0 | N15: 0 | O15: 0 | P15: 0 | R15: =Est2019DistRev!D15 -> 130 | S15: =Est2019DistRev!E15 -> 0 | T15: =Est2019DistRev!F15 -> 9.26 | U15: =Est2019DistRev!G15 -> 2.12 | V15: =Est2019DistRev!H15 -> 0 | W15: =Est2019DistRev!I15 -> 0 | X15: =Est2019DistRev!J15 -> 0 | Y15: =Est2019DistRev!K15 -> 0 | Z15: =Est2019DistRev!L15 -> 0 | AA15: =Est2019DistRev!M15 -> 0 | AB15: =Est2019DistRev!N15 -> 0 | AC15: =Est2019DistRev!O15 -> 0 | AD15: =Est2019DistRev!P15 -> 0 | AF15: 107903.7555 | AG15: 0 | AH15: 228035493.7 | AI15: 239648531 | AJ15: 0 | AK15: 0 | AL15: 0 | AM15: 0 | AN15: 0 | AO15: 0 | AP15: 0 | AQ15: 0 | AR15: 0 | AT15: 15106525.78 | AU15: 0 | AV15: 22370281.94 | AW15: 5344162.24 | AX15: 0 | AY15: 0 | AZ15: 0 | BA15: 0 | BB15: 0 | BC15: 0 | BD15: 0 | BE15: 0 | BF15: 0 | BG15: 42820969.95 | BI15: 14027488.22 | BJ15: 0 | BK15: 21116086.72 | BL15: 5080548.856 | BM15: 0 | BN15: 0 | BO15: 0 | BP15: 0 | BQ15: 0 | BR15: 0 | BS15: 0 | BT15: 0 | BU15: 0 | BV15: 40224123.8
A16: =Est2019DistRev!A16 -> D2OP | B16: Residential Two Rate 5d - controlled load | C16: =Est2019DistRev!B16 -> Residential Two Rate 5d - controlled load | D16: 0 | E16: 0 | F16: 0 | G16: 0 | H16: 0 | I16: 0 | J16: 0 | K16: 0 | L16: 0 | M16: 0 | N16: 0 | O16: 0 | P16: 0 | R16: =Est2019DistRev!D16 -> 0 | S16: =Est2019DistRev!E16 -> 0 | T16: =Est2019DistRev!F16 -> 0 | U16: =Est2019DistRev!G16 -> 1.51 | V16: =Est2019DistRev!H16 -> 0 | W16: =Est2019DistRev!I16 -> 0 | X16: =Est2019DistRev!J16 -> 0 | Y16: =Est2019DistRev!K16 -> 0 | Z16: =Est2019DistRev!L16 -> 0 | AA16: =Est2019DistRev!M16 -> 0 | AB16: =Est2019DistRev!N16 -> 0 | AC16: =Est2019DistRev!O16 -> 0 | AD16: =Est2019DistRev!P16 -> 0 | AF16: 0 | AG16: 0 | AH16: 0 | AI16: 0 | AJ16: 0 | AK16: 0 | AL16: 0 | AM16: 0 | AN16: 0 | AO16: 0 | AP16: 0 | AQ16: 0 | AR16: 0 | AT16: 0 | AU16: 0 | AV16: 0 | AW16: 0 | AX16: 0 | AY16: 0 | AZ16: 0 | BA16: 0 | BB16: 0 | BC16: 0 | BD16: 0 | BE16: 0 | BF16: 0 | BG16: 0 | BI16: 0 | BJ16: 0 | BK16: 0 | BL16: 0 | BM16: 0 | BN16: 0 | BO16: 0 | BP16: 0 | BQ16: 0 | BR16: 0 | BS16: 0 | BT16: 0 | BU16: 0 | BV16: 0
A17: =Est2019DistRev!A17 -> D2DKOP | B17: Docklands Two Rate 5d - controlled load | C17: =Est2019DistRev!B17 -> Docklands Two Rate 5d - controlled load | D17: 0 | E17: 0 | F17: 0 | G17: 0 | H17: 0 | I17: 0 | J17: 0 | K17: 0 | L17: 0 | M17: 0 | N17: 0 | O17: 0 | P17: 0 | R17: =Est2019DistRev!D17 -> 0 | S17: =Est2019DistRev!E17 -> 0 | T17: =Est2019DistRev!F17 -> 0 | U17: =Est2019DistRev!G17 -> 1.51 | V17: =Est2019DistRev!H17 -> 0 | W17: =Est2019DistRev!I17 -> 0 | X17: =Est2019DistRev!J17 -> 0 | Y17: =Est2019DistRev!K17 -> 0 | Z17: =Est2019DistRev!L17 -> 0 | AA17: =Est2019DistRev!M17 -> 0 | AB17: =Est2019DistRev!N17 -> 0 | AC17: =Est2019DistRev!O17 -> 0 | AD17: =Est2019DistRev!P17 -> 0 | AF17: 0 | AG17: 0 | AH17: 0 | AI17: 0 | AJ17: 0 | AK17: 0 | AL17: 0 | AM17: 0 | AN17: 0 | AO17: 0 | AP17: 0 | AQ17: 0 | AR17: 0 | AT17: 0 | AU17: 0 | AV17: 0 | AW17: 0 | AX17: 0 | AY17: 0 | AZ17: 0 | BA17: 0 | BB17: 0 | BC17: 0 | BD17: 0 | BE17: 0 | BF17: 0 | BG17: 0 | BI17: 0 | BJ17: 0 | BK17: 0 | BL17: 0 | BM17: 0 | BN17: 0 | BO17: 0 | BP17: 0 | BQ17: 0 | BR17: 0 | BS17: 0 | BT17: 0 | BU17: 0 | BV17: 0
A18: =Est2019DistRev!A18 -> DD1 | B18: Dedicated circuit | C18: =Est2019DistRev!B18 -> Dedicated circuit | D18: 0 | E18: 0 | F18: 0 | G18: 1.57 | H18: 0 | I18: 0 | J18: 0 | K18: 0 | L18: 0 | M18: 0 | N18: 0 | O18: 0 | P18: 0 | R18: =Est2019DistRev!D18 -> 0 | S18: =Est2019DistRev!E18 -> 0 | T18: =Est2019DistRev!F18 -> 0 | U18: =Est2019DistRev!G18 -> 1.51 | V18: =Est2019DistRev!H18 -> 0 | W18: =Est2019DistRev!I18 -> 0 | X18: =Est2019DistRev!J18 -> 0 | Y18: =Est2019DistRev!K18 -> 0 | Z18: =Est2019DistRev!L18 -> 0 | AA18: =Est2019DistRev!M18 -> 0 | AB18: =Est2019DistRev!N18 -> 0 | AC18: =Est2019DistRev!O18 -> 0 | AD18: =Est2019DistRev!P18 -> 0 | AF18: 204923.6273 | AG18: 0 | AH18: 0 | AI18: 377403994 | AJ18: 0 | AK18: 0 | AL18: 0 | AM18: 0 | AN18: 0 | AO18: 0 | AP18: 0 | AQ18: 0 | AR18: 0 | AT18: 0 | AU18: 0 | AV18: 0 | AW18: 5925242.705 | AX18: 0 | AY18: 0 | AZ18: 0 | BA18: 0 | BB18: 0 | BC18: 0 | BD18: 0 | BE18: 0 | BF18: 0 | BG18: 5925242.705 | BI18: 0 | BJ18: 0 | BK18: 0 | BL18: 5698800.309 | BM18: 0 | BN18: 0 | BO18: 0 | BP18: 0 | BQ18: 0 | BR18: 0 | BS18: 0 | BT18: 0 | BU18: 0 | BV18: 5698800.309
A19: =Est2019DistRev!A19 -> D3HW | B19: Hot Water Interval | C19: =Est2019DistRev!B19 -> Hot Water Interval | D19: 0 | E19: 0 | F19: 0 | G19: 0 | H19: 0 | I19: 0 | J19: 0 | K19: 0 | L19: 0 | M19: 0 | N19: 0 | O19: 0 | P19: 0 | R19: =Est2019DistRev!D19 -> 0 | S19: =Est2019DistRev!E19 -> 0 | T19: =Est2019DistRev!F19 -> 0 | U19: =Est2019DistRev!G19 -> 1.51 | V19: =Est2019DistRev!H19 -> 0 | W19: =Est2019DistRev!I19 -> 0 | X19: =Est2019DistRev!J19 -> 0 | Y19: =Est2019DistRev!K19 -> 0 | Z19: =Est2019DistRev!L19 -> 0 | AA19: =Est2019DistRev!M19 -> 0 | AB19: =Est2019DistRev!N19 -> 0 | AC19: =Est2019DistRev!O19 -> 0 | AD19: =Est2019DistRev!P19 -> 0 | AF19: 0 | AG19: 0 | AH19: 0 | AI19: 0 | AJ19: 0 | AK19: 0 | AL19: 0 | AM19: 0 | AN19: 0 | AO19: 0 | AP19: 0 | AQ19: 0 | AR19: 0 | AT19: 0 | AU19: 0 | AV19: 0 | AW19: 0 | AX19: 0 | AY19: 0 | AZ19: 0 | BA19: 0 | BB19: 0 | BC19: 0 | BD19: 0 | BE19: 0 | BF19: 0 | BG19: 0 | BI19: 0 | BJ19: 0 | BK19: 0 | BL19: 0 | BM19: 0 | BN19: 0 | BO19: 0 | BP19: 0 | BQ19: 0 | BR19: 0 | BS19: 0 | BT19: 0 | BU19: 0 | BV19: 0
A20: =Est2019DistRev!A20 -> DD | B20: Residential Demand | C20: =Est2019DistRev!B20 -> Residential Demand | D20: 140 | E20: 2.44 | F20: 0 | G20: 0 | H20: 0 | I20: 8.19 | J20: 2.73 | K20: 0 | L20: 0 | M20: 0 | N20: 0 | O20: 0 | P20: 0 | R20: =Est2019DistRev!D20 -> 130 | S20: =Est2019DistRev!E20 -> 2.33 | T20: =Est2019DistRev!F20 -> 0 | U20: =Est2019DistRev!G20 -> 0 | V20: =Est2019DistRev!H20 -> 0 | W20: =Est2019DistRev!I20 -> 7.71 | X20: =Est2019DistRev!J20 -> 2.57 | Y20: =Est2019DistRev!K20 -> 0 | Z20: =Est2019DistRev!L20 -> 0 | AA20: =Est2019DistRev!M20 -> 0 | AB20: =Est2019DistRev!N20 -> 0 | AC20: =Est2019DistRev!O20 -> 0 | AD20: =Est2019DistRev!P20 -> 0 | AF20: 4.638457997 | AG20: 17808.24168 | AH20: 0 | AI20: 0 | AJ20: 0 | AK20: 53.31988566 | AL20: 107.3570863 | AM20: 0 | AN20: 0 | AO20: 0 | AP20: 0 | AQ20: 0 | AR20: 0 | AT20: 649.3841196 | AU20: 434.5210971 | AV20: 0 | AW20: 0 | AX20: 0 | AY20: 436.6898635 | AZ20: 293.0848456 | BA20: 0 | BB20: 0 | BC20: 0 | BD20: 0 | BE20: 0 | BF20: 0 | BG20: 1813.679926 | BI20: 602.9995396 | BJ20: 414.9320312 | BK20: 0 | BL20: 0 | BM20: 0 | BN20: 411.0963184 | BO20: 275.9077118 | BP20: 0 | BQ20: 0 | BR20: 0 | BS20: 0 | BT20: 0 | BU20: 0 | BV20: 1704.935601
A21: =Est2019DistRev!A21 -> DDNEW | B21: Newstead Residential Trial | C21: =Est2019DistRev!B21 -> Newstead Residential Trial | D21: 390 | E21: 0 | F21: 0 | G21: 0 | H21: 0 | I21: 1.64 | J21: 1.64 | K21: 0 | L21: 0 | M21: 0 | N21: 0 | O21: 0 | P21: 0 | R21: =Est2019DistRev!D21 -> 375 | S21: =Est2019DistRev!E21 -> 0 | T21: =Est2019DistRev!F21 -> 0 | U21: =Est2019DistRev!G21 -> 0 | V21: =Est2019DistRev!H21 -> 0 | W21: =Est2019DistRev!I21 -> 1.54 | X21: =Est2019DistRev!J21 -> 1.54 | Y21: =Est2019DistRev!K21 -> 0 | Z21: =Est2019DistRev!L21 -> 0 | AA21: =Est2019DistRev!M21 -> 0 | AB21: =Est2019DistRev!N21 -> 0 | AC21: =Est2019DistRev!O21 -> 0 | AD21: =Est2019DistRev!P21 -> 0 | AF21: 9.767123288 | AG21: 42793.42516 | AH21: 0 | AI21: 0 | AJ21: 0 | AK21: 114.1 | AL21: 232.3 | AM21: 0 | AN21: 0 | AO21: 0 | AP21: 0 | AQ21: 0 | AR21: 0 | AT21: 3809.178082 | AU21: 0 | AV21: 0 | AW21: 0 | AX21: 0 | AY21: 187.124 | AZ21: 380.972 | BA21: 0 | BB21: 0 | BC21: 0 | BD21: 0 | BE21: 0 | BF21: 0 | BG21: 4377.274082 | BI21: 3662.671233 | BJ21: 0 | BK21: 0 | BL21: 0 | BM21: 0 | BN21: 175.714 | BO21: 357.742 | BP21: 0 | BQ21: 0 | BR21: 0 | BS21: 0 | BT21: 0 | BU21: 0 | BV21: 4196.127233
A22: =Est2019DistRev!A22 -> ND1 | B22: Non-Residential Single Rate | C22: =Est2019DistRev!B22 -> Non-Residential Single Rate | D22: 180 | E22: 7.15 | F22: 0 | G22: 0 | H22: 0 | I22: 0 | J22: 0 | K22: 0 | L22: 0 | M22: 0 | N22: 0 | O22: 0 | P22: 0 | R22: =Est2019DistRev!D22 -> 170 | S22: =Est2019DistRev!E22 -> 6.69 | T22: =Est2019DistRev!F22 -> 0 | U22: =Est2019DistRev!G22 -> 0 | V22: =Est2019DistRev!H22 -> 0 | W22: =Est2019DistRev!I22 -> 0 | X22: =Est2019DistRev!J22 -> 0 | Y22: =Est2019DistRev!K22 -> 0 | Z22: =Est2019DistRev!L22 -> 0 | AA22: =Est2019DistRev!M22 -> 0 | AB22: =Est2019DistRev!N22 -> 0 | AC22: =Est2019DistRev!O22 -> 0 | AD22: =Est2019DistRev!P22 -> 0 | AF22: 44757.25741 | AG22: 285894018.3 | AH22: 0 | AI22: 0 | AJ22: 0 | AK22: 0 | AL22: 0 | AM22: 0 | AN22: 0 | AO22: 0 | AP22: 0 | AQ22: 0 | AR22: 0 | AT22: 8056306.334 | AU22: 20441422.31 | AV22: 0 | AW22: 0 | AX22: 0 | AY22: 0 | AZ22: 0 | BA22: 0 | BB22: 0 | BC22: 0 | BD22: 0 | BE22: 0 | BF22: 0 | BG22: 28497728.64 | BI22: 7608733.76 | BJ22: 19126309.82 | BK22: 0 | BL22: 0 | BM22: 0 | BN22: 0 | BO22: 0 | BP22: 0 | BQ22: 0 | BR22: 0 | BS22: 0 | BT22: 0 | BU22: 0 | BV22: 26735043.58
A23: =Est2019DistRev!A23 -> P14G | B23: Non-Residential Flexible Pricing | C23: =Est2019DistRev!B23 -> Non-Residential Flexible Pricing | D23: 180 | E23: 0 | F23: 0 | G23: 0 | H23: 0 | I23: 0 | J23: 0 | K23: 11.62 | L23: 3.6 | M23: 2.73 | N23: 11.62 | O23: 3.6 | P23: 2.73 | R23: =Est2019DistRev!D23 -> 170 | S23: =Est2019DistRev!E23 -> 0 | T23: =Est2019DistRev!F23 -> 0 | U23: =Est2019DistRev!G23 -> 0 | V23: =Est2019DistRev!H23 -> 0 | W23: =Est2019DistRev!I23 -> 0 | X23: =Est2019DistRev!J23 -> 0 | Y23: =Est2019DistRev!K23 -> 10.86 | Z23: =Est2019DistRev!L23 -> 3.4 | AA23: =Est2019DistRev!M23 -> 2.59 | AB23: =Est2019DistRev!N23 -> 10.86 | AC23: =Est2019DistRev!O23 -> 3.4 | AD23: =Est2019DistRev!P23 -> 2.59 | AF23: 185.3732239 | AG23: 0 | AH23: 0 | AI23: 0 | AJ23: 0 | AK23: 0 | AL23: 0 | AM23: 389065.4574 | AN23: 144770.8667 | AO23: 415832.5339 | AP23: 1116363.747 | AQ23: 415397.8316 | AR23: 1193167.774 | AT23: 33367.1803 | AU23: 0 | AV23: 0 | AW23: 0 | AX23: 0 | AY23: 0 | AZ23: 0 | BA23: 45209.40615 | BB23: 5211.751203 | BC23: 11352.22818 | BD23: 129721.4675 | BE23: 14954.32194 | BF23: 32573.48024 | BG23: 272389.8355 | BI23: 31513.44806 | BJ23: 0 | BK23: 0 | BL23: 0 | BM23: 0 | BN23: 0 | BO23: 0 | BP23: 42252.50867 | BQ23: 4922.209469 | BR23: 10770.06263 | BS23: 121237.103 | BT23: 14123.52627 | BU23: 30903.04536 | BV23: 255721.9034
A24: =Est2019DistRev!A24 -> ND2 | B24: Non-Residential Two Rate 5d | C24: =Est2019DistRev!B24 -> Non-Residential Two Rate 5d | D24: 180 | E24: 0 | F24: 11.76 | G24: 2.62 | H24: 0 | I24: 0 | J24: 0 | K24: 0 | L24: 0 | M24: 0 | N24: 0 | O24: 0 | P24: 0 | R24: =Est2019DistRev!D24 -> 170 | S24: =Est2019DistRev!E24 -> 0 | T24: =Est2019DistRev!F24 -> 11 | U24: =Est2019DistRev!G24 -> 2.48 | V24: =Est2019DistRev!H24 -> 0 | W24: =Est2019DistRev!I24 -> 0 | X24: =Est2019DistRev!J24 -> 0 | Y24: =Est2019DistRev!K24 -> 0 | Z24: =Est2019DistRev!L24 -> 0 | AA24: =Est2019DistRev!M24 -> 0 | AB24: =Est2019DistRev!N24 -> 0 | AC24: =Est2019DistRev!O24 -> 0 | AD24: =Est2019DistRev!P24 -> 0 | AF24: 23862.43162 | AG24: 0 | AH24: 193485923.8 | AI24: 171713473.8 | AJ24: 0 | AK24: 0 | AL24: 0 | AM24: 0 | AN24: 0 | AO24: 0 | AP24: 0 | AQ24: 0 | AR24: 0 | AT24: 4295237.691 | AU24: 0 | AV24: 22753944.64 | AW24: 4498893.014 | AX24: 0 | AY24: 0 | AZ24: 0 | BA24: 0 | BB24: 0 | BC24: 0 | BD24: 0 | BE24: 0 | BF24: 0 | BG24: 31548075.35 | BI24: 4056613.375 | BJ24: 0 | BK24: 21283451.62 | BL24: 4258494.151 | BM24: 0 | BN24: 0 | BO24: 0 | BP24: 0 | BQ24: 0 | BR24: 0 | BS24: 0 | BT24: 0 | BU24: 0 | BV24: 29598559.15
A25: =Est2019DistRev!A25 -> ND5 | B25: Non-Residential Interval | C25: =Est2019DistRev!B25 -> Non-Residential Interval | D25: 180 | E25: 0 | F25: 11.76 | G25: 2.62 | H25: 0 | I25: 0 | J25: 0 | K25: 0 | L25: 0 | M25: 0 | N25: 0 | O25: 0 | P25: 0 | R25: =Est2019DistRev!D25 -> 170 | S25: =Est2019DistRev!E25 -> 0 | T25: =Est2019DistRev!F25 -> 11 | U25: =Est2019DistRev!G25 -> 2.48 | V25: =Est2019DistRev!H25 -> 0 | W25: =Est2019DistRev!I25 -> 0 | X25: =Est2019DistRev!J25 -> 0 | Y25: =Est2019DistRev!K25 -> 0 | Z25: =Est2019DistRev!L25 -> 0 | AA25: =Est2019DistRev!M25 -> 0 | AB25: =Est2019DistRev!N25 -> 0 | AC25: =Est2019DistRev!O25 -> 0 | AD25: =Est2019DistRev!P25 -> 0 | AF25: 12072.36866 | AG25: 0 | AH25: 85635596.92 | AI25: 62438419.24 | AJ25: 0 | AK25: 0 | AL25: 0 | AM25: 0 | AN25: 0 | AO25: 0 | AP25: 0 | AQ25: 0 | AR25: 0 | AT25: 2173026.359 | AU25: 0 | AV25: 10070746.2 | AW25: 1635886.584 | AX25: 0 | AY25: 0 | AZ25: 0 | BA25: 0 | BB25: 0 | BC25: 0 | BD25: 0 | BE25: 0 | BF25: 0 | BG25: 13879659.14 | BI25: 2052302.672 | BJ25: 0 | BK25: 9419915.661 | BL25: 1548472.797 | BM25: 0 | BN25: 0 | BO25: 0 | BP25: 0 | BQ25: 0 | BR25: 0 | BS25: 0 | BT25: 0 | BU25: 0 | BV25: 13020691.13
A26: =Est2019DistRev!A26 -> ND3 | B26: Non-Residential Two Rate 7d | C26: =Est2019DistRev!B26 -> Non-Residential Two Rate 7d | D26: 180 | E26: 0 | F26: 10.37 | G26: 2.62 | H26: 0 | I26: 0 | J26: 0 | K26: 0 | L26: 0 | M26: 0 | N26: 0 | O26: 0 | P26: 0 | R26: =Est2019DistRev!D26 -> 170 | S26: =Est2019DistRev!E26 -> 0 | T26: =Est2019DistRev!F26 -> 9.7 | U26: =Est2019DistRev!G26 -> 2.48 | V26: =Est2019DistRev!H26 -> 0 | W26: =Est2019DistRev!I26 -> 0 | X26: =Est2019DistRev!J26 -> 0 | Y26: =Est2019DistRev!K26 -> 0 | Z26: =Est2019DistRev!L26 -> 0 | AA26: =Est2019DistRev!M26 -> 0 | AB26: =Est2019DistRev!N26 -> 0 | AC26: =Est2019DistRev!O26 -> 0 | AD26: =Est2019DistRev!P26 -> 0 | AF26: 7019.479943 | AG26: 0 | AH26: 54390915.31 | AI26: 21067936.39 | AJ26: 0 | AK26: 0 | AL26: 0 | AM26: 0 | AN26: 0 | AO26: 0 | AP26: 0 | AQ26: 0 | AR26: 0 | AT26: 1263506.39 | AU26: 0 | AV26: 5640337.917 | AW26: 551979.9333 | AX26: 0 | AY26: 0 | AZ26: 0 | BA26: 0 | BB26: 0 | BC26: 0 | BD26: 0 | BE26: 0 | BF26: 0 | BG26: 7455824.241 | BI26: 1193311.59 | BJ26: 0 | BK26: 5275918.785 | BL26: 522484.8224 | BM26: 0 | BN26: 0 | BO26: 0 | BP26: 0 | BQ26: 0 | BR26: 0 | BS26: 0 | BT26: 0 | BU26: 0 | BV26: 6991715.198
A27: =Est2019DistRev!A27 -> NDD | B27: Non-Residential Demand | C27: =Est2019DistRev!B27 -> Non-Residential Demand | D27: 180 | E27: 3.37 | F27: 0 | G27: 0 | H27: 0 | I27: 12.72 | J27: 4.24 | K27: 0 | L27: 0 | M27: 0 | N27: 0 | O27: 0 | P27: 0 | R27: =Est2019DistRev!D27 -> 170 | S27: =Est2019DistRev!E27 -> 3.17 | T27: =Est2019DistRev!F27 -> 0 | U27: =Est2019DistRev!G27 -> 0 | V27: =Est2019DistRev!H27 -> 0 | W27: =Est2019DistRev!I27 -> 11.85 | X27: =Est2019DistRev!J27 -> 3.95 | Y27: =Est2019DistRev!K27 -> 0 | Z27: =Est2019DistRev!L27 -> 0 | AA27: =Est2019DistRev!M27 -> 0 | AB27: =Est2019DistRev!N27 -> 0 | AC27: =Est2019DistRev!O27 -> 0 | AD27: =Est2019DistRev!P27 -> 0 | AF27: 114.0665769 | AG27: 4632749.457 | AH27: 0 | AI27: 0 | AJ27: 0 | AK27: 1491.820739 | AL27: 3511.797771 | AM27: 0 | AN27: 0 | AO27: 0 | AP27: 0 | AQ27: 0 | AR27: 0 | AT27: 20531.98385 | AU27: 156123.6567 | AV27: 0 | AW27: 0 | AX27: 0 | AY27: 18975.95979 | AZ27: 14890.02255 | BA27: 0 | BB27: 0 | BC27: 0 | BD27: 0 | BE27: 0 | BF27: 0 | BG27: 210521.6229 | BI27: 19391.31808 | BJ27: 146858.1578 | BK27: 0 | BL27: 0 | BM27: 0 | BN27: 17678.07575 | BO27: 13871.6012 | BP27: 0 | BQ27: 0 | BR27: 0 | BS27: 0 | BT27: 0 | BU27: 0 | BV27: 197799.1528
A28: =Est2019DistRev!A28 -> NDM | B28: Medium business Demand | C28: =Est2019DistRev!B28 -> Medium business Demand | D28: 1200 | E28: 0 | F28: 3.33 | G28: 3.33 | H28: 0 | I28: 11.92 | J28: 5.95 | K28: 0 | L28: 0 | M28: 0 | N28: 0 | O28: 0 | P28: 0 | R28: =Est2019DistRev!D28 -> 1100 | S28: =Est2019DistRev!E28 -> 0 | T28: =Est2019DistRev!F28 -> 5.73 | U28: =Est2019DistRev!G28 -> 3.64 | V28: =Est2019DistRev!H28 -> 0 | W28: =Est2019DistRev!I28 -> 6.66 | X28: =Est2019DistRev!J28 -> 3.33 | Y28: =Est2019DistRev!K28 -> 0 | Z28: =Est2019DistRev!L28 -> 0 | AA28: =Est2019DistRev!M28 -> 0 | AB28: =Est2019DistRev!N28 -> 0 | AC28: =Est2019DistRev!O28 -> 0 | AD28: =Est2019DistRev!P28 -> 0 | AF28: 7728.558394 | AG28: 0 | AH28: 521622988.5 | AI28: 460904199 | AJ28: 0 | AK28: 1415486.63 | AL28: 2510898.806 | AM28: 0 | AN28: 0 | AO28: 0 | AP28: 0 | AQ28: 0 | AR28: 0 | AT28: 9274270.073 | AU28: 0 | AV28: 17370045.52 | AW28: 15348109.83 | AX28: 0 | AY28: 16872600.62 | AZ28: 14939847.9 | BA28: 0 | BB28: 0 | BC28: 0 | BD28: 0 | BE28: 0 | BF28: 0 | BG28: 73804873.94 | BI28: 8501414.234 | BJ28: 0 | BK28: 29888997.24 | BL28: 16776912.84 | BM28: 0 | BN28: 9427140.953 | BO28: 8361293.024 | BP28: 0 | BQ28: 0 | BR28: 0 | BS28: 0 | BT28: 0 | BU28: 0 | BV28: 72955758.29
A29: =Est2019DistRev!A29 -> NDMO | B29: Medium business Opt-out | C29: =Est2019DistRev!B29 -> Medium business Opt-out | D29: 1200 | E29: 0 | F29: 12.32 | G29: 3.96 | H29: 0 | I29: 0 | J29: 0 | K29: 0 | L29: 0 | M29: 0 | N29: 0 | O29: 0 | P29: 0 | R29: =Est2019DistRev!D29 -> 1100 | S29: =Est2019DistRev!E29 -> 0 | T29: =Est2019DistRev!F29 -> 11.73 | U29: =Est2019DistRev!G29 -> 3.79 | V29: =Est2019DistRev!H29 -> 0 | W29: =Est2019DistRev!I29 -> 0 | X29: =Est2019DistRev!J29 -> 0 | Y29: =Est2019DistRev!K29 -> 0 | Z29: =Est2019DistRev!L29 -> 0 | AA29: =Est2019DistRev!M29 -> 0 | AB29: =Est2019DistRev!N29 -> 0 | AC29: =Est2019DistRev!O29 -> 0 | AD29: =Est2019DistRev!P29 -> 0 | AF29: 153.7035844 | AG29: 0 | AH29: 6410795.222 | AI29: 4790864.918 | AJ29: 0 | AK29: 0 | AL29: 0 | AM29: 0 | AN29: 0 | AO29: 0 | AP29: 0 | AQ29: 0 | AR29: 0 | AT29: 184444.3012 | AU29: 0 | AV29: 789809.9714 | AW29: 189718.2507 | AX29: 0 | AY29: 0 | AZ29: 0 | BA29: 0 | BB29: 0 | BC29: 0 | BD29: 0 | BE29: 0 | BF29: 0 | BG29: 1163972.523 | BI29: 169073.9428 | BJ29: 0 | BK29: 751986.2796 | BL29: 181573.7804 | BM29: 0 | BN29: 0 | BO29: 0 | BP29: 0 | BQ29: 0 | BR29: 0 | BS29: 0 | BT29: 0 | BU29: 0 | BV29: 1102634.003
A30: =Est2019DistRev!A30 -> PL2 | B30: Public Lighting | C30: =Est2019DistRev!B30 -> Public Lighting | D30: 0 | E30: 0 | F30: 16.18 | G30: 4.88 | H30: 0 | I30: 0 | J30: 0 | K30: 0 | L30: 0 | M30: 0 | N30: 0 | O30: 0 | P30: 0 | R30: =Est2019DistRev!D30 -> 0 | S30: =Est2019DistRev!E30 -> 0 | T30: =Est2019DistRev!F30 -> 14.61 | U30: =Est2019DistRev!G30 -> 4.4 | V30: =Est2019DistRev!H30 -> 0 | W30: =Est2019DistRev!I30 -> 0 | X30: =Est2019DistRev!J30 -> 0 | Y30: =Est2019DistRev!K30 -> 0 | Z30: =Est2019DistRev!L30 -> 0 | AA30: =Est2019DistRev!M30 -> 0 | AB30: =Est2019DistRev!N30 -> 0 | AC30: =Est2019DistRev!O30 -> 0 | AD30: =Est2019DistRev!P30 -> 0 | AF30: 8533.552004 | AG30: 0 | AH30: 22127392.06 | AI30: 55870540.72 | AJ30: 0 | AK30: 0 | AL30: 0 | AM30: 0 | AN30: 0 | AO30: 0 | AP30: 0 | AQ30: 0 | AR30: 0 | AT30: 0 | AU30: 0 | AV30: 3580212.035 | AW30: 2726482.387 | AX30: 0 | AY30: 0 | AZ30: 0 | BA30: 0 | BB30: 0 | BC30: 0 | BD30: 0 | BE30: 0 | BF30: 0 | BG30: 6306694.422 | BI30: 0 | BJ30: 0 | BK30: 3232811.98 | BL30: 2458303.792 | BM30: 0 | BN30: 0 | BO30: 0 | BP30: 0 | BQ30: 0 | BR30: 0 | BS30: 0 | BT30: 0 | BU30: 0 | BV30: 5691115.772
A31: =Est2019DistRev!A31 -> LLV | B31: Large low Voltage | C31: =Est2019DistRev!B31 -> Large low Voltage | D31: 8800 | E31: 0 | F31: 3.33 | G31: 1.61 | H31: 93.59 | I31: 0 | J31: 0 | K31: 0 | L31: 0 | M31: 0 | N31: 0 | O31: 0 | P31: 0 | R31: =Est2019DistRev!D31 -> 8200 | S31: =Est2019DistRev!E31 -> 0 | T31: =Est2019DistRev!F31 -> 3.14 | U31: =Est2019DistRev!G31 -> 1.54 | V31: =Est2019DistRev!H31 -> 87.65 | W31: =Est2019DistRev!I31 -> 0 | X31: =Est2019DistRev!J31 -> 0 | Y31: =Est2019DistRev!K31 -> 0 | Z31: =Est2019DistRev!L31 -> 0 | AA31: =Est2019DistRev!M31 -> 0 | AB31: =Est2019DistRev!N31 -> 0 | AC31: =Est2019DistRev!O31 -> 0 | AD31: =Est2019DistRev!P31 -> 0 | AF31: 2882.562375 | AG31: 0 | AH31: 1374258544 | AI31: 1079562538 | AJ31: 855266.5349 | AK31: 0 | AL31: 0 | AM31: 0 | AN31: 0 | AO31: 0 | AP31: 0 | AQ31: 0 | AR31: 0 | AT31: 25366548.9 | AU31: 0 | AV31: 45762809.5 | AW31: 17380956.86 | AX31: 80044395 | AY31: 0 | AZ31: 0 | BA31: 0 | BB31: 0 | BC31: 0 | BD31: 0 | BE31: 0 | BF31: 0 | BG31: 168554710.3 | BI31: 23637011.48 | BJ31: 0 | BK31: 43151718.27 | BL31: 16625263.08 | BM31: 74964111.78 | BN31: 0 | BO31: 0 | BP31: 0 | BQ31: 0 | BR31: 0 | BS31: 0 | BT31: 0 | BU31: 0 | BV31: 158378104.6
A32: =Est2019DistRev!A32 -> HV | B32: High Voltage | C32: =Est2019DistRev!B32 -> High Voltage | D32: 49600 | E32: 0 | F32: 1.6 | G32: 0.61 | H32: 57.44 | I32: 0 | J32: 0 | K32: 0 | L32: 0 | M32: 0 | N32: 0 | O32: 0 | P32: 0 | R32: =Est2019DistRev!D32 -> 46700 | S32: =Est2019DistRev!E32 -> 0 | T32: =Est2019DistRev!F32 -> 1.62 | U32: =Est2019DistRev!G32 -> 0.62 | V32: =Est2019DistRev!H32 -> 58.12 | W32: =Est2019DistRev!I32 -> 0 | X32: =Est2019DistRev!J32 -> 0 | Y32: =Est2019DistRev!K32 -> 0 | Z32: =Est2019DistRev!L32 -> 0 | AA32: =Est2019DistRev!M32 -> 0 | AB32: =Est2019DistRev!N32 -> 0 | AC32: =Est2019DistRev!O32 -> 0 | AD32: =Est2019DistRev!P32 -> 0 | AF32: 170.8100271 | AG32: 0 | AH32: 753809957.8 | AI32: 686531052.5 | AJ32: 396969.309 | AK32: 0 | AL32: 0 | AM32: 0 | AN32: 0 | AO32: 0 | AP32: 0 | AQ32: 0 | AR32: 0 | AT32: 8472177.346 | AU32: 0 | AV32: 12060959.33 | AW32: 4187839.42 | AX32: 22801917.11 | AY32: 0 | AZ32: 0 | BA32: 0 | BB32: 0 | BC32: 0 | BD32: 0 | BE32: 0 | BF32: 0 | BG32: 47522893.2 | BI32: 7976828.267 | BJ32: 0 | BK32: 12211721.32 | BL32: 4256492.525 | BM32: 23071856.24 | BN32: 0 | BO32: 0 | BP32: 0 | BQ32: 0 | BR32: 0 | BS32: 0 | BT32: 0 | BU32: 0 | BV32: 47516898.35
A33: =Est2019DistRev!A33 -> HVD | B33: High Voltage Docklands | C33: =Est2019DistRev!B33 -> High Voltage Docklands | D33: 45300 | E33: 0 | F33: 1.49 | G33: 0.58 | H33: 54.12 | I33: 0 | J33: 0 | K33: 0 | L33: 0 | M33: 0 | N33: 0 | O33: 0 | P33: 0 | R33: =Est2019DistRev!D33 -> 40400 | S33: =Est2019DistRev!E33 -> 0 | T33: =Est2019DistRev!F33 -> 1.39 | U33: =Est2019DistRev!G33 -> 0.54 | V33: =Est2019DistRev!H33 -> 51.04 | W33: =Est2019DistRev!I33 -> 0 | X33: =Est2019DistRev!J33 -> 0 | Y33: =Est2019DistRev!K33 -> 0 | Z33: =Est2019DistRev!L33 -> 0 | AA33: =Est2019DistRev!M33 -> 0 | AB33: =Est2019DistRev!N33 -> 0 | AC33: =Est2019DistRev!O33 -> 0 | AD33: =Est2019DistRev!P33 -> 0 | AE33: =Est2019DistRev!Q33 -> 0 | AF33: 7.418730278 | AG33: 0 | AH33: 117981877.6 | AI33: 123663478.9 | AJ33: 65516.45569 | AK33: 0 | AL33: 0 | AM33: 0 | AN33: 0 | AO33: 0 | AP33: 0 | AQ33: 0 | AR33: 0 | AT33: 336068.4816 | AU33: 0 | AV33: 1757929.976 | AW33: 717248.1775 | AX33: 3545750.582 | AY33: 0 | AZ33: 0 | BA33: 0 | BB33: 0 | BC33: 0 | BD33: 0 | BE33: 0 | BF33: 0 | BG33: 6356997.217 | BI33: 299716.7032 | BJ33: 0 | BK33: 1639948.098 | BL33: 667782.786 | BM33: 3343959.899 | BN33: 0 | BO33: 0 | BP33: 0 | BQ33: 0 | BR33: 0 | BS33: 0 | BT33: 0 | BU33: 0 | BV33: 5951407.486
A34: =Est2019DistRev!A34 -> ST | B34: Subtransmission | C34: =Est2019DistRev!B34 -> Subtransmission | D34: 262600 | E34: 0 | F34: 0.54 | G34: 0.16 | H34: 5.09 | I34: 0 | J34: 0 | K34: 0 | L34: 0 | M34: 0 | N34: 0 | O34: 0 | P34: 0 | R34: =Est2019DistRev!D34 -> 252500 | S34: =Est2019DistRev!E34 -> 0 | T34: =Est2019DistRev!F34 -> 0.51 | U34: =Est2019DistRev!G34 -> 0.15 | V34: =Est2019DistRev!H34 -> 4.76 | W34: =Est2019DistRev!I34 -> 0 | X34: =Est2019DistRev!J34 -> 0 | Y34: =Est2019DistRev!K34 -> 0 | Z34: =Est2019DistRev!L34 -> 0 | AA34: =Est2019DistRev!M34 -> 0 | AB34: =Est2019DistRev!N34 -> 0 | AC34: =Est2019DistRev!O34 -> 0 | AD34: =Est2019DistRev!P34 -> 0 | AE34: =Est2019DistRev!Q34 -> 0 | AF34: 14 | AG34: 0 | AH34: 561857994.9 | AI34: 641803918.6 | AJ34: 264628.1239 | AK34: 0 | AL34: 0 | AM34: 0 | AN34: 0 | AO34: 0 | AP34: 0 | AQ34: 0 | AR34: 0 | AT34: 3676400 | AU34: 0 | AV34: 3034033.173 | AW34: 1026886.27 | AX34: 1346957.151 | AY34: 0 | AZ34: 0 | BA34: 0 | BB34: 0 | BC34: 0 | BD34: 0 | BE34: 0 | BF34: 0 | BG34: 9084276.593 | BI34: 3535000 | BJ34: 0 | BK34: 2865475.774 | BL34: 962705.8778 | BM34: 1259629.87 | BN34: 0 | BO34: 0 | BP34: 0 | BQ34: 0 | BR34: 0 | BS34: 0 | BT34: 0 | BU34: 0 | BV34: 8622811.522
AT35: =D35*AF35 -> 0 | AU35: =E35/100*AG35 -> 0 | AV35: 0 | AW35: 0 | AX35: 0 | AY35: 0 | AZ35: 0 | BA35: 0 | BB35: 0 | BC35: 0 | BD35: 0 | BE35: 0 | BF35: 0 | BG35: =SUM(AT35:BF35) -> 0 | BI35: =R35*AF35 -> 0 | BJ35: =S35/100*AG35 -> 0 | BK35: =T35/100*AH35 -> 0 | BL35: =U35/100*AI35 -> 0 | BM35: 0 | BN35: 0 | BO35: 0 | BP35: =Y35/100*AM35 -> 0 | BQ35: =Z35/100*AN35 -> 0 | BR35: 0 | BS35: 0 | BT35: 0 | BU35: 0 | BV35: =SUM(BI35:BU35) -> 0
AT36: 0 | AU36: 0 | AV36: 0 | AW36: 0 | AX36: 0 | AY36: 0 | AZ36: 0 | BA36: 0 | BB36: 0 | BC36: 0 | BD36: 0 | BE36: 0 | BF36: 0 | BG36: 0 | BI36: 0 | BJ36: 0 | BK36: 0 | BL36: 0 | BM36: 0 | BN36: 0 | BO36: 0 | BP36: 0 | BQ36: 0 | BR36: 0 | BS36: 0 | BT36: 0 | BU36: 0 | BV36: 0
AT37: 0 | AU37: 0 | AV37: 0 | AW37: 0 | AX37: 0 | AY37: 0 | AZ37: 0 | BA37: 0 | BB37: 0 | BC37: 0 | BD37: 0 | BE37: 0 | BF37: 0 | BG37: 0 | BI37: 0 | BJ37: 0 | BK37: 0 | BL37: 0 | BM37: 0 | BN37: 0 | BO37: 0 | BP37: 0 | BQ37: 0 | BR37: 0 | BS37: 0 | BT37: 0 | BU37: 0 | BV37: 0
AT38: 0 | AU38: 0 | AV38: 0 | AW38: 0 | AX38: 0 | AY38: 0 | AZ38: 0 | BA38: 0 | BB38: =L38/100*AN38 -> 0 | BC38: 0 | BD38: 0 | BE38: 0 | BF38: 0 | BG38: 0 | BI38: 0 | BJ38: 0 | BK38: 0 | BL38: 0 | BM38: 0 | BN38: 0 | BO38: 0 | BP38: 0 | BQ38: 0 | BR38: 0 | BS38: 0 | BT38: 0 | BU38: 0 | BV38: 0
AT39: 0 | AU39: 0 | AV39: 0 | AW39: 0 | AX39: 0 | AY39: 0 | AZ39: 0 | BA39: 0 | BB39: 0 | BC39: 0 | BD39: 0 | BE39: 0 | BF39: 0 | BG39: 0 | BI39: 0 | BJ39: 0 | BK39: 0 | BL39: 0 | BM39: 0 | BN39: 0 | BO39: 0 | BP39: 0 | BQ39: 0 | BR39: 0 | BS39: 0 | BT39: 0 | BU39: 0 | BV39: 0
AT40: 0 | AU40: 0 | AV40: 0 | AW40: 0 | AX40: 0 | AY40: 0 | AZ40: 0 | BA40: 0 | BB40: 0 | BC40: 0 | BD40: 0 | BE40: 0 | BF40: 0 | BG40: 0 | BI40: 0 | BJ40: 0 | BK40: 0 | BL40: 0 | BM40: 0 | BN40: 0 | BO40: 0 | BP40: 0 | BQ40: 0 | BR40: 0 | BS40: 0 | BT40: 0 | BU40: 0 | BV40: 0
AT41: 0 | AU41: 0 | AV41: 0 | AW41: 0 | AX41: 0 | AY41: 0 | AZ41: 0 | BA41: 0 | BB41: 0 | BC41: 0 | BD41: 0 | BE41: 0 | BF41: 0 | BG41: 0 | BI41: 0 | BJ41: 0 | BK41: 0 | BL41: 0 | BM41: 0 | BN41: 0 | BO41: 0 | BP41: 0 | BQ41: 0 | BR41: 0 | BS41: 0 | BT41: 0 | BU41: 0 | BV41: 0
AT42: 0 | AU42: 0 | AV42: 0 | AW42: 0 | AX42: 0 | AY42: 0 | AZ42: 0 | BA42: 0 | BB42: 0 | BC42: 0 | BD42: 0 | BE42: 0 | BF42: 0 | BG42: 0 | BI42: 0 | BJ42: 0 | BK42: 0 | BL42: 0 | BM42: 0 | BN42: 0 | BO42: 0 | BP42: 0 | BQ42: 0 | BR42: 0 | BS42: 0 | BT42: 0 | BU42: 0 | BV42: 0
AT43: 0 | AU43: 0 | AV43: 0 | AW43: 0 | AX43: 0 | AY43: 0 | AZ43: 0 | BA43: 0 | BB43: 0 | BC43: 0 | BD43: 0 | BE43: 0 | BF43: 0 | BG43: 0 | BI43: 0 | BJ43: 0 | BK43: 0 | BL43: 0 | BM43: 0 | BN43: 0 | BO43: 0 | BP43: 0 | BQ43: 0 | BR43: 0 | BS43: 0 | BT43: 0 | BU43: 0 | BV43: 0
AT44: 0 | AU44: 0 | AV44: 0 | AW44: 0 | AX44: 0 | AY44: 0 | AZ44: 0 | BA44: 0 | BB44: 0 | BC44: 0 | BD44: 0 | BE44: 0 | BF44: 0 | BG44: 0 | BI44: 0 | BJ44: 0 | BK44: 0 | BL44: 0 | BM44: 0 | BN44: 0 | BO44: 0 | BP44: 0 | BQ44: 0 | BR44: 0 | BS44: 0 | BT44: 0 | BU44: 0 | BV44: 0
AT45: 0 | AU45: 0 | AV45: 0 | AW45: 0 | AX45: 0 | AY45: 0 | AZ45: 0 | BA45: 0 | BB45: 0 | BC45: 0 | BD45: 0 | BE45: 0 | BF45: 0 | BG45: 0 | BI45: 0 | BJ45: 0 | BK45: 0 | BL45: 0 | BM45: 0 | BN45: 0 | BO45: 0 | BP45: 0 | BQ45: 0 | BR45: 0 | BS45: 0 | BT45: 0 | BU45: 0 | BV45: 0
AT46: 0 | AU46: 0 | AV46: 0 | AW46: 0 | AX46: 0 | AY46: 0 | AZ46: 0 | BA46: 0 | BB46: 0 | BC46: 0 | BD46: 0 | BE46: 0 | BF46: 0 | BG46: 0 | BI46: 0 | BJ46: 0 | BK46: 0 | BL46: 0 | BM46: 0 | BN46: 0 | BO46: 0 | BP46: 0 | BQ46: 0 | BR46: 0 | BS46: 0 | BT46: 0 | BU46: 0 | BV46: 0
AT47: 0 | AU47: 0 | AV47: 0 | AW47: 0 | AX47: 0 | AY47: 0 | AZ47: 0 | BA47: 0 | BB47: 0 | BC47: 0 | BD47: 0 | BE47: 0 | BF47: 0 | BG47: 0 | BI47: 0 | BJ47: 0 | BK47: 0 | BL47: 0 | BM47: 0 | BN47: 0 | BO47: 0 | BP47: 0 | BQ47: 0 | BR47: 0 | BS47: 0 | BT47: 0 | BU47: 0 | BV47: 0
AT48: 0 | AU48: 0 | AV48: 0 | AW48: 0 | AX48: 0 | AY48: 0 | AZ48: 0 | BA48: 0 | BB48: 0 | BC48: 0 | BD48: 0 | BE48: 0 | BF48: 0 | BG48: 0 | BI48: 0 | BJ48: 0 | BK48: 0 | BL48: 0 | BM48: 0 | BN48: 0 | BO48: 0 | BP48: 0 | BQ48: 0 | BR48: 0 | BS48: 0 | BT48: 0 | BU48: 0 | BV48: 0
AT49: 0 | AU49: 0 | AV49: 0 | AW49: 0 | AX49: 0 | AY49: 0 | AZ49: 0 | BA49: 0 | BB49: 0 | BC49: 0 | BD49: 0 | BE49: 0 | BF49: 0 | BG49: 0 | BI49: 0 | BJ49: 0 | BK49: 0 | BL49: 0 | BM49: 0 | BN49: 0 | BO49: 0 | BP49: 0 | BQ49: 0 | BR49: 0 | BS49: 0 | BT49: 0 | BU49: 0 | BV49: 0
AT50: 0 | AU50: 0 | AV50: 0 | AW50: 0 | AX50: 0 | AY50: 0 | AZ50: 0 | BA50: 0 | BB50: 0 | BC50: 0 | BD50: 0 | BE50: 0 | BF50: 0 | BG50: 0 | BI50: 0 | BJ50: 0 | BK50: 0 | BL50: 0 | BM50: 0 | BN50: 0 | BO50: 0 | BP50: 0 | BQ50: 0 | BR50: 0 | BS50: 0 | BT50: 0 | BU50: 0 | BV50: 0
AT51: 0 | AU51: 0 | AV51: 0 | AW51: 0 | AX51: 0 | AY51: 0 | AZ51: 0 | BA51: 0 | BB51: 0 | BC51: 0 | BD51: 0 | BE51: 0 | BF51: 0 | BG51: 0 | BI51: 0 | BJ51: 0 | BK51: 0 | BL51: 0 | BM51: 0 | BN51: 0 | BO51: 0 | BP51: 0 | BQ51: 0 | BR51: 0 | BS51: 0 | BT51: 0 | BU51: 0 | BV51: 0
AT52: 0 | AU52: 0 | AV52: 0 | AW52: 0 | AX52: 0 | AY52: 0 | AZ52: 0 | BA52: 0 | BB52: 0 | BC52: 0 | BD52: 0 | BE52: 0 | BF52: 0 | BG52: 0 | BI52: 0 | BJ52: 0 | BK52: 0 | BL52: 0 | BM52: 0 | BN52: 0 | BO52: 0 | BP52: 0 | BQ52: 0 | BR52: 0 | BS52: 0 | BT52: 0 | BU52: 0 | BV52: 0
AT53: 0 | AU53: 0 | AV53: 0 | AW53: 0 | AX53: 0 | AY53: 0 | AZ53: 0 | BA53: 0 | BB53: 0 | BC53: 0 | BD53: 0 | BE53: 0 | BF53: 0 | BG53: 0 | BI53: 0 | BJ53: 0 | BK53: 0 | BL53: 0 | BM53: 0 | BN53: 0 | BO53: 0 | BP53: 0 | BQ53: 0 | BR53: 0 | BS53: 0 | BT53: 0 | BU53: 0 | BV53: 0
AT54: 0 | AU54: 0 | AV54: 0 | AW54: 0 | AX54: 0 | AY54: 0 | AZ54: 0 | BA54: 0 | BB54: 0 | BC54: 0 | BD54: 0 | BE54: 0 | BF54: 0 | BG54: 0 | BI54: 0 | BJ54: 0 | BK54: 0 | BL54: 0 | BM54: 0 | BN54: 0 | BO54: 0 | BP54: 0 | BQ54: 0 | BR54: 0 | BS54: 0 | BT54: 0 | BU54: 0 | BV54: 0
AT55: 0 | AU55: 0 | AV55: 0 | AW55: 0 | AX55: 0 | AY55: 0 | AZ55: 0 | BA55: 0 | BB55: 0 | BC55: 0 | BD55: 0 | BE55: 0 | BF55: 0 | BG55: 0 | BI55: 0 | BJ55: 0 | BK55: 0 | BL55: 0 | BM55: 0 | BN55: 0 | BO55: 0 | BP55: 0 | BQ55: 0 | BR55: 0 | BS55: 0 | BT55: 0 | BU55: 0 | BV55: 0
AT56: 0 | AU56: 0 | AV56: 0 | AW56: 0 | AX56: 0 | AY56: 0 | AZ56: 0 | BA56: 0 | BB56: 0 | BC56: 0 | BD56: 0 | BE56: 0 | BF56: 0 | BG56: 0 | BI56: 0 | BJ56: 0 | BK56: 0 | BL56: 0 | BM56: 0 | BN56: 0 | BO56: 0 | BP56: 0 | BQ56: 0 | BR56: 0 | BS56: 0 | BT56: 0 | BU56: 0 | BV56: 0
AT57: 0 | AU57: 0 | AV57: 0 | AW57: 0 | AX57: 0 | AY57: 0 | AZ57: 0 | BA57: 0 | BB57: 0 | BC57: 0 | BD57: 0 | BE57: 0 | BF57: 0 | BG57: 0 | BI57: 0 | BJ57: 0 | BK57: 0 | BL57: 0 | BM57: 0 | BN57: 0 | BO57: 0 | BP57: 0 | BQ57: 0 | BR57: 0 | BS57: 0 | BT57: 0 | BU57: 0 | BV57: 0
AT58: 0 | AU58: 0 | AV58: 0 | AW58: 0 | AX58: 0 | AY58: 0 | AZ58: 0 | BA58: 0 | BB58: 0 | BC58: 0 | BD58: 0 | BE58: 0 | BF58: 0 | BG58: 0 | BI58: 0 | BJ58: 0 | BK58: 0 | BL58: 0 | BM58: 0 | BN58: 0 | BO58: 0 | BP58: 0 | BQ58: 0 | BR58: 0 | BS58: 0 | BT58: 0 | BU58: 0 | BV58: 0
AT59: 0 | AU59: 0 | AV59: 0 | AW59: 0 | AX59: 0 | AY59: 0 | AZ59: 0 | BA59: 0 | BB59: 0 | BC59: 0 | BD59: 0 | BE59: 0 | BF59: 0 | BG59: 0 | BI59: 0 | BJ59: 0 | BK59: 0 | BL59: 0 | BM59: 0 | BN59: 0 | BO59: 0 | BP59: 0 | BQ59: 0 | BR59: 0 | BS59: 0 | BT59: 0 | BU59: 0 | BV59: 0
AT60: 0 | AU60: 0 | AV60: 0 | AW60: 0 | AX60: 0 | AY60: 0 | AZ60: 0 | BA60: 0 | BB60: 0 | BC60: 0 | BD60: 0 | BE60: 0 | BF60: 0 | BG60: 0 | BI60: 0 | BJ60: 0 | BK60: 0 | BL60: 0 | BM60: 0 | BN60: 0 | BO60: 0 | BP60: 0 | BQ60: 0 | BR60: 0 | BS60: 0 | BT60: 0 | BU60: 0 | BV60: 0
AT61: 0 | AU61: 0 | AV61: 0 | AW61: 0 | AX61: 0 | AY61: 0 | AZ61: 0 | BA61: 0 | BB61: 0 | BC61: 0 | BD61: 0 | BE61: 0 | BF61: 0 | BG61: 0 | BI61: 0 | BJ61: 0 | BK61: 0 | BL61: 0 | BM61: 0 | BN61: 0 | BO61: 0 | BP61: 0 | BQ61: 0 | BR61: 0 | BS61: 0 | BT61: 0 | BU61: 0 | BV61: 0
AT62: 0 | AU62: 0 | AV62: 0 | AW62: 0 | AX62: 0 | AY62: 0 | AZ62: 0 | BA62: 0 | BB62: 0 | BC62: 0 | BD62: 0 | BE62: 0 | BF62: 0 | BG62: 0 | BI62: 0 | BJ62: 0 | BK62: 0 | BL62: 0 | BM62: 0 | BN62: 0 | BO62: 0 | BP62: 0 | BQ62: 0 | BR62: 0 | BS62: 0 | BT62: 0 | BU62: 0 | BV62: 0
AT63: 0 | AU63: 0 | AV63: 0 | AW63: 0 | AX63: 0 | AY63: 0 | AZ63: 0 | BA63: 0 | BB63: 0 | BC63: 0 | BD63: 0 | BE63: 0 | BF63: 0 | BG63: 0 | BI63: 0 | BJ63: 0 | BK63: 0 | BL63: 0 | BM63: 0 | BN63: 0 | BO63: 0 | BP63: 0 | BQ63: 0 | BR63: 0 | BS63: 0 | BT63: 0 | BU63: 0 | BV63: 0
AT64: 0 | AU64: 0 | AV64: 0 | AW64: 0 | AX64: 0 | AY64: 0 | AZ64: 0 | BA64: 0 | BB64: 0 | BC64: 0 | BD64: 0 | BE64: 0 | BF64: 0 | BG64: 0 | BI64: 0 | BJ64: 0 | BK64: 0 | BL64: 0 | BM64: 0 | BN64: 0 | BO64: 0 | BP64: 0 | BQ64: 0 | BR64: 0 | BS64: 0 | BT64: 0 | BU64: 0 | BV64: 0
AT65: 0 | AU65: 0 | AV65: 0 | AW65: 0 | AX65: 0 | AY65: 0 | AZ65: 0 | BA65: 0 | BB65: 0 | BC65: 0 | BD65: 0 | BE65: 0 | BF65: 0 | BG65: 0 | BI65: 0 | BJ65: 0 | BK65: 0 | BL65: 0 | BM65: 0 | BN65: 0 | BO65: 0 | BP65: 0 | BQ65: 0 | BR65: 0 | BS65: 0 | BT65: 0 | BU65: 0 | BV65: 0
AF66: =SUM(AF6:AF65) -> 1063007.472 | AG66: 2800001447 | AH66: 4058243407 | AI66: 4065155498 | AJ66: 1582380.423 | AK66: 1417145.87 | AL66: 2514750.261 | AM66: 1200302.604 | AN66: 1657602.947 | AO66: 1645345.616 | AP66: 3983724.069 | AQ66: 5955969.183 | AR66: 5757075.858 | AT66: =SUM(AT6:AT65) -> 165220936.8 | AU66: 160372344.6 | AV66: 158546977.6 | AW66: 62490774.39 | AX66: 107739019.8 | AY66: 16892200.4 | AZ66: 14955411.98 | BA66: 127796.9408 | BB66: 92956.01186 | BC66: 38893.32121 | BD66: 423453.8389 | BE66: 336307.4603 | BF66: 133439.9211 | BG66: 687370513.1 | BI66: =SUM(BI6:BI65) -> 153859441.6 | BJ66: 151770499.8 | BK66: 163440945.8 | BL66: 61853497.08 | BM66: 102639557.8 | BN66: 9445405.839 | BO66: 8375798.275 | BP66: 120253.0264 | BQ66: 87966.65026 | BR66: 37078.70132 | BS66: 398638.3761 | BT66: 318266.2773 | BU66: 127256.3796 | BV66: 652474605.6

Sheet 2020DistRevCapForm
B2: ="Tariff Approval - "&'Model update'!$C$3 -> Tariff Approval - Powercor | C2: ='Model update'!$C$5&"DistRevCapForm" -> 2020DistRevCapForm
B4: DUoS
B6: Year (t) | C6: ='Model update'!C5 -> 2020 | H6: =C6-1 -> 2019
B8: Table 1- Compliance with AER Final Determination Total Annual Revenue
B9: Revenue from DUoS charges for year t | C9: =Prop2020DistTar!BG66 -> 687370513.1
B10: Total Annual Revenue for year t | C10: =C18 -> 687658488.4
C11: =IF(C9="","",IF(C10>=C9,"DUoS REVENUE CAP FORMULA COMPLIANT","DUoS REVENUE CAP FORMULA BREACHED")) -> DUoS REVENUE CAP FORMULA COMPLIANT
B13: Table 2 - Total Annual Revenue for year t (TARt)
B14: Adjusted Annual Smoothed Revenue for year t | C14: =C25 -> 691163254.3 | H14: =H25 -> 662017675.8
B15: I factor for year t (F factor Scheme) | C15: ='Model update'!B$100 -> 995100 | H15: =INDEX('Model update'!$D$100:$H$100,1,MATCH($H$6,'Model update'!$D$93:$H$93,0)) -> 4639200
B16: T factor for year t (DMIS carry over amount) | C16: ='Model update'!B144 -> 0 | H16: =INDEX('Model update'!$D$144:$H$144,1,MATCH($H$6,'Model update'!$D$137:$H$137,0)) -> 0
B17: B factor for year t | C17: =C32 -> -4499865.92 | H17: =H32 -> -11163130.94
B18: Total Annual Revenue for year t | C18: =C14+C15+C16+C17 -> 687658488.4 | H18: =H14+H15+H16+H17 -> 655493744.9
B20: Table 3 - Adjusted Annual Revenue for year t (AARt)
B21: Adjusted Annual Smoothed Revenue for year t-1 | C21: =H25 -> 662017675.8 | H21: 630135829.9
B22: CPI for period t | C22: ='Model update'!C30 -> 0.01592920354 | H22: ='Model update'!C29 -> 0.02077687444
B23: X factor for period t | C23: ='Model update'!B60 -> -0.02401925855 | H23: =INDEX('Model update'!$E$60:$H$60,1,MATCH("Xt for "&$H$6,'Model update'!$E$53:$H$53,0)) -> -0.03021164125
B24: S factor for period t | C24: ='Model update'!B111 -> 0.003551089156 | H24: =INDEX('Model update'!$D$111:$H$111,1,MATCH($H$6,'Model update'!$D$104:$H$104,0)) -> -0.0009709084886
B25: Adjusted Annual Smoothed Revenue for year t | C25: =IF(C6=2016,'Model update'!D60*(1+C24),(C21*(1+C22)*(1-C23)*(1+C24))) -> 691163254.3 | H25: =IF(H6=2016,'Model update'!D60*(1+H24),(H21*(1+H22)*(1-H23)*(1+H24))) -> 662017675.8
B27: Table 4- B factor for year t
B28: DUoS revenue under/over recovery approved | C28: =-E71*(1+E69)^0.5 -> -4842644.749 | H28: -11366164.69
B29: License Fee Recovery Amount for year t | C29: =C38 -> 342778.829 | H29: =H38 -> 203033.749
B30: Approved Pass through Amount for year t | C30: ='Model update'!B122 -> 0 | H30: =INDEX('Model update'!$D$122:$H$122,1,MATCH($H$6,'Model update'!$D$115:$H$115,0)) -> 0
B31: Pass Through revenue under/over recovery for years 2014 and 2015
B32: B factor for year t | C32: =SUM(C28:C31) -> -4499865.92 | H32: =SUM(H28:H31) -> -11163130.94
B34: Table 5 - License Fee Recovery Amount for year t
B35: Lt-1 | C35: ='Model update'!B133 -> 317568 | H35: =INDEX('Model update'!$D$133:$H$133,1,MATCH($H$6,'Model update'!$D$126:$H$126,0)) -> 187026
B36: Nominal WACC t | C36: =(1+'Model update'!$B$43)*(1+'Model update'!$C$30)-1 -> 0.05008580414 | H36: =(1+'Model update'!$B$45)*(1+'Model update'!$C$29)-1 -> 0.0565862118
B37: Nominal WACC t-1 | C37: =(1+'Model update'!$B$45)*(1+'Model update'!$C$29)-1 -> 0.0565862118 | H37: =(1+'Model update'!$B$47)*(1+'Model update'!$C$28)-1 -> 0.05565648259
B38: License Fee Recovery Amount for year t | C38: =C35*(1+C36)*(1+C37)^0.5 -> 342778.829 | H38: =H35*(1+H36)*(1+H37)^0.5 -> 203033.749
B42: Table 6 - DUoS Recovery Arrangements
C43: Year t-2 | D43: Year t-1 | E43: Year t
C44: (actual) | D44: (estimate) | E44: (forecast)
C45: =D45-1 -> 2018 | D45: =E45-1 -> 2019 | E45: =C$6 -> 2020
B47: (A) Revenue from DUoS Charges | C47: 631624843.4 | D47: =Est2019DistRev!AS66 -> 655479626 | E47: =C9 -> 687370513.1
B50: (B) Less TAR for regulatory year = | C50: =SUM(C51:C54) -> 632090724.9 | D50: =SUM(D51:D54) -> 666859909.5 | E50: =SUM(E51:E54) -> 692501133.1
B51: + Adjusted annual smoothed revenue | C51: =H21 -> 630135829.9 | D51: =C21 -> 662017675.8 | E51: =C14 -> 691163254.3
B52: +It | C52: =INDEX('Model update'!$D$100:$H$100,1,MATCH($C$45,'Model update'!$D$93:$H$93,0)) -> 1755000 | D52: =H15 -> 4639200 | E52: =C15 -> 995100
B53: +Tt | C53: =INDEX('Model update'!$D$144:$H$144,1,MATCH($C$45,'Model update'!$D$137:$H$137,0)) -> 0 | D53: =H16 -> 0 | E53: =C16 -> 0
B54: +Bt = | C54: =SUM(C55:C57) -> 199894.9173 | D54: =SUM(D55:D57) -> 203033.749 | E54: =SUM(E55:E57) -> 342778.829
B55: +Licence fee recovery | C55: 199894.9173 | D55: =H29 -> 203033.749 | E55: =C29 -> 342778.829
B56: +Approved pass throughs | C56: 0 | D56: =H30 -> 0 | E56: =C30 -> 0
B57: +Pass Through revenue under/over recovery for years 2014 and 2015 | C57: 0 | D57: =H31 -> 0
B60: (A minus B) Under/over recovery of revenue for regulatory year | C60: =C47-C50 -> -465881.4611 | D60: =D47-D50 -> -11380283.52 | E60: =E47-E50 -> -5130619.982
B64: Table 7 - DUoS Unders and Overs Account
C65: Year t-2 | D65: Year t-1 | E65: Year t
C66: (actual) | D66: (estimate) | E66: (forecast)
B67: Calendar year | C67: =D67-1 -> 2018 | D67: =E67-1 -> 2019 | E67: =C$6 -> 2020
B69: Nominal WACC | C69: =(1+'Model update'!$B$47)*(1+'Model update'!$C$28)-1 -> 0.05565648259 | D69: =(1+'Model update'!$B$45)*(1+'Model update'!$C$29)-1 -> 0.0565862118 | E69: =(1+'Model update'!$B$43)*(1+'Model update'!$C$30)-1 -> 0.05008580414
B71: Opening balance | C71: 15177925.21 | D71: =C75 -> 15544004.56 | E71: =D75 -> 4725744.278
B72: Interest on Opening balance | C72: =C71*C69 -> 844749.9303 | D72: =D71*D69 -> 879576.3343 | E72: =E71*E69 -> 236692.7023
B73: Under/over recovery of revenue for regulatory year | C73: =C60 -> -465881.4611 | D73: =D60 -> -11380283.52 | E73: =E60 -> -5130619.982
B74: Interest on under/over recovery for regulatory year | C74: =C73*((1+C69)^0.5-1) -> -12789.12174 | D74: =D73*((1+D69)^0.5-1) -> -317553.0985 | E74: =E73*((1+E69)^0.5-1) -> -126915.8585
B75: Closing balance of DUoS overs/ (unders) account | C75: =SUM(C71:C74) -> 15544004.56 | D75: =SUM(D71:D74) -> 4725744.278 | E75: -295098.8604
B77: The DNSP is expected to achieve a closing balance as close to zero as practicable in its DUoS unders and overs account in each forecast year in its annual pricing proposals in the 2016–20 regulatory control period.

Sheet 2020DistTarRebalCont
B1: ="Tariff Approval - "&'Model update'!C3 -> Tariff Approval - Powercor | C1: ='Model update'!$C$5&"DistTarRebalCont" -> 2020DistTarRebalCont
B3: ='Model update'!C5&" DISTRIBUTION TARIFF REBALANCING CONTROL" -> 2020 DISTRIBUTION TARIFF REBALANCING CONTROL
B6: Distribution tariff rebalancing control
B8: ="CPI "&'Model update'!$C$5 -> CPI 2020 | C8: ='2020DistRevCapForm'!C22 -> 0.01592920354
B9: ="X "& 'Model update'!$C$5 -> X 2020 | C9: =MIN('2020DistRevCapForm'!C23,0) -> -0.02401925855
B10: ="St "&'Model update'!$C$5 -> St 2020 | C10: ='2020DistRevCapForm'!C24 -> 0.003551089156
B11: ="It "&'Model update'!$C$5 -> It 2020 | C11: =('2020DistRevCapForm'!C15-'2020DistRevCapForm'!H15)/Prop2020DistTar!BV$66 -> -0.005585044949
B12: ="Tt "&'Model update'!$C$5 -> Tt 2020 | C12: =('2020DistRevCapForm'!C16-'2020DistRevCapForm'!H16)/Prop2020DistTar!BV$66 -> 0
B13: ="Bt "&'Model update'!$C$5 -> Bt 2020 | C13: =('2020DistRevCapForm'!C17-'2020DistRevCapForm'!H17)/Prop2020DistTar!BV$66 -> 0.01021229786
C16: =(1+C8)*(1-C9)*(1+0.02)*(1+C10)+SUM(C11:C13) -> 1.069533139
B20: Rebalancing control summary | C20: ="Pt-1*(Qt " &'Model update'!$C$5&")" -> Pt-1*(Qt 2020) | D20: ="Pt*(Qt " &'Model update'!$C$5&")" -> Pt*(Qt 2020)
B21: Tariff Class (Input Class Name) | C21: Existing ($) | D21: Proposed ($) | E21: Movement
B22: Residential | C22: =IF(B22="","",SUMIF($B$44:$B$103,$B22,$I$44:$I$103)) -> 275456345.4 | D22: =IF(B22="","",SUMIF($B$44:$B$103,$B22,$F$44:$F$103)) -> 292711896.2 | E22: =IF(B22="","",D22/C22) -> 1.062643504 | F22: =IF(B22="","",IF(E22<$C$16,"COMPLIANT","BREACHED")) -> COMPLIANT
B23: Small business | C23: =IF(B23="","",SUMIF($B$44:$B$103,$B23,$I$44:$I$103)) -> 156549038.2 | D23: =IF(B23="","",SUMIF($B$44:$B$103,$B23,$F$44:$F$103)) -> 163139739.7 | E23: 1.042099917 | F23: COMPLIANT
B24: LLV | C24: =IF(B24="","",SUMIF($B$44:$B$103,$B24,$I$44:$I$103)) -> 158378104.6 | D24: =IF(B24="","",SUMIF($B$44:$B$103,$B24,$F$44:$F$103)) -> 168554710.3 | E24: 1.06425513 | F24: COMPLIANT
B25: HV | C25: =IF(B25="","",SUMIF($B$44:$B$103,$B25,$I$44:$I$103)) -> 53468305.83 | D25: =IF(B25="","",SUMIF($B$44:$B$103,$B25,$F$44:$F$103)) -> 53879890.42 | E25: 1.00769773 | F25: COMPLIANT
B26: SubTrans | C26: =IF(B26="","",SUMIF($B$44:$B$103,$B26,$I$44:$I$103)) -> 8622811.522 | D26: =IF(B26="","",SUMIF($B$44:$B$103,$B26,$F$44:$F$103)) -> 9084276.593 | E26: 1.053516776 | F26: COMPLIANT
C27: =IF(B27="","",SUMIF($B$44:$B$103,$B27,$I$44:$I$103)) ->  | D27: =IF(B27="","",SUMIF($B$44:$B$103,$B27,$F$44:$F$103)) ->  | E27: =IF(B27="","",D27/C27) ->  | F27: =IF(B27="","",IF(E27<$C$16,"COMPLIANT","BREACHED")) -> 
C32: =IF(B32="","",SUMIF($B$44:$B$103,$B32,$I$44:$I$103)) ->  | D32: =IF(B32="","",SUMIF($B$44:$B$103,$B32,$F$44:$F$103)) -> 
B39: Check Total | C39: =IF(ABS(SUM(C22:C38)-I104)<0.01,"Ok","Error") -> Ok | D39: =IF(ABS(SUM(D22:D38)-F104)<0.01,"Ok","Error") -> Ok
C40: =IF(ABS(SUM(C22:C38)-Prop2020DistTar!BV66)<0.01,"Ok","Error") -> Ok | D40: =IF(ABS(SUM(D22:D38)-Prop2020DistTar!BG66)<0.01,"Ok","Error") -> Ok
F42: ="Revenue (Pt "&'Model update'!$C$5&")*(Qt " &'Model update'!$C$5&")" -> Revenue (Pt 2020)*(Qt 2020) | I42: ="Revenue (Pt-1 "&'Model update'!$C$8&")*(Qt " &'Model update'!$C$5&")" -> Revenue (Pt-1 2019)*(Qt 2020)
A43: New Tariff Test | B43: Destination tariff class | C43: Source tariff class | D43: Proposed tariff | E43: Existing tariff | F43: PropRev Total | I43: ExistRev Total
A44: =OR(EXACT(D44,Prop2020DistTar!C$6:C$65)) -> TRUE | B44: Residential | C44: Residential | D44: =IF(Prop2020DistTar!B6="","",Prop2020DistTar!B6) -> Residential Single Rate | E44: =IF(Prop2020DistTar!C6="","",Prop2020DistTar!C6) -> Residential Single Rate | F44: =Prop2020DistTar!BG6 -> 219913789.3 | I44: =Prop2020DistTar!BV6 -> 206912192.9
A45: =OR(EXACT(D45,Prop2020DistTar!C$6:C$65)) -> TRUE | B45: Residential | C45: Residential | D45: =IF(Prop2020DistTar!B7="","",Prop2020DistTar!B7) -> Climate Saver | E45: =IF(Prop2020DistTar!C7="","",Prop2020DistTar!C7) -> Climate Saver | F45: =Prop2020DistTar!BG7 -> 1061672.185 | I45: =Prop2020DistTar!BV7 -> 1009438.04
A46: =OR(EXACT(D46,Prop2020DistTar!C$6:C$65)) -> TRUE | B46: Residential | C46: Residential | D46: =IF(Prop2020DistTar!B8="","",Prop2020DistTar!B8) -> Climate Saver Interval | E46: =IF(Prop2020DistTar!C8="","",Prop2020DistTar!C8) -> Climate Saver Interval | F46: =Prop2020DistTar!BG8 -> 317074.6223 | I46: =Prop2020DistTar!BV8 -> 301573.1175
A47: =OR(EXACT(D47,Prop2020DistTar!C$6:C$65)) -> TRUE | B47: Residential | C47: Residential | D47: =IF(Prop2020DistTar!B9="","",Prop2020DistTar!B9) -> Residential - Flexible Pricing | E47: =IF(Prop2020DistTar!C9="","",Prop2020DistTar!C9) -> Residential - Flexible Pricing | F47: =Prop2020DistTar!BG9 -> 1343699.636 | I47: =Prop2020DistTar!BV9 -> 1264463.344
A48: =OR(EXACT(D48,Prop2020DistTar!C$6:C$65)) -> TRUE | B48: Residential | C48: Residential | D48: =IF(Prop2020DistTar!B10="","",Prop2020DistTar!B10) -> Residential Docklands - Flexible Pricing | E48: =IF(Prop2020DistTar!C10="","",Prop2020DistTar!C10) -> Residential Docklands - Flexible Pricing | F48: =Prop2020DistTar!BG10 -> 450.7814172 | I48: =Prop2020DistTar!BV10 -> 326.9495916
A49: =OR(EXACT(D49,Prop2020DistTar!C$6:C$65)) -> TRUE | B49: Residential | C49: Residential | D49: =IF(Prop2020DistTar!B11="","",Prop2020DistTar!B11) -> Climate Saver - Flexible Pricing | E49: =IF(Prop2020DistTar!C11="","",Prop2020DistTar!C11) -> Climate Saver - Flexible Pricing | F49: =Prop2020DistTar!BG11 -> 2556.273015 | I49: =Prop2020DistTar!BV11 -> 2422.380978
A50: =OR(EXACT(D50,Prop2020DistTar!C$6:C$65)) -> TRUE | B50: Residential | C50: Residential | D50: =IF(Prop2020DistTar!B12="","",Prop2020DistTar!B12) -> Docklands single rate | E50: =IF(Prop2020DistTar!C12="","",Prop2020DistTar!C12) -> Docklands single rate | F50: =Prop2020DistTar!BG12 -> 2985.698498 | I50: =Prop2020DistTar!BV12 -> 2676.960824
A51: =OR(EXACT(D51,Prop2020DistTar!C$6:C$65)) -> TRUE | B51: Residential | C51: Residential | D51: =IF(Prop2020DistTar!B13="","",Prop2020DistTar!B13) -> Residential Two Rate 5d | E51: =IF(Prop2020DistTar!C13="","",Prop2020DistTar!C13) -> Residential Two Rate 5d | F51: =Prop2020DistTar!BG13 -> 21024630.42 | I51: =Prop2020DistTar!BV13 -> 19766226.4
A52: =OR(EXACT(D52,Prop2020DistTar!C$6:C$65)) -> TRUE | B52: Residential | C52: Residential | D52: =IF(Prop2020DistTar!B14="","",Prop2020DistTar!B14) -> Docklands Two Rate 5d | E52: =IF(Prop2020DistTar!C14="","",Prop2020DistTar!C14) -> Docklands Two Rate 5d | F52: =Prop2020DistTar!BG14 -> 292633.6085 | I52: =Prop2020DistTar!BV14 -> 268200.1467
A53: =OR(EXACT(D53,Prop2020DistTar!C$6:C$65)) -> TRUE | B53: Residential | C53: Residential | D53: =IF(Prop2020DistTar!B15="","",Prop2020DistTar!B15) -> Residential Interval | E53: =IF(Prop2020DistTar!C15="","",Prop2020DistTar!C15) -> Residential Interval | F53: =Prop2020DistTar!BG15 -> 42820969.95 | I53: =Prop2020DistTar!BV15 -> 40224123.8
A54: =OR(EXACT(D54,Prop2020DistTar!C$6:C$65)) -> TRUE | B54: Residential | C54: Residential | D54: =IF(Prop2020DistTar!B16="","",Prop2020DistTar!B16) -> Residential Two Rate 5d - controlled load | E54: =IF(Prop2020DistTar!C16="","",Prop2020DistTar!C16) -> Residential Two Rate 5d - controlled load | F54: =Prop2020DistTar!BG16 -> 0 | I54: =Prop2020DistTar!BV16 -> 0
A55: =OR(EXACT(D55,Prop2020DistTar!C$6:C$65)) -> TRUE | B55: Residential | C55: Residential | D55: =IF(Prop2020DistTar!B17="","",Prop2020DistTar!B17) -> Docklands Two Rate 5d - controlled load | E55: =IF(Prop2020DistTar!C17="","",Prop2020DistTar!C17) -> Docklands Two Rate 5d - controlled load | F55: =Prop2020DistTar!BG17 -> 0 | I55: =Prop2020DistTar!BV17 -> 0
A56: =OR(EXACT(D56,Prop2020DistTar!C$6:C$65)) -> TRUE | B56: Residential | C56: Residential | D56: =IF(Prop2020DistTar!B18="","",Prop2020DistTar!B18) -> Dedicated circuit | E56: =IF(Prop2020DistTar!C18="","",Prop2020DistTar!C18) -> Dedicated circuit | F56: =Prop2020DistTar!BG18 -> 5925242.705 | I56: =Prop2020DistTar!BV18 -> 5698800.309
A57: =OR(EXACT(D57,Prop2020DistTar!C$6:C$65)) -> TRUE | B57: Residential | C57: Residential | D57: =IF(Prop2020DistTar!B19="","",Prop2020DistTar!B19) -> Hot Water Interval | E57: =IF(Prop2020DistTar!C19="","",Prop2020DistTar!C19) -> Hot Water Interval | F57: =Prop2020DistTar!BG19 -> 0 | I57: =Prop2020DistTar!BV19 -> 0
A58: =OR(EXACT(D58,Prop2020DistTar!C$6:C$65)) -> TRUE | B58: Residential | C58: Residential | D58: =IF(Prop2020DistTar!B20="","",Prop2020DistTar!B20) -> Residential Demand | E58: =IF(Prop2020DistTar!C20="","",Prop2020DistTar!C20) -> Residential Demand | F58: =Prop2020DistTar!BG20 -> 1813.679926 | I58: =Prop2020DistTar!BV20 -> 1704.935601
A59: =OR(EXACT(D59,Prop2020DistTar!C$6:C$65)) -> TRUE | B59: Residential | C59: Residential | D59: =IF(Prop2020DistTar!B21="","",Prop2020DistTar!B21) -> Newstead Residential Trial | E59: =IF(Prop2020DistTar!C21="","",Prop2020DistTar!C21) -> Newstead Residential Trial | F59: =Prop2020DistTar!BG21 -> 4377.274082 | I59: =Prop2020DistTar!BV21 -> 4196.127233
A60: =OR(EXACT(D60,Prop2020DistTar!C$6:C$65)) -> TRUE | B60: Small business | C60: Small business | D60: =IF(Prop2020DistTar!B22="","",Prop2020DistTar!B22) -> Non-Residential Single Rate | E60: =IF(Prop2020DistTar!C22="","",Prop2020DistTar!C22) -> Non-Residential Single Rate | F60: =Prop2020DistTar!BG22 -> 28497728.64 | I60: =Prop2020DistTar!BV22 -> 26735043.58
A61: =OR(EXACT(D61,Prop2020DistTar!C$6:C$65)) -> TRUE | B61: Small business | C61: Small business | D61: =IF(Prop2020DistTar!B23="","",Prop2020DistTar!B23) -> Non-Residential Flexible Pricing | E61: =IF(Prop2020DistTar!C23="","",Prop2020DistTar!C23) -> Non-Residential Flexible Pricing | F61: =Prop2020DistTar!BG23 -> 272389.8355 | I61: =Prop2020DistTar!BV23 -> 255721.9034
A62: =OR(EXACT(D62,Prop2020DistTar!C$6:C$65)) -> TRUE | B62: Small business | C62: Small business | D62: =IF(Prop2020DistTar!B24="","",Prop2020DistTar!B24) -> Non-Residential Two Rate 5d | E62: =IF(Prop2020DistTar!C24="","",Prop2020DistTar!C24) -> Non-Residential Two Rate 5d | F62: =Prop2020DistTar!BG24 -> 31548075.35 | I62: =Prop2020DistTar!BV24 -> 29598559.15
A63: =OR(EXACT(D63,Prop2020DistTar!C$6:C$65)) -> TRUE | B63: Small business | C63: Small business | D63: =IF(Prop2020DistTar!B25="","",Prop2020DistTar!B25) -> Non-Residential Interval | E63: =IF(Prop2020DistTar!C25="","",Prop2020DistTar!C25) -> Non-Residential Interval | F63: =Prop2020DistTar!BG25 -> 13879659.14 | I63: =Prop2020DistTar!BV25 -> 13020691.13
A64: =OR(EXACT(D64,Prop2020DistTar!C$6:C$65)) -> TRUE | B64: Small business | C64: Small business | D64: =IF(Prop2020DistTar!B26="","",Prop2020DistTar!B26) -> Non-Residential Two Rate 7d | E64: =IF(Prop2020DistTar!C26="","",Prop2020DistTar!C26) -> Non-Residential Two Rate 7d | F64: =Prop2020DistTar!BG26 -> 7455824.241 | I64: =Prop2020DistTar!BV26 -> 6991715.198
A65: =OR(EXACT(D65,Prop2020DistTar!C$6:C$65)) -> TRUE | B65: Small business | C65: Small business | D65: =IF(Prop2020DistTar!B27="","",Prop2020DistTar!B27) -> Non-Residential Demand | E65: =IF(Prop2020DistTar!C27="","",Prop2020DistTar!C27) -> Non-Residential Demand | F65: =Prop2020DistTar!BG27 -> 210521.6229 | I65: =Prop2020DistTar!BV27 -> 197799.1528
A66: =OR(EXACT(D66,Prop2020DistTar!C$6:C$65)) -> TRUE | B66: Small business | C66: Small business | D66: =IF(Prop2020DistTar!B28="","",Prop2020DistTar!B28) -> Medium business Demand | E66: =IF(Prop2020DistTar!C28="","",Prop2020DistTar!C28) -> Medium business Demand | F66: =Prop2020DistTar!BG28 -> 73804873.94 | I66: =Prop2020DistTar!BV28 -> 72955758.29
A67: =OR(EXACT(D67,Prop2020DistTar!C$6:C$65)) -> TRUE | B67: Small business | C67: Small business | D67: =IF(Prop2020DistTar!B29="","",Prop2020DistTar!B29) -> Medium business Opt-out | E67: =IF(Prop2020DistTar!C29="","",Prop2020DistTar!C29) -> Medium business Opt-out | F67: =Prop2020DistTar!BG29 -> 1163972.523 | I67: =Prop2020DistTar!BV29 -> 1102634.003
A68: =OR(EXACT(D68,Prop2020DistTar!C$6:C$65)) -> TRUE | B68: Small business | C68: Small business | D68: =IF(Prop2020DistTar!B30="","",Prop2020DistTar!B30) -> Public Lighting | E68: =IF(Prop2020DistTar!C30="","",Prop2020DistTar!C30) -> Public Lighting | F68: =Prop2020DistTar!BG30 -> 6306694.422 | I68: =Prop2020DistTar!BV30 -> 5691115.772
A69: =OR(EXACT(D69,Prop2020DistTar!C$6:C$65)) -> TRUE | B69: LLV | C69: LLV | D69: =IF(Prop2020DistTar!B31="","",Prop2020DistTar!B31) -> Large low Voltage | E69: =IF(Prop2020DistTar!C31="","",Prop2020DistTar!C31) -> Large low Voltage | F69: =Prop2020DistTar!BG31 -> 168554710.3 | I69: =Prop2020DistTar!BV31 -> 158378104.6
A70: =OR(EXACT(D70,Prop2020DistTar!C$6:C$65)) -> TRUE | B70: HV | C70: HV | D70: =IF(Prop2020DistTar!B32="","",Prop2020DistTar!B32) -> High Voltage | E70: =IF(Prop2020DistTar!C32="","",Prop2020DistTar!C32) -> High Voltage | F70: =Prop2020DistTar!BG32 -> 47522893.2 | I70: =Prop2020DistTar!BV32 -> 47516898.35
A71: =OR(EXACT(D71,Prop2020DistTar!C$6:C$65)) -> TRUE | B71: HV | C71: HV | D71: =IF(Prop2020DistTar!B33="","",Prop2020DistTar!B33) -> High Voltage Docklands | E71: =IF(Prop2020DistTar!C33="","",Prop2020DistTar!C33) -> High Voltage Docklands | F71: =Prop2020DistTar!BG33 -> 6356997.217 | I71: =Prop2020DistTar!BV33 -> 5951407.486
A72: =OR(EXACT(D72,Prop2020DistTar!C$6:C$65)) -> TRUE | B72: SubTrans | C72: SubTrans | D72: =IF(Prop2020DistTar!B34="","",Prop2020DistTar!B34) -> Subtransmission | E72: =IF(Prop2020DistTar!C34="","",Prop2020DistTar!C34) -> Subtransmission | F72: =Prop2020DistTar!BG34 -> 9084276.593 | I72: =Prop2020DistTar!BV34 -> 8622811.522
A73: =OR(EXACT(D73,Prop2020DistTar!C$6:C$65)) -> TRUE | D73: =IF(Prop2020DistTar!B35="","",Prop2020DistTar!B35) ->  | E73: =IF(Prop2020DistTar!C35="","",Prop2020DistTar!C35) ->  | F73: =Prop2020DistTar!BG35 -> 0 | I73: =Prop2020DistTar!BV35 -> 0
A74: =OR(EXACT(D74,Prop2020DistTar!C$6:C$65)) -> TRUE | D74: =IF(Prop2020DistTar!B36="","",Prop2020DistTar!B36) ->  | E74: =IF(Prop2020DistTar!C36="","",Prop2020DistTar!C36) ->  | F74: =Prop2020DistTar!BG36 -> 0 | I74: =Prop2020DistTar!BV36 -> 0
A75: =OR(EXACT(D75,Prop2020DistTar!C$6:C$65)) -> TRUE | D75: =IF(Prop2020DistTar!B37="","",Prop2020DistTar!B37) ->  | E75: =IF(Prop2020DistTar!C37="","",Prop2020DistTar!C37) ->  | F75: =Prop2020DistTar!BG37 -> 0 | I75: =Prop2020DistTar!BV37 -> 0
A76: =OR(EXACT(D76,Prop2020DistTar!C$6:C$65)) -> TRUE | D76: =IF(Prop2020DistTar!B38="","",Prop2020DistTar!B38) ->  | E76: =IF(Prop2020DistTar!C38="","",Prop2020DistTar!C38) ->  | F76: =Prop2020DistTar!BG38 -> 0 | I76: =Prop2020DistTar!BV38 -> 0
A77: =OR(EXACT(D77,Prop2020DistTar!C$6:C$65)) -> TRUE | D77: =IF(Prop2020DistTar!B39="","",Prop2020DistTar!B39) ->  | E77: =IF(Prop2020DistTar!C39="","",Prop2020DistTar!C39) ->  | F77: =Prop2020DistTar!BG39 -> 0 | I77: =Prop2020DistTar!BV39 -> 0
A78: =OR(EXACT(D78,Prop2020DistTar!C$6:C$65)) -> TRUE | D78: =IF(Prop2020DistTar!B40="","",Prop2020DistTar!B40) ->  | E78: =IF(Prop2020DistTar!C40="","",Prop2020DistTar!C40) ->  | F78: =Prop2020DistTar!BG40 -> 0 | I78: =Prop2020DistTar!BV40 -> 0
A79: =OR(EXACT(D79,Prop2020DistTar!C$6:C$65)) -> TRUE | D79: =IF(Prop2020DistTar!B41="","",Prop2020DistTar!B41) ->  | E79: =IF(Prop2020DistTar!C41="","",Prop2020DistTar!C41) ->  | F79: =Prop2020DistTar!BG41 -> 0 | I79: =Prop2020DistTar!BV41 -> 0
A80: =OR(EXACT(D80,Prop2020DistTar!C$6:C$65)) -> TRUE | D80: =IF(Prop2020DistTar!B42="","",Prop2020DistTar!B42) ->  | E80: =IF(Prop2020DistTar!C42="","",Prop2020DistTar!C42) ->  | F80: =Prop2020DistTar!BG42 -> 0 | I80: =Prop2020DistTar!BV42 -> 0
A81: =OR(EXACT(D81,Prop2020DistTar!C$6:C$65)) -> TRUE | D81: =IF(Prop2020DistTar!B43="","",Prop2020DistTar!B43) ->  | E81: =IF(Prop2020DistTar!C43="","",Prop2020DistTar!C43) ->  | F81: =Prop2020DistTar!BG43 -> 0 | I81: =Prop2020DistTar!BV43 -> 0
A82: =OR(EXACT(D82,Prop2020DistTar!C$6:C$65)) -> TRUE | D82: =IF(Prop2020DistTar!B44="","",Prop2020DistTar!B44) ->  | E82: =IF(Prop2020DistTar!C44="","",Prop2020DistTar!C44) ->  | F82: =Prop2020DistTar!BG44 -> 0 | I82: =Prop2020DistTar!BV44 -> 0
A83: =OR(EXACT(D83,Prop2020DistTar!C$6:C$65)) -> TRUE | D83: =IF(Prop2020DistTar!B45="","",Prop2020DistTar!B45) ->  | E83: =IF(Prop2020DistTar!C45="","",Prop2020DistTar!C45) ->  | F83: =Prop2020DistTar!BG45 -> 0 | I83: =Prop2020DistTar!BV45 -> 0
A84: =OR(EXACT(D84,Prop2020DistTar!C$6:C$65)) -> TRUE | D84: =IF(Prop2020DistTar!B46="","",Prop2020DistTar!B46) ->  | E84: =IF(Prop2020DistTar!C46="","",Prop2020DistTar!C46) ->  | F84: =Prop2020DistTar!BG46 -> 0 | I84: =Prop2020DistTar!BV46 -> 0
A85: =OR(EXACT(D85,Prop2020DistTar!C$6:C$65)) -> TRUE | D85: =IF(Prop2020DistTar!B47="","",Prop2020DistTar!B47) ->  | E85: =IF(Prop2020DistTar!C47="","",Prop2020DistTar!C47) ->  | F85: =Prop2020DistTar!BG47 -> 0 | I85: =Prop2020DistTar!BV47 -> 0
A86: =OR(EXACT(D86,Prop2020DistTar!C$6:C$65)) -> TRUE | D86: =IF(Prop2020DistTar!B48="","",Prop2020DistTar!B48) ->  | E86: =IF(Prop2020DistTar!C48="","",Prop2020DistTar!C48) ->  | F86: =Prop2020DistTar!BG48 -> 0 | I86: =Prop2020DistTar!BV48 -> 0
A87: =OR(EXACT(D87,Prop2020DistTar!C$6:C$65)) -> TRUE | D87: =IF(Prop2020DistTar!B49="","",Prop2020DistTar!B49) ->  | E87: =IF(Prop2020DistTar!C49="","",Prop2020DistTar!C49) ->  | F87: =Prop2020DistTar!BG49 -> 0 | I87: =Prop2020DistTar!BV49 -> 0
A88: =OR(EXACT(D88,Prop2020DistTar!C$6:C$65)) -> TRUE | D88: =IF(Prop2020DistTar!B50="","",Prop2020DistTar!B50) ->  | E88: =IF(Prop2020DistTar!C50="","",Prop2020DistTar!C50) ->  | F88: =Prop2020DistTar!BG50 -> 0 | I88: =Prop2020DistTar!BV50 -> 0
A89: =OR(EXACT(D89,Prop2020DistTar!C$6:C$65)) -> TRUE | D89: =IF(Prop2020DistTar!B51="","",Prop2020DistTar!B51) ->  | E89: =IF(Prop2020DistTar!C51="","",Prop2020DistTar!C51) ->  | F89: =Prop2020DistTar!BG51 -> 0 | I89: =Prop2020DistTar!BV51 -> 0
A90: =OR(EXACT(D90,Prop2020DistTar!C$6:C$65)) -> TRUE | D90: =IF(Prop2020DistTar!B52="","",Prop2020DistTar!B52) ->  | E90: =IF(Prop2020DistTar!C52="","",Prop2020DistTar!C52) ->  | F90: =Prop2020DistTar!BG52 -> 0 | I90: =Prop2020DistTar!BV52 -> 0
A91: =OR(EXACT(D91,Prop2020DistTar!C$6:C$65)) -> TRUE | D91: =IF(Prop2020DistTar!B53="","",Prop2020DistTar!B53) ->  | E91: =IF(Prop2020DistTar!C53="","",Prop2020DistTar!C53) ->  | F91: =Prop2020DistTar!BG53 -> 0 | I91: =Prop2020DistTar!BV53 -> 0
A92: =OR(EXACT(D92,Prop2020DistTar!C$6:C$65)) -> TRUE | D92: =IF(Prop2020DistTar!B54="","",Prop2020DistTar!B54) ->  | E92: =IF(Prop2020DistTar!C54="","",Prop2020DistTar!C54) ->  | F92: =Prop2020DistTar!BG54 -> 0 | I92: =Prop2020DistTar!BV54 -> 0
A93: =OR(EXACT(D93,Prop2020DistTar!C$6:C$65)) -> TRUE | D93: =IF(Prop2020DistTar!B55="","",Prop2020DistTar!B55) ->  | E93: =IF(Prop2020DistTar!C55="","",Prop2020DistTar!C55) ->  | F93: =Prop2020DistTar!BG55 -> 0 | I93: =Prop2020DistTar!BV55 -> 0
A94: =OR(EXACT(D94,Prop2020DistTar!C$6:C$65)) -> TRUE | D94: =IF(Prop2020DistTar!B56="","",Prop2020DistTar!B56) ->  | E94: =IF(Prop2020DistTar!C56="","",Prop2020DistTar!C56) ->  | F94: =Prop2020DistTar!BG56 -> 0 | I94: =Prop2020DistTar!BV56 -> 0
A95: =OR(EXACT(D95,Prop2020DistTar!C$6:C$65)) -> TRUE | D95: =IF(Prop2020DistTar!B57="","",Prop2020DistTar!B57) ->  | E95: =IF(Prop2020DistTar!C57="","",Prop2020DistTar!C57) ->  | F95: =Prop2020DistTar!BG57 -> 0 | I95: =Prop2020DistTar!BV57 -> 0
A96: =OR(EXACT(D96,Prop2020DistTar!C$6:C$65)) -> TRUE | D96: =IF(Prop2020DistTar!B58="","",Prop2020DistTar!B58) ->  | E96: =IF(Prop2020DistTar!C58="","",Prop2020DistTar!C58) ->  | F96: =Prop2020DistTar!BG58 -> 0 | I96: =Prop2020DistTar!BV58 -> 0
A97: =OR(EXACT(D97,Prop2020DistTar!C$6:C$65)) -> TRUE | D97: =IF(Prop2020DistTar!B59="","",Prop2020DistTar!B59) ->  | E97: =IF(Prop2020DistTar!C59="","",Prop2020DistTar!C59) ->  | F97: =Prop2020DistTar!BG59 -> 0 | I97: =Prop2020DistTar!BV59 -> 0
A98: =OR(EXACT(D98,Prop2020DistTar!C$6:C$65)) -> TRUE | D98: =IF(Prop2020DistTar!B60="","",Prop2020DistTar!B60) ->  | E98: =IF(Prop2020DistTar!C60="","",Prop2020DistTar!C60) ->  | F98: =Prop2020DistTar!BG60 -> 0 | I98: =Prop2020DistTar!BV60 -> 0
A99: =OR(EXACT(D99,Prop2020DistTar!C$6:C$65)) -> TRUE | D99: =IF(Prop2020DistTar!B61="","",Prop2020DistTar!B61) ->  | E99: =IF(Prop2020DistTar!C61="","",Prop2020DistTar!C61) ->  | F99: =Prop2020DistTar!BG61 -> 0 | I99: =Prop2020DistTar!BV61 -> 0
A100: =OR(EXACT(D100,Prop2020DistTar!C$6:C$65)) -> TRUE | D100: =IF(Prop2020DistTar!B62="","",Prop2020DistTar!B62) ->  | E100: =IF(Prop2020DistTar!C62="","",Prop2020DistTar!C62) ->  | F100: =Prop2020DistTar!BG62 -> 0 | I100: =Prop2020DistTar!BV62 -> 0
A101: =OR(EXACT(D101,Prop2020DistTar!C$6:C$65)) -> TRUE | D101: =IF(Prop2020DistTar!B63="","",Prop2020DistTar!B63) ->  | E101: =IF(Prop2020DistTar!C63="","",Prop2020DistTar!C63) ->  | F101: =Prop2020DistTar!BG63 -> 0 | I101: =Prop2020DistTar!BV63 -> 0
A102: =OR(EXACT(D102,Prop2020DistTar!C$6:C$65)) -> TRUE | D102: =IF(Prop2020DistTar!B64="","",Prop2020DistTar!B64) ->  | E102: =IF(Prop2020DistTar!C64="","",Prop2020DistTar!C64) ->  | F102: =Prop2020DistTar!BG64 -> 0 | I102: =Prop2020DistTar!BV64 -> 0
A103: =OR(EXACT(D103,Prop2020DistTar!C$6:C$65)) -> TRUE | D103: =IF(Prop2020DistTar!B65="","",Prop2020DistTar!B65) ->  | E103: =IF(Prop2020DistTar!C65="","",Prop2020DistTar!C65) ->  | F103: =Prop2020DistTar!BG65 -> 0 | I103: =Prop2020DistTar!BV65 -> 0
F104: =SUM(F44:F103) -> 687370513.1 | I104: =SUM(I44:I103) -> 652474605.6 | BJ104: =SUM(BJ44:BJ103) -> 0

Sheet Est2019DistRev
B1: ="Tariff Approval - "&'Model update'!C3 -> Tariff Approval - Powercor | D1: ="Est"&'Model update'!$C$5-1&"DistRev" -> Est2019DistRev
B3: ="ESTIMATED "&'Model update'!$C$8&" Distribution Revenue" -> ESTIMATED 2019 Distribution Revenue
D4: ="Current Distribution Tariffs (Pt-1) for "&'Model update'!$C$8 -> Current Distribution Tariffs (Pt-1) for 2019 | R4: =" Estimated Distribution Quantities for "&'Model update'!$C$8&" (Qt-1)" -> Estimated Distribution Quantities for 2019 (Qt-1) | AF4: ="Estimated Revenue (Pt-1 "&'Model update'!$C$8&")*(Qt-1 " &'Model update'!$C$8&")" -> Estimated Revenue (Pt-1 2019)*(Qt-1 2019)
B5: ="Tariffs "&'Model update'!C8 -> Tariffs 2019 | D5: CurrentTar Fixed | E5: CurrentTar Anytime | F5: CurrentTar PkBlk | G5: CurrentTar OPkBlk1 | H5: CurrentTar Dem kVA | I5: CurrentTar Dem kW Sum | J5: CurrentTar Dem kW Win | K5: CurrentTar SumBlk1 | L5: CurrentTar SumBlk2 | M5: CurrentTar SumBlk3 | N5: CurrentTar WtrBlk1 | O5: CurrentTar WtrBlk2 | P5: CurrentTar WtrBlk3 | R5: EstVol Fixed | S5: EstVol Anytime | T5: EstVol Pk | U5: EstVol Opk | V5: EstVol Dem kVA | W5: EstVol Dem kW Sum | X5: EstVol Dem kW Win | Y5: EstVol SumBlk1 | Z5: EstVol SumBlk2 | AA5: EstVol SumBlk3 | AB5: EstVol WtrBlk1 | AC5: EstVol WtrBlk2 | AD5: EstVol WtrBlk3 | AF5: EstRev Fixed | AG5: EstRev Anytime | AH5: EstRev Pk | AI5: EstRev Opk | AJ5: EstRev Dem kVA | AK5: EstRev Dem kW Sum | AL5: EstRev Dem kW Win | AM5: EstRev SumBlk1 | AN5: EstRev SumBlk2 | AO5: EstRev SumBlk3 | AP5: EstRev WtrBlk1 | AQ5: EstRev WtrBlk2 | AR5: EstRev WtrBlk3 | AS5: EstRev Total
A6: D1 | B6: Residential Single Rate | D6: 130 | E6: 5.28 | F6: 0 | G6: 0 | H6: 0 | I6: 0 | J6: 0 | K6: 0 | L6: 0 | M6: 0 | N6: 0 | O6: 0 | P6: 0 | R6: 567490.75 | S6: 2331076406 | T6: 0 | U6: 0 | V6: 0 | W6: 0 | X6: 0 | Y6: 0 | Z6: 0 | AA6: 0 | AB6: 0 | AC6: 0 | AD6: 0 | AF6: =D6*R6 -> 73773797.5 | AG6: =E6/100*S6 -> 123080834.2 | AH6: 0 | AI6: 0 | AJ6: =H6*V6 -> 0 | AK6: =I6*W6 -> 0 | AL6: 0 | AM6: 0 | AN6: 0 | AO6: =M6/100*AA6 -> 0 | AP6: =N6/100*AB6 -> 0 | AQ6: =O6/100*AC6 -> 0 | AR6: =P6/100*AD6 -> 0 | AS6: =SUM(AF6:AR6) -> 196854631.7
A7: D1CS | B7: Climate Saver | D7: 0 | E7: 0 | F7: 7.48 | G7: 1.51 | H7: 0 | I7: 0 | J7: 0 | K7: 0 | L7: 0 | M7: 0 | N7: 0 | O7: 0 | P7: 0 | R7: 16851.16667 | S7: 0 | T7: 10075687.41 | U7: 18548588.43 | V7: 0 | W7: 0 | X7: 0 | Y7: 0 | Z7: 0 | AA7: 0 | AB7: 0 | AC7: 0 | AD7: 0 | AF7: =D7*R7 -> 0 | AG7: =E7/100*S7 -> 0 | AH7: 753661.4185 | AI7: 280083.6852 | AJ7: =H7*V7 -> 0 | AK7: =I7*W7 -> 0 | AL7: =J7*X7 -> 0 | AM7: 0 | AN7: 0 | AO7: 0 | AP7: 0 | AQ7: 0 | AR7: 0 | AS7: =SUM(AF7:AR7) -> 1033745.104
A8: D3CS | B8: Climate Saver Interval | D8: 0 | E8: 0 | F8: 7.48 | G8: 1.51 | H8: 0 | I8: 0 | J8: 0 | K8: 0 | L8: 0 | M8: 0 | N8: 0 | O8: 0 | P8: 0 | R8: 4604.916667 | S8: 0 | T8: 2910417.392 | U8: 5927584.187 | V8: 0 | W8: 0 | X8: 0 | Y8: 0 | Z8: 0 | AA8: 0 | AB8: 0 | AC8: 0 | AD8: 0 | AF8: 0 | AG8: 0 | AH8: 217699.2209 | AI8: 89506.52122 | AJ8: 0 | AK8: 0 | AL8: 0 | AM8: 0 | AN8: 0 | AO8: 0 | AP8: 0 | AQ8: 0 | AR8: 0 | AS8: 307205.7421
A9: P13R | B9: Residential - Flexible Pricing | D9: 130 | E9: 0 | F9: 0 | G9: 0 | H9: 0 | I9: 0 | J9: 0 | K9: 9.7 | L9: 5.49 | M9: 2.14 | N9: 9.7 | O9: 5.49 | P9: 2.14 | R9: 3036.083333 | S9: 0 | T9: 0 | U9: 0 | V9: 0 | W9: 0 | X9: 0 | Y9: 854934.5974 | Z9: 1671404.329 | AA9: 1316027.217 | AB9: 2852452.979 | AC9: 5576569.567 | AD9: 4390868.924 | AF9: 394690.8333 | AG9: 0 | AH9: 0 | AI9: 0 | AJ9: 0 | AK9: 0 | AL9: 0 | AM9: 82928.65595 | AN9: 91760.09766 | AO9: 28162.98244 | AP9: 276687.939 | AQ9: 306153.6692 | AR9: 93964.59497 | AS9: 1274348.773
A10: P13RDK | B10: Residential Docklands - Flexible Pricing | D10: 130 | E10: 0 | F10: 0 | G10: 0 | H10: 0 | I10: 0 | J10: 0 | K10: 6.73 | L10: 3.75 | M10: 1.38 | N10: 6.73 | O10: 3.75 | P10: 1.38 | R10: 1 | S10: 0 | T10: 0 | U10: 0 | V10: 0 | W10: 0 | X10: 0 | Y10: 309.0358802 | Z10: 604.0795036 | AA10: 405.7754493 | AB10: 986.423121 | AC10: 1928.183837 | AD10: 1295.20975 | AF10: 130 | AG10: 0 | AH10: 0 | AI10: 0 | AJ10: 0 | AK10: 0 | AL10: 0 | AM10: 20.79811474 | AN10: 22.65298138 | AO10: 5.5997012 | AP10: 66.38627604 | AQ10: 72.30689388 | AR10: 17.87389455 | AS10: 335.6178618
A11: P13RCS | B11: Climate Saver - Flexible Pricing | D11: 0 | E11: 0 | F11: 0 | G11: 0 | H11: 0 | I11: 0 | J11: 0 | K11: 7.48 | L11: 0 | M11: 0 | N11: 1.51 | O11: 0 | P11: 0 | R11: 55.66666667 | S11: 0 | T11: 0 | U11: 0 | V11: 0 | W11: 0 | X11: 0 | Y11: 27161.84141 | Z11: 0 | AA11: 0 | AB11: 70093.1803 | AC11: 0 | AD11: 0 | AF11: 0 | AG11: 0 | AH11: 0 | AI11: 0 | AJ11: 0 | AK11: 0 | AL11: 0 | AM11: 2031.705738 | AN11: 0 | AO11: 0 | AP11: 1058.407023 | AQ11: 0 | AR11: 0 | AS11: 3090.11276
A12: P1DK | B12: Docklands single rate | D12: 130 | E12: 4.97 | F12: 0 | G12: 0 | H12: 0 | I12: 0 | J12: 0 | K12: 0 | L12: 0 | M12: 0 | N12: 0 | O12: 0 | P12: 0 | R12: 2 | S12: 10976.15301 | T12: 0 | U12: 0 | V12: 0 | W12: 0 | X12: 0 | Y12: 0 | Z12: 0 | AA12: 0 | AB12: 0 | AC12: 0 | AD12: 0 | AF12: 260 | AG12: 545.5148047 | AH12: 0 | AI12: 0 | AJ12: 0 | AK12: 0 | AL12: 0 | AM12: 0 | AN12: 0 | AO12: 0 | AP12: 0 | AQ12: 0 | AR12: 0 | AS12: 805.5148047
A13: D2 | B13: Residential Two Rate 5d | D13: 130 | E13: 0 | F13: 9.26 | G13: 2.12 | H13: 0 | I13: 0 | J13: 0 | K13: 0 | L13: 0 | M13: 0 | N13: 0 | O13: 0 | P13: 0 | R13: 45261.75 | S13: 0 | T13: 125835358.1 | U13: 115446252.5 | V13: 0 | W13: 0 | X13: 0 | Y13: 0 | Z13: 0 | AA13: 0 | AB13: 0 | AC13: 0 | AD13: 0 | AF13: 5884027.5 | AG13: 0 | AH13: 11652354.16 | AI13: 2447460.552 | AJ13: 0 | AK13: 0 | AL13: 0 | AM13: 0 | AN13: 0 | AO13: 0 | AP13: 0 | AQ13: 0 | AR13: 0 | AS13: 19983842.21
A14: D2DK | B14: Docklands Two Rate 5d | D14: 130 | E14: 0 | F14: 8.87 | G14: 1.97 | H14: 0 | I14: 0 | J14: 0 | K14: 0 | L14: 0 | M14: 0 | N14: 0 | O14: 0 | P14: 0 | R14: 586.5833333 | S14: 0 | T14: 1835821.192 | U14: 1698531.857 | V14: 0 | W14: 0 | X14: 0 | Y14: 0 | Z14: 0 | AA14: 0 | AB14: 0 | AC14: 0 | AD14: 0 | AF14: 76255.83333 | AG14: 0 | AH14: 162837.3398 | AI14: 33461.07758 | AJ14: 0 | AK14: 0 | AL14: 0 | AM14: 0 | AN14: 0 | AO14: 0 | AP14: 0 | AQ14: 0 | AR14: 0 | AS14: 272554.2507
A15: D3 | B15: Residential Interval | D15: 130 | E15: 0 | F15: 9.26 | G15: 2.12 | H15: 0 | I15: 0 | J15: 0 | K15: 0 | L15: 0 | M15: 0 | N15: 0 | O15: 0 | P15: 0 | R15: 108582.9167 | S15: 0 | T15: 279956676 | U15: 292807115.6 | V15: 0 | W15: 0 | X15: 0 | Y15: 0 | Z15: 0 | AA15: 0 | AB15: 0 | AC15: 0 | AD15: 0 | AF15: 14115779.17 | AG15: 0 | AH15: 25923988.2 | AI15: 6207510.85 | AJ15: 0 | AK15: 0 | AL15: 0 | AM15: 0 | AN15: 0 | AO15: 0 | AP15: 0 | AQ15: 0 | AR15: 0 | AS15: 46247278.22
A16: D2OP | B16: Residential Two Rate 5d - controlled load | D16: 0 | E16: 0 | F16: 0 | G16: 1.51 | H16: 0 | I16: 0 | J16: 0 | K16: 0 | L16: 0 | M16: 0 | N16: 0 | O16: 0 | P16: 0 | R16: 43106.33333 | S16: 0 | T16: 0 | U16: 83773204.99 | V16: 0 | W16: 0 | X16: 0 | Y16: 0 | Z16: 0 | AA16: 0 | AB16: 0 | AC16: 0 | AD16: 0 | AF16: 0 | AG16: 0 | AH16: 0 | AI16: 1264975.395 | AJ16: 0 | AK16: 0 | AL16: 0 | AM16: 0 | AN16: 0 | AO16: 0 | AP16: 0 | AQ16: 0 | AR16: 0 | AS16: 1264975.395
A17: D2DKOP | B17: Docklands Two Rate 5d - controlled load | D17: 0 | E17: 0 | F17: 0 | G17: 1.51 | H17: 0 | I17: 0 | J17: 0 | K17: 0 | L17: 0 | M17: 0 | N17: 0 | O17: 0 | P17: 0 | R17: 71.33333333 | S17: 0 | T17: 0 | U17: 132818.9122 | V17: 0 | W17: 0 | X17: 0 | Y17: 0 | Z17: 0 | AA17: 0 | AB17: 0 | AC17: 0 | AD17: 0 | AF17: 0 | AG17: 0 | AH17: 0 | AI17: 2005.565574 | AJ17: 0 | AK17: 0 | AL17: 0 | AM17: 0 | AN17: 0 | AO17: 0 | AP17: 0 | AQ17: 0 | AR17: 0 | AS17: 2005.565574
A18: DD1 | B18: Dedicated circuit | D18: 0 | E18: 0 | F18: 0 | G18: 1.51 | H18: 0 | I18: 0 | J18: 0 | K18: 0 | L18: 0 | M18: 0 | N18: 0 | O18: 0 | P18: 0 | R18: 156808.8333 | S18: 0 | T18: 0 | U18: 299067283.2 | V18: 0 | W18: 0 | X18: 0 | Y18: 0 | Z18: 0 | AA18: 0 | AB18: 0 | AC18: 0 | AD18: 0 | AF18: 0 | AG18: 0 | AH18: 0 | AI18: 4515915.976 | AJ18: 0 | AK18: 0 | AL18: 0 | AM18: 0 | AN18: 0 | AO18: 0 | AP18: 0 | AQ18: 0 | AR18: 0 | AS18: 4515915.976
A19: D3HW | B19: Hot Water Interval | D19: 0 | E19: 0 | F19: 0 | G19: 1.51 | H19: 0 | I19: 0 | J19: 0 | K19: 0 | L19: 0 | M19: 0 | N19: 0 | O19: 0 | P19: 0 | R19: 5477.083333 | S19: 0 | T19: 0 | U19: 10244581.41 | V19: 0 | W19: 0 | X19: 0 | Y19: 0 | Z19: 0 | AA19: 0 | AB19: 0 | AC19: 0 | AD19: 0 | AF19: 0 | AG19: 0 | AH19: 0 | AI19: 154693.1793 | AJ19: 0 | AK19: 0 | AL19: 0 | AM19: 0 | AN19: 0 | AO19: 0 | AP19: 0 | AQ19: 0 | AR19: 0 | AS19: 154693.1793
A20: DD | B20: Residential Demand | D20: 130 | E20: 2.33 | F20: 0 | G20: 0 | H20: 0 | I20: 7.71 | J20: 2.57 | K20: 0 | L20: 0 | M20: 0 | N20: 0 | O20: 0 | P20: 0 | R20: 5 | S20: 21993.75259 | T20: 0 | U20: 0 | V20: 0 | W20: 48.8255 | X20: 122.10825 | Y20: 0 | Z20: 0 | AA20: 0 | AB20: 0 | AC20: 0 | AD20: 0 | AF20: 650 | AG20: 512.4544353 | AH20: 0 | AI20: 0 | AJ20: 0 | AK20: 376.444605 | AL20: 313.8182025 | AM20: 0 | AN20: 0 | AO20: 0 | AP20: 0 | AQ20: 0 | AR20: 0 | AS20: 1852.717243
A21: DDNEW | B21: Newstead Residential Trial | D21: 375 | E21: 0 | F21: 0 | G21: 0 | H21: 0 | I21: 1.54 | J21: 1.54 | K21: 0 | L21: 0 | M21: 0 | N21: 0 | O21: 0 | P21: 0 | R21: 100 | S21: 410755.8279 | T21: 0 | U21: 0 | V21: 0 | W21: 976.51 | X21: 2442.165 | Y21: 0 | Z21: 0 | AA21: 0 | AB21: 0 | AC21: 0 | AD21: 0 | AF21: 37500 | AG21: 0 | AH21: 0 | AI21: 0 | AJ21: 0 | AK21: 1503.8254 | AL21: 3760.9341 | AM21: 0 | AN21: 0 | AO21: 0 | AP21: 0 | AQ21: 0 | AR21: 0 | AS21: 42764.7595
A22: ND1 | B22: Non-Residential Single Rate | D22: 170 | E22: 6.69 | F22: 0 | G22: 0 | H22: 0 | I22: 0 | J22: 0 | K22: 0 | L22: 0 | M22: 0 | N22: 0 | O22: 0 | P22: 0 | R22: 45028.58333 | S22: 280140182.4 | T22: 0 | U22: 0 | V22: 0 | W22: 0 | X22: 0 | Y22: 0 | Z22: 0 | AA22: 0 | AB22: 0 | AC22: 0 | AD22: 0 | AF22: 7654859.167 | AG22: 18741378.2 | AH22: 0 | AI22: 0 | AJ22: 0 | AK22: 0 | AL22: 0 | AM22: 0 | AN22: 0 | AO22: =M22/100*AA22 -> 0 | AP22: 0 | AQ22: 0 | AR22: 0 | AS22: 26396237.37
A23: P14G | B23: Non-Residential Flexible Pricing | D23: 170 | E23: 0 | F23: 0 | G23: 0 | H23: 0 | I23: 0 | J23: 0 | K23: 10.86 | L23: 3.4 | M23: 2.59 | N23: 10.86 | O23: 3.4 | P23: 2.59 | R23: 176 | S23: 0 | T23: 0 | U23: 0 | V23: 0 | W23: 0 | X23: 0 | Y23: 460587.4825 | Z23: 155250.2893 | AA23: 469086.5931 | AB23: 1202029.851 | AC23: 405168.3755 | AD23: 1224210.62 | AF23: 29920 | AG23: 0 | AH23: 0 | AI23: 0 | AJ23: 0 | AK23: 0 | AL23: 0 | AM23: 50019.8006 | AN23: 5278.509837 | AO23: 12149.34276 | AP23: 130540.4418 | AQ23: 13775.72477 | AR23: 31707.05505 | AS23: 273390.8748
A24: ND2 | B24: Non-Residential Two Rate 5d | D24: 170 | E24: 0 | F24: 11 | G24: 2.48 | H24: 0 | I24: 0 | J24: 0 | K24: 0 | L24: 0 | M24: 0 | N24: 0 | O24: 0 | P24: 0 | R24: 24187.41667 | S24: 0 | T24: 212822789.3 | U24: 186173575.7 | V24: 0 | W24: 0 | X24: 0 | Y24: 0 | Z24: 0 | AA24: 0 | AB24: 0 | AC24: 0 | AD24: 0 | AF24: 4111860.833 | AG24: 0 | AH24: 23410506.82 | AI24: 4617104.678 | AJ24: 0 | AK24: 0 | AL24: 0 | AM24: 0 | AN24: 0 | AO24: 0 | AP24: 0 | AQ24: 0 | AR24: 0 | AS24: 32139472.33
A25: ND5 | B25: Non-Residential Interval | D25: 170 | E25: 0 | F25: 11 | G25: 2.48 | H25: 0 | I25: 0 | J25: 0 | K25: 0 | L25: 0 | M25: 0 | N25: 0 | O25: 0 | P25: 0 | R25: 12355.25 | S25: 0 | T25: 99993582.88 | U25: 70295901.8 | V25: 0 | W25: 0 | X25: 0 | Y25: 0 | Z25: 0 | AA25: 0 | AB25: 0 | AC25: 0 | AD25: 0 | AF25: 2100392.5 | AG25: 0 | AH25: 10999294.12 | AI25: 1743338.365 | AJ25: 0 | AK25: 0 | AL25: 0 | AM25: 0 | AN25: 0 | AO25: 0 | AP25: 0 | AQ25: 0 | AR25: 0 | AS25: 14843024.98
A26: ND3 | B26: Non-Residential Two Rate 7d | D26: 170 | E26: 0 | F26: 9.7 | G26: 2.48 | H26: 0 | I26: 0 | J26: 0 | K26: 0 | L26: 0 | M26: 0 | N26: 0 | O26: 0 | P26: 0 | R26: 7234.583333 | S26: 0 | T26: 60985545.4 | U26: 23417400.61 | V26: 0 | W26: 0 | X26: 0 | Y26: 0 | Z26: 0 | AA26: 0 | AB26: 0 | AC26: 0 | AD26: 0 | AF26: 1229879.167 | AG26: 0 | AH26: 5915597.904 | AI26: 580751.535 | AJ26: 0 | AK26: 0 | AL26: 0 | AM26: 0 | AN26: 0 | AO26: 0 | AP26: 0 | AQ26: 0 | AR26: 0 | AS26: 7726228.605
A27: NDD | B27: Non-Residential Demand | D27: 170 | E27: 3.17 | F27: 0 | G27: 0 | H27: 0 | I27: 11.85 | J27: 3.95 | K27: 0 | L27: 0 | M27: 0 | N27: 0 | O27: 0 | P27: 0 | R27: 8 | S27: 172734.2142 | T27: 0 | U27: 0 | V27: 0 | W27: 401.0346667 | X27: 944.2736619 | Y27: 0 | Z27: 0 | AA27: 0 | AB27: 0 | AC27: 0 | AD27: 0 | AF27: 1360 | AG27: 5475.674591 | AH27: 0 | AI27: 0 | AJ27: 0 | AK27: 4752.2608 | AL27: 3729.880965 | AM27: 0 | AN27: 0 | AO27: 0 | AP27: 0 | AQ27: 0 | AR27: 0 | AS27: 15317.81636
A28: NDM | B28: Medium business Demand | D28: 1100 | E28: 0 | F28: 5.73 | G28: 3.64 | H28: 0 | I28: 6.66 | J28: 3.33 | K28: 0 | L28: 0 | M28: 0 | N28: 0 | O28: 0 | P28: 0 | R28: 8262 | S28: 0 | T28: 580007155.2 | U28: 499880481.1 | V28: 0 | W28: 1457250.07 | X28: 2625240.713 | Y28: 0 | Z28: 0 | AA28: 0 | AB28: 0 | AC28: 0 | AD28: 0 | AF28: 9088200 | AG28: 0 | AH28: 33234409.99 | AI28: 18195649.51 | AJ28: 0 | AK28: 9705285.465 | AL28: 8742051.573 | AM28: 0 | AN28: 0 | AO28: 0 | AP28: 0 | AQ28: 0 | AR28: 0 | AS28: 78965596.54
A29: NDMO | B29: Medium business Opt-out | D29: 1100 | E29: 0 | F29: 11.73 | G29: 3.79 | H29: 0 | I29: 0 | J29: 0 | K29: 0 | L29: 0 | M29: 0 | N29: 0 | O29: 0 | P29: 0 | R29: 37 | S29: 0 | T29: 1720096.265 | U29: 1300622.09 | V29: 0 | W29: 0 | X29: 0 | Y29: 0 | Z29: 0 | AA29: 0 | AB29: 0 | AC29: 0 | AD29: 0 | AF29: 40700 | AG29: 0 | AH29: 201767.2919 | AI29: 49293.57721 | AJ29: 0 | AK29: 0 | AL29: 0 | AM29: 0 | AN29: 0 | AO29: 0 | AP29: 0 | AQ29: 0 | AR29: 0 | AS29: 291760.8691
A30: PL2 | B30: Public Lighting | D30: 0 | E30: 0 | F30: 14.61 | G30: 4.4 | H30: 0 | I30: 0 | J30: 0 | K30: 0 | L30: 0 | M30: 0 | N30: 0 | O30: 0 | P30: 0 | R30: 8323.166667 | S30: 0 | T30: 19761917.54 | U30: 49460408.81 | V30: 0 | W30: 0 | X30: 0 | Y30: 0 | Z30: 0 | AA30: 0 | AB30: 0 | AC30: 0 | AD30: 0 | AF30: 0 | AG30: 0 | AH30: 2887216.152 | AI30: 2176257.988 | AJ30: 0 | AK30: 0 | AL30: 0 | AM30: 0 | AN30: 0 | AO30: 0 | AP30: 0 | AQ30: 0 | AR30: 0 | AS30: 5063474.14
A31: LLV | B31: Large low Voltage | D31: 8200 | E31: 0 | F31: 3.14 | G31: 1.54 | H31: 87.65 | I31: 0 | J31: 0 | K31: 0 | L31: 0 | M31: 0 | N31: 0 | O31: 0 | P31: 0 | R31: 2876.666667 | S31: 0 | T31: 1367068924 | U31: 1056980743 | V31: 827848.3567 | W31: 0 | X31: 0 | Y31: 0 | Z31: 0 | AA31: 0 | AB31: 0 | AC31: 0 | AD31: 0 | AF31: 23588666.67 | AG31: 0 | AH31: 42925964.21 | AI31: 16277503.44 | AJ31: 72560908.47 | AK31: 0 | AL31: 0 | AM31: 0 | AN31: 0 | AO31: 0 | AP31: 0 | AQ31: 0 | AR31: 0 | AS31: 155353042.8
A32: HV | B32: High Voltage | D32: 46700 | E32: 0 | F32: 1.62 | G32: 0.62 | H32: 58.12 | I32: 0 | J32: 0 | K32: 0 | L32: 0 | M32: 0 | N32: 0 | O32: 0 | P32: 0 | R32: 184.75 | S32: 0 | T32: 781036134.1 | U32: 701560259 | V32: 393019.5145 | W32: 0 | X32: 0 | Y32: 0 | Z32: 0 | AA32: 0 | AB32: 0 | AC32: 0 | AD32: 0 | AF32: 8627825 | AG32: 0 | AH32: 12652785.37 | AI32: 4349673.606 | AJ32: 22842294.18 | AK32: 0 | AL32: 0 | AM32: 0 | AN32: 0 | AO32: 0 | AP32: 0 | AQ32: 0 | AR32: 0 | AS32: 48472578.16
A33: HVD | B33: High Voltage Docklands | D33: 40400 | E33: 0 | F33: 1.39 | G33: 0.54 | H33: 51.04 | I33: 0 | J33: 0 | K33: 0 | L33: 0 | M33: 0 | N33: 0 | O33: 0 | P33: 0 | R33: 10 | S33: 0 | T33: 138103753.3 | U33: 143551501.7 | V33: 62633 | W33: 0 | X33: 0 | Y33: 0 | Z33: 0 | AA33: 0 | AB33: 0 | AC33: 0 | AD33: 0 | AF33: 404000 | AG33: 0 | AH33: 1919642.171 | AI33: 775178.1094 | AJ33: 3196788.32 | AK33: 0 | AL33: 0 | AM33: 0 | AN33: 0 | AO33: 0 | AP33: 0 | AQ33: 0 | AR33: 0 | AS33: 6295608.6
A34: ST | B34: Subtransmission | D34: 252500 | E34: 0 | F34: 0.51 | G34: 0.15 | H34: 4.76 | I34: 0 | J34: 0 | K34: 0 | L34: 0 | M34: 0 | N34: 0 | O34: 0 | P34: 0 | R34: 12 | S34: 0 | T34: 527176996.7 | U34: 513179936.1 | V34: 251150.3106 | W34: 0 | X34: 0 | Y34: 0 | Z34: 0 | AA34: 0 | AB34: 0 | AC34: 0 | AD34: 0 | AF34: 3030000 | AG34: 0 | AH34: 2688602.683 | AI34: 769769.9041 | AJ34: 1195475.478 | AK34: 0 | AL34: 0 | AM34: 0 | AN34: 0 | AO34: 0 | AP34: 0 | AQ34: 0 | AR34: 0 | AS34: 7683848.066
AF35: 0 | AG35: 0 | AH35: 0 | AI35: 0 | AJ35: 0 | AK35: 0 | AL35: 0 | AM35: 0 | AN35: 0 | AO35: 0 | AP35: 0 | AQ35: 0 | AR35: 0 | AS35: 0
AF36: 0 | AG36: 0 | AH36: 0 | AI36: 0 | AJ36: 0 | AK36: 0 | AL36: 0 | AM36: 0 | AN36: 0 | AO36: 0 | AP36: 0 | AQ36: 0 | AR36: 0 | AS36: 0
AF37: 0 | AG37: 0 | AH37: 0 | AI37: 0 | AJ37: 0 | AK37: 0 | AL37: 0 | AM37: 0 | AN37: 0 | AO37: 0 | AP37: 0 | AQ37: 0 | AR37: 0 | AS37: 0
AF38: 0 | AG38: 0 | AH38: 0 | AI38: 0 | AJ38: 0 | AK38: 0 | AL38: 0 | AM38: 0 | AN38: =L38/100*Z38 -> 0 | AO38: 0 | AP38: 0 | AQ38: 0 | AR38: 0 | AS38: 0
AF39: 0 | AG39: 0 | AH39: 0 | AI39: 0 | AJ39: 0 | AK39: 0 | AL39: 0 | AM39: 0 | AN39: 0 | AO39: 0 | AP39: 0 | AQ39: 0 | AR39: 0 | AS39: 0
AF40: 0 | AG40: 0 | AH40: 0 | AI40: 0 | AJ40: 0 | AK40: 0 | AL40: 0 | AM40: 0 | AN40: 0 | AO40: 0 | AP40: 0 | AQ40: 0 | AR40: 0 | AS40: 0
AF41: 0 | AG41: 0 | AH41: 0 | AI41: 0 | AJ41: 0 | AK41: 0 | AL41: 0 | AM41: 0 | AN41: 0 | AO41: 0 | AP41: 0 | AQ41: 0 | AR41: 0 | AS41: 0
AF42: 0 | AG42: 0 | AH42: 0 | AI42: 0 | AJ42: 0 | AK42: 0 | AL42: 0 | AM42: 0 | AN42: 0 | AO42: 0 | AP42: 0 | AQ42: 0 | AR42: 0 | AS42: 0
AF43: 0 | AG43: 0 | AH43: 0 | AI43: 0 | AJ43: 0 | AK43: 0 | AL43: 0 | AM43: 0 | AN43: 0 | AO43: 0 | AP43: 0 | AQ43: 0 | AR43: 0 | AS43: 0
AF44: 0 | AG44: 0 | AH44: 0 | AI44: 0 | AJ44: 0 | AK44: 0 | AL44: 0 | AM44: 0 | AN44: 0 | AO44: 0 | AP44: 0 | AQ44: 0 | AR44: 0 | AS44: 0
AF45: 0 | AG45: 0 | AH45: 0 | AI45: 0 | AJ45: 0 | AK45: 0 | AL45: 0 | AM45: 0 | AN45: 0 | AO45: 0 | AP45: 0 | AQ45: 0 | AR45: 0 | AS45: 0
AF46: 0 | AG46: 0 | AH46: 0 | AI46: 0 | AJ46: 0 | AK46: 0 | AL46: 0 | AM46: 0 | AN46: 0 | AO46: 0 | AP46: 0 | AQ46: 0 | AR46: 0 | AS46: 0
AF47: 0 | AG47: 0 | AH47: 0 | AI47: 0 | AJ47: 0 | AK47: 0 | AL47: 0 | AM47: 0 | AN47: 0 | AO47: 0 | AP47: 0 | AQ47: 0 | AR47: 0 | AS47: 0
AF48: 0 | AG48: 0 | AH48: 0 | AI48: 0 | AJ48: 0 | AK48: 0 | AL48: 0 | AM48: 0 | AN48: 0 | AO48: 0 | AP48: 0 | AQ48: 0 | AR48: 0 | AS48: 0
AF49: 0 | AG49: 0 | AH49: 0 | AI49: 0 | AJ49: 0 | AK49: 0 | AL49: 0 | AM49: 0 | AN49: 0 | AO49: 0 | AP49: 0 | AQ49: 0 | AR49: 0 | AS49: 0
AF50: 0 | AG50: 0 | AH50: 0 | AI50: 0 | AJ50: 0 | AK50: 0 | AL50: 0 | AM50: 0 | AN50: 0 | AO50: 0 | AP50: 0 | AQ50: 0 | AR50: 0 | AS50: 0
AF51: 0 | AG51: 0 | AH51: 0 | AI51: 0 | AJ51: 0 | AK51: 0 | AL51: 0 | AM51: 0 | AN51: 0 | AO51: 0 | AP51: 0 | AQ51: 0 | AR51: 0 | AS51: 0
AF52: 0 | AG52: 0 | AH52: 0 | AI52: 0 | AJ52: 0 | AK52: 0 | AL52: 0 | AM52: 0 | AN52: 0 | AO52: 0 | AP52: 0 | AQ52: 0 | AR52: 0 | AS52: 0
AF53: 0 | AG53: 0 | AH53: 0 | AI53: 0 | AJ53: 0 | AK53: 0 | AL53: 0 | AM53: 0 | AN53: 0 | AO53: 0 | AP53: 0 | AQ53: 0 | AR53: 0 | AS53: 0
AF54: 0 | AG54: 0 | AH54: 0 | AI54: 0 | AJ54: 0 | AK54: 0 | AL54: 0 | AM54: 0 | AN54: 0 | AO54: =M54/100*AA54 -> 0 | AP54: =N54/100*AB54 -> 0 | AQ54: =O54/100*AC54 -> 0 | AR54: =P54/100*AD54 -> 0 | AS54: 0
AF55: 0 | AG55: 0 | AH55: 0 | AI55: 0 | AJ55: 0 | AK55: 0 | AL55: 0 | AM55: 0 | AN55: 0 | AO55: 0 | AP55: 0 | AQ55: 0 | AR55: 0 | AS55: 0
AF56: 0 | AG56: 0 | AH56: 0 | AI56: 0 | AJ56: 0 | AK56: 0 | AL56: 0 | AM56: 0 | AN56: 0 | AO56: 0 | AP56: 0 | AQ56: 0 | AR56: 0 | AS56: 0
AF57: 0 | AG57: 0 | AH57: 0 | AI57: 0 | AJ57: 0 | AK57: 0 | AL57: 0 | AM57: 0 | AN57: 0 | AO57: 0 | AP57: 0 | AQ57: 0 | AR57: 0 | AS57: 0
AF58: 0 | AG58: 0 | AH58: 0 | AI58: 0 | AJ58: 0 | AK58: 0 | AL58: 0 | AM58: 0 | AN58: 0 | AO58: 0 | AP58: 0 | AQ58: 0 | AR58: 0 | AS58: 0
AF59: 0 | AG59: 0 | AH59: 0 | AI59: 0 | AJ59: 0 | AK59: 0 | AL59: 0 | AM59: 0 | AN59: 0 | AO59: 0 | AP59: 0 | AQ59: 0 | AR59: 0 | AS59: 0
AF60: 0 | AG60: 0 | AH60: 0 | AI60: 0 | AJ60: 0 | AK60: 0 | AL60: 0 | AM60: 0 | AN60: 0 | AO60: 0 | AP60: 0 | AQ60: 0 | AR60: 0 | AS60: 0
AF61: 0 | AG61: 0 | AH61: 0 | AI61: 0 | AJ61: 0 | AK61: 0 | AL61: 0 | AM61: 0 | AN61: 0 | AO61: 0 | AP61: 0 | AQ61: 0 | AR61: 0 | AS61: 0
AF62: 0 | AG62: 0 | AH62: 0 | AI62: 0 | AJ62: 0 | AK62: 0 | AL62: 0 | AM62: 0 | AN62: 0 | AO62: 0 | AP62: 0 | AQ62: 0 | AR62: 0 | AS62: 0
AF63: 0 | AG63: 0 | AH63: 0 | AI63: 0 | AJ63: 0 | AK63: 0 | AL63: 0 | AM63: 0 | AN63: 0 | AO63: 0 | AP63: 0 | AQ63: 0 | AR63: 0 | AS63: 0
AF64: 0 | AG64: 0 | AH64: 0 | AI64: 0 | AJ64: 0 | AK64: 0 | AL64: 0 | AM64: 0 | AN64: 0 | AO64: 0 | AP64: 0 | AQ64: 0 | AR64: 0 | AS64: 0
AF65: 0 | AG65: 0 | AH65: 0 | AI65: 0 | AJ65: 0 | AK65: 0 | AL65: 0 | AM65: 0 | AN65: 0 | AO65: 0 | AP65: 0 | AQ65: 0 | AR65: 0 | AS65: 0
R66: =SUM(R6:R65) -> 1060736.833 | S66: 2611833048 | T66: 4209290855 | U66: 4073446791 | V66: 1534651.182 | W66: 1458676.44 | X66: 2628749.26 | Y66: 1342992.957 | Z66: 1827258.698 | AA66: =SUM(AA6:AA65) -> 1785519.586 | AB66: 4125562.433 | AC66: 5983666.126 | AD66: 5616374.753 | AF66: 154190754.2 | AG66: 141828746.1 | AH66: 175546327.1 | AI66: 64530133.52 | AJ66: 99795466.45 | AK66: 9711917.996 | AL66: 8749856.207 | AM66: =SUM(AM6:AM65) -> 135000.9604 | AN66: 97061.26048 | AO66: 40317.92491 | AP66: 408353.174 | AQ66: 320001.7009 | AR66: 125689.5239 | AS66: 655479626

Sheet Prop2020TransTar
B1: ="Tariff Approval - "&'Model update'!C3 -> Tariff Approval - Powercor | D1: ="Prop"&'Model update'!$C$5&"TransTar" -> Prop2020TransTar
B3: ="PROPOSED "&'Model update'!$C$5&" TRANSMISSION TARIFFS" -> PROPOSED 2020 TRANSMISSION TARIFFS
D4: ="Proposed Transmission Tariffs (Pt) for "&'Model update'!$C$5 -> Proposed Transmission Tariffs (Pt) for 2020 | R4: ="Forecast Quantities (Qt) for "&'Model update'!$C$5 -> Forecast Quantities (Qt) for 2020 | AF4: ="Forecast Revenue (Pt "&'Model update'!$C$5&")*(Qt " &'Model update'!$C$5&")" -> Forecast Revenue (Pt 2020)*(Qt 2020)
B5: Proposed tariff | D5: =Prop2020DistTar!D5 -> PropTar Fixed | E5: =Prop2020DistTar!E5 -> PropTar Anytime | F5: =Prop2020DistTar!F5 -> PropTar PkBlk | G5: =Prop2020DistTar!G5 -> PropTar OPkBlk1 | H5: =Prop2020DistTar!H5 -> PropTar Dem kVA | I5: =Prop2020DistTar!I5 -> PropTar Dem kW Sum | J5: =Prop2020DistTar!J5 -> PropTar Dem kW Win | K5: =Prop2020DistTar!K5 -> PropTar SumBlk1 | L5: =Prop2020DistTar!L5 -> PropTar SumBlk2 | M5: =Prop2020DistTar!M5 -> PropTar SumBlk3 | N5: =Prop2020DistTar!N5 -> PropTar WtrBlk1 | O5: =Prop2020DistTar!O5 -> PropTar WtrBlk2 | P5: =Prop2020DistTar!P5 -> PropTar WtrBlk3 | R5: =Prop2020DistTar!AF5 -> FcastVol Fixed | S5: =Prop2020DistTar!AG5 -> FcastVol Anytime | T5: =Prop2020DistTar!AH5 -> FcastVol Pk | U5: =Prop2020DistTar!AI5 -> FcastVol Opk | V5: =Prop2020DistTar!AJ5 -> FcastVol Dem kVA | W5: =Prop2020DistTar!AK5 -> FcastVol Dem kW Sum | X5: =Prop2020DistTar!AL5 -> FcastVol Dem kW Win | Y5: =Prop2020DistTar!AM5 -> FcastVol SumBlk1 | Z5: =Prop2020DistTar!AN5 -> FcastVol SumBlk2 | AA5: =Prop2020DistTar!AO5 -> FcastVol SumBlk3 | AB5: =Prop2020DistTar!AP5 -> FcastVol WtrBlk1 | AC5: =Prop2020DistTar!AQ5 -> FcastVol WtrBlk2 | AD5: =Prop2020DistTar!AR5 -> FcastVol WtrBlk3 | AF5: =Prop2020DistTar!AT5 -> PropRev Fixed | AG5: =Prop2020DistTar!AU5 -> PropRev Anytime | AH5: =Prop2020DistTar!AV5 -> PropRev Pk | AI5: =Prop2020DistTar!AW5 -> PropRev Opk | AJ5: =Prop2020DistTar!AX5 -> PropRev Dem kVA | AK5: =Prop2020DistTar!AY5 -> PropRev Dem kW Sum | AL5: =Prop2020DistTar!AZ5 -> PropRev Dem kW Win | AM5: =Prop2020DistTar!BA5 -> PropRev SumBlk1 | AN5: =Prop2020DistTar!BB5 -> PropRev SumBlk2 | AO5: =Prop2020DistTar!BC5 -> PropRev SumBlk3 | AP5: =Prop2020DistTar!BD5 -> PropRev WtrBlk1 | AQ5: =Prop2020DistTar!BE5 -> PropRev WtrBlk2 | AR5: =Prop2020DistTar!BF5 -> PropRev WtrBlk3 | AS5: PropRev Total
B6: =Prop2020DistTar!B6 -> Residential Single Rate | D6: 0 | E6: 1.97 | F6: 0 | G6: 0 | H6: 0 | I6: 0 | J6: 0 | K6: 0 | L6: 0 | M6: 0 | N6: 0 | O6: 0 | P6: 0 | R6: =Prop2020DistTar!AF6 -> 572443.2566 | S6: =Prop2020DistTar!AG6 -> 2509366847 | T6: =Prop2020DistTar!AH6 -> 0 | U6: =Prop2020DistTar!AI6 -> 0 | V6: =Prop2020DistTar!AJ6 -> 0 | W6: =Prop2020DistTar!AK6 -> 0 | X6: =Prop2020DistTar!AL6 -> 0 | Y6: =Prop2020DistTar!AM6 -> 0 | Z6: =Prop2020DistTar!AN6 -> 0 | AA6: =Prop2020DistTar!AO6 -> 0 | AB6: =Prop2020DistTar!AP6 -> 0 | AC6: =Prop2020DistTar!AQ6 -> 0 | AD6: =Prop2020DistTar!AR6 -> 0 | AF6: =D6*R6 -> 0 | AG6: =E6/100*S6 -> 49434526.89 | AH6: 0 | AI6: 0 | AJ6: =H6*V6 -> 0 | AK6: =I6*W6 -> 0 | AL6: 0 | AM6: 0 | AN6: 0 | AO6: =M6/100*AA6 -> 0 | AP6: =N6/100*AB6 -> 0 | AQ6: =O6/100*AC6 -> 0 | AR6: =P6/100*AD6 -> 0 | AS6: =SUM(AF6:AR6) -> 49434526.89
B7: =Prop2020DistTar!B7 -> Climate Saver | D7: 0 | E7: 0 | F7: 2.8 | G7: 0.55 | H7: 0 | I7: 0 | J7: 0 | K7: 0 | L7: 0 | M7: 0 | N7: 0 | O7: 0 | P7: 0 | R7: =Prop2020DistTar!AF7 -> 16861.04795 | S7: =Prop2020DistTar!AG7 -> 0 | T7: =Prop2020DistTar!AH7 -> 9874474.429 | U7: =Prop2020DistTar!AI7 -> 17935586.28 | V7: =Prop2020DistTar!AJ7 -> 0 | W7: =Prop2020DistTar!AK7 -> 0 | X7: =Prop2020DistTar!AL7 -> 0 | Y7: =Prop2020DistTar!AM7 -> 0 | Z7: =Prop2020DistTar!AN7 -> 0 | AA7: =Prop2020DistTar!AO7 -> 0 | AB7: =Prop2020DistTar!AP7 -> 0 | AC7: =Prop2020DistTar!AQ7 -> 0 | AD7: =Prop2020DistTar!AR7 -> 0 | AF7: =D7*R7 -> 0 | AG7: =E7/100*S7 -> 0 | AH7: =F7/100*T7 -> 276485.284 | AI7: =G7/100*U7 -> 98645.72455 | AJ7: =H7*V7 -> 0 | AK7: =I7*W7 -> 0 | AL7: =J7*X7 -> 0 | AM7: =K7/100*Y7 -> 0 | AN7: =L7/100*Z7 -> 0 | AO7: =M7/100*AA7 -> 0 | AP7: =N7/100*AB7 -> 0 | AQ7: =O7/100*AC7 -> 0 | AR7: =P7/100*AD7 -> 0 | AS7: =SUM(AF7:AR7) -> 375131.0086
B8: =Prop2020DistTar!B8 -> Climate Saver Interval | D8: 0 | E8: 0 | F8: 2.8 | G8: 0.55 | H8: 0 | I8: 0 | J8: 0 | K8: 0 | L8: 0 | M8: 0 | N8: 0 | O8: 0 | P8: 0 | R8: =Prop2020DistTar!AF8 -> 4615 | S8: =Prop2020DistTar!AG8 -> 0 | T8: =Prop2020DistTar!AH8 -> 2865633.918 | U8: =Prop2020DistTar!AI8 -> 5776403.999 | V8: =Prop2020DistTar!AJ8 -> 0 | W8: =Prop2020DistTar!AK8 -> 0 | X8: =Prop2020DistTar!AL8 -> 0 | Y8: =Prop2020DistTar!AM8 -> 0 | Z8: =Prop2020DistTar!AN8 -> 0 | AA8: =Prop2020DistTar!AO8 -> 0 | AB8: =Prop2020DistTar!AP8 -> 0 | AC8: =Prop2020DistTar!AQ8 -> 0 | AD8: =Prop2020DistTar!AR8 -> 0 | AF8: 0 | AG8: 0 | AH8: 80237.74971 | AI8: 31770.22199 | AJ8: 0 | AK8: 0 | AL8: 0 | AM8: 0 | AN8: 0 | AO8: 0 | AP8: 0 | AQ8: 0 | AR8: 0 | AS8: 112007.9717
B9: =Prop2020DistTar!B9 -> Residential - Flexible Pricing | D9: 0 | E9: 0 | F9: 0 | G9: 0 | H9: 0 | I9: 0 | J9: 0 | K9: 3.63 | L9: 2.05 | M9: 0.79 | N9: 3.63 | O9: 2.05 | P9: 0.79 | R9: =Prop2020DistTar!AF9 -> 3091.114945 | S9: =Prop2020DistTar!AG9 -> 0 | T9: =Prop2020DistTar!AH9 -> 0 | U9: =Prop2020DistTar!AI9 -> 0 | V9: =Prop2020DistTar!AJ9 -> 0 | W9: =Prop2020DistTar!AK9 -> 0 | X9: =Prop2020DistTar!AL9 -> 0 | Y9: =Prop2020DistTar!AM9 -> 780281.0199 | Z9: =Prop2020DistTar!AN9 -> 1512255.045 | AA9: =Prop2020DistTar!AO9 -> 1229126.074 | AB9: =Prop2020DistTar!AP9 -> 2857752.309 | AC9: =Prop2020DistTar!AQ9 -> 5538581.917 | AD9: =Prop2020DistTar!AR9 -> 4501631.832 | AF9: 0 | AG9: 0 | AH9: 0 | AI9: 0 | AJ9: 0 | AK9: 0 | AL9: 0 | AM9: 28324.20102 | AN9: 31001.22842 | AO9: 9710.095986 | AP9: 103736.4088 | AQ9: 113540.9293 | AR9: 35562.89147 | AS9: 321875.755
B10: =Prop2020DistTar!B10 -> Residential Docklands - Flexible Pricing | D10: 0 | E10: 0 | F10: 0 | G10: 0 | H10: 0 | I10: 0 | J10: 0 | K10: 3.63 | L10: 2.05 | M10: 0.79 | N10: 3.63 | O10: 2.05 | P10: 0.79 | R10: =Prop2020DistTar!AF10 -> 0.8982790797 | S10: =Prop2020DistTar!AG10 -> 0 | T10: =Prop2020DistTar!AH10 -> 0 | U10: =Prop2020DistTar!AI10 -> 0 | V10: =Prop2020DistTar!AJ10 -> 0 | W10: =Prop2020DistTar!AK10 -> 0 | X10: =Prop2020DistTar!AL10 -> 0 | Y10: =Prop2020DistTar!AM10 -> 301.2634427 | Z10: =Prop2020DistTar!AN10 -> 577.0353633 | AA10: =Prop2020DistTar!AO10 -> 387.0076533 | AB10: =Prop2020DistTar!AP10 -> 1038.66086 | AC10: =Prop2020DistTar!AQ10 -> 1989.435033 | AD10: =Prop2020DistTar!AR10 -> 1334.279721 | AF10: 0 | AG10: 0 | AH10: 0 | AI10: 0 | AJ10: 0 | AK10: 0 | AL10: 0 | AM10: 10.93586297 | AN10: 11.82922495 | AO10: 3.057360461 | AP10: 37.70338923 | AQ10: 40.78341817 | AR10: 10.54080979 | AS10: 114.8500656
B11: =Prop2020DistTar!B11 -> Climate Saver - Flexible Pricing | D11: 0 | E11: 0 | F11: 0 | G11: 0 | H11: 0 | I11: 0 | J11: 0 | K11: 2.8 | L11: 0 | M11: 0 | N11: 0.55 | O11: 0 | P11: 0 | R11: =Prop2020DistTar!AF11 -> 59 | S11: =Prop2020DistTar!AG11 -> 0 | T11: =Prop2020DistTar!AH11 -> 0 | U11: =Prop2020DistTar!AI11 -> 0 | V11: =Prop2020DistTar!AJ11 -> 0 | W11: =Prop2020DistTar!AK11 -> 0 | X11: =Prop2020DistTar!AL11 -> 0 | Y11: =Prop2020DistTar!AM11 -> 30654.86318 | Z11: =Prop2020DistTar!AN11 -> 0 | AA11: =Prop2020DistTar!AO11 -> 0 | AB11: =Prop2020DistTar!AP11 -> 8569.35181 | AC11: =Prop2020DistTar!AQ11 -> 0 | AD11: =Prop2020DistTar!AR11 -> 60941.97198 | AF11: 0 | AG11: 0 | AH11: 0 | AI11: 0 | AJ11: 0 | AK11: 0 | AL11: 0 | AM11: 858.3361691 | AN11: 0 | AO11: 0 | AP11: 47.13143496 | AQ11: 0 | AR11: 0 | AS11: 905.4676041
B12: =Prop2020DistTar!B12 -> Docklands single rate | D12: 0 | E12: 1.97 | F12: 0 | G12: 0 | H12: 0 | I12: 0 | J12: 0 | K12: 0 | L12: 0 | M12: 0 | N12: 0 | O12: 0 | P12: 0 | R12: =Prop2020DistTar!AF12 -> 2.535344821 | S12: =Prop2020DistTar!AG12 -> 47230.70418 | T12: =Prop2020DistTar!AH12 -> 0 | U12: =Prop2020DistTar!AI12 -> 0 | V12: =Prop2020DistTar!AJ12 -> 0 | W12: =Prop2020DistTar!AK12 -> 0 | X12: =Prop2020DistTar!AL12 -> 0 | Y12: =Prop2020DistTar!AM12 -> 0 | Z12: =Prop2020DistTar!AN12 -> 0 | AA12: =Prop2020DistTar!AO12 -> 0 | AB12: =Prop2020DistTar!AP12 -> 0 | AC12: =Prop2020DistTar!AQ12 -> 0 | AD12: =Prop2020DistTar!AR12 -> 0 | AF12: 0 | AG12: 930.4448722 | AH12: 0 | AI12: 0 | AJ12: 0 | AK12: 0 | AL12: 0 | AM12: 0 | AN12: 0 | AO12: 0 | AP12: 0 | AQ12: 0 | AR12: 0 | AS12: 930.4448722
B13: =Prop2020DistTar!B13 -> Residential Two Rate 5d | D13: 0 | E13: 0 | F13: 3.47 | G13: 0.79 | H13: 0 | I13: 0 | J13: 0 | K13: 0 | L13: 0 | M13: 0 | N13: 0 | O13: 0 | P13: 0 | R13: =Prop2020DistTar!AF13 -> 45021.61273 | S13: =Prop2020DistTar!AG13 -> 0 | T13: =Prop2020DistTar!AH13 -> 124072246.5 | U13: =Prop2020DistTar!AI13 -> 114355033.8 | V13: =Prop2020DistTar!AJ13 -> 0 | W13: =Prop2020DistTar!AK13 -> 0 | X13: =Prop2020DistTar!AL13 -> 0 | Y13: =Prop2020DistTar!AM13 -> 0 | Z13: =Prop2020DistTar!AN13 -> 0 | AA13: =Prop2020DistTar!AO13 -> 0 | AB13: =Prop2020DistTar!AP13 -> 0 | AC13: =Prop2020DistTar!AQ13 -> 0 | AD13: =Prop2020DistTar!AR13 -> 0 | AF13: 0 | AG13: 0 | AH13: 4305306.955 | AI13: 903404.7667 | AJ13: 0 | AK13: 0 | AL13: 0 | AM13: 0 | AN13: 0 | AO13: 0 | AP13: 0 | AQ13: 0 | AR13: 0 | AS13: 5208711.722
B14: =Prop2020DistTar!B14 -> Docklands Two Rate 5d | D14: 0 | E14: 0 | F14: 3.47 | G14: 0.73 | H14: 0 | I14: 0 | J14: 0 | K14: 0 | L14: 0 | M14: 0 | N14: 0 | O14: 0 | P14: 0 | R14: =Prop2020DistTar!AF14 -> 569.6349375 | S14: =Prop2020DistTar!AG14 -> 0 | T14: =Prop2020DistTar!AH14 -> 1813572.865 | U14: =Prop2020DistTar!AI14 -> 1689527.497 | V14: =Prop2020DistTar!AJ14 -> 0 | W14: =Prop2020DistTar!AK14 -> 0 | X14: =Prop2020DistTar!AL14 -> 0 | Y14: =Prop2020DistTar!AM14 -> 0 | Z14: =Prop2020DistTar!AN14 -> 0 | AA14: =Prop2020DistTar!AO14 -> 0 | AB14: =Prop2020DistTar!AP14 -> 0 | AC14: =Prop2020DistTar!AQ14 -> 0 | AD14: =Prop2020DistTar!AR14 -> 0 | AF14: 0 | AG14: 0 | AH14: 62930.97843 | AI14: 12333.55073 | AJ14: 0 | AK14: 0 | AL14: 0 | AM14: 0 | AN14: 0 | AO14: 0 | AP14: 0 | AQ14: 0 | AR14: 0 | AS14: 75264.52916
B15: =Prop2020DistTar!B15 -> Residential Interval | D15: 0 | E15: 0 | F15: 3.47 | G15: 0.79 | H15: 0 | I15: 0 | J15: 0 | K15: 0 | L15: 0 | M15: 0 | N15: 0 | O15: 0 | P15: 0 | R15: =Prop2020DistTar!AF15 -> 107903.7555 | S15: =Prop2020DistTar!AG15 -> 0 | T15: =Prop2020DistTar!AH15 -> 228035493.7 | U15: =Prop2020DistTar!AI15 -> 239648531 | V15: =Prop2020DistTar!AJ15 -> 0 | W15: =Prop2020DistTar!AK15 -> 0 | X15: =Prop2020DistTar!AL15 -> 0 | Y15: =Prop2020DistTar!AM15 -> 0 | Z15: =Prop2020DistTar!AN15 -> 0 | AA15: =Prop2020DistTar!AO15 -> 0 | AB15: =Prop2020DistTar!AP15 -> 0 | AC15: =Prop2020DistTar!AQ15 -> 0 | AD15: =Prop2020DistTar!AR15 -> 0 | AF15: 0 | AG15: 0 | AH15: 7912831.633 | AI15: 1893223.395 | AJ15: 0 | AK15: 0 | AL15: 0 | AM15: 0 | AN15: 0 | AO15: 0 | AP15: 0 | AQ15: 0 | AR15: 0 | AS15: 9806055.027
B16: =Prop2020DistTar!B16 -> Residential Two Rate 5d - controlled load | D16: 0 | E16: 0 | F16: 0 | G16: 0 | H16: 0 | I16: 0 | J16: 0 | K16: 0 | L16: 0 | M16: 0 | N16: 0 | O16: 0 | P16: 0 | R16: =Prop2020DistTar!AF16 -> 0 | S16: =Prop2020DistTar!AG16 -> 0 | T16: =Prop2020DistTar!AH16 -> 0 | U16: =Prop2020DistTar!AI16 -> 0 | V16: =Prop2020DistTar!AJ16 -> 0 | W16: =Prop2020DistTar!AK16 -> 0 | X16: =Prop2020DistTar!AL16 -> 0 | Y16: =Prop2020DistTar!AM16 -> 0 | Z16: =Prop2020DistTar!AN16 -> 0 | AA16: =Prop2020DistTar!AO16 -> 0 | AB16: =Prop2020DistTar!AP16 -> 0 | AC16: =Prop2020DistTar!AQ16 -> 0 | AD16: =Prop2020DistTar!AR16 -> 0 | AF16: 0 | AG16: 0 | AH16: 0 | AI16: 0 | AJ16: 0 | AK16: 0 | AL16: 0 | AM16: 0 | AN16: 0 | AO16: 0 | AP16: 0 | AQ16: 0 | AR16: 0 | AS16: 0
B17: =Prop2020DistTar!B17 -> Docklands Two Rate 5d - controlled load | D17: 0 | E17: 0 | F17: 0 | G17: 0 | H17: 0 | I17: 0 | J17: 0 | K17: 0 | L17: 0 | M17: 0 | N17: 0 | O17: 0 | P17: 0 | R17: =Prop2020DistTar!AF17 -> 0 | S17: =Prop2020DistTar!AG17 -> 0 | T17: =Prop2020DistTar!AH17 -> 0 | U17: =Prop2020DistTar!AI17 -> 0 | V17: =Prop2020DistTar!AJ17 -> 0 | W17: =Prop2020DistTar!AK17 -> 0 | X17: =Prop2020DistTar!AL17 -> 0 | Y17: =Prop2020DistTar!AM17 -> 0 | Z17: =Prop2020DistTar!AN17 -> 0 | AA17: =Prop2020DistTar!AO17 -> 0 | AB17: =Prop2020DistTar!AP17 -> 0 | AC17: =Prop2020DistTar!AQ17 -> 0 | AD17: =Prop2020DistTar!AR17 -> 0 | AF17: 0 | AG17: 0 | AH17: 0 | AI17: 0 | AJ17: 0 | AK17: 0 | AL17: 0 | AM17: 0 | AN17: 0 | AO17: 0 | AP17: 0 | AQ17: 0 | AR17: 0 | AS17: 0
B18: =Prop2020DistTar!B18 -> Dedicated circuit | D18: 0 | E18: 0 | F18: 0 | G18: 0.55 | H18: 0 | I18: 0 | J18: 0 | K18: 0 | L18: 0 | M18: 0 | N18: 0 | O18: 0 | P18: 0 | R18: =Prop2020DistTar!AF18 -> 204923.6273 | S18: =Prop2020DistTar!AG18 -> 0 | T18: =Prop2020DistTar!AH18 -> 0 | U18: =Prop2020DistTar!AI18 -> 377403994 | V18: =Prop2020DistTar!AJ18 -> 0 | W18: =Prop2020DistTar!AK18 -> 0 | X18: =Prop2020DistTar!AL18 -> 0 | Y18: =Prop2020DistTar!AM18 -> 0 | Z18: =Prop2020DistTar!AN18 -> 0 | AA18: =Prop2020DistTar!AO18 -> 0 | AB18: =Prop2020DistTar!AP18 -> 0 | AC18: =Prop2020DistTar!AQ18 -> 0 | AD18: =Prop2020DistTar!AR18 -> 0 | AF18: 0 | AG18: 0 | AH18: 0 | AI18: 2075721.967 | AJ18: 0 | AK18: 0 | AL18: 0 | AM18: 0 | AN18: 0 | AO18: 0 | AP18: 0 | AQ18: 0 | AR18: 0 | AS18: 2075721.967
B19: =Prop2020DistTar!B19 -> Hot Water Interval | D19: 0 | E19: 0 | F19: 0 | G19: 0 | H19: 0 | I19: 0 | J19: 0 | K19: 0 | L19: 0 | M19: 0 | N19: 0 | O19: 0 | P19: 0 | R19: =Prop2020DistTar!AF19 -> 0 | S19: =Prop2020DistTar!AG19 -> 0 | T19: =Prop2020DistTar!AH19 -> 0 | U19: =Prop2020DistTar!AI19 -> 0 | V19: =Prop2020DistTar!AJ19 -> 0 | W19: =Prop2020DistTar!AK19 -> 0 | X19: =Prop2020DistTar!AL19 -> 0 | Y19: =Prop2020DistTar!AM19 -> 0 | Z19: =Prop2020DistTar!AN19 -> 0 | AA19: =Prop2020DistTar!AO19 -> 0 | AB19: =Prop2020DistTar!AP19 -> 0 | AC19: =Prop2020DistTar!AQ19 -> 0 | AD19: =Prop2020DistTar!AR19 -> 0 | AF19: 0 | AG19: 0 | AH19: 0 | AI19: 0 | AJ19: 0 | AK19: 0 | AL19: 0 | AM19: 0 | AN19: 0 | AO19: 0 | AP19: 0 | AQ19: 0 | AR19: 0 | AS19: 0
B20: =Prop2020DistTar!B20 -> Residential Demand | D20: 0 | E20: 0.86 | F20: 0 | G20: 0 | H20: 0 | I20: 2.9 | J20: 0.97 | K20: 0 | L20: 0 | M20: 0 | N20: 0 | O20: 0 | P20: 0 | R20: =Prop2020DistTar!AF20 -> 4.638457997 | S20: =Prop2020DistTar!AG20 -> 17808.24168 | T20: =Prop2020DistTar!AH20 -> 0 | U20: =Prop2020DistTar!AI20 -> 0 | V20: =Prop2020DistTar!AJ20 -> 0 | W20: =Prop2020DistTar!AK20 -> 53.31988566 | X20: =Prop2020DistTar!AL20 -> 107.3570863 | Y20: =Prop2020DistTar!AM20 -> 0 | Z20: =Prop2020DistTar!AN20 -> 0 | AA20: =Prop2020DistTar!AO20 -> 0 | AB20: =Prop2020DistTar!AP20 -> 0 | AC20: =Prop2020DistTar!AQ20 -> 0 | AD20: =Prop2020DistTar!AR20 -> 0 | AF20: 0 | AG20: 153.1508785 | AH20: 0 | AI20: 0 | AJ20: 0 | AK20: 154.6276684 | AL20: 104.1363737 | AM20: 0 | AN20: 0 | AO20: 0 | AP20: 0 | AQ20: 0 | AR20: 0 | AS20: 411.9149206
B21: =Prop2020DistTar!B21 -> Newstead Residential Trial | D21: 0 | E21: 0 | F21: 0 | G21: 0 | H21: 0 | I21: 0.58 | J21: 0.58 | K21: 0 | L21: 0 | M21: 0 | N21: 0 | O21: 0 | P21: 0 | R21: =Prop2020DistTar!AF21 -> 9.767123288 | S21: =Prop2020DistTar!AG21 -> 42793.42516 | T21: =Prop2020DistTar!AH21 -> 0 | U21: =Prop2020DistTar!AI21 -> 0 | V21: =Prop2020DistTar!AJ21 -> 0 | W21: =Prop2020DistTar!AK21 -> 114.1 | X21: =Prop2020DistTar!AL21 -> 232.3 | Y21: =Prop2020DistTar!AM21 -> 0 | Z21: =Prop2020DistTar!AN21 -> 0 | AA21: =Prop2020DistTar!AO21 -> 0 | AB21: =Prop2020DistTar!AP21 -> 0 | AC21: =Prop2020DistTar!AQ21 -> 0 | AD21: =Prop2020DistTar!AR21 -> 0 | AF21: 0 | AG21: 0 | AH21: 0 | AI21: 0 | AJ21: 0 | AK21: 66.178 | AL21: 134.734 | AM21: 0 | AN21: 0 | AO21: 0 | AP21: 0 | AQ21: 0 | AR21: 0 | AS21: 200.912
B22: =Prop2020DistTar!B22 -> Non-Residential Single Rate | D22: 0 | E22: 1.16 | F22: 0 | G22: 0 | H22: 0 | I22: 0 | J22: 0 | K22: 0 | L22: 0 | M22: 0 | N22: 0 | O22: 0 | P22: 0 | R22: =Prop2020DistTar!AF22 -> 44757.25741 | S22: =Prop2020DistTar!AG22 -> 285894018.3 | T22: =Prop2020DistTar!AH22 -> 0 | U22: =Prop2020DistTar!AI22 -> 0 | V22: =Prop2020DistTar!AJ22 -> 0 | W22: =Prop2020DistTar!AK22 -> 0 | X22: =Prop2020DistTar!AL22 -> 0 | Y22: =Prop2020DistTar!AM22 -> 0 | Z22: =Prop2020DistTar!AN22 -> 0 | AA22: =Prop2020DistTar!AO22 -> 0 | AB22: =Prop2020DistTar!AP22 -> 0 | AC22: =Prop2020DistTar!AQ22 -> 0 | AD22: =Prop2020DistTar!AR22 -> 0 | AF22: 0 | AG22: 3316370.612 | AH22: 0 | AI22: 0 | AJ22: 0 | AK22: 0 | AL22: 0 | AM22: 0 | AN22: 0 | AO22: 0 | AP22: 0 | AQ22: 0 | AR22: 0 | AS22: 3316370.612
B23: =Prop2020DistTar!B23 -> Non-Residential Flexible Pricing | D23: 0 | E23: 0 | F23: 0 | G23: 0 | H23: 0 | I23: 0 | J23: 0 | K23: 1.89 | L23: 0.59 | M23: 0.45 | N23: 1.89 | O23: 0.59 | P23: 0.45 | R23: =Prop2020DistTar!AF23 -> 185.3732239 | S23: =Prop2020DistTar!AG23 -> 0 | T23: =Prop2020DistTar!AH23 -> 0 | U23: =Prop2020DistTar!AI23 -> 0 | V23: =Prop2020DistTar!AJ23 -> 0 | W23: =Prop2020DistTar!AK23 -> 0 | X23: =Prop2020DistTar!AL23 -> 0 | Y23: =Prop2020DistTar!AM23 -> 389065.4574 | Z23: =Prop2020DistTar!AN23 -> 144770.8667 | AA23: =Prop2020DistTar!AO23 -> 415832.5339 | AB23: =Prop2020DistTar!AP23 -> 1116363.747 | AC23: =Prop2020DistTar!AQ23 -> 415397.8316 | AD23: =Prop2020DistTar!AR23 -> 1193167.774 | AF23: 0 | AG23: 0 | AH23: 0 | AI23: 0 | AJ23: 0 | AK23: 0 | AL23: 0 | AM23: 7353.337144 | AN23: 854.1481138 | AO23: 1871.246403 | AP23: 21099.27483 | AQ23: 2450.847206 | AR23: 5369.254985 | AS23: 38998.10868
B24: =Prop2020DistTar!B24 -> Non-Residential Two Rate 5d | D24: 0 | E24: 0 | F24: 1.92 | G24: 0.43 | H24: 0 | I24: 0 | J24: 0 | K24: 0 | L24: 0 | M24: 0 | N24: 0 | O24: 0 | P24: 0 | R24: =Prop2020DistTar!AF24 -> 23862.43162 | S24: =Prop2020DistTar!AG24 -> 0 | T24: =Prop2020DistTar!AH24 -> 193485923.8 | U24: =Prop2020DistTar!AI24 -> 171713473.8 | V24: =Prop2020DistTar!AJ24 -> 0 | W24: =Prop2020DistTar!AK24 -> 0 | X24: =Prop2020DistTar!AL24 -> 0 | Y24: =Prop2020DistTar!AM24 -> 0 | Z24: =Prop2020DistTar!AN24 -> 0 | AA24: =Prop2020DistTar!AO24 -> 0 | AB24: =Prop2020DistTar!AP24 -> 0 | AC24: =Prop2020DistTar!AQ24 -> 0 | AD24: =Prop2020DistTar!AR24 -> 0 | AF24: 0 | AG24: 0 | AH24: 3714929.738 | AI24: 738367.9375 | AJ24: 0 | AK24: 0 | AL24: 0 | AM24: 0 | AN24: 0 | AO24: 0 | AP24: 0 | AQ24: 0 | AR24: 0 | AS24: 4453297.675
B25: =Prop2020DistTar!B25 -> Non-Residential Interval | D25: 0 | E25: 0 | F25: 1.92 | G25: 0.43 | H25: 0 | I25: 0 | J25: 0 | K25: 0 | L25: 0 | M25: 0 | N25: 0 | O25: 0 | P25: 0 | R25: =Prop2020DistTar!AF25 -> 12072.36866 | S25: =Prop2020DistTar!AG25 -> 0 | T25: =Prop2020DistTar!AH25 -> 85635596.92 | U25: =Prop2020DistTar!AI25 -> 62438419.24 | V25: =Prop2020DistTar!AJ25 -> 0 | W25: =Prop2020DistTar!AK25 -> 0 | X25: =Prop2020DistTar!AL25 -> 0 | Y25: =Prop2020DistTar!AM25 -> 0 | Z25: =Prop2020DistTar!AN25 -> 0 | AA25: =Prop2020DistTar!AO25 -> 0 | AB25: =Prop2020DistTar!AP25 -> 0 | AC25: =Prop2020DistTar!AQ25 -> 0 | AD25: =Prop2020DistTar!AR25 -> 0 | AF25: 0 | AG25: 0 | AH25: 1644203.461 | AI25: 268485.2027 | AJ25: 0 | AK25: 0 | AL25: 0 | AM25: 0 | AN25: 0 | AO25: 0 | AP25: 0 | AQ25: 0 | AR25: 0 | AS25: 1912688.664
B26: =Prop2020DistTar!B26 -> Non-Residential Two Rate 7d | D26: 0 | E26: 0 | F26: 1.69 | G26: 0.43 | H26: 0 | I26: 0 | J26: 0 | K26: 0 | L26: 0 | M26: 0 | N26: 0 | O26: 0 | P26: 0 | R26: =Prop2020DistTar!AF26 -> 7019.479943 | S26: =Prop2020DistTar!AG26 -> 0 | T26: =Prop2020DistTar!AH26 -> 54390915.31 | U26: =Prop2020DistTar!AI26 -> 21067936.39 | V26: =Prop2020DistTar!AJ26 -> 0 | W26: =Prop2020DistTar!AK26 -> 0 | X26: =Prop2020DistTar!AL26 -> 0 | Y26: =Prop2020DistTar!AM26 -> 0 | Z26: =Prop2020DistTar!AN26 -> 0 | AA26: =Prop2020DistTar!AO26 -> 0 | AB26: =Prop2020DistTar!AP26 -> 0 | AC26: =Prop2020DistTar!AQ26 -> 0 | AD26: =Prop2020DistTar!AR26 -> 0 | AF26: 0 | AG26: 0 | AH26: 919206.4687 | AI26: 90592.12646 | AJ26: 0 | AK26: 0 | AL26: 0 | AM26: 0 | AN26: 0 | AO26: 0 | AP26: 0 | AQ26: 0 | AR26: 0 | AS26: 1009798.595
B27: =Prop2020DistTar!B27 -> Non-Residential Demand | D27: 0 | E27: 0.55 | F27: 0 | G27: 0 | H27: 0 | I27: 2.07 | J27: 0.69 | K27: 0 | L27: 0 | M27: 0 | N27: 0 | O27: 0 | P27: 0 | R27: =Prop2020DistTar!AF27 -> 114.0665769 | S27: =Prop2020DistTar!AG27 -> 4632749.457 | T27: =Prop2020DistTar!AH27 -> 0 | U27: =Prop2020DistTar!AI27 -> 0 | V27: =Prop2020DistTar!AJ27 -> 0 | W27: =Prop2020DistTar!AK27 -> 1491.820739 | X27: =Prop2020DistTar!AL27 -> 3511.797771 | Y27: =Prop2020DistTar!AM27 -> 0 | Z27: =Prop2020DistTar!AN27 -> 0 | AA27: =Prop2020DistTar!AO27 -> 0 | AB27: =Prop2020DistTar!AP27 -> 0 | AC27: =Prop2020DistTar!AQ27 -> 0 | AD27: =Prop2020DistTar!AR27 -> 0 | AF27: 0 | AG27: 25480.12201 | AH27: 0 | AI27: 0 | AJ27: 0 | AK27: 3088.068929 | AL27: 2423.140462 | AM27: 0 | AN27: 0 | AO27: 0 | AP27: 0 | AQ27: 0 | AR27: 0 | AS27: 30991.33141
B28: =Prop2020DistTar!B28 -> Medium business Demand | D28: 0 | E28: 0 | F28: 0.67 | G28: 0.67 | H28: 0 | I28: 2.39 | J28: 1.2 | K28: 0 | L28: 0 | M28: 0 | N28: 0 | O28: 0 | P28: 0 | R28: =Prop2020DistTar!AF28 -> 7728.558394 | S28: =Prop2020DistTar!AG28 -> 0 | T28: =Prop2020DistTar!AH28 -> 521622988.5 | U28: =Prop2020DistTar!AI28 -> 460904199 | V28: =Prop2020DistTar!AJ28 -> 0 | W28: =Prop2020DistTar!AK28 -> 1415486.63 | X28: =Prop2020DistTar!AL28 -> 2510898.806 | Y28: =Prop2020DistTar!AM28 -> 0 | Z28: =Prop2020DistTar!AN28 -> 0 | AA28: =Prop2020DistTar!AO28 -> 0 | AB28: =Prop2020DistTar!AP28 -> 0 | AC28: =Prop2020DistTar!AQ28 -> 0 | AD28: =Prop2020DistTar!AR28 -> 0 | AF28: 0 | AG28: 0 | AH28: 3494874.023 | AI28: 3088058.133 | AJ28: 0 | AK28: 3383013.045 | AL28: 3013078.567 | AM28: 0 | AN28: 0 | AO28: 0 | AP28: 0 | AQ28: 0 | AR28: 0 | AS28: 12979023.77
B29: =Prop2020DistTar!B29 -> Medium business Opt-out | D29: 0 | E29: 0 | F29: 2.47 | G29: 0.79 | H29: 0 | I29: 0 | J29: 0 | K29: 0 | L29: 0 | M29: 0 | N29: 0 | O29: 0 | P29: 0 | R29: =Prop2020DistTar!AF29 -> 153.7035844 | S29: =Prop2020DistTar!AG29 -> 0 | T29: =Prop2020DistTar!AH29 -> 6410795.222 | U29: =Prop2020DistTar!AI29 -> 4790864.918 | V29: =Prop2020DistTar!AJ29 -> 0 | W29: =Prop2020DistTar!AK29 -> 0 | X29: =Prop2020DistTar!AL29 -> 0 | Y29: =Prop2020DistTar!AM29 -> 0 | Z29: =Prop2020DistTar!AN29 -> 0 | AA29: =Prop2020DistTar!AO29 -> 0 | AB29: =Prop2020DistTar!AP29 -> 0 | AC29: =Prop2020DistTar!AQ29 -> 0 | AD29: =Prop2020DistTar!AR29 -> 0 | AF29: 0 | AG29: 0 | AH29: 158346.642 | AI29: 37847.83285 | AJ29: 0 | AK29: 0 | AL29: 0 | AM29: 0 | AN29: 0 | AO29: 0 | AP29: 0 | AQ29: 0 | AR29: 0 | AS29: 196194.4748
B30: =Prop2020DistTar!B30 -> Public Lighting | D30: 0 | E30: 0 | F30: 0 | G30: 0 | H30: 0 | I30: 0 | J30: 0 | K30: 0 | L30: 0 | M30: 0 | N30: 0 | O30: 0 | P30: 0 | R30: =Prop2020DistTar!AF30 -> 8533.552004 | S30: =Prop2020DistTar!AG30 -> 0 | T30: =Prop2020DistTar!AH30 -> 22127392.06 | U30: =Prop2020DistTar!AI30 -> 55870540.72 | V30: =Prop2020DistTar!AJ30 -> 0 | W30: =Prop2020DistTar!AK30 -> 0 | X30: =Prop2020DistTar!AL30 -> 0 | Y30: =Prop2020DistTar!AM30 -> 0 | Z30: =Prop2020DistTar!AN30 -> 0 | AA30: =Prop2020DistTar!AO30 -> 0 | AB30: =Prop2020DistTar!AP30 -> 0 | AC30: =Prop2020DistTar!AQ30 -> 0 | AD30: =Prop2020DistTar!AR30 -> 0 | AF30: 0 | AG30: 0 | AH30: 0 | AI30: 0 | AJ30: 0 | AK30: 0 | AL30: 0 | AM30: 0 | AN30: 0 | AO30: 0 | AP30: 0 | AQ30: 0 | AR30: 0 | AS30: 0
B31: =Prop2020DistTar!B31 -> Large low Voltage | D31: 0 | E31: 0 | F31: 0.94 | G31: 0.46 | H31: 26.4 | I31: 0 | J31: 0 | K31: 0 | L31: 0 | M31: 0 | N31: 0 | O31: 0 | P31: 0 | R31: =Prop2020DistTar!AF31 -> 2882.562375 | S31: =Prop2020DistTar!AG31 -> 0 | T31: =Prop2020DistTar!AH31 -> 1374258544 | U31: =Prop2020DistTar!AI31 -> 1079562538 | V31: =Prop2020DistTar!AJ31 -> 855266.5349 | W31: =Prop2020DistTar!AK31 -> 0 | X31: =Prop2020DistTar!AL31 -> 0 | Y31: =Prop2020DistTar!AM31 -> 0 | Z31: =Prop2020DistTar!AN31 -> 0 | AA31: =Prop2020DistTar!AO31 -> 0 | AB31: =Prop2020DistTar!AP31 -> 0 | AC31: =Prop2020DistTar!AQ31 -> 0 | AD31: =Prop2020DistTar!AR31 -> 0 | AF31: 0 | AG31: 0 | AH31: 12918030.31 | AI31: 4965987.674 | AJ31: 22579036.52 | AK31: 0 | AL31: 0 | AM31: 0 | AN31: 0 | AO31: 0 | AP31: 0 | AQ31: 0 | AR31: 0 | AS31: 40463054.5
B32: =Prop2020DistTar!B32 -> High Voltage | D32: 0 | E32: 0 | F32: 1.25 | G32: 0.48 | H32: 45.13 | I32: 0 | J32: 0 | K32: 0 | L32: 0 | M32: 0 | N32: 0 | O32: 0 | P32: 0 | R32: =Prop2020DistTar!AF32 -> 170.8100271 | S32: =Prop2020DistTar!AG32 -> 0 | T32: =Prop2020DistTar!AH32 -> 753809957.8 | U32: =Prop2020DistTar!AI32 -> 686531052.5 | V32: =Prop2020DistTar!AJ32 -> 396969.309 | W32: =Prop2020DistTar!AK32 -> 0 | X32: =Prop2020DistTar!AL32 -> 0 | Y32: =Prop2020DistTar!AM32 -> 0 | Z32: =Prop2020DistTar!AN32 -> 0 | AA32: =Prop2020DistTar!AO32 -> 0 | AB32: =Prop2020DistTar!AP32 -> 0 | AC32: =Prop2020DistTar!AQ32 -> 0 | AD32: =Prop2020DistTar!AR32 -> 0 | AF32: 0 | AG32: 0 | AH32: 9422624.473 | AI32: 3295349.052 | AJ32: 17915224.91 | AK32: 0 | AL32: 0 | AM32: 0 | AN32: 0 | AO32: 0 | AP32: 0 | AQ32: 0 | AR32: 0 | AS32: 30633198.44
B33: =Prop2020DistTar!B33 -> High Voltage Docklands | D33: 0 | E33: 0 | F33: 1.17 | G33: 0.45 | H33: 42.53 | I33: 0 | J33: 0 | K33: 0 | L33: 0 | M33: 0 | N33: 0 | O33: 0 | P33: 0 | R33: =Prop2020DistTar!AF33 -> 7.418730278 | S33: =Prop2020DistTar!AG33 -> 0 | T33: =Prop2020DistTar!AH33 -> 117981877.6 | U33: =Prop2020DistTar!AI33 -> 123663478.9 | V33: =Prop2020DistTar!AJ33 -> 65516.45569 | W33: =Prop2020DistTar!AK33 -> 0 | X33: =Prop2020DistTar!AL33 -> 0 | Y33: =Prop2020DistTar!AM33 -> 0 | Z33: =Prop2020DistTar!AN33 -> 0 | AA33: =Prop2020DistTar!AO33 -> 0 | AB33: =Prop2020DistTar!AP33 -> 0 | AC33: =Prop2020DistTar!AQ33 -> 0 | AD33: =Prop2020DistTar!AR33 -> 0 | AF33: 0 | AG33: 0 | AH33: 1380387.968 | AI33: 556485.655 | AJ33: 2786414.861 | AK33: 0 | AL33: 0 | AM33: 0 | AN33: 0 | AO33: 0 | AP33: 0 | AQ33: 0 | AR33: 0 | AS33: 4723288.483
B34: =Prop2020DistTar!B34 -> Subtransmission | D34: 0 | E34: 0 | F34: 2.26 | G34: 0.69 | H34: 21.17 | I34: 0 | J34: 0 | K34: 0 | L34: 0 | M34: 0 | N34: 0 | O34: 0 | P34: 0 | R34: =Prop2020DistTar!AF34 -> 14 | S34: =Prop2020DistTar!AG34 -> 0 | T34: =Prop2020DistTar!AH34 -> 561857994.9 | U34: =Prop2020DistTar!AI34 -> 641803918.6 | V34: =Prop2020DistTar!AJ34 -> 264628.1239 | W34: =Prop2020DistTar!AK34 -> 0 | X34: =Prop2020DistTar!AL34 -> 0 | Y34: =Prop2020DistTar!AM34 -> 0 | Z34: =Prop2020DistTar!AN34 -> 0 | AA34: =Prop2020DistTar!AO34 -> 0 | AB34: =Prop2020DistTar!AP34 -> 0 | AC34: =Prop2020DistTar!AQ34 -> 0 | AD34: =Prop2020DistTar!AR34 -> 0 | AF34: 0 | AG34: 0 | AH34: 12697990.69 | AI34: 4428447.038 | AJ34: 5602177.384 | AK34: 0 | AL34: 0 | AM34: 0 | AN34: 0 | AO34: 0 | AP34: 0 | AQ34: 0 | AR34: 0 | AS34: 22728615.11
AF35: =D35*R35 -> 0 | AG35: =E35/100*S35 -> 0 | AH35: 0 | AI35: 0 | AJ35: =H35*V35 -> 0 | AK35: =I35*W35 -> 0 | AL35: =J35*X35 -> 0 | AM35: 0 | AN35: 0 | AO35: =M35/100*AA35 -> 0 | AP35: =N35/100*AB35 -> 0 | AQ35: =O35/100*AC35 -> 0 | AR35: =P35/100*AD35 -> 0 | AS35: =SUM(AF35:AR35) -> 0
AF36: 0 | AG36: 0 | AH36: 0 | AI36: 0 | AJ36: 0 | AK36: 0 | AL36: 0 | AM36: 0 | AN36: 0 | AO36: 0 | AP36: 0 | AQ36: 0 | AR36: 0 | AS36: 0
AF37: 0 | AG37: 0 | AH37: 0 | AI37: 0 | AJ37: 0 | AK37: 0 | AL37: 0 | AM37: 0 | AN37: 0 | AO37: 0 | AP37: 0 | AQ37: 0 | AR37: 0 | AS37: 0
AF38: 0 | AG38: 0 | AH38: 0 | AI38: 0 | AJ38: 0 | AK38: 0 | AL38: 0 | AM38: 0 | AN38: 0 | AO38: 0 | AP38: 0 | AQ38: 0 | AR38: 0 | AS38: 0
AF39: 0 | AG39: 0 | AH39: 0 | AI39: 0 | AJ39: 0 | AK39: 0 | AL39: 0 | AM39: 0 | AN39: 0 | AO39: 0 | AP39: 0 | AQ39: 0 | AR39: 0 | AS39: 0
AF40: 0 | AG40: 0 | AH40: 0 | AI40: 0 | AJ40: 0 | AK40: 0 | AL40: 0 | AM40: 0 | AN40: 0 | AO40: 0 | AP40: 0 | AQ40: 0 | AR40: 0 | AS40: 0
AF41: 0 | AG41: 0 | AH41: 0 | AI41: 0 | AJ41: 0 | AK41: 0 | AL41: 0 | AM41: 0 | AN41: 0 | AO41: 0 | AP41: 0 | AQ41: 0 | AR41: 0 | AS41: 0
AF42: 0 | AG42: 0 | AH42: 0 | AI42: 0 | AJ42: 0 | AK42: 0 | AL42: 0 | AM42: 0 | AN42: 0 | AO42: 0 | AP42: 0 | AQ42: 0 | AR42: 0 | AS42: 0
AF43: 0 | AG43: 0 | AH43: 0 | AI43: 0 | AJ43: 0 | AK43: 0 | AL43: 0 | AM43: 0 | AN43: 0 | AO43: 0 | AP43: 0 | AQ43: 0 | AR43: 0 | AS43: 0
AF44: 0 | AG44: 0 | AH44: 0 | AI44: 0 | AJ44: 0 | AK44: 0 | AL44: 0 | AM44: 0 | AN44: 0 | AO44: 0 | AP44: 0 | AQ44: 0 | AR44: 0 | AS44: 0
AF45: 0 | AG45: 0 | AH45: 0 | AI45: 0 | AJ45: 0 | AK45: 0 | AL45: 0 | AM45: 0 | AN45: 0 | AO45: 0 | AP45: 0 | AQ45: 0 | AR45: 0 | AS45: 0
AF46: 0 | AG46: 0 | AH46: 0 | AI46: 0 | AJ46: 0 | AK46: 0 | AL46: 0 | AM46: 0 | AN46: 0 | AO46: 0 | AP46: 0 | AQ46: 0 | AR46: 0 | AS46: 0
AF47: 0 | AG47: 0 | AH47: 0 | AI47: 0 | AJ47: 0 | AK47: 0 | AL47: 0 | AM47: 0 | AN47: 0 | AO47: 0 | AP47: 0 | AQ47: 0 | AR47: 0 | AS47: 0
AF48: 0 | AG48: 0 | AH48: 0 | AI48: 0 | AJ48: 0 | AK48: 0 | AL48: 0 | AM48: 0 | AN48: 0 | AO48: 0 | AP48: 0 | AQ48: 0 | AR48: 0 | AS48: 0
AF49: 0 | AG49: 0 | AH49: 0 | AI49: 0 | AJ49: 0 | AK49: 0 | AL49: 0 | AM49: 0 | AN49: 0 | AO49: 0 | AP49: 0 | AQ49: 0 | AR49: 0 | AS49: 0
AF50: 0 | AG50: 0 | AH50: 0 | AI50: 0 | AJ50: 0 | AK50: 0 | AL50: 0 | AM50: 0 | AN50: 0 | AO50: 0 | AP50: 0 | AQ50: 0 | AR50: 0 | AS50: 0
AF51: 0 | AG51: 0 | AH51: 0 | AI51: 0 | AJ51: 0 | AK51: 0 | AL51: 0 | AM51: 0 | AN51: 0 | AO51: 0 | AP51: 0 | AQ51: 0 | AR51: 0 | AS51: 0
AF52: 0 | AG52: 0 | AH52: 0 | AI52: 0 | AJ52: 0 | AK52: 0 | AL52: 0 | AM52: 0 | AN52: 0 | AO52: 0 | AP52: 0 | AQ52: 0 | AR52: 0 | AS52: 0
AF53: 0 | AG53: 0 | AH53: 0 | AI53: 0 | AJ53: 0 | AK53: 0 | AL53: 0 | AM53: 0 | AN53: 0 | AO53: 0 | AP53: 0 | AQ53: 0 | AR53: 0 | AS53: 0
AF54: 0 | AG54: 0 | AH54: 0 | AI54: 0 | AJ54: 0 | AK54: 0 | AL54: 0 | AM54: 0 | AN54: 0 | AO54: 0 | AP54: 0 | AQ54: 0 | AR54: 0 | AS54: 0
AF55: 0 | AG55: =E55/100*S55 -> 0 | AH55: 0 | AI55: 0 | AJ55: 0 | AK55: 0 | AL55: 0 | AM55: 0 | AN55: 0 | AO55: 0 | AP55: 0 | AQ55: 0 | AR55: 0 | AS55: 0
AF56: 0 | AG56: 0 | AH56: 0 | AI56: 0 | AJ56: 0 | AK56: 0 | AL56: 0 | AM56: 0 | AN56: 0 | AO56: 0 | AP56: 0 | AQ56: 0 | AR56: 0 | AS56: 0
AF57: 0 | AG57: 0 | AH57: 0 | AI57: 0 | AJ57: 0 | AK57: 0 | AL57: 0 | AM57: 0 | AN57: 0 | AO57: 0 | AP57: 0 | AQ57: 0 | AR57: 0 | AS57: 0
AF58: 0 | AG58: 0 | AH58: 0 | AI58: 0 | AJ58: 0 | AK58: 0 | AL58: 0 | AM58: 0 | AN58: 0 | AO58: 0 | AP58: 0 | AQ58: 0 | AR58: 0 | AS58: 0
AF59: 0 | AG59: 0 | AH59: 0 | AI59: 0 | AJ59: 0 | AK59: 0 | AL59: 0 | AM59: 0 | AN59: 0 | AO59: 0 | AP59: 0 | AQ59: 0 | AR59: 0 | AS59: 0
AF60: 0 | AG60: 0 | AH60: 0 | AI60: 0 | AJ60: 0 | AK60: 0 | AL60: 0 | AM60: 0 | AN60: 0 | AO60: 0 | AP60: 0 | AQ60: 0 | AR60: 0 | AS60: 0
AF61: 0 | AG61: 0 | AH61: 0 | AI61: 0 | AJ61: 0 | AK61: 0 | AL61: 0 | AM61: 0 | AN61: 0 | AO61: 0 | AP61: 0 | AQ61: 0 | AR61: 0 | AS61: 0
AF62: 0 | AG62: 0 | AH62: 0 | AI62: 0 | AJ62: 0 | AK62: 0 | AL62: 0 | AM62: 0 | AN62: 0 | AO62: 0 | AP62: 0 | AQ62: 0 | AR62: 0 | AS62: 0
AF63: 0 | AG63: 0 | AH63: 0 | AI63: 0 | AJ63: 0 | AK63: 0 | AL63: 0 | AM63: 0 | AN63: 0 | AO63: 0 | AP63: 0 | AQ63: 0 | AR63: 0 | AS63: 0
AF64: 0 | AG64: 0 | AH64: 0 | AI64: 0 | AJ64: 0 | AK64: 0 | AL64: 0 | AM64: 0 | AN64: 0 | AO64: 0 | AP64: 0 | AQ64: 0 | AR64: 0 | AS64: 0
AF65: 0 | AG65: 0 | AH65: 0 | AI65: 0 | AJ65: 0 | AK65: 0 | AL65: 0 | AM65: 0 | AN65: 0 | AO65: 0 | AP65: 0 | AQ65: 0 | AR65: 0 | AS65: 0
R66: =SUM(R6:R65) -> 1063007.472 | S66: 2800001447 | T66: 4058243407 | U66: 4065155498 | V66: 1582380.423 | W66: 1417145.87 | X66: 2514750.261 | Y66: =SUM(Y6:Y65) -> 1200302.604 | Z66: 1657602.947 | AA66: 1645345.616 | AB66: 3983724.069 | AC66: 5955969.183 | AD66: 5757075.858 | AF66: =SUM(AF6:AF65) -> 0 | AG66: 52777461.22 | AH66: 58988386.37 | AI66: 22484720.28 | AJ66: 48882853.68 | AK66: 3386321.919 | AL66: 3015740.578 | AM66: =SUM(AM6:AM65) -> 36546.8102 | AN66: 31867.20576 | AO66: 11584.39975 | AP66: 124920.5185 | AQ66: 116032.5599 | AR66: 40942.68726 | AS66: 189897378.2

Sheet Est2019TransRev
B1: ="Tariff Approval - "&'Model update'!C3 -> Tariff Approval - Powercor | D1: ="Est"&'Model update'!$C$5-1&"TransRev" -> Est2019TransRev
B3: ="ESTIMATED "&'Model update'!C8&" TRANSMISSION TARIFF REVENUE" -> ESTIMATED 2019 TRANSMISSION TARIFF REVENUE
D4: ="Current Transmission Tariffs (Pt-1) for "&'Model update'!$C$8 -> Current Transmission Tariffs (Pt-1) for 2019 | R4: ="Estimated Quantities (Qt-1) for "&'Model update'!$C$8 -> Estimated Quantities (Qt-1) for 2019 | AF4: ="Estimated Revenue (Pt-1 "&'Model update'!$C$8&")*(Qt-1 " &'Model update'!$C$8&")" -> Estimated Revenue (Pt-1 2019)*(Qt-1 2019)
B5: ="Tariffs "&'Model update'!C8 -> Tariffs 2019 | D5: =Est2019DistRev!D5 -> CurrentTar Fixed | E5: =Est2019DistRev!E5 -> CurrentTar Anytime | F5: =Est2019DistRev!F5 -> CurrentTar PkBlk | G5: =Est2019DistRev!G5 -> CurrentTar OPkBlk1 | H5: =Est2019DistRev!H5 -> CurrentTar Dem kVA | I5: =Est2019DistRev!I5 -> CurrentTar Dem kW Sum | J5: =Est2019DistRev!J5 -> CurrentTar Dem kW Win | K5: =Est2019DistRev!K5 -> CurrentTar SumBlk1 | L5: =Est2019DistRev!L5 -> CurrentTar SumBlk2 | M5: =Est2019DistRev!M5 -> CurrentTar SumBlk3 | N5: =Est2019DistRev!N5 -> CurrentTar WtrBlk1 | O5: =Est2019DistRev!O5 -> CurrentTar WtrBlk2 | P5: =Est2019DistRev!P5 -> CurrentTar WtrBlk3 | R5: =Est2019DistRev!R5 -> EstVol Fixed | S5: =Est2019DistRev!S5 -> EstVol Anytime | T5: =Est2019DistRev!T5 -> EstVol Pk | U5: =Est2019DistRev!U5 -> EstVol Opk | V5: =Est2019DistRev!V5 -> EstVol Dem kVA | W5: =Est2019DistRev!W5 -> EstVol Dem kW Sum | X5: =Est2019DistRev!X5 -> EstVol Dem kW Win | Y5: =Est2019DistRev!Y5 -> EstVol SumBlk1 | Z5: =Est2019DistRev!Z5 -> EstVol SumBlk2 | AA5: =Est2019DistRev!AA5 -> EstVol SumBlk3 | AB5: =Est2019DistRev!AB5 -> EstVol WtrBlk1 | AC5: =Est2019DistRev!AC5 -> EstVol WtrBlk2 | AD5: =Est2019DistRev!AD5 -> EstVol WtrBlk3 | AF5: =Est2019DistRev!AF5 -> EstRev Fixed | AG5: =Est2019DistRev!AG5 -> EstRev Anytime | AH5: =Est2019DistRev!AH5 -> EstRev Pk | AI5: =Est2019DistRev!AI5 -> EstRev Opk | AJ5: =Est2019DistRev!AJ5 -> EstRev Dem kVA | AK5: =Est2019DistRev!AK5 -> EstRev Dem kW Sum | AL5: =Est2019DistRev!AL5 -> EstRev Dem kW Win | AM5: =Est2019DistRev!AM5 -> EstRev SumBlk1 | AN5: =Est2019DistRev!AN5 -> EstRev SumBlk2 | AO5: =Est2019DistRev!AO5 -> EstRev SumBlk3 | AP5: =Est2019DistRev!AP5 -> EstRev WtrBlk1 | AQ5: =Est2019DistRev!AQ5 -> EstRev WtrBlk2 | AR5: =Est2019DistRev!AR5 -> EstRev WtrBlk3 | AS5: EstRev Total
B6: =Est2019DistRev!B6 -> Residential Single Rate | D6: 0 | E6: 1.59 | F6: 0 | G6: 0 | H6: 0 | I6: 0 | J6: 0 | K6: 0 | L6: 0 | M6: 0 | N6: 0 | O6: 0 | P6: 0 | R6: =Est2019DistRev!R6 -> 567490.75 | S6: =Est2019DistRev!S6 -> 2331076406 | T6: =Est2019DistRev!T6 -> 0 | U6: =Est2019DistRev!U6 -> 0 | V6: =Est2019DistRev!V6 -> 0 | W6: =Est2019DistRev!W6 -> 0 | X6: =Est2019DistRev!X6 -> 0 | Y6: =Est2019DistRev!Y6 -> 0 | Z6: =Est2019DistRev!Z6 -> 0 | AA6: =Est2019DistRev!AA6 -> 0 | AB6: =Est2019DistRev!AB6 -> 0 | AC6: =Est2019DistRev!AC6 -> 0 | AD6: =Est2019DistRev!AD6 -> 0 | AF6: =D6*R6 -> 0 | AG6: =E6/100*S6 -> 37064114.85 | AH6: 0 | AI6: 0 | AJ6: =H6*V6 -> 0 | AK6: =I6*W6 -> 0 | AL6: 0 | AM6: 0 | AN6: 0 | AO6: =M6/100*AA6 -> 0 | AP6: =N6/100*AB6 -> 0 | AQ6: =O6/100*AC6 -> 0 | AR6: =P6/100*AD6 -> 0 | AS6: =SUM(AF6:AR6) -> 37064114.85
B7: =Est2019DistRev!B7 -> Climate Saver | D7: 0 | E7: 0 | F7: 2.25 | G7: 0.46 | H7: 0 | I7: 0 | J7: 0 | K7: 0 | L7: 0 | M7: 0 | N7: 0 | O7: 0 | P7: 0 | R7: =Est2019DistRev!R7 -> 16851.16667 | S7: =Est2019DistRev!S7 -> 0 | T7: =Est2019DistRev!T7 -> 10075687.41 | U7: =Est2019DistRev!U7 -> 18548588.43 | V7: =Est2019DistRev!V7 -> 0 | W7: =Est2019DistRev!W7 -> 0 | X7: =Est2019DistRev!X7 -> 0 | Y7: =Est2019DistRev!Y7 -> 0 | Z7: =Est2019DistRev!Z7 -> 0 | AA7: =Est2019DistRev!AA7 -> 0 | AB7: =Est2019DistRev!AB7 -> 0 | AC7: =Est2019DistRev!AC7 -> 0 | AD7: =Est2019DistRev!AD7 -> 0 | AF7: =D7*R7 -> 0 | AG7: =E7/100*S7 -> 0 | AH7: 226702.9668 | AI7: 85323.50676 | AJ7: =H7*V7 -> 0 | AK7: =I7*W7 -> 0 | AL7: =J7*X7 -> 0 | AM7: 0 | AN7: 0 | AO7: 0 | AP7: 0 | AQ7: 0 | AR7: 0 | AS7: =SUM(AF7:AR7) -> 312026.4735
B8: =Est2019DistRev!B8 -> Climate Saver Interval | D8: 0 | E8: 0 | F8: 2.25 | G8: 0.46 | H8: 0 | I8: 0 | J8: 0 | K8: 0 | L8: 0 | M8: 0 | N8: 0 | O8: 0 | P8: 0 | R8: =Est2019DistRev!R8 -> 4604.916667 | S8: =Est2019DistRev!S8 -> 0 | T8: =Est2019DistRev!T8 -> 2910417.392 | U8: =Est2019DistRev!U8 -> 5927584.187 | V8: =Est2019DistRev!V8 -> 0 | W8: =Est2019DistRev!W8 -> 0 | X8: =Est2019DistRev!X8 -> 0 | Y8: =Est2019DistRev!Y8 -> 0 | Z8: =Est2019DistRev!Z8 -> 0 | AA8: =Est2019DistRev!AA8 -> 0 | AB8: =Est2019DistRev!AB8 -> 0 | AC8: =Est2019DistRev!AC8 -> 0 | AD8: =Est2019DistRev!AD8 -> 0 | AF8: 0 | AG8: 0 | AH8: 65484.39132 | AI8: 27266.88726 | AJ8: 0 | AK8: 0 | AL8: 0 | AM8: 0 | AN8: 0 | AO8: 0 | AP8: 0 | AQ8: 0 | AR8: 0 | AS8: 92751.27858
B9: =Est2019DistRev!B9 -> Residential - Flexible Pricing | D9: 0 | E9: 0 | F9: 0 | G9: 0 | H9: 0 | I9: 0 | J9: 0 | K9: 2.92 | L9: 1.66 | M9: 0.64 | N9: 2.92 | O9: 1.66 | P9: 0.64 | R9: =Est2019DistRev!R9 -> 3036.083333 | S9: =Est2019DistRev!S9 -> 0 | T9: =Est2019DistRev!T9 -> 0 | U9: =Est2019DistRev!U9 -> 0 | V9: =Est2019DistRev!V9 -> 0 | W9: =Est2019DistRev!W9 -> 0 | X9: =Est2019DistRev!X9 -> 0 | Y9: =Est2019DistRev!Y9 -> 854934.5974 | Z9: =Est2019DistRev!Z9 -> 1671404.329 | AA9: =Est2019DistRev!AA9 -> 1316027.217 | AB9: =Est2019DistRev!AB9 -> 2852452.979 | AC9: =Est2019DistRev!AC9 -> 5576569.567 | AD9: =Est2019DistRev!AD9 -> 4390868.924 | AF9: 0 | AG9: 0 | AH9: 0 | AI9: 0 | AJ9: 0 | AK9: 0 | AL9: 0 | AM9: 24964.09024 | AN9: 27745.31186 | AO9: 8422.574189 | AP9: 83291.62699 | AQ9: 92571.05481 | AR9: 28101.56111 | AS9: 265096.2192
B10: =Est2019DistRev!B10 -> Residential Docklands - Flexible Pricing | D10: 0 | E10: 0 | F10: 0 | G10: 0 | H10: 0 | I10: 0 | J10: 0 | K10: 2.03 | L10: 1.13 | M10: 0.41 | N10: 2.03 | O10: 1.13 | P10: 0.41 | R10: =Est2019DistRev!R10 -> 1 | S10: =Est2019DistRev!S10 -> 0 | T10: =Est2019DistRev!T10 -> 0 | U10: =Est2019DistRev!U10 -> 0 | V10: =Est2019DistRev!V10 -> 0 | W10: =Est2019DistRev!W10 -> 0 | X10: =Est2019DistRev!X10 -> 0 | Y10: =Est2019DistRev!Y10 -> 309.0358802 | Z10: =Est2019DistRev!Z10 -> 604.0795036 | AA10: =Est2019DistRev!AA10 -> 405.7754493 | AB10: =Est2019DistRev!AB10 -> 986.423121 | AC10: =Est2019DistRev!AC10 -> 1928.183837 | AD10: =Est2019DistRev!AD10 -> 1295.20975 | AF10: 0 | AG10: 0 | AH10: 0 | AI10: 0 | AJ10: 0 | AK10: 0 | AL10: 0 | AM10: 6.273428369 | AN10: 6.82609839 | AO10: 1.663679342 | AP10: 20.02438936 | AQ10: 21.78847736 | AR10: 5.310359974 | AS10: 61.88643279
B11: =Est2019DistRev!B11 -> Climate Saver - Flexible Pricing | D11: 0 | E11: 0 | F11: 0 | G11: 0 | H11: 0 | I11: 0 | J11: 0 | K11: 2.25 | L11: 0 | M11: 0 | N11: 0.46 | O11: 0 | P11: 0 | R11: =Est2019DistRev!R11 -> 55.66666667 | S11: =Est2019DistRev!S11 -> 0 | T11: =Est2019DistRev!T11 -> 0 | U11: =Est2019DistRev!U11 -> 0 | V11: =Est2019DistRev!V11 -> 0 | W11: =Est2019DistRev!W11 -> 0 | X11: =Est2019DistRev!X11 -> 0 | Y11: =Est2019DistRev!Y11 -> 27161.84141 | Z11: =Est2019DistRev!Z11 -> 0 | AA11: =Est2019DistRev!AA11 -> 0 | AB11: =Est2019DistRev!AB11 -> 70093.1803 | AC11: =Est2019DistRev!AC11 -> 0 | AD11: =Est2019DistRev!AD11 -> 0 | AF11: 0 | AG11: 0 | AH11: 0 | AI11: 0 | AJ11: 0 | AK11: 0 | AL11: 0 | AM11: 611.1414318 | AN11: 0 | AO11: 0 | AP11: 322.4286294 | AQ11: 0 | AR11: 0 | AS11: 933.5700612
B12: =Est2019DistRev!B12 -> Docklands single rate | D12: 0 | E12: 1.5 | F12: 0 | G12: 0 | H12: 0 | I12: 0 | J12: 0 | K12: 0 | L12: 0 | M12: 0 | N12: 0 | O12: 0 | P12: 0 | R12: =Est2019DistRev!R12 -> 2 | S12: =Est2019DistRev!S12 -> 10976.15301 | T12: =Est2019DistRev!T12 -> 0 | U12: =Est2019DistRev!U12 -> 0 | V12: =Est2019DistRev!V12 -> 0 | W12: =Est2019DistRev!W12 -> 0 | X12: =Est2019DistRev!X12 -> 0 | Y12: =Est2019DistRev!Y12 -> 0 | Z12: =Est2019DistRev!Z12 -> 0 | AA12: =Est2019DistRev!AA12 -> 0 | AB12: =Est2019DistRev!AB12 -> 0 | AC12: =Est2019DistRev!AC12 -> 0 | AD12: =Est2019DistRev!AD12 -> 0 | AF12: 0 | AG12: 164.6422952 | AH12: 0 | AI12: 0 | AJ12: 0 | AK12: 0 | AL12: 0 | AM12: 0 | AN12: 0 | AO12: 0 | AP12: 0 | AQ12: 0 | AR12: 0 | AS12: 164.6422952
B13: =Est2019DistRev!B13 -> Residential Two Rate 5d | D13: 0 | E13: 0 | F13: 2.79 | G13: 0.64 | H13: 0 | I13: 0 | J13: 0 | K13: 0 | L13: 0 | M13: 0 | N13: 0 | O13: 0 | P13: 0 | R13: =Est2019DistRev!R13 -> 45261.75 | S13: =Est2019DistRev!S13 -> 0 | T13: =Est2019DistRev!T13 -> 125835358.1 | U13: =Est2019DistRev!U13 -> 115446252.5 | V13: =Est2019DistRev!V13 -> 0 | W13: =Est2019DistRev!W13 -> 0 | X13: =Est2019DistRev!X13 -> 0 | Y13: =Est2019DistRev!Y13 -> 0 | Z13: =Est2019DistRev!Z13 -> 0 | AA13: =Est2019DistRev!AA13 -> 0 | AB13: =Est2019DistRev!AB13 -> 0 | AC13: =Est2019DistRev!AC13 -> 0 | AD13: =Est2019DistRev!AD13 -> 0 | AF13: 0 | AG13: 0 | AH13: 3510806.491 | AI13: 738856.0157 | AJ13: 0 | AK13: 0 | AL13: 0 | AM13: 0 | AN13: 0 | AO13: 0 | AP13: 0 | AQ13: 0 | AR13: 0 | AS13: 4249662.507
B14: =Est2019DistRev!B14 -> Docklands Two Rate 5d | D14: 0 | E14: 0 | F14: 2.67 | G14: 0.59 | H14: 0 | I14: 0 | J14: 0 | K14: 0 | L14: 0 | M14: 0 | N14: 0 | O14: 0 | P14: 0 | R14: =Est2019DistRev!R14 -> 586.5833333 | S14: =Est2019DistRev!S14 -> 0 | T14: =Est2019DistRev!T14 -> 1835821.192 | U14: =Est2019DistRev!U14 -> 1698531.857 | V14: =Est2019DistRev!V14 -> 0 | W14: =Est2019DistRev!W14 -> 0 | X14: =Est2019DistRev!X14 -> 0 | Y14: =Est2019DistRev!Y14 -> 0 | Z14: =Est2019DistRev!Z14 -> 0 | AA14: =Est2019DistRev!AA14 -> 0 | AB14: =Est2019DistRev!AB14 -> 0 | AC14: =Est2019DistRev!AC14 -> 0 | AD14: =Est2019DistRev!AD14 -> 0 | AF14: 0 | AG14: 0 | AH14: 49016.42584 | AI14: 10021.33795 | AJ14: 0 | AK14: 0 | AL14: 0 | AM14: 0 | AN14: 0 | AO14: 0 | AP14: 0 | AQ14: 0 | AR14: 0 | AS14: 59037.76379
B15: =Est2019DistRev!B15 -> Residential Interval | D15: 0 | E15: 0 | F15: 2.79 | G15: 0.64 | H15: 0 | I15: 0 | J15: 0 | K15: 0 | L15: 0 | M15: 0 | N15: 0 | O15: 0 | P15: 0 | R15: =Est2019DistRev!R15 -> 108582.9167 | S15: =Est2019DistRev!S15 -> 0 | T15: =Est2019DistRev!T15 -> 279956676 | U15: =Est2019DistRev!U15 -> 292807115.6 | V15: =Est2019DistRev!V15 -> 0 | W15: =Est2019DistRev!W15 -> 0 | X15: =Est2019DistRev!X15 -> 0 | Y15: =Est2019DistRev!Y15 -> 0 | Z15: =Est2019DistRev!Z15 -> 0 | AA15: =Est2019DistRev!AA15 -> 0 | AB15: =Est2019DistRev!AB15 -> 0 | AC15: =Est2019DistRev!AC15 -> 0 | AD15: =Est2019DistRev!AD15 -> 0 | AF15: 0 | AG15: 0 | AH15: 7810791.261 | AI15: 1873965.54 | AJ15: 0 | AK15: 0 | AL15: 0 | AM15: 0 | AN15: 0 | AO15: 0 | AP15: 0 | AQ15: 0 | AR15: 0 | AS15: 9684756.801
B16: =Est2019DistRev!B16 -> Residential Two Rate 5d - controlled load | D16: 0 | E16: 0 | F16: 0 | G16: 0.46 | H16: 0 | I16: 0 | J16: 0 | K16: 0 | L16: 0 | M16: 0 | N16: 0 | O16: 0 | P16: 0 | R16: =Est2019DistRev!R16 -> 43106.33333 | S16: =Est2019DistRev!S16 -> 0 | T16: =Est2019DistRev!T16 -> 0 | U16: =Est2019DistRev!U16 -> 83773204.99 | V16: =Est2019DistRev!V16 -> 0 | W16: =Est2019DistRev!W16 -> 0 | X16: =Est2019DistRev!X16 -> 0 | Y16: =Est2019DistRev!Y16 -> 0 | Z16: =Est2019DistRev!Z16 -> 0 | AA16: =Est2019DistRev!AA16 -> 0 | AB16: =Est2019DistRev!AB16 -> 0 | AC16: =Est2019DistRev!AC16 -> 0 | AD16: =Est2019DistRev!AD16 -> 0 | AF16: 0 | AG16: 0 | AH16: 0 | AI16: 385356.743 | AJ16: 0 | AK16: 0 | AL16: 0 | AM16: 0 | AN16: 0 | AO16: 0 | AP16: 0 | AQ16: 0 | AR16: 0 | AS16: 385356.743
B17: =Est2019DistRev!B17 -> Docklands Two Rate 5d - controlled load | D17: 0 | E17: 0 | F17: 0 | G17: 0.46 | H17: 0 | I17: 0 | J17: 0 | K17: 0 | L17: 0 | M17: 0 | N17: 0 | O17: 0 | P17: 0 | R17: =Est2019DistRev!R17 -> 71.33333333 | S17: =Est2019DistRev!S17 -> 0 | T17: =Est2019DistRev!T17 -> 0 | U17: =Est2019DistRev!U17 -> 132818.9122 | V17: =Est2019DistRev!V17 -> 0 | W17: =Est2019DistRev!W17 -> 0 | X17: =Est2019DistRev!X17 -> 0 | Y17: =Est2019DistRev!Y17 -> 0 | Z17: =Est2019DistRev!Z17 -> 0 | AA17: =Est2019DistRev!AA17 -> 0 | AB17: =Est2019DistRev!AB17 -> 0 | AC17: =Est2019DistRev!AC17 -> 0 | AD17: =Est2019DistRev!AD17 -> 0 | AF17: 0 | AG17: 0 | AH17: 0 | AI17: 610.9669962 | AJ17: 0 | AK17: 0 | AL17: 0 | AM17: 0 | AN17: 0 | AO17: 0 | AP17: 0 | AQ17: 0 | AR17: 0 | AS17: 610.9669962
B18: =Est2019DistRev!B18 -> Dedicated circuit | D18: 0 | E18: 0 | F18: 0 | G18: 0.46 | H18: 0 | I18: 0 | J18: 0 | K18: 0 | L18: 0 | M18: 0 | N18: 0 | O18: 0 | P18: 0 | R18: =Est2019DistRev!R18 -> 156808.8333 | S18: =Est2019DistRev!S18 -> 0 | T18: =Est2019DistRev!T18 -> 0 | U18: =Est2019DistRev!U18 -> 299067283.2 | V18: =Est2019DistRev!V18 -> 0 | W18: =Est2019DistRev!W18 -> 0 | X18: =Est2019DistRev!X18 -> 0 | Y18: =Est2019DistRev!Y18 -> 0 | Z18: =Est2019DistRev!Z18 -> 0 | AA18: =Est2019DistRev!AA18 -> 0 | AB18: =Est2019DistRev!AB18 -> 0 | AC18: =Est2019DistRev!AC18 -> 0 | AD18: =Est2019DistRev!AD18 -> 0 | AF18: 0 | AG18: 0 | AH18: 0 | AI18: 1375709.503 | AJ18: 0 | AK18: 0 | AL18: 0 | AM18: 0 | AN18: 0 | AO18: 0 | AP18: 0 | AQ18: 0 | AR18: 0 | AS18: 1375709.503
B19: =Est2019DistRev!B19 -> Hot Water Interval | D19: 0 | E19: 0 | F19: 0 | G19: 0.46 | H19: 0 | I19: 0 | J19: 0 | K19: 0 | L19: 0 | M19: 0 | N19: 0 | O19: 0 | P19: 0 | R19: =Est2019DistRev!R19 -> 5477.083333 | S19: =Est2019DistRev!S19 -> 0 | T19: =Est2019DistRev!T19 -> 0 | U19: =Est2019DistRev!U19 -> 10244581.41 | V19: =Est2019DistRev!V19 -> 0 | W19: =Est2019DistRev!W19 -> 0 | X19: =Est2019DistRev!X19 -> 0 | Y19: =Est2019DistRev!Y19 -> 0 | Z19: =Est2019DistRev!Z19 -> 0 | AA19: =Est2019DistRev!AA19 -> 0 | AB19: =Est2019DistRev!AB19 -> 0 | AC19: =Est2019DistRev!AC19 -> 0 | AD19: =Est2019DistRev!AD19 -> 0 | AF19: 0 | AG19: 0 | AH19: 0 | AI19: 47125.0745 | AJ19: 0 | AK19: 0 | AL19: 0 | AM19: 0 | AN19: 0 | AO19: 0 | AP19: 0 | AQ19: 0 | AR19: 0 | AS19: 47125.0745
B20: =Est2019DistRev!B20 -> Residential Demand | D20: 0 | E20: 0.7 | F20: 0 | G20: 0 | H20: 0 | I20: 2.32 | J20: 0.78 | K20: 0 | L20: 0 | M20: 0 | N20: 0 | O20: 0 | P20: 0 | R20: =Est2019DistRev!R20 -> 5 | S20: =Est2019DistRev!S20 -> 21993.75259 | T20: =Est2019DistRev!T20 -> 0 | U20: =Est2019DistRev!U20 -> 0 | V20: =Est2019DistRev!V20 -> 0 | W20: =Est2019DistRev!W20 -> 48.8255 | X20: =Est2019DistRev!X20 -> 122.10825 | Y20: =Est2019DistRev!Y20 -> 0 | Z20: =Est2019DistRev!Z20 -> 0 | AA20: =Est2019DistRev!AA20 -> 0 | AB20: =Est2019DistRev!AB20 -> 0 | AC20: =Est2019DistRev!AC20 -> 0 | AD20: =Est2019DistRev!AD20 -> 0 | AF20: 0 | AG20: 153.9562681 | AH20: 0 | AI20: 0 | AJ20: 0 | AK20: 113.27516 | AL20: 95.244435 | AM20: 0 | AN20: 0 | AO20: 0 | AP20: 0 | AQ20: 0 | AR20: 0 | AS20: 362.4758631
B21: =Est2019DistRev!B21 -> Newstead Residential Trial | D21: 0 | E21: 0 | F21: 0 | G21: 0 | H21: 0 | I21: 0.47 | J21: 0.47 | K21: 0 | L21: 0 | M21: 0 | N21: 0 | O21: 0 | P21: 0 | R21: =Est2019DistRev!R21 -> 100 | S21: =Est2019DistRev!S21 -> 410755.8279 | T21: =Est2019DistRev!T21 -> 0 | U21: =Est2019DistRev!U21 -> 0 | V21: =Est2019DistRev!V21 -> 0 | W21: =Est2019DistRev!W21 -> 976.51 | X21: =Est2019DistRev!X21 -> 2442.165 | Y21: =Est2019DistRev!Y21 -> 0 | Z21: =Est2019DistRev!Z21 -> 0 | AA21: =Est2019DistRev!AA21 -> 0 | AB21: =Est2019DistRev!AB21 -> 0 | AC21: =Est2019DistRev!AC21 -> 0 | AD21: =Est2019DistRev!AD21 -> 0 | AF21: 0 | AG21: 0 | AH21: 0 | AI21: 0 | AJ21: 0 | AK21: 458.9597 | AL21: 1147.81755 | AM21: 0 | AN21: 0 | AO21: 0 | AP21: 0 | AQ21: 0 | AR21: 0 | AS21: 1606.77725
B22: =Est2019DistRev!B22 -> Non-Residential Single Rate | D22: 0 | E22: 0.86 | F22: 0 | G22: 0 | H22: 0 | I22: 0 | J22: 0 | K22: 0 | L22: 0 | M22: 0 | N22: 0 | O22: 0 | P22: 0 | R22: =Est2019DistRev!R22 -> 45028.58333 | S22: =Est2019DistRev!S22 -> 280140182.4 | T22: =Est2019DistRev!T22 -> 0 | U22: =Est2019DistRev!U22 -> 0 | V22: =Est2019DistRev!V22 -> 0 | W22: =Est2019DistRev!W22 -> 0 | X22: =Est2019DistRev!X22 -> 0 | Y22: =Est2019DistRev!Y22 -> 0 | Z22: =Est2019DistRev!Z22 -> 0 | AA22: =Est2019DistRev!AA22 -> 0 | AB22: =Est2019DistRev!AB22 -> 0 | AC22: =Est2019DistRev!AC22 -> 0 | AD22: =Est2019DistRev!AD22 -> 0 | AF22: 0 | AG22: 2409205.569 | AH22: 0 | AI22: 0 | AJ22: 0 | AK22: 0 | AL22: 0 | AM22: 0 | AN22: 0 | AO22: 0 | AP22: 0 | AQ22: 0 | AR22: 0 | AS22: 2409205.569
B23: =Est2019DistRev!B23 -> Non-Residential Flexible Pricing | D23: 0 | E23: 0 | F23: 0 | G23: 0 | H23: 0 | I23: 0 | J23: 0 | K23: 1.39 | L23: 0.43 | M23: 0.33 | N23: 1.39 | O23: 0.43 | P23: 0.33 | R23: =Est2019DistRev!R23 -> 176 | S23: =Est2019DistRev!S23 -> 0 | T23: =Est2019DistRev!T23 -> 0 | U23: =Est2019DistRev!U23 -> 0 | V23: =Est2019DistRev!V23 -> 0 | W23: =Est2019DistRev!W23 -> 0 | X23: =Est2019DistRev!X23 -> 0 | Y23: =Est2019DistRev!Y23 -> 460587.4825 | Z23: =Est2019DistRev!Z23 -> 155250.2893 | AA23: =Est2019DistRev!AA23 -> 469086.5931 | AB23: =Est2019DistRev!AB23 -> 1202029.851 | AC23: =Est2019DistRev!AC23 -> 405168.3755 | AD23: =Est2019DistRev!AD23 -> 1224210.62 | AF23: 0 | AG23: 0 | AH23: 0 | AI23: 0 | AJ23: 0 | AK23: 0 | AL23: 0 | AM23: 6402.166007 | AN23: 667.576244 | AO23: 1547.985757 | AP23: 16708.21492 | AQ23: 1742.224015 | AR23: 4039.895045 | AS23: 31108.06199
B24: =Est2019DistRev!B24 -> Non-Residential Two Rate 5d | D24: 0 | E24: 0 | F24: 1.4 | G24: 0.32 | H24: 0 | I24: 0 | J24: 0 | K24: 0 | L24: 0 | M24: 0 | N24: 0 | O24: 0 | P24: 0 | R24: =Est2019DistRev!R24 -> 24187.41667 | S24: =Est2019DistRev!S24 -> 0 | T24: =Est2019DistRev!T24 -> 212822789.3 | U24: =Est2019DistRev!U24 -> 186173575.7 | V24: =Est2019DistRev!V24 -> 0 | W24: =Est2019DistRev!W24 -> 0 | X24: =Est2019DistRev!X24 -> 0 | Y24: =Est2019DistRev!Y24 -> 0 | Z24: =Est2019DistRev!Z24 -> 0 | AA24: =Est2019DistRev!AA24 -> 0 | AB24: =Est2019DistRev!AB24 -> 0 | AC24: =Est2019DistRev!AC24 -> 0 | AD24: =Est2019DistRev!AD24 -> 0 | AF24: 0 | AG24: 0 | AH24: 2979519.05 | AI24: 595755.4423 | AJ24: 0 | AK24: 0 | AL24: 0 | AM24: 0 | AN24: 0 | AO24: 0 | AP24: 0 | AQ24: 0 | AR24: 0 | AS24: 3575274.492
B25: =Est2019DistRev!B25 -> Non-Residential Interval | D25: 0 | E25: 0 | F25: 1.4 | G25: 0.32 | H25: 0 | I25: 0 | J25: 0 | K25: 0 | L25: 0 | M25: 0 | N25: 0 | O25: 0 | P25: 0 | R25: =Est2019DistRev!R25 -> 12355.25 | S25: =Est2019DistRev!S25 -> 0 | T25: =Est2019DistRev!T25 -> 99993582.88 | U25: =Est2019DistRev!U25 -> 70295901.8 | V25: =Est2019DistRev!V25 -> 0 | W25: =Est2019DistRev!W25 -> 0 | X25: =Est2019DistRev!X25 -> 0 | Y25: =Est2019DistRev!Y25 -> 0 | Z25: =Est2019DistRev!Z25 -> 0 | AA25: =Est2019DistRev!AA25 -> 0 | AB25: =Est2019DistRev!AB25 -> 0 | AC25: =Est2019DistRev!AC25 -> 0 | AD25: =Est2019DistRev!AD25 -> 0 | AF25: 0 | AG25: 0 | AH25: 1399910.16 | AI25: 224946.8858 | AJ25: 0 | AK25: 0 | AL25: 0 | AM25: 0 | AN25: 0 | AO25: 0 | AP25: 0 | AQ25: 0 | AR25: 0 | AS25: 1624857.046
B26: =Est2019DistRev!B26 -> Non-Residential Two Rate 7d | D26: 0 | E26: 0 | F26: 1.24 | G26: 0.32 | H26: 0 | I26: 0 | J26: 0 | K26: 0 | L26: 0 | M26: 0 | N26: 0 | O26: 0 | P26: 0 | R26: =Est2019DistRev!R26 -> 7234.583333 | S26: =Est2019DistRev!S26 -> 0 | T26: =Est2019DistRev!T26 -> 60985545.4 | U26: =Est2019DistRev!U26 -> 23417400.61 | V26: =Est2019DistRev!V26 -> 0 | W26: =Est2019DistRev!W26 -> 0 | X26: =Est2019DistRev!X26 -> 0 | Y26: =Est2019DistRev!Y26 -> 0 | Z26: =Est2019DistRev!Z26 -> 0 | AA26: =Est2019DistRev!AA26 -> 0 | AB26: =Est2019DistRev!AB26 -> 0 | AC26: =Est2019DistRev!AC26 -> 0 | AD26: =Est2019DistRev!AD26 -> 0 | AF26: 0 | AG26: 0 | AH26: 756220.7629 | AI26: 74935.68194 | AJ26: 0 | AK26: 0 | AL26: 0 | AM26: 0 | AN26: 0 | AO26: 0 | AP26: 0 | AQ26: 0 | AR26: 0 | AS26: 831156.4449
B27: =Est2019DistRev!B27 -> Non-Residential Demand | D27: 0 | E27: 0.41 | F27: 0 | G27: 0 | H27: 0 | I27: 1.51 | J27: 0.5 | K27: 0 | L27: 0 | M27: 0 | N27: 0 | O27: 0 | P27: 0 | R27: =Est2019DistRev!R27 -> 8 | S27: =Est2019DistRev!S27 -> 172734.2142 | T27: =Est2019DistRev!T27 -> 0 | U27: =Est2019DistRev!U27 -> 0 | V27: =Est2019DistRev!V27 -> 0 | W27: =Est2019DistRev!W27 -> 401.0346667 | X27: =Est2019DistRev!X27 -> 944.2736619 | Y27: =Est2019DistRev!Y27 -> 0 | Z27: =Est2019DistRev!Z27 -> 0 | AA27: =Est2019DistRev!AA27 -> 0 | AB27: =Est2019DistRev!AB27 -> 0 | AC27: =Est2019DistRev!AC27 -> 0 | AD27: =Est2019DistRev!AD27 -> 0 | AF27: 0 | AG27: 708.2102784 | AH27: 0 | AI27: 0 | AJ27: 0 | AK27: 605.5623467 | AL27: 472.136831 | AM27: 0 | AN27: 0 | AO27: 0 | AP27: 0 | AQ27: 0 | AR27: 0 | AS27: 1785.909456
B28: =Est2019DistRev!B28 -> Medium business Demand | D28: 0 | E28: 0 | F28: 0.73 | G28: 0.47 | H28: 0 | I28: 0.85 | J28: 0.42 | K28: 0 | L28: 0 | M28: 0 | N28: 0 | O28: 0 | P28: 0 | R28: =Est2019DistRev!R28 -> 8262 | S28: =Est2019DistRev!S28 -> 0 | T28: =Est2019DistRev!T28 -> 580007155.2 | U28: =Est2019DistRev!U28 -> 499880481.1 | V28: =Est2019DistRev!V28 -> 0 | W28: =Est2019DistRev!W28 -> 1457250.07 | X28: =Est2019DistRev!X28 -> 2625240.713 | Y28: =Est2019DistRev!Y28 -> 0 | Z28: =Est2019DistRev!Z28 -> 0 | AA28: =Est2019DistRev!AA28 -> 0 | AB28: =Est2019DistRev!AB28 -> 0 | AC28: =Est2019DistRev!AC28 -> 0 | AD28: =Est2019DistRev!AD28 -> 0 | AF28: 0 | AG28: 0 | AH28: 4234052.233 | AI28: 2349438.261 | AJ28: 0 | AK28: 1238662.559 | AL28: 1102601.099 | AM28: 0 | AN28: 0 | AO28: 0 | AP28: 0 | AQ28: 0 | AR28: 0 | AS28: 8924754.153
B29: =Est2019DistRev!B29 -> Medium business Opt-out | D29: 0 | E29: 0 | F29: 1.5 | G29: 0.48 | H29: 0 | I29: 0 | J29: 0 | K29: 0 | L29: 0 | M29: 0 | N29: 0 | O29: 0 | P29: 0 | R29: =Est2019DistRev!R29 -> 37 | S29: =Est2019DistRev!S29 -> 0 | T29: =Est2019DistRev!T29 -> 1720096.265 | U29: =Est2019DistRev!U29 -> 1300622.09 | V29: =Est2019DistRev!V29 -> 0 | W29: =Est2019DistRev!W29 -> 0 | X29: =Est2019DistRev!X29 -> 0 | Y29: =Est2019DistRev!Y29 -> 0 | Z29: =Est2019DistRev!Z29 -> 0 | AA29: =Est2019DistRev!AA29 -> 0 | AB29: =Est2019DistRev!AB29 -> 0 | AC29: =Est2019DistRev!AC29 -> 0 | AD29: =Est2019DistRev!AD29 -> 0 | AF29: 0 | AG29: 0 | AH29: 25801.44397 | AI29: 6242.986031 | AJ29: 0 | AK29: 0 | AL29: 0 | AM29: 0 | AN29: 0 | AO29: 0 | AP29: 0 | AQ29: 0 | AR29: 0 | AS29: 32044.43
B30: =Est2019DistRev!B30 -> Public Lighting | D30: 0 | E30: 0 | F30: 0 | G30: 0 | H30: 0 | I30: 0 | J30: 0 | K30: 0 | L30: 0 | M30: 0 | N30: 0 | O30: 0 | P30: 0 | R30: =Est2019DistRev!R30 -> 8323.166667 | S30: =Est2019DistRev!S30 -> 0 | T30: =Est2019DistRev!T30 -> 19761917.54 | U30: =Est2019DistRev!U30 -> 49460408.81 | V30: =Est2019DistRev!V30 -> 0 | W30: =Est2019DistRev!W30 -> 0 | X30: =Est2019DistRev!X30 -> 0 | Y30: =Est2019DistRev!Y30 -> 0 | Z30: =Est2019DistRev!Z30 -> 0 | AA30: =Est2019DistRev!AA30 -> 0 | AB30: =Est2019DistRev!AB30 -> 0 | AC30: =Est2019DistRev!AC30 -> 0 | AD30: =Est2019DistRev!AD30 -> 0 | AF30: 0 | AG30: 0 | AH30: 0 | AI30: 0 | AJ30: 0 | AK30: 0 | AL30: 0 | AM30: 0 | AN30: 0 | AO30: 0 | AP30: 0 | AQ30: 0 | AR30: 0 | AS30: 0
B31: =Est2019DistRev!B31 -> Large low Voltage | D31: 0 | E31: 0 | F31: 0.72 | G31: 0.35 | H31: 20.18 | I31: 0 | J31: 0 | K31: 0 | L31: 0 | M31: 0 | N31: 0 | O31: 0 | P31: 0 | R31: =Est2019DistRev!R31 -> 2876.666667 | S31: =Est2019DistRev!S31 -> 0 | T31: =Est2019DistRev!T31 -> 1367068924 | U31: =Est2019DistRev!U31 -> 1056980743 | V31: =Est2019DistRev!V31 -> 827848.3567 | W31: =Est2019DistRev!W31 -> 0 | X31: =Est2019DistRev!X31 -> 0 | Y31: =Est2019DistRev!Y31 -> 0 | Z31: =Est2019DistRev!Z31 -> 0 | AA31: =Est2019DistRev!AA31 -> 0 | AB31: =Est2019DistRev!AB31 -> 0 | AC31: =Est2019DistRev!AC31 -> 0 | AD31: =Est2019DistRev!AD31 -> 0 | AF31: 0 | AG31: 0 | AH31: 9842896.253 | AI31: 3699432.601 | AJ31: 16705979.84 | AK31: 0 | AL31: 0 | AM31: 0 | AN31: 0 | AO31: 0 | AP31: 0 | AQ31: 0 | AR31: 0 | AS31: 30248308.69
B32: =Est2019DistRev!B32 -> High Voltage | D32: 0 | E32: 0 | F32: 0.95 | G32: 0.36 | H32: 34.14 | I32: 0 | J32: 0 | K32: 0 | L32: 0 | M32: 0 | N32: 0 | O32: 0 | P32: 0 | R32: =Est2019DistRev!R32 -> 184.75 | S32: =Est2019DistRev!S32 -> 0 | T32: =Est2019DistRev!T32 -> 781036134.1 | U32: =Est2019DistRev!U32 -> 701560259 | V32: =Est2019DistRev!V32 -> 393019.5145 | W32: =Est2019DistRev!W32 -> 0 | X32: =Est2019DistRev!X32 -> 0 | Y32: =Est2019DistRev!Y32 -> 0 | Z32: =Est2019DistRev!Z32 -> 0 | AA32: =Est2019DistRev!AA32 -> 0 | AB32: =Est2019DistRev!AB32 -> 0 | AC32: =Est2019DistRev!AC32 -> 0 | AD32: =Est2019DistRev!AD32 -> 0 | AF32: 0 | AG32: 0 | AH32: 7419843.274 | AI32: 2525616.932 | AJ32: 13417686.23 | AK32: 0 | AL32: 0 | AM32: 0 | AN32: 0 | AO32: 0 | AP32: 0 | AQ32: 0 | AR32: 0 | AS32: 23363146.43
B33: =Est2019DistRev!B33 -> High Voltage Docklands | D33: 0 | E33: 0 | F33: 0.82 | G33: 0.32 | H33: 29.98 | I33: 0 | J33: 0 | K33: 0 | L33: 0 | M33: 0 | N33: 0 | O33: 0 | P33: 0 | R33: =Est2019DistRev!R33 -> 10 | S33: =Est2019DistRev!S33 -> 0 | T33: =Est2019DistRev!T33 -> 138103753.3 | U33: =Est2019DistRev!U33 -> 143551501.7 | V33: =Est2019DistRev!V33 -> 62633 | W33: =Est2019DistRev!W33 -> 0 | X33: =Est2019DistRev!X33 -> 0 | Y33: =Est2019DistRev!Y33 -> 0 | Z33: =Est2019DistRev!Z33 -> 0 | AA33: =Est2019DistRev!AA33 -> 0 | AB33: =Est2019DistRev!AB33 -> 0 | AC33: =Est2019DistRev!AC33 -> 0 | AD33: =Est2019DistRev!AD33 -> 0 | AF33: =D33*R33 -> 0 | AG33: =E33/100*S33 -> 0 | AH33: 1132450.777 | AI33: 459364.8056 | AJ33: 1877737.34 | AK33: 0 | AL33: 0 | AM33: 0 | AN33: 0 | AO33: 0 | AP33: 0 | AQ33: 0 | AR33: 0 | AS33: =SUM(AF33:AR33) -> 3469552.922
B34: =Est2019DistRev!B34 -> Subtransmission | D34: 0 | E34: 0 | F34: 2.07 | G34: 0.63 | H34: 19.4 | I34: 0 | J34: 0 | K34: 0 | L34: 0 | M34: 0 | N34: 0 | O34: 0 | P34: 0 | R34: =Est2019DistRev!R34 -> 12 | S34: =Est2019DistRev!S34 -> 0 | T34: =Est2019DistRev!T34 -> 527176996.7 | U34: =Est2019DistRev!U34 -> 513179936.1 | V34: =Est2019DistRev!V34 -> 251150.3106 | W34: =Est2019DistRev!W34 -> 0 | X34: =Est2019DistRev!X34 -> 0 | Y34: =Est2019DistRev!Y34 -> 0 | Z34: =Est2019DistRev!Z34 -> 0 | AA34: =Est2019DistRev!AA34 -> 0 | AB34: =Est2019DistRev!AB34 -> 0 | AC34: =Est2019DistRev!AC34 -> 0 | AD34: =Est2019DistRev!AD34 -> 0 | AF34: 0 | AG34: 0 | AH34: 10912563.83 | AI34: 3233033.597 | AJ34: 4872316.025 | AK34: 0 | AL34: 0 | AM34: 0 | AN34: 0 | AO34: 0 | AP34: 0 | AQ34: 0 | AR34: 0 | AS34: 19017913.45
AF35: =D35*R35 -> 0 | AG35: =E35/100*S35 -> 0 | AH35: =F35/100*T35 -> 0 | AI35: =G35/100*U35 -> 0 | AJ35: 0 | AK35: 0 | AL35: 0 | AM35: =K35/100*Y35 -> 0 | AN35: =L35/100*Z35 -> 0 | AO35: 0 | AP35: 0 | AQ35: 0 | AR35: 0 | AS35: =SUM(AF35:AR35) -> 0
AF36: =D36*R36 -> 0 | AG36: =E36/100*S36 -> 0 | AH36: =F36/100*T36 -> 0 | AI36: =G36/100*U36 -> 0 | AJ36: 0 | AK36: 0 | AL36: 0 | AM36: =K36/100*Y36 -> 0 | AN36: =L36/100*Z36 -> 0 | AO36: 0 | AP36: 0 | AQ36: 0 | AR36: 0 | AS36: =SUM(AF36:AR36) -> 0
AF37: 0 | AG37: 0 | AH37: 0 | AI37: 0 | AJ37: 0 | AK37: 0 | AL37: 0 | AM37: 0 | AN37: 0 | AO37: 0 | AP37: 0 | AQ37: 0 | AR37: 0 | AS37: 0
AF38: 0 | AG38: 0 | AH38: 0 | AI38: 0 | AJ38: 0 | AK38: 0 | AL38: 0 | AM38: 0 | AN38: 0 | AO38: 0 | AP38: 0 | AQ38: 0 | AR38: 0 | AS38: 0
AF39: 0 | AG39: 0 | AH39: 0 | AI39: 0 | AJ39: 0 | AK39: 0 | AL39: 0 | AM39: 0 | AN39: 0 | AO39: 0 | AP39: 0 | AQ39: 0 | AR39: 0 | AS39: 0
AF40: 0 | AG40: 0 | AH40: 0 | AI40: 0 | AJ40: 0 | AK40: 0 | AL40: 0 | AM40: 0 | AN40: 0 | AO40: 0 | AP40: 0 | AQ40: 0 | AR40: 0 | AS40: 0
AF41: 0 | AG41: 0 | AH41: 0 | AI41: 0 | AJ41: 0 | AK41: 0 | AL41: 0 | AM41: 0 | AN41: 0 | AO41: 0 | AP41: 0 | AQ41: 0 | AR41: 0 | AS41: 0
AF42: 0 | AG42: 0 | AH42: 0 | AI42: 0 | AJ42: 0 | AK42: 0 | AL42: 0 | AM42: 0 | AN42: 0 | AO42: 0 | AP42: 0 | AQ42: 0 | AR42: 0 | AS42: 0
AF43: 0 | AG43: 0 | AH43: 0 | AI43: 0 | AJ43: 0 | AK43: 0 | AL43: 0 | AM43: 0 | AN43: 0 | AO43: 0 | AP43: 0 | AQ43: 0 | AR43: 0 | AS43: 0
AF44: 0 | AG44: 0 | AH44: 0 | AI44: 0 | AJ44: 0 | AK44: 0 | AL44: 0 | AM44: 0 | AN44: 0 | AO44: 0 | AP44: 0 | AQ44: 0 | AR44: 0 | AS44: 0
AF45: 0 | AG45: 0 | AH45: 0 | AI45: 0 | AJ45: 0 | AK45: 0 | AL45: 0 | AM45: 0 | AN45: 0 | AO45: 0 | AP45: 0 | AQ45: 0 | AR45: 0 | AS45: 0
AF46: 0 | AG46: 0 | AH46: 0 | AI46: 0 | AJ46: 0 | AK46: 0 | AL46: 0 | AM46: 0 | AN46: 0 | AO46: 0 | AP46: 0 | AQ46: 0 | AR46: 0 | AS46: 0
AF47: 0 | AG47: 0 | AH47: 0 | AI47: 0 | AJ47: 0 | AK47: 0 | AL47: 0 | AM47: 0 | AN47: 0 | AO47: 0 | AP47: 0 | AQ47: 0 | AR47: 0 | AS47: 0
AF48: 0 | AG48: 0 | AH48: 0 | AI48: 0 | AJ48: 0 | AK48: 0 | AL48: 0 | AM48: 0 | AN48: 0 | AO48: 0 | AP48: 0 | AQ48: 0 | AR48: 0 | AS48: 0
AF49: 0 | AG49: 0 | AH49: 0 | AI49: 0 | AJ49: 0 | AK49: 0 | AL49: 0 | AM49: 0 | AN49: 0 | AO49: 0 | AP49: 0 | AQ49: 0 | AR49: 0 | AS49: 0
AF50: 0 | AG50: 0 | AH50: 0 | AI50: 0 | AJ50: 0 | AK50: 0 | AL50: 0 | AM50: 0 | AN50: 0 | AO50: 0 | AP50: 0 | AQ50: 0 | AR50: 0 | AS50: 0
AF51: 0 | AG51: 0 | AH51: 0 | AI51: 0 | AJ51: 0 | AK51: 0 | AL51: 0 | AM51: 0 | AN51: 0 | AO51: 0 | AP51: 0 | AQ51: 0 | AR51: 0 | AS51: 0
AF52: 0 | AG52: 0 | AH52: 0 | AI52: 0 | AJ52: 0 | AK52: 0 | AL52: 0 | AM52: 0 | AN52: 0 | AO52: 0 | AP52: 0 | AQ52: 0 | AR52: 0 | AS52: 0
AF53: 0 | AG53: 0 | AH53: 0 | AI53: 0 | AJ53: 0 | AK53: 0 | AL53: 0 | AM53: 0 | AN53: 0 | AO53: 0 | AP53: 0 | AQ53: 0 | AR53: 0 | AS53: 0
AF54: 0 | AG54: 0 | AH54: 0 | AI54: 0 | AJ54: 0 | AK54: 0 | AL54: 0 | AM54: 0 | AN54: 0 | AO54: 0 | AP54: 0 | AQ54: 0 | AR54: 0 | AS54: 0
AF55: 0 | AG55: 0 | AH55: 0 | AI55: 0 | AJ55: 0 | AK55: 0 | AL55: 0 | AM55: 0 | AN55: 0 | AO55: 0 | AP55: 0 | AQ55: 0 | AR55: 0 | AS55: 0
AF56: 0 | AG56: 0 | AH56: 0 | AI56: 0 | AJ56: 0 | AK56: 0 | AL56: 0 | AM56: 0 | AN56: 0 | AO56: 0 | AP56: 0 | AQ56: 0 | AR56: 0 | AS56: 0
AF57: 0 | AG57: 0 | AH57: 0 | AI57: 0 | AJ57: 0 | AK57: 0 | AL57: 0 | AM57: 0 | AN57: 0 | AO57: 0 | AP57: 0 | AQ57: 0 | AR57: 0 | AS57: 0
AF58: 0 | AG58: =E58/100*S58 -> 0 | AH58: 0 | AI58: 0 | AJ58: 0 | AK58: 0 | AL58: 0 | AM58: 0 | AN58: 0 | AO58: 0 | AP58: 0 | AQ58: 0 | AR58: 0 | AS58: 0
AF59: 0 | AG59: 0 | AH59: 0 | AI59: 0 | AJ59: 0 | AK59: 0 | AL59: 0 | AM59: 0 | AN59: 0 | AO59: 0 | AP59: 0 | AQ59: 0 | AR59: 0 | AS59: 0
AF60: 0 | AG60: 0 | AH60: 0 | AI60: 0 | AJ60: 0 | AK60: 0 | AL60: 0 | AM60: 0 | AN60: 0 | AO60: 0 | AP60: 0 | AQ60: 0 | AR60: 0 | AS60: 0
AF61: 0 | AG61: 0 | AH61: 0 | AI61: 0 | AJ61: 0 | AK61: 0 | AL61: 0 | AM61: 0 | AN61: 0 | AO61: 0 | AP61: 0 | AQ61: 0 | AR61: 0 | AS61: 0
AF62: 0 | AG62: 0 | AH62: 0 | AI62: 0 | AJ62: 0 | AK62: 0 | AL62: 0 | AM62: 0 | AN62: 0 | AO62: 0 | AP62: 0 | AQ62: 0 | AR62: 0 | AS62: 0
AF63: 0 | AG63: 0 | AH63: 0 | AI63: 0 | AJ63: 0 | AK63: 0 | AL63: 0 | AM63: 0 | AN63: 0 | AO63: 0 | AP63: 0 | AQ63: 0 | AR63: 0 | AS63: 0
AF64: 0 | AG64: 0 | AH64: 0 | AI64: 0 | AJ64: 0 | AK64: 0 | AL64: 0 | AM64: 0 | AN64: 0 | AO64: 0 | AP64: 0 | AQ64: 0 | AR64: 0 | AS64: 0
AF65: 0 | AG65: 0 | AH65: 0 | AI65: 0 | AJ65: 0 | AK65: 0 | AL65: 0 | AM65: 0 | AN65: 0 | AO65: 0 | AP65: 0 | AQ65: 0 | AR65: 0 | AS65: 0
R66: =SUM(R6:R65) -> 1060736.833 | S66: 2611833048 | T66: 4209290855 | U66: 4073446791 | V66: 1534651.182 | W66: 1458676.44 | X66: 2628749.26 | Y66: 1342992.957 | Z66: 1827258.698 | AA66: 1785519.586 | AB66: 4125562.433 | AC66: 5983666.126 | AD66: 5616374.753 | AF66: =SUM(AF6:AF65) -> 0 | AG66: 39474347.23 | AH66: 50366059.32 | AI66: 17713002.77 | AJ66: 36873719.43 | AK66: 1239840.357 | AL66: 1104316.298 | AM66: =SUM(AM6:AM65) -> 31983.67111 | AN66: 28419.7142 | AO66: 9972.223625 | AP66: 100342.2949 | AQ66: 94335.0673 | AR66: 32146.76652 | AS66: 147068485.1

Sheet 2020TransRevCont
B2: ="Tariff Approval - "&'Model update'!$C$3 -> Tariff Approval - Powercor | C2: ='Model update'!$C$5&"TransRevCont" -> 2020TransRevCont
B4: Designated pricing proposal charges (DPPC)
B6: Year (t) | C6: ='Model update'!C5 -> 2020
B8: Table 1- Compliance with DPPC Revenue Formula
B9: Revenue from designated pricing proposal charges for year t | C9: =Prop2020TransTar!AS66 -> 189897378.2
B10: Total DPPC related payments for year t | C10: =C17 -> 189904530.2
C11: =IF(C9="","",IF(C10>=C9,"DPPC REVENUE FORMULA COMPLIANT","DPPC REVENUE FORMULA BREACHED")) -> DPPC REVENUE FORMULA COMPLIANT
B13: Table 2 - Total DPPC related payments for year t
B14: Transmission charges for year t | C14: =C24 -> 176491079.7
B15: DPPC revenue under/over recovery approved | C15: =-E60*(1+E58)^0.5 -> 13413450.54
B16: Transmission revenue under/over recovery for years 2014 and 2015
B17: Total DPPC related payments for year t | C17: =SUM(C14:C16) -> 189904530.2
B19: Table 3 - Transmission charges for year t
B20: AEMO (TCt) | C20: 140328909.3
B21: Transmission connection (TCt) | C21: 16109259.96
B22: Embedded generators (Gt) | C22: 13949470.84
B23: Inter-network (Dt) | C23: -6103439.58
B24: TC + G - D | C24: =C20+C21+C22-C23 -> 176491079.7
B29: Table 4 - DPPC Recovery Arrangements
C30: Year t-2 | D30: Year t-1 | E30: Year t
C31: (actual) | D31: (estimate) | E31: (forecast)
C32: =D32-1 -> 2018 | D32: =E32-1 -> 2019 | E32: =C$6 -> 2020
B34: (A) Revenue from designated pricing proposal charges | C34: 156699205.7 | D34: =Est2019TransRev!AS66 -> 147068485.1 | E34: =C9 -> 189897378.2
B37: (B) Less Total DPPC related payments = | C37: =SUM(C39:C41) -> 156314605.7 | D37: =SUM(D39:D41) -> 168997843.3 | E37: =SUM(E39:E41) -> 176491079.7
B39: + Transmission revenue under/over recovery for years 2014 and 2015
B41: +Transmission charges = | C41: =C42+C43+C44-C45 -> 156314605.7 | D41: =D42+D43+D44-D45 -> 168997843.3 | E41: =E42+E43+E44-E45 -> 176491079.7
B42: +AEMO | C42: ='TUoS cost audit template'!F7 -> 131072502.5 | D42: 137083326.7 | E42: =C20 -> 140328909.3
B43: +PowerNet | C43: ='TUoS cost audit template'!F18 -> 16492256.11 | D43: 16095355.39 | E43: =C21 -> 16109259.96
B44: +Embedded generators | C44: ='TUoS cost audit template'!F64 -> 2913474.428 | D44: 9835396.909 | E44: =C22 -> 13949470.84
B45: -Inter-network | C45: ='TUoS cost audit template'!F28 -> -5836372.669 | D45: -5983764.294 | E45: =C23 -> -6103439.58
B49: (A minus B) Under/over recovery of revenue for regulatory year | C49: =C34-C37 -> 384599.9726 | D49: =D34-D37 -> -21929358.15 | E49: =E34-E37 -> 13406298.51
B53: Table 5 - DPPC Unders and Overs Account
C54: Year t-2 | D54: Year t-1 | E54: Year t
C55: (actual) | D55: (estimate) | E55: (forecast)
B56: Calendar year | C56: =D56-1 -> 2018 | D56: =E56-1 -> 2019 | E56: =C$6 -> 2020
B58: Nominal WACC | C58: =(1+'Model update'!$B$47)*(1+'Model update'!$C$28)-1 -> 0.05565648259 | D58: =(1+'Model update'!$B$45)*(1+'Model update'!$C$29)-1 -> 0.0565862118 | E58: =(1+'Model update'!$B$43)*(1+'Model update'!$C$30)-1 -> 0.05008580414
B60: Opening balance | C60: 8099483.376 | D60: =C64 -> 8945429.931 | E60: =D64 -> -13089652.54
B61: Interest on Opening balance | C61: =C60*C58 -> 450788.7555 | D61: =D60*D58 -> 506187.9928 | E61: =E60*E58 -> -655605.7732
B62: Under/over recovery of revenue for regulatory year | C62: =C49 -> 384599.9726 | D62: =D49 -> -21929358.15 | E62: =E49 -> 13406298.51
B63: Interest on under/over recovery for regulatory year | C63: =C62*((1+C58)^0.5-1) -> 10557.82701 | D63: =D62*((1+D58)^0.5-1) -> -611912.3145 | E63: =E62*((1+E58)^0.5-1) -> 331630.8539
B64: Closing balance of DPPC overs/ (unders) account | C64: =SUM(C60:C63) -> 8945429.931 | D64: =SUM(D60:D63) -> -13089652.54 | E64: -7328.943437
B66: The DNSP is expected to achieve a closing balance as close to zero as practicable in its DPPC unders and overs account in each forecast year in its annual pricing proposals in the 2016–20 regulatory control period.

Sheet TUoS cost audit template
B1: ="Tariff Approval - "&'Model update'!C3 -> Tariff Approval - Powercor
B2: TUOS charges (AEMO) | F2: t-2 actual
B3: AEMO (Locational & Non-Locational) | F3: 64808958.96
B4: AEMO (TUoS Common Service Charge) | F4: 69261378.86
B5: Grid equalisation | F5: -3802200
B6: Adjustment | F6: 804364.72
E7: Total | F7: =SUM(F3:F6) -> 131072502.5
B9: Transmission connection fees (SPI Powernet) | F9: t-2 actual
B11: Ausnet Services (Connection) | F11: 14603424
B12: Ausnet Services (Augmentation) | F12: -80880.16364
B13: Transgrid (Connection) | F13: 1969712.27
E18: Total | F18: =SUM(F10:F17) -> 16492256.11
B20: Cross boundary network charges (internetwork charges) | F20: t-2 actual
B21: Distribution Business | C21: Amount (payable)/receivable
C22: HV crossings | D22: Subtransmission crossings | E22: TUoS Adjustment | F22: Total
B24: Jemena | D24: -5255866.089 | F24: -5255866.089
B25: SAPN | D25: -580506.58 | F25: -580506.58
B28: Total | F28: =SUM(F23:F27) -> -5836372.669
B30: Payments to embedded generators | F30: t-2 actual
B31: Avoided transmission costs
B32: Avoided Transmission Cost | F32: 2913474.428
B37: Total | F37: =SUM(F32:F36) -> 2913474.428
B39: Avoided TUoS usage charges
B63: Total | F63: =SUM(F40:F62) -> 0
B64: Total payments to embedded generators | F64: =F63+F37 -> 2913474.428
B66: Where the following definitions apply
B67: HV Crossings | C67: Payments/Receipts for energy transferred utilising the distributor’s HV and LV line assets.
B68: Sub-transmission Crossings | C68: Payments/Receipts for the Sub-transmission assets in shared loops that support each distributor’s Zone Substation capacity to ensure N-1 reliability is maintained.
B69: TuoS Adjustment | C69: Payments/Receipts for the adjustment of TuoS paid by a distributor for energy delivered to another distribution business through a shared loop.

Sheet Prop2020JSTar
B1: ="Tariff Approval - "&'Model update'!C3 -> Tariff Approval - Powercor | D1: ="Prop"&'Model update'!$C$5&"JSTar" -> Prop2020JSTar
B3: ="PROPOSED "&'Model update'!$C$5&" JURISDICTIONAL SCHEME TARIFFS" -> PROPOSED 2020 JURISDICTIONAL SCHEME TARIFFS
D4: ="Proposed Jurisdictional scheme Tariffs (Pt) for "&'Model update'!$C$5 -> Proposed Jurisdictional scheme Tariffs (Pt) for 2020 | R4: ="Forecast Quantities (Qt) for "&'Model update'!$C$5 -> Forecast Quantities (Qt) for 2020 | AF4: ="Forecast Revenue (Pt "&'Model update'!$C$5&")*(Qt " &'Model update'!$C$5&")" -> Forecast Revenue (Pt 2020)*(Qt 2020)
B5: Proposed tariff | D5: =Prop2020DistTar!D5 -> PropTar Fixed | E5: =Prop2020DistTar!E5 -> PropTar Anytime | F5: =Prop2020DistTar!F5 -> PropTar PkBlk | G5: =Prop2020DistTar!G5 -> PropTar OPkBlk1 | H5: =Prop2020DistTar!H5 -> PropTar Dem kVA | I5: =Prop2020DistTar!I5 -> PropTar Dem kW Sum | J5: =Prop2020DistTar!J5 -> PropTar Dem kW Win | K5: =Prop2020DistTar!K5 -> PropTar SumBlk1 | L5: =Prop2020DistTar!L5 -> PropTar SumBlk2 | M5: =Prop2020DistTar!M5 -> PropTar SumBlk3 | N5: =Prop2020DistTar!N5 -> PropTar WtrBlk1 | O5: =Prop2020DistTar!O5 -> PropTar WtrBlk2 | P5: =Prop2020DistTar!P5 -> PropTar WtrBlk3 | R5: =Prop2020DistTar!AF5 -> FcastVol Fixed | S5: =Prop2020DistTar!AG5 -> FcastVol Anytime | T5: =Prop2020DistTar!AH5 -> FcastVol Pk | U5: =Prop2020DistTar!AI5 -> FcastVol Opk | V5: =Prop2020DistTar!AJ5 -> FcastVol Dem kVA | W5: =Prop2020DistTar!AK5 -> FcastVol Dem kW Sum | X5: =Prop2020DistTar!AL5 -> FcastVol Dem kW Win | Y5: =Prop2020DistTar!AM5 -> FcastVol SumBlk1 | Z5: =Prop2020DistTar!AN5 -> FcastVol SumBlk2 | AA5: =Prop2020DistTar!AO5 -> FcastVol SumBlk3 | AB5: =Prop2020DistTar!AP5 -> FcastVol WtrBlk1 | AC5: =Prop2020DistTar!AQ5 -> FcastVol WtrBlk2 | AD5: =Prop2020DistTar!AR5 -> FcastVol WtrBlk3 | AF5: =Prop2020DistTar!AT5 -> PropRev Fixed | AG5: =Prop2020DistTar!AU5 -> PropRev Anytime | AH5: =Prop2020DistTar!AV5 -> PropRev Pk | AI5: =Prop2020DistTar!AW5 -> PropRev Opk | AJ5: =Prop2020DistTar!AX5 -> PropRev Dem kVA | AK5: =Prop2020DistTar!AY5 -> PropRev Dem kW Sum | AL5: =Prop2020DistTar!AZ5 -> PropRev Dem kW Win | AM5: =Prop2020DistTar!BA5 -> PropRev SumBlk1 | AN5: =Prop2020DistTar!BB5 -> PropRev SumBlk2 | AO5: =Prop2020DistTar!BC5 -> PropRev SumBlk3 | AP5: =Prop2020DistTar!BD5 -> PropRev WtrBlk1 | AQ5: =Prop2020DistTar!BE5 -> PropRev WtrBlk2 | AR5: =Prop2020DistTar!BF5 -> PropRev WtrBlk3 | AS5: PropRev Total
B6: =Prop2020DistTar!B6 -> Residential Single Rate | D6: 0 | E6: 0.44 | F6: 0 | G6: 0 | H6: 0 | I6: 0 | J6: 0 | K6: 0 | L6: 0 | M6: 0 | N6: 0 | O6: 0 | P6: 0 | R6: =Prop2020DistTar!AF6 -> 572443.2566 | S6: =Prop2020DistTar!AG6 -> 2509366847 | T6: =Prop2020DistTar!AH6 -> 0 | U6: =Prop2020DistTar!AI6 -> 0 | V6: =Prop2020DistTar!AJ6 -> 0 | W6: =Prop2020DistTar!AK6 -> 0 | X6: =Prop2020DistTar!AL6 -> 0 | Y6: =Prop2020DistTar!AM6 -> 0 | Z6: =Prop2020DistTar!AN6 -> 0 | AA6: =Prop2020DistTar!AO6 -> 0 | AB6: =Prop2020DistTar!AP6 -> 0 | AC6: =Prop2020DistTar!AQ6 -> 0 | AD6: =Prop2020DistTar!AR6 -> 0 | AF6: =D6*R6 -> 0 | AG6: =E6/100*S6 -> 11041214.13 | AH6: 0 | AI6: 0 | AJ6: =H6*V6 -> 0 | AK6: =I6*W6 -> 0 | AL6: =J6*X6 -> 0 | AM6: 0 | AN6: 0 | AO6: =M6/100*AA6 -> 0 | AP6: =N6/100*AB6 -> 0 | AQ6: =O6/100*AC6 -> 0 | AR6: =P6/100*AD6 -> 0 | AS6: =SUM(AF6:AR6) -> 11041214.13
B7: =Prop2020DistTar!B7 -> Climate Saver | D7: 0 | E7: 0 | F7: 0.44 | G7: 0.44 | H7: 0 | I7: 0 | J7: 0 | K7: 0 | L7: 0 | M7: 0 | N7: 0 | O7: 0 | P7: 0 | R7: =Prop2020DistTar!AF7 -> 16861.04795 | S7: =Prop2020DistTar!AG7 -> 0 | T7: =Prop2020DistTar!AH7 -> 9874474.429 | U7: =Prop2020DistTar!AI7 -> 17935586.28 | V7: =Prop2020DistTar!AJ7 -> 0 | W7: =Prop2020DistTar!AK7 -> 0 | X7: =Prop2020DistTar!AL7 -> 0 | Y7: =Prop2020DistTar!AM7 -> 0 | Z7: =Prop2020DistTar!AN7 -> 0 | AA7: =Prop2020DistTar!AO7 -> 0 | AB7: =Prop2020DistTar!AP7 -> 0 | AC7: =Prop2020DistTar!AQ7 -> 0 | AD7: =Prop2020DistTar!AR7 -> 0 | AF7: =D7*R7 -> 0 | AG7: =E7/100*S7 -> 0 | AH7: 43447.68749 | AI7: 78916.57964 | AJ7: =H7*V7 -> 0 | AK7: =I7*W7 -> 0 | AL7: =J7*X7 -> 0 | AM7: 0 | AN7: 0 | AO7: 0 | AP7: 0 | AQ7: 0 | AR7: 0 | AS7: =SUM(AF7:AR7) -> 122364.2671
B8: =Prop2020DistTar!B8 -> Climate Saver Interval | D8: 0 | E8: 0 | F8: 0.44 | G8: 0.44 | H8: 0 | I8: 0 | J8: 0 | K8: 0 | L8: 0 | M8: 0 | N8: 0 | O8: 0 | P8: 0 | R8: =Prop2020DistTar!AF8 -> 4615 | S8: =Prop2020DistTar!AG8 -> 0 | T8: =Prop2020DistTar!AH8 -> 2865633.918 | U8: =Prop2020DistTar!AI8 -> 5776403.999 | V8: =Prop2020DistTar!AJ8 -> 0 | W8: =Prop2020DistTar!AK8 -> 0 | X8: =Prop2020DistTar!AL8 -> 0 | Y8: =Prop2020DistTar!AM8 -> 0 | Z8: =Prop2020DistTar!AN8 -> 0 | AA8: =Prop2020DistTar!AO8 -> 0 | AB8: =Prop2020DistTar!AP8 -> 0 | AC8: =Prop2020DistTar!AQ8 -> 0 | AD8: =Prop2020DistTar!AR8 -> 0 | AF8: 0 | AG8: 0 | AH8: 12608.78924 | AI8: 25416.17759 | AJ8: 0 | AK8: 0 | AL8: 0 | AM8: 0 | AN8: 0 | AO8: 0 | AP8: 0 | AQ8: 0 | AR8: 0 | AS8: 38024.96683
B9: =Prop2020DistTar!B9 -> Residential - Flexible Pricing | D9: 0 | E9: 0 | F9: 0 | G9: 0 | H9: 0 | I9: 0 | J9: 0 | K9: 0.44 | L9: 0.44 | M9: 0.44 | N9: 0.44 | O9: 0.44 | P9: 0.44 | R9: =Prop2020DistTar!AF9 -> 3091.114945 | S9: =Prop2020DistTar!AG9 -> 0 | T9: =Prop2020DistTar!AH9 -> 0 | U9: =Prop2020DistTar!AI9 -> 0 | V9: =Prop2020DistTar!AJ9 -> 0 | W9: =Prop2020DistTar!AK9 -> 0 | X9: =Prop2020DistTar!AL9 -> 0 | Y9: =Prop2020DistTar!AM9 -> 780281.0199 | Z9: =Prop2020DistTar!AN9 -> 1512255.045 | AA9: =Prop2020DistTar!AO9 -> 1229126.074 | AB9: =Prop2020DistTar!AP9 -> 2857752.309 | AC9: =Prop2020DistTar!AQ9 -> 5538581.917 | AD9: =Prop2020DistTar!AR9 -> 4501631.832 | AF9: 0 | AG9: 0 | AH9: 0 | AI9: 0 | AJ9: 0 | AK9: 0 | AL9: 0 | AM9: 3433.236487 | AN9: 6653.922198 | AO9: 5408.154726 | AP9: 12574.11016 | AQ9: 24369.76043 | AR9: 19807.18006 | AS9: 72246.36406
B10: =Prop2020DistTar!B10 -> Residential Docklands - Flexible Pricing | D10: 0 | E10: 0 | F10: 0 | G10: 0 | H10: 0 | I10: 0 | J10: 0 | K10: 0.44 | L10: 0.44 | M10: 0.44 | N10: 0.44 | O10: 0.44 | P10: 0.44 | R10: =Prop2020DistTar!AF10 -> 0.8982790797 | S10: =Prop2020DistTar!AG10 -> 0 | T10: =Prop2020DistTar!AH10 -> 0 | U10: =Prop2020DistTar!AI10 -> 0 | V10: =Prop2020DistTar!AJ10 -> 0 | W10: =Prop2020DistTar!AK10 -> 0 | X10: =Prop2020DistTar!AL10 -> 0 | Y10: =Prop2020DistTar!AM10 -> 301.2634427 | Z10: =Prop2020DistTar!AN10 -> 577.0353633 | AA10: =Prop2020DistTar!AO10 -> 387.0076533 | AB10: =Prop2020DistTar!AP10 -> 1038.66086 | AC10: =Prop2020DistTar!AQ10 -> 1989.435033 | AD10: =Prop2020DistTar!AR10 -> 1334.279721 | AF10: 0 | AG10: 0 | AH10: 0 | AI10: 0 | AJ10: 0 | AK10: 0 | AL10: 0 | AM10: 1.325559148 | AN10: 2.538955599 | AO10: 1.702833675 | AP10: 4.570107786 | AQ10: 8.753514143 | AR10: 5.870830771 | AS10: 24.76180112
B11: =Prop2020DistTar!B11 -> Climate Saver - Flexible Pricing | D11: 0 | E11: 0 | F11: 0 | G11: 0 | H11: 0 | I11: 0 | J11: 0 | K11: 0.44 | L11: 0 | M11: 0 | N11: 0.44 | O11: 0 | P11: 0 | R11: =Prop2020DistTar!AF11 -> 59 | S11: =Prop2020DistTar!AG11 -> 0 | T11: =Prop2020DistTar!AH11 -> 0 | U11: =Prop2020DistTar!AI11 -> 0 | V11: =Prop2020DistTar!AJ11 -> 0 | W11: =Prop2020DistTar!AK11 -> 0 | X11: =Prop2020DistTar!AL11 -> 0 | Y11: =Prop2020DistTar!AM11 -> 30654.86318 | Z11: =Prop2020DistTar!AN11 -> 0 | AA11: =Prop2020DistTar!AO11 -> 0 | AB11: =Prop2020DistTar!AP11 -> 8569.35181 | AC11: =Prop2020DistTar!AQ11 -> 0 | AD11: =Prop2020DistTar!AR11 -> 60941.97198 | AF11: 0 | AG11: 0 | AH11: 0 | AI11: 0 | AJ11: 0 | AK11: 0 | AL11: 0 | AM11: 134.881398 | AN11: 0 | AO11: 0 | AP11: 37.70514796 | AQ11: 0 | AR11: 0 | AS11: 172.586546
B12: =Prop2020DistTar!B12 -> Docklands single rate | D12: 0 | E12: 0.44 | F12: 0 | G12: 0 | H12: 0 | I12: 0 | J12: 0 | K12: 0 | L12: 0 | M12: 0 | N12: 0 | O12: 0 | P12: 0 | R12: =Prop2020DistTar!AF12 -> 2.535344821 | S12: =Prop2020DistTar!AG12 -> 47230.70418 | T12: =Prop2020DistTar!AH12 -> 0 | U12: =Prop2020DistTar!AI12 -> 0 | V12: =Prop2020DistTar!AJ12 -> 0 | W12: =Prop2020DistTar!AK12 -> 0 | X12: =Prop2020DistTar!AL12 -> 0 | Y12: =Prop2020DistTar!AM12 -> 0 | Z12: =Prop2020DistTar!AN12 -> 0 | AA12: =Prop2020DistTar!AO12 -> 0 | AB12: =Prop2020DistTar!AP12 -> 0 | AC12: =Prop2020DistTar!AQ12 -> 0 | AD12: =Prop2020DistTar!AR12 -> 0 | AF12: 0 | AG12: 207.8150984 | AH12: 0 | AI12: 0 | AJ12: 0 | AK12: 0 | AL12: 0 | AM12: 0 | AN12: 0 | AO12: 0 | AP12: 0 | AQ12: 0 | AR12: 0 | AS12: 207.8150984
B13: =Prop2020DistTar!B13 -> Residential Two Rate 5d | D13: 0 | E13: 0 | F13: 0.44 | G13: 0.44 | H13: 0 | I13: 0 | J13: 0 | K13: 0 | L13: 0 | M13: 0 | N13: 0 | O13: 0 | P13: 0 | R13: =Prop2020DistTar!AF13 -> 45021.61273 | S13: =Prop2020DistTar!AG13 -> 0 | T13: =Prop2020DistTar!AH13 -> 124072246.5 | U13: =Prop2020DistTar!AI13 -> 114355033.8 | V13: =Prop2020DistTar!AJ13 -> 0 | W13: =Prop2020DistTar!AK13 -> 0 | X13: =Prop2020DistTar!AL13 -> 0 | Y13: =Prop2020DistTar!AM13 -> 0 | Z13: =Prop2020DistTar!AN13 -> 0 | AA13: =Prop2020DistTar!AO13 -> 0 | AB13: =Prop2020DistTar!AP13 -> 0 | AC13: =Prop2020DistTar!AQ13 -> 0 | AD13: =Prop2020DistTar!AR13 -> 0 | AF13: 0 | AG13: 0 | AH13: 545917.8848 | AI13: 503162.1485 | AJ13: 0 | AK13: 0 | AL13: 0 | AM13: 0 | AN13: 0 | AO13: 0 | AP13: 0 | AQ13: 0 | AR13: 0 | AS13: 1049080.033
B14: =Prop2020DistTar!B14 -> Docklands Two Rate 5d | D14: 0 | E14: 0 | F14: 0.44 | G14: 0.44 | H14: 0 | I14: 0 | J14: 0 | K14: 0 | L14: 0 | M14: 0 | N14: 0 | O14: 0 | P14: 0 | R14: =Prop2020DistTar!AF14 -> 569.6349375 | S14: =Prop2020DistTar!AG14 -> 0 | T14: =Prop2020DistTar!AH14 -> 1813572.865 | U14: =Prop2020DistTar!AI14 -> 1689527.497 | V14: =Prop2020DistTar!AJ14 -> 0 | W14: =Prop2020DistTar!AK14 -> 0 | X14: =Prop2020DistTar!AL14 -> 0 | Y14: =Prop2020DistTar!AM14 -> 0 | Z14: =Prop2020DistTar!AN14 -> 0 | AA14: =Prop2020DistTar!AO14 -> 0 | AB14: =Prop2020DistTar!AP14 -> 0 | AC14: =Prop2020DistTar!AQ14 -> 0 | AD14: =Prop2020DistTar!AR14 -> 0 | AF14: 0 | AG14: 0 | AH14: 7979.720608 | AI14: 7433.920988 | AJ14: 0 | AK14: 0 | AL14: 0 | AM14: 0 | AN14: 0 | AO14: 0 | AP14: 0 | AQ14: 0 | AR14: 0 | AS14: 15413.6416
B15: =Prop2020DistTar!B15 -> Residential Interval | D15: 0 | E15: 0 | F15: 0.44 | G15: 0.44 | H15: 0 | I15: 0 | J15: 0 | K15: 0 | L15: 0 | M15: 0 | N15: 0 | O15: 0 | P15: 0 | R15: =Prop2020DistTar!AF15 -> 107903.7555 | S15: =Prop2020DistTar!AG15 -> 0 | T15: =Prop2020DistTar!AH15 -> 228035493.7 | U15: =Prop2020DistTar!AI15 -> 239648531 | V15: =Prop2020DistTar!AJ15 -> 0 | W15: =Prop2020DistTar!AK15 -> 0 | X15: =Prop2020DistTar!AL15 -> 0 | Y15: =Prop2020DistTar!AM15 -> 0 | Z15: =Prop2020DistTar!AN15 -> 0 | AA15: =Prop2020DistTar!AO15 -> 0 | AB15: =Prop2020DistTar!AP15 -> 0 | AC15: =Prop2020DistTar!AQ15 -> 0 | AD15: =Prop2020DistTar!AR15 -> 0 | AF15: 0 | AG15: 0 | AH15: 1003356.172 | AI15: 1054453.536 | AJ15: 0 | AK15: 0 | AL15: 0 | AM15: 0 | AN15: 0 | AO15: 0 | AP15: 0 | AQ15: 0 | AR15: 0 | AS15: 2057809.709
B16: =Prop2020DistTar!B16 -> Residential Two Rate 5d - controlled load | D16: 0 | E16: 0 | F16: 0 | G16: 0 | H16: 0 | I16: 0 | J16: 0 | K16: 0 | L16: 0 | M16: 0 | N16: 0 | O16: 0 | P16: 0 | R16: =Prop2020DistTar!AF16 -> 0 | S16: =Prop2020DistTar!AG16 -> 0 | T16: =Prop2020DistTar!AH16 -> 0 | U16: =Prop2020DistTar!AI16 -> 0 | V16: =Prop2020DistTar!AJ16 -> 0 | W16: =Prop2020DistTar!AK16 -> 0 | X16: =Prop2020DistTar!AL16 -> 0 | Y16: =Prop2020DistTar!AM16 -> 0 | Z16: =Prop2020DistTar!AN16 -> 0 | AA16: =Prop2020DistTar!AO16 -> 0 | AB16: =Prop2020DistTar!AP16 -> 0 | AC16: =Prop2020DistTar!AQ16 -> 0 | AD16: =Prop2020DistTar!AR16 -> 0 | AF16: 0 | AG16: 0 | AH16: 0 | AI16: 0 | AJ16: 0 | AK16: 0 | AL16: 0 | AM16: 0 | AN16: 0 | AO16: 0 | AP16: 0 | AQ16: 0 | AR16: 0 | AS16: 0
B17: =Prop2020DistTar!B17 -> Docklands Two Rate 5d - controlled load | D17: 0 | E17: 0 | F17: 0 | G17: 0 | H17: 0 | I17: 0 | J17: 0 | K17: 0 | L17: 0 | M17: 0 | N17: 0 | O17: 0 | P17: 0 | R17: =Prop2020DistTar!AF17 -> 0 | S17: =Prop2020DistTar!AG17 -> 0 | T17: =Prop2020DistTar!AH17 -> 0 | U17: =Prop2020DistTar!AI17 -> 0 | V17: =Prop2020DistTar!AJ17 -> 0 | W17: =Prop2020DistTar!AK17 -> 0 | X17: =Prop2020DistTar!AL17 -> 0 | Y17: =Prop2020DistTar!AM17 -> 0 | Z17: =Prop2020DistTar!AN17 -> 0 | AA17: =Prop2020DistTar!AO17 -> 0 | AB17: =Prop2020DistTar!AP17 -> 0 | AC17: =Prop2020DistTar!AQ17 -> 0 | AD17: =Prop2020DistTar!AR17 -> 0 | AF17: 0 | AG17: 0 | AH17: 0 | AI17: 0 | AJ17: 0 | AK17: 0 | AL17: 0 | AM17: 0 | AN17: 0 | AO17: 0 | AP17: 0 | AQ17: 0 | AR17: 0 | AS17: 0
B18: =Prop2020DistTar!B18 -> Dedicated circuit | D18: 0 | E18: 0 | F18: 0 | G18: 0.44 | H18: 0 | I18: 0 | J18: 0 | K18: 0 | L18: 0 | M18: 0 | N18: 0 | O18: 0 | P18: 0 | R18: =Prop2020DistTar!AF18 -> 204923.6273 | S18: =Prop2020DistTar!AG18 -> 0 | T18: =Prop2020DistTar!AH18 -> 0 | U18: =Prop2020DistTar!AI18 -> 377403994 | V18: =Prop2020DistTar!AJ18 -> 0 | W18: =Prop2020DistTar!AK18 -> 0 | X18: =Prop2020DistTar!AL18 -> 0 | Y18: =Prop2020DistTar!AM18 -> 0 | Z18: =Prop2020DistTar!AN18 -> 0 | AA18: =Prop2020DistTar!AO18 -> 0 | AB18: =Prop2020DistTar!AP18 -> 0 | AC18: =Prop2020DistTar!AQ18 -> 0 | AD18: =Prop2020DistTar!AR18 -> 0 | AF18: 0 | AG18: 0 | AH18: 0 | AI18: 1660577.573 | AJ18: 0 | AK18: 0 | AL18: 0 | AM18: 0 | AN18: 0 | AO18: 0 | AP18: 0 | AQ18: 0 | AR18: 0 | AS18: 1660577.573
B19: =Prop2020DistTar!B19 -> Hot Water Interval | D19: 0 | E19: 0 | F19: 0 | G19: 0 | H19: 0 | I19: 0 | J19: 0 | K19: 0 | L19: 0 | M19: 0 | N19: 0 | O19: 0 | P19: 0 | R19: =Prop2020DistTar!AF19 -> 0 | S19: =Prop2020DistTar!AG19 -> 0 | T19: =Prop2020DistTar!AH19 -> 0 | U19: =Prop2020DistTar!AI19 -> 0 | V19: =Prop2020DistTar!AJ19 -> 0 | W19: =Prop2020DistTar!AK19 -> 0 | X19: =Prop2020DistTar!AL19 -> 0 | Y19: =Prop2020DistTar!AM19 -> 0 | Z19: =Prop2020DistTar!AN19 -> 0 | AA19: =Prop2020DistTar!AO19 -> 0 | AB19: =Prop2020DistTar!AP19 -> 0 | AC19: =Prop2020DistTar!AQ19 -> 0 | AD19: =Prop2020DistTar!AR19 -> 0 | AF19: 0 | AG19: 0 | AH19: 0 | AI19: 0 | AJ19: 0 | AK19: 0 | AL19: 0 | AM19: 0 | AN19: 0 | AO19: 0 | AP19: 0 | AQ19: 0 | AR19: 0 | AS19: 0
B20: =Prop2020DistTar!B20 -> Residential Demand | D20: 0 | E20: 0.44 | F20: 0 | G20: 0 | H20: 0 | I20: 0 | J20: 0 | K20: 0 | L20: 0 | M20: 0 | N20: 0 | O20: 0 | P20: 0 | R20: =Prop2020DistTar!AF20 -> 4.638457997 | S20: =Prop2020DistTar!AG20 -> 17808.24168 | T20: =Prop2020DistTar!AH20 -> 0 | U20: =Prop2020DistTar!AI20 -> 0 | V20: =Prop2020DistTar!AJ20 -> 0 | W20: =Prop2020DistTar!AK20 -> 53.31988566 | X20: =Prop2020DistTar!AL20 -> 107.3570863 | Y20: =Prop2020DistTar!AM20 -> 0 | Z20: =Prop2020DistTar!AN20 -> 0 | AA20: =Prop2020DistTar!AO20 -> 0 | AB20: =Prop2020DistTar!AP20 -> 0 | AC20: =Prop2020DistTar!AQ20 -> 0 | AD20: =Prop2020DistTar!AR20 -> 0 | AF20: 0 | AG20: 78.35626341 | AH20: 0 | AI20: 0 | AJ20: 0 | AK20: 0 | AL20: 0 | AM20: 0 | AN20: 0 | AO20: 0 | AP20: 0 | AQ20: 0 | AR20: 0 | AS20: 78.35626341
B21: =Prop2020DistTar!B21 -> Newstead Residential Trial | D21: 0 | E21: 0 | F21: 0 | G21: 0 | H21: 0 | I21: 0 | J21: 0 | K21: 0 | L21: 0 | M21: 0 | N21: 0 | O21: 0 | P21: 0 | R21: =Prop2020DistTar!AF21 -> 9.767123288 | S21: =Prop2020DistTar!AG21 -> 42793.42516 | T21: =Prop2020DistTar!AH21 -> 0 | U21: =Prop2020DistTar!AI21 -> 0 | V21: =Prop2020DistTar!AJ21 -> 0 | W21: =Prop2020DistTar!AK21 -> 114.1 | X21: =Prop2020DistTar!AL21 -> 232.3 | Y21: =Prop2020DistTar!AM21 -> 0 | Z21: =Prop2020DistTar!AN21 -> 0 | AA21: =Prop2020DistTar!AO21 -> 0 | AB21: =Prop2020DistTar!AP21 -> 0 | AC21: =Prop2020DistTar!AQ21 -> 0 | AD21: =Prop2020DistTar!AR21 -> 0 | AF21: 0 | AG21: 0 | AH21: 0 | AI21: 0 | AJ21: 0 | AK21: 0 | AL21: 0 | AM21: 0 | AN21: 0 | AO21: 0 | AP21: 0 | AQ21: 0 | AR21: 0 | AS21: 0
B22: =Prop2020DistTar!B22 -> Non-Residential Single Rate | D22: 0 | E22: 0.44 | F22: 0 | G22: 0 | H22: 0 | I22: 0 | J22: 0 | K22: 0 | L22: 0 | M22: 0 | N22: 0 | O22: 0 | P22: 0 | R22: =Prop2020DistTar!AF22 -> 44757.25741 | S22: =Prop2020DistTar!AG22 -> 285894018.3 | T22: =Prop2020DistTar!AH22 -> 0 | U22: =Prop2020DistTar!AI22 -> 0 | V22: =Prop2020DistTar!AJ22 -> 0 | W22: =Prop2020DistTar!AK22 -> 0 | X22: =Prop2020DistTar!AL22 -> 0 | Y22: =Prop2020DistTar!AM22 -> 0 | Z22: =Prop2020DistTar!AN22 -> 0 | AA22: =Prop2020DistTar!AO22 -> 0 | AB22: =Prop2020DistTar!AP22 -> 0 | AC22: =Prop2020DistTar!AQ22 -> 0 | AD22: =Prop2020DistTar!AR22 -> 0 | AF22: 0 | AG22: 1257933.68 | AH22: 0 | AI22: 0 | AJ22: 0 | AK22: 0 | AL22: 0 | AM22: 0 | AN22: 0 | AO22: 0 | AP22: 0 | AQ22: 0 | AR22: 0 | AS22: 1257933.68
B23: =Prop2020DistTar!B23 -> Non-Residential Flexible Pricing | D23: 0 | E23: 0 | F23: 0 | G23: 0 | H23: 0 | I23: 0 | J23: 0 | K23: 0.44 | L23: 0.44 | M23: 0.44 | N23: 0.44 | O23: 0.44 | P23: 0.44 | R23: =Prop2020DistTar!AF23 -> 185.3732239 | S23: =Prop2020DistTar!AG23 -> 0 | T23: =Prop2020DistTar!AH23 -> 0 | U23: =Prop2020DistTar!AI23 -> 0 | V23: =Prop2020DistTar!AJ23 -> 0 | W23: =Prop2020DistTar!AK23 -> 0 | X23: =Prop2020DistTar!AL23 -> 0 | Y23: =Prop2020DistTar!AM23 -> 389065.4574 | Z23: =Prop2020DistTar!AN23 -> 144770.8667 | AA23: =Prop2020DistTar!AO23 -> 415832.5339 | AB23: =Prop2020DistTar!AP23 -> 1116363.747 | AC23: =Prop2020DistTar!AQ23 -> 415397.8316 | AD23: =Prop2020DistTar!AR23 -> 1193167.774 | AF23: 0 | AG23: 0 | AH23: 0 | AI23: 0 | AJ23: 0 | AK23: 0 | AL23: 0 | AM23: 1711.888012 | AN23: 636.9918137 | AO23: 1829.663149 | AP23: 4912.000489 | AQ23: 1827.750459 | AR23: 5249.938208 | AS23: 16168.23213
B24: =Prop2020DistTar!B24 -> Non-Residential Two Rate 5d | D24: 0 | E24: 0 | F24: 0.44 | G24: 0.44 | H24: 0 | I24: 0 | J24: 0 | K24: 0 | L24: 0 | M24: 0 | N24: 0 | O24: 0 | P24: 0 | R24: =Prop2020DistTar!AF24 -> 23862.43162 | S24: =Prop2020DistTar!AG24 -> 0 | T24: =Prop2020DistTar!AH24 -> 193485923.8 | U24: =Prop2020DistTar!AI24 -> 171713473.8 | V24: =Prop2020DistTar!AJ24 -> 0 | W24: =Prop2020DistTar!AK24 -> 0 | X24: =Prop2020DistTar!AL24 -> 0 | Y24: =Prop2020DistTar!AM24 -> 0 | Z24: =Prop2020DistTar!AN24 -> 0 | AA24: =Prop2020DistTar!AO24 -> 0 | AB24: =Prop2020DistTar!AP24 -> 0 | AC24: =Prop2020DistTar!AQ24 -> 0 | AD24: =Prop2020DistTar!AR24 -> 0 | AF24: 0 | AG24: 0 | AH24: 851338.0649 | AI24: 755539.2849 | AJ24: 0 | AK24: 0 | AL24: 0 | AM24: 0 | AN24: 0 | AO24: 0 | AP24: 0 | AQ24: 0 | AR24: 0 | AS24: 1606877.35
B25: =Prop2020DistTar!B25 -> Non-Residential Interval | D25: 0 | E25: 0 | F25: 0.44 | G25: 0.44 | H25: 0 | I25: 0 | J25: 0 | K25: 0 | L25: 0 | M25: 0 | N25: 0 | O25: 0 | P25: 0 | R25: =Prop2020DistTar!AF25 -> 12072.36866 | S25: =Prop2020DistTar!AG25 -> 0 | T25: =Prop2020DistTar!AH25 -> 85635596.92 | U25: =Prop2020DistTar!AI25 -> 62438419.24 | V25: =Prop2020DistTar!AJ25 -> 0 | W25: =Prop2020DistTar!AK25 -> 0 | X25: =Prop2020DistTar!AL25 -> 0 | Y25: =Prop2020DistTar!AM25 -> 0 | Z25: =Prop2020DistTar!AN25 -> 0 | AA25: =Prop2020DistTar!AO25 -> 0 | AB25: =Prop2020DistTar!AP25 -> 0 | AC25: =Prop2020DistTar!AQ25 -> 0 | AD25: =Prop2020DistTar!AR25 -> 0 | AF25: 0 | AG25: 0 | AH25: 376796.6264 | AI25: 274729.0447 | AJ25: 0 | AK25: 0 | AL25: 0 | AM25: 0 | AN25: 0 | AO25: 0 | AP25: 0 | AQ25: 0 | AR25: 0 | AS25: 651525.6711
B26: =Prop2020DistTar!B26 -> Non-Residential Two Rate 7d | D26: 0 | E26: 0 | F26: 0.44 | G26: 0.44 | H26: 0 | I26: 0 | J26: 0 | K26: 0 | L26: 0 | M26: 0 | N26: 0 | O26: 0 | P26: 0 | R26: =Prop2020DistTar!AF26 -> 7019.479943 | S26: =Prop2020DistTar!AG26 -> 0 | T26: =Prop2020DistTar!AH26 -> 54390915.31 | U26: =Prop2020DistTar!AI26 -> 21067936.39 | V26: =Prop2020DistTar!AJ26 -> 0 | W26: =Prop2020DistTar!AK26 -> 0 | X26: =Prop2020DistTar!AL26 -> 0 | Y26: =Prop2020DistTar!AM26 -> 0 | Z26: =Prop2020DistTar!AN26 -> 0 | AA26: =Prop2020DistTar!AO26 -> 0 | AB26: =Prop2020DistTar!AP26 -> 0 | AC26: =Prop2020DistTar!AQ26 -> 0 | AD26: =Prop2020DistTar!AR26 -> 0 | AF26: 0 | AG26: 0 | AH26: 239320.0274 | AI26: 92698.9201 | AJ26: 0 | AK26: 0 | AL26: 0 | AM26: 0 | AN26: 0 | AO26: 0 | AP26: 0 | AQ26: 0 | AR26: 0 | AS26: 332018.9475
B27: =Prop2020DistTar!B27 -> Non-Residential Demand | D27: 0 | E27: 0.44 | F27: 0 | G27: 0 | H27: 0 | I27: 0 | J27: 0 | K27: 0 | L27: 0 | M27: 0 | N27: 0 | O27: 0 | P27: 0 | R27: =Prop2020DistTar!AF27 -> 114.0665769 | S27: =Prop2020DistTar!AG27 -> 4632749.457 | T27: =Prop2020DistTar!AH27 -> 0 | U27: =Prop2020DistTar!AI27 -> 0 | V27: =Prop2020DistTar!AJ27 -> 0 | W27: =Prop2020DistTar!AK27 -> 1491.820739 | X27: =Prop2020DistTar!AL27 -> 3511.797771 | Y27: =Prop2020DistTar!AM27 -> 0 | Z27: =Prop2020DistTar!AN27 -> 0 | AA27: =Prop2020DistTar!AO27 -> 0 | AB27: =Prop2020DistTar!AP27 -> 0 | AC27: =Prop2020DistTar!AQ27 -> 0 | AD27: =Prop2020DistTar!AR27 -> 0 | AF27: 0 | AG27: 20384.09761 | AH27: 0 | AI27: 0 | AJ27: 0 | AK27: 0 | AL27: 0 | AM27: 0 | AN27: 0 | AO27: 0 | AP27: 0 | AQ27: 0 | AR27: 0 | AS27: 20384.09761
B28: =Prop2020DistTar!B28 -> Medium business Demand | D28: 0 | E28: 0 | F28: 0.42 | G28: 0.42 | H28: 0 | I28: 0 | J28: 0 | K28: 0 | L28: 0 | M28: 0 | N28: 0 | O28: 0 | P28: 0 | R28: =Prop2020DistTar!AF28 -> 7728.558394 | S28: =Prop2020DistTar!AG28 -> 0 | T28: =Prop2020DistTar!AH28 -> 521622988.5 | U28: =Prop2020DistTar!AI28 -> 460904199 | V28: =Prop2020DistTar!AJ28 -> 0 | W28: =Prop2020DistTar!AK28 -> 1415486.63 | X28: =Prop2020DistTar!AL28 -> 2510898.806 | Y28: =Prop2020DistTar!AM28 -> 0 | Z28: =Prop2020DistTar!AN28 -> 0 | AA28: =Prop2020DistTar!AO28 -> 0 | AB28: =Prop2020DistTar!AP28 -> 0 | AC28: =Prop2020DistTar!AQ28 -> 0 | AD28: =Prop2020DistTar!AR28 -> 0 | AF28: 0 | AG28: 0 | AH28: 2190816.552 | AI28: 1935797.636 | AJ28: 0 | AK28: 0 | AL28: 0 | AM28: 0 | AN28: 0 | AO28: 0 | AP28: 0 | AQ28: 0 | AR28: 0 | AS28: 4126614.187
B29: =Prop2020DistTar!B29 -> Medium business Opt-out | D29: 0 | E29: 0 | F29: 0.41 | G29: 0.41 | H29: 0 | I29: 0 | J29: 0 | K29: 0 | L29: 0 | M29: 0 | N29: 0 | O29: 0 | P29: 0 | R29: =Prop2020DistTar!AF29 -> 153.7035844 | S29: =Prop2020DistTar!AG29 -> 0 | T29: =Prop2020DistTar!AH29 -> 6410795.222 | U29: =Prop2020DistTar!AI29 -> 4790864.918 | V29: =Prop2020DistTar!AJ29 -> 0 | W29: =Prop2020DistTar!AK29 -> 0 | X29: =Prop2020DistTar!AL29 -> 0 | Y29: =Prop2020DistTar!AM29 -> 0 | Z29: =Prop2020DistTar!AN29 -> 0 | AA29: =Prop2020DistTar!AO29 -> 0 | AB29: =Prop2020DistTar!AP29 -> 0 | AC29: =Prop2020DistTar!AQ29 -> 0 | AD29: =Prop2020DistTar!AR29 -> 0 | AF29: 0 | AG29: 0 | AH29: 26284.26041 | AI29: 19642.54616 | AJ29: 0 | AK29: 0 | AL29: 0 | AM29: 0 | AN29: 0 | AO29: 0 | AP29: 0 | AQ29: 0 | AR29: 0 | AS29: 45926.80657
B30: =Prop2020DistTar!B30 -> Public Lighting | D30: 0 | E30: 0 | F30: 0 | G30: 0 | H30: 0 | I30: 0 | J30: 0 | K30: 0 | L30: 0 | M30: 0 | N30: 0 | O30: 0 | P30: 0 | R30: =Prop2020DistTar!AF30 -> 8533.552004 | S30: =Prop2020DistTar!AG30 -> 0 | T30: =Prop2020DistTar!AH30 -> 22127392.06 | U30: =Prop2020DistTar!AI30 -> 55870540.72 | V30: =Prop2020DistTar!AJ30 -> 0 | W30: =Prop2020DistTar!AK30 -> 0 | X30: =Prop2020DistTar!AL30 -> 0 | Y30: =Prop2020DistTar!AM30 -> 0 | Z30: =Prop2020DistTar!AN30 -> 0 | AA30: =Prop2020DistTar!AO30 -> 0 | AB30: =Prop2020DistTar!AP30 -> 0 | AC30: =Prop2020DistTar!AQ30 -> 0 | AD30: =Prop2020DistTar!AR30 -> 0 | AF30: 0 | AG30: 0 | AH30: 0 | AI30: 0 | AJ30: 0 | AK30: 0 | AL30: 0 | AM30: 0 | AN30: 0 | AO30: 0 | AP30: 0 | AQ30: 0 | AR30: 0 | AS30: 0
B31: =Prop2020DistTar!B31 -> Large low Voltage | D31: 0 | E31: 0 | F31: 0.4 | G31: 0.4 | H31: 0 | I31: 0 | J31: 0 | K31: 0 | L31: 0 | M31: 0 | N31: 0 | O31: 0 | P31: 0 | R31: =Prop2020DistTar!AF31 -> 2882.562375 | S31: =Prop2020DistTar!AG31 -> 0 | T31: =Prop2020DistTar!AH31 -> 1374258544 | U31: =Prop2020DistTar!AI31 -> 1079562538 | V31: =Prop2020DistTar!AJ31 -> 855266.5349 | W31: =Prop2020DistTar!AK31 -> 0 | X31: =Prop2020DistTar!AL31 -> 0 | Y31: =Prop2020DistTar!AM31 -> 0 | Z31: =Prop2020DistTar!AN31 -> 0 | AA31: =Prop2020DistTar!AO31 -> 0 | AB31: =Prop2020DistTar!AP31 -> 0 | AC31: =Prop2020DistTar!AQ31 -> 0 | AD31: =Prop2020DistTar!AR31 -> 0 | AF31: 0 | AG31: 0 | AH31: 5497034.174 | AI31: 4318250.151 | AJ31: 0 | AK31: 0 | AL31: 0 | AM31: 0 | AN31: 0 | AO31: 0 | AP31: 0 | AQ31: 0 | AR31: 0 | AS31: 9815284.326
B32: =Prop2020DistTar!B32 -> High Voltage | D32: 0 | E32: 0 | F32: 0 | G32: 0 | H32: 0 | I32: 0 | J32: 0 | K32: 0 | L32: 0 | M32: 0 | N32: 0 | O32: 0 | P32: 0 | R32: =Prop2020DistTar!AF32 -> 170.8100271 | S32: =Prop2020DistTar!AG32 -> 0 | T32: =Prop2020DistTar!AH32 -> 753809957.8 | U32: =Prop2020DistTar!AI32 -> 686531052.5 | V32: =Prop2020DistTar!AJ32 -> 396969.309 | W32: =Prop2020DistTar!AK32 -> 0 | X32: =Prop2020DistTar!AL32 -> 0 | Y32: =Prop2020DistTar!AM32 -> 0 | Z32: =Prop2020DistTar!AN32 -> 0 | AA32: =Prop2020DistTar!AO32 -> 0 | AB32: =Prop2020DistTar!AP32 -> 0 | AC32: =Prop2020DistTar!AQ32 -> 0 | AD32: =Prop2020DistTar!AR32 -> 0 | AF32: 0 | AG32: 0 | AH32: 0 | AI32: 0 | AJ32: 0 | AK32: 0 | AL32: 0 | AM32: 0 | AN32: 0 | AO32: 0 | AP32: 0 | AQ32: 0 | AR32: 0 | AS32: 0
B33: =Prop2020DistTar!B33 -> High Voltage Docklands | D33: 0 | E33: 0 | F33: 0 | G33: 0 | H33: 0 | I33: 0 | J33: 0 | K33: 0 | L33: 0 | M33: 0 | N33: 0 | O33: 0 | P33: 0 | R33: =Prop2020DistTar!AF33 -> 7.418730278 | S33: =Prop2020DistTar!AG33 -> 0 | T33: =Prop2020DistTar!AH33 -> 117981877.6 | U33: =Prop2020DistTar!AI33 -> 123663478.9 | V33: =Prop2020DistTar!AJ33 -> 65516.45569 | W33: =Prop2020DistTar!AK33 -> 0 | X33: =Prop2020DistTar!AL33 -> 0 | Y33: =Prop2020DistTar!AM33 -> 0 | Z33: =Prop2020DistTar!AN33 -> 0 | AA33: =Prop2020DistTar!AO33 -> 0 | AB33: =Prop2020DistTar!AP33 -> 0 | AC33: =Prop2020DistTar!AQ33 -> 0 | AD33: =Prop2020DistTar!AR33 -> 0 | AF33: =D33*R33 -> 0 | AG33: =E33/100*S33 -> 0 | AH33: 0 | AI33: 0 | AJ33: 0 | AK33: 0 | AL33: 0 | AM33: 0 | AN33: 0 | AO33: 0 | AP33: 0 | AQ33: 0 | AR33: 0 | AS33: =SUM(AF33:AR33) -> 0
B34: =Prop2020DistTar!B34 -> Subtransmission | D34: 0 | E34: 0 | F34: 0 | G34: 0 | H34: 0 | I34: 0 | J34: 0 | K34: 0 | L34: 0 | M34: 0 | N34: 0 | O34: 0 | P34: 0 | R34: =Prop2020DistTar!AF34 -> 14 | S34: =Prop2020DistTar!AG34 -> 0 | T34: =Prop2020DistTar!AH34 -> 561857994.9 | U34: =Prop2020DistTar!AI34 -> 641803918.6 | V34: =Prop2020DistTar!AJ34 -> 264628.1239 | W34: =Prop2020DistTar!AK34 -> 0 | X34: =Prop2020DistTar!AL34 -> 0 | Y34: =Prop2020DistTar!AM34 -> 0 | Z34: =Prop2020DistTar!AN34 -> 0 | AA34: =Prop2020DistTar!AO34 -> 0 | AB34: =Prop2020DistTar!AP34 -> 0 | AC34: =Prop2020DistTar!AQ34 -> 0 | AD34: =Prop2020DistTar!AR34 -> 0 | AF34: 0 | AG34: 0 | AH34: 0 | AI34: 0 | AJ34: 0 | AK34: 0 | AL34: 0 | AM34: 0 | AN34: 0 | AO34: 0 | AP34: 0 | AQ34: 0 | AR34: 0 | AS34: 0
AF35: =D35*R35 -> 0 | AG35: =E35/100*S35 -> 0 | AH35: =F35/100*T35 -> 0 | AI35: =G35/100*U35 -> 0 | AJ35: 0 | AK35: 0 | AL35: 0 | AM35: =K35/100*Y35 -> 0 | AN35: =L35/100*Z35 -> 0 | AO35: 0 | AP35: 0 | AQ35: 0 | AR35: 0 | AS35: =SUM(AF35:AR35) -> 0
AF36: 0 | AG36: 0 | AH36: 0 | AI36: 0 | AJ36: 0 | AK36: 0 | AL36: 0 | AM36: 0 | AN36: 0 | AO36: 0 | AP36: 0 | AQ36: 0 | AR36: 0 | AS36: 0
AF37: 0 | AG37: 0 | AH37: 0 | AI37: 0 | AJ37: 0 | AK37: 0 | AL37: 0 | AM37: 0 | AN37: 0 | AO37: 0 | AP37: 0 | AQ37: 0 | AR37: 0 | AS37: 0
AF38: 0 | AG38: 0 | AH38: 0 | AI38: 0 | AJ38: 0 | AK38: 0 | AL38: 0 | AM38: 0 | AN38: =L38/100*Z38 -> 0 | AO38: 0 | AP38: 0 | AQ38: 0 | AR38: 0 | AS38: 0
AF39: 0 | AG39: 0 | AH39: 0 | AI39: 0 | AJ39: 0 | AK39: 0 | AL39: 0 | AM39: 0 | AN39: 0 | AO39: 0 | AP39: 0 | AQ39: 0 | AR39: 0 | AS39: 0
AF40: 0 | AG40: 0 | AH40: 0 | AI40: 0 | AJ40: 0 | AK40: 0 | AL40: 0 | AM40: 0 | AN40: 0 | AO40: 0 | AP40: 0 | AQ40: 0 | AR40: 0 | AS40: 0
AF41: 0 | AG41: 0 | AH41: 0 | AI41: 0 | AJ41: 0 | AK41: 0 | AL41: 0 | AM41: 0 | AN41: 0 | AO41: 0 | AP41: 0 | AQ41: 0 | AR41: 0 | AS41: 0
AF42: 0 | AG42: 0 | AH42: 0 | AI42: 0 | AJ42: 0 | AK42: 0 | AL42: 0 | AM42: 0 | AN42: 0 | AO42: 0 | AP42: 0 | AQ42: 0 | AR42: 0 | AS42: 0
AF43: 0 | AG43: 0 | AH43: 0 | AI43: 0 | AJ43: 0 | AK43: 0 | AL43: 0 | AM43: 0 | AN43: 0 | AO43: 0 | AP43: 0 | AQ43: 0 | AR43: 0 | AS43: 0
AF44: 0 | AG44: 0 | AH44: 0 | AI44: 0 | AJ44: 0 | AK44: 0 | AL44: 0 | AM44: 0 | AN44: 0 | AO44: 0 | AP44: 0 | AQ44: 0 | AR44: 0 | AS44: 0
AF45: 0 | AG45: 0 | AH45: 0 | AI45: 0 | AJ45: 0 | AK45: 0 | AL45: 0 | AM45: 0 | AN45: 0 | AO45: 0 | AP45: 0 | AQ45: 0 | AR45: 0 | AS45: 0
AF46: 0 | AG46: 0 | AH46: 0 | AI46: 0 | AJ46: 0 | AK46: 0 | AL46: 0 | AM46: 0 | AN46: 0 | AO46: 0 | AP46: 0 | AQ46: 0 | AR46: 0 | AS46: 0
AF47: 0 | AG47: 0 | AH47: 0 | AI47: 0 | AJ47: 0 | AK47: 0 | AL47: 0 | AM47: 0 | AN47: 0 | AO47: 0 | AP47: 0 | AQ47: 0 | AR47: 0 | AS47: 0
AF48: 0 | AG48: 0 | AH48: 0 | AI48: 0 | AJ48: 0 | AK48: 0 | AL48: 0 | AM48: 0 | AN48: 0 | AO48: 0 | AP48: 0 | AQ48: 0 | AR48: 0 | AS48: 0
AF49: 0 | AG49: 0 | AH49: 0 | AI49: 0 | AJ49: 0 | AK49: 0 | AL49: 0 | AM49: 0 | AN49: 0 | AO49: 0 | AP49: 0 | AQ49: 0 | AR49: 0 | AS49: 0
AF50: 0 | AG50: 0 | AH50: 0 | AI50: 0 | AJ50: 0 | AK50: 0 | AL50: 0 | AM50: 0 | AN50: 0 | AO50: 0 | AP50: 0 | AQ50: 0 | AR50: 0 | AS50: 0
AF51: 0 | AG51: 0 | AH51: 0 | AI51: 0 | AJ51: 0 | AK51: 0 | AL51: 0 | AM51: 0 | AN51: 0 | AO51: 0 | AP51: 0 | AQ51: 0 | AR51: 0 | AS51: 0
AF52: 0 | AG52: 0 | AH52: 0 | AI52: 0 | AJ52: 0 | AK52: 0 | AL52: 0 | AM52: 0 | AN52: 0 | AO52: 0 | AP52: 0 | AQ52: 0 | AR52: 0 | AS52: 0
AF53: 0 | AG53: 0 | AH53: 0 | AI53: 0 | AJ53: 0 | AK53: 0 | AL53: 0 | AM53: 0 | AN53: 0 | AO53: 0 | AP53: 0 | AQ53: 0 | AR53: 0 | AS53: 0
AF54: 0 | AG54: 0 | AH54: 0 | AI54: 0 | AJ54: 0 | AK54: 0 | AL54: 0 | AM54: 0 | AN54: 0 | AO54: 0 | AP54: 0 | AQ54: 0 | AR54: 0 | AS54: 0
AF55: 0 | AG55: 0 | AH55: 0 | AI55: 0 | AJ55: 0 | AK55: 0 | AL55: 0 | AM55: 0 | AN55: 0 | AO55: 0 | AP55: 0 | AQ55: 0 | AR55: 0 | AS55: 0
AF56: 0 | AG56: 0 | AH56: 0 | AI56: 0 | AJ56: 0 | AK56: 0 | AL56: 0 | AM56: 0 | AN56: 0 | AO56: 0 | AP56: 0 | AQ56: 0 | AR56: 0 | AS56: 0
AF57: 0 | AG57: 0 | AH57: 0 | AI57: 0 | AJ57: 0 | AK57: 0 | AL57: 0 | AM57: 0 | AN57: 0 | AO57: 0 | AP57: 0 | AQ57: 0 | AR57: 0 | AS57: 0
AF58: 0 | AG58: 0 | AH58: 0 | AI58: 0 | AJ58: 0 | AK58: 0 | AL58: 0 | AM58: 0 | AN58: 0 | AO58: 0 | AP58: 0 | AQ58: 0 | AR58: 0 | AS58: 0
AF59: 0 | AG59: 0 | AH59: 0 | AI59: 0 | AJ59: 0 | AK59: 0 | AL59: 0 | AM59: 0 | AN59: 0 | AO59: 0 | AP59: 0 | AQ59: 0 | AR59: 0 | AS59: 0
AF60: 0 | AG60: 0 | AH60: 0 | AI60: 0 | AJ60: 0 | AK60: 0 | AL60: 0 | AM60: 0 | AN60: 0 | AO60: 0 | AP60: 0 | AQ60: 0 | AR60: 0 | AS60: 0
AF61: 0 | AG61: 0 | AH61: 0 | AI61: 0 | AJ61: 0 | AK61: 0 | AL61: 0 | AM61: 0 | AN61: 0 | AO61: 0 | AP61: 0 | AQ61: 0 | AR61: 0 | AS61: 0
AF62: 0 | AG62: 0 | AH62: 0 | AI62: 0 | AJ62: 0 | AK62: 0 | AL62: 0 | AM62: 0 | AN62: 0 | AO62: 0 | AP62: 0 | AQ62: 0 | AR62: 0 | AS62: 0
AF63: 0 | AG63: 0 | AH63: 0 | AI63: 0 | AJ63: 0 | AK63: 0 | AL63: 0 | AM63: 0 | AN63: 0 | AO63: 0 | AP63: 0 | AQ63: 0 | AR63: 0 | AS63: 0
AF64: 0 | AG64: 0 | AH64: 0 | AI64: 0 | AJ64: 0 | AK64: 0 | AL64: 0 | AM64: 0 | AN64: 0 | AO64: 0 | AP64: 0 | AQ64: 0 | AR64: 0 | AS64: 0
AF65: 0 | AG65: 0 | AH65: 0 | AI65: 0 | AJ65: 0 | AK65: 0 | AL65: 0 | AM65: 0 | AN65: 0 | AO65: 0 | AP65: 0 | AQ65: 0 | AR65: 0 | AS65: 0
R66: =SUM(R6:R65) -> 1063007.472 | S66: 2800001447 | T66: 4058243407 | U66: 4065155498 | V66: 1582380.423 | W66: 1417145.87 | X66: 2514750.261 | Y66: =SUM(Y6:Y65) -> 1200302.604 | Z66: 1657602.947 | AA66: 1645345.616 | AB66: 3983724.069 | AC66: 5955969.183 | AD66: 5757075.858 | AF66: =SUM(AF6:AF65) -> 0 | AG66: 12319818.08 | AH66: 10794899.96 | AI66: 10726617.52 | AJ66: 0 | AK66: 0 | AL66: 0 | AM66: =SUM(AM6:AM65) -> 5281.331457 | AN66: 7293.452967 | AO66: 7239.520709 | AP66: 17528.3859 | AQ66: 26206.26441 | AR66: 25062.9891 | AS66: 33929947.5

Sheet Est2019JSRev
B1: ="Tariff Approval - "&'Model update'!C3 -> Tariff Approval - Powercor | D1: ="Est"&'Model update'!$C$5-1&"JSRev" -> Est2019JSRev
B3: ="ESTIMATED "&'Model update'!C8&" JURISDICTIONAL SCHEME REVENUE" -> ESTIMATED 2019 JURISDICTIONAL SCHEME REVENUE
D4: ="Current Jurisdictional scheme Tariffs (Pt-1) for "&'Model update'!$C$8 -> Current Jurisdictional scheme Tariffs (Pt-1) for 2019 | R4: ="Estimated Quantities (Qt-1) for "&'Model update'!$C$8 -> Estimated Quantities (Qt-1) for 2019 | AF4: ="Estimated Revenue (Pt-1 "&'Model update'!$C$8&")*(Qt-1 " &'Model update'!$C$8&")" -> Estimated Revenue (Pt-1 2019)*(Qt-1 2019)
B5: ="Tariffs "&'Model update'!C8 -> Tariffs 2019 | D5: =Est2019DistRev!D5 -> CurrentTar Fixed | E5: =Est2019DistRev!E5 -> CurrentTar Anytime | F5: =Est2019DistRev!F5 -> CurrentTar PkBlk | G5: =Est2019DistRev!G5 -> CurrentTar OPkBlk1 | H5: =Est2019DistRev!H5 -> CurrentTar Dem kVA | I5: =Est2019DistRev!I5 -> CurrentTar Dem kW Sum | J5: =Est2019DistRev!J5 -> CurrentTar Dem kW Win | K5: =Est2019DistRev!K5 -> CurrentTar SumBlk1 | L5: =Est2019DistRev!L5 -> CurrentTar SumBlk2 | M5: =Est2019DistRev!M5 -> CurrentTar SumBlk3 | N5: =Est2019DistRev!N5 -> CurrentTar WtrBlk1 | O5: =Est2019DistRev!O5 -> CurrentTar WtrBlk2 | P5: =Est2019DistRev!P5 -> CurrentTar WtrBlk3 | R5: =Est2019DistRev!R5 -> EstVol Fixed | S5: =Est2019DistRev!S5 -> EstVol Anytime | T5: =Est2019DistRev!T5 -> EstVol Pk | U5: =Est2019DistRev!U5 -> EstVol Opk | V5: =Est2019DistRev!V5 -> EstVol Dem kVA | W5: =Est2019DistRev!W5 -> EstVol Dem kW Sum | X5: =Est2019DistRev!X5 -> EstVol Dem kW Win | Y5: =Est2019DistRev!Y5 -> EstVol SumBlk1 | Z5: =Est2019DistRev!Z5 -> EstVol SumBlk2 | AA5: =Est2019DistRev!AA5 -> EstVol SumBlk3 | AB5: =Est2019DistRev!AB5 -> EstVol WtrBlk1 | AC5: =Est2019DistRev!AC5 -> EstVol WtrBlk2 | AD5: =Est2019DistRev!AD5 -> EstVol WtrBlk3 | AF5: =Est2019DistRev!AF5 -> EstRev Fixed | AG5: =Est2019DistRev!AG5 -> EstRev Anytime | AH5: =Est2019DistRev!AH5 -> EstRev Pk | AI5: =Est2019DistRev!AI5 -> EstRev Opk | AJ5: =Est2019DistRev!AJ5 -> EstRev Dem kVA | AK5: =Est2019DistRev!AK5 -> EstRev Dem kW Sum | AL5: =Est2019DistRev!AL5 -> EstRev Dem kW Win | AM5: =Est2019DistRev!AM5 -> EstRev SumBlk1 | AN5: =Est2019DistRev!AN5 -> EstRev SumBlk2 | AO5: =Est2019DistRev!AO5 -> EstRev SumBlk3 | AP5: =Est2019DistRev!AP5 -> EstRev WtrBlk1 | AQ5: =Est2019DistRev!AQ5 -> EstRev WtrBlk2 | AR5: =Est2019DistRev!AR5 -> EstRev WtrBlk3 | AS5: EstRev Total
B6: =Est2019TransRev!B6 -> Residential Single Rate | D6: 0 | E6: 0.35 | F6: 0 | G6: 0 | H6: 0 | I6: 0 | J6: 0 | K6: 0 | L6: 0 | M6: 0 | N6: 0 | O6: 0 | P6: 0 | R6: =Est2019DistRev!R6 -> 567490.75 | S6: =Est2019DistRev!S6 -> 2331076406 | T6: =Est2019DistRev!T6 -> 0 | U6: =Est2019DistRev!U6 -> 0 | V6: =Est2019DistRev!V6 -> 0 | W6: =Est2019DistRev!W6 -> 0 | X6: =Est2019DistRev!X6 -> 0 | Y6: =Est2019DistRev!Y6 -> 0 | Z6: =Est2019DistRev!Z6 -> 0 | AA6: =Est2019DistRev!AA6 -> 0 | AB6: =Est2019DistRev!AB6 -> 0 | AC6: =Est2019DistRev!AC6 -> 0 | AD6: =Est2019DistRev!AD6 -> 0 | AF6: =D6*R6 -> 0 | AG6: =E6/100*S6 -> 8158767.421 | AH6: 0 | AI6: 0 | AJ6: =H6*V6 -> 0 | AK6: =I6*W6 -> 0 | AL6: =J6*X6 -> 0 | AM6: 0 | AN6: 0 | AO6: =M6/100*AA6 -> 0 | AP6: =N6/100*AB6 -> 0 | AQ6: =O6/100*AC6 -> 0 | AR6: =P6/100*AD6 -> 0 | AS6: =SUM(AF6:AR6) -> 8158767.421
B7: =Est2019TransRev!B7 -> Climate Saver | D7: 0 | E7: 0 | F7: 0.35 | G7: 0.35 | H7: 0 | I7: 0 | J7: 0 | K7: 0 | L7: 0 | M7: 0 | N7: 0 | O7: 0 | P7: 0 | R7: =Est2019DistRev!R7 -> 16851.16667 | S7: =Est2019DistRev!S7 -> 0 | T7: =Est2019DistRev!T7 -> 10075687.41 | U7: =Est2019DistRev!U7 -> 18548588.43 | V7: =Est2019DistRev!V7 -> 0 | W7: =Est2019DistRev!W7 -> 0 | X7: =Est2019DistRev!X7 -> 0 | Y7: =Est2019DistRev!Y7 -> 0 | Z7: =Est2019DistRev!Z7 -> 0 | AA7: =Est2019DistRev!AA7 -> 0 | AB7: =Est2019DistRev!AB7 -> 0 | AC7: =Est2019DistRev!AC7 -> 0 | AD7: =Est2019DistRev!AD7 -> 0 | AF7: =D7*R7 -> 0 | AG7: =E7/100*S7 -> 0 | AH7: 35264.90594 | AI7: 64920.05949 | AJ7: =H7*V7 -> 0 | AK7: =I7*W7 -> 0 | AL7: =J7*X7 -> 0 | AM7: 0 | AN7: 0 | AO7: 0 | AP7: 0 | AQ7: 0 | AR7: 0 | AS7: =SUM(AF7:AR7) -> 100184.9654
B8: =Est2019TransRev!B8 -> Climate Saver Interval | D8: 0 | E8: 0 | F8: 0.35 | G8: 0.35 | H8: 0 | I8: 0 | J8: 0 | K8: 0 | L8: 0 | M8: 0 | N8: 0 | O8: 0 | P8: 0 | R8: =Est2019DistRev!R8 -> 4604.916667 | S8: =Est2019DistRev!S8 -> 0 | T8: =Est2019DistRev!T8 -> 2910417.392 | U8: =Est2019DistRev!U8 -> 5927584.187 | V8: =Est2019DistRev!V8 -> 0 | W8: =Est2019DistRev!W8 -> 0 | X8: =Est2019DistRev!X8 -> 0 | Y8: =Est2019DistRev!Y8 -> 0 | Z8: =Est2019DistRev!Z8 -> 0 | AA8: =Est2019DistRev!AA8 -> 0 | AB8: =Est2019DistRev!AB8 -> 0 | AC8: =Est2019DistRev!AC8 -> 0 | AD8: =Est2019DistRev!AD8 -> 0 | AF8: 0 | AG8: 0 | AH8: 10186.46087 | AI8: 20746.54465 | AJ8: 0 | AK8: 0 | AL8: 0 | AM8: 0 | AN8: 0 | AO8: 0 | AP8: 0 | AQ8: 0 | AR8: 0 | AS8: 30933.00553
B9: =Est2019TransRev!B9 -> Residential - Flexible Pricing | D9: 0 | E9: 0 | F9: 0 | G9: 0 | H9: 0 | I9: 0 | J9: 0 | K9: 0.35 | L9: 0.35 | M9: 0.35 | N9: 0.35 | O9: 0.35 | P9: 0.35 | R9: =Est2019DistRev!R9 -> 3036.083333 | S9: =Est2019DistRev!S9 -> 0 | T9: =Est2019DistRev!T9 -> 0 | U9: =Est2019DistRev!U9 -> 0 | V9: =Est2019DistRev!V9 -> 0 | W9: =Est2019DistRev!W9 -> 0 | X9: =Est2019DistRev!X9 -> 0 | Y9: =Est2019DistRev!Y9 -> 854934.5974 | Z9: =Est2019DistRev!Z9 -> 1671404.329 | AA9: =Est2019DistRev!AA9 -> 1316027.217 | AB9: =Est2019DistRev!AB9 -> 2852452.979 | AC9: =Est2019DistRev!AC9 -> 5576569.567 | AD9: =Est2019DistRev!AD9 -> 4390868.924 | AF9: 0 | AG9: 0 | AH9: 0 | AI9: 0 | AJ9: 0 | AK9: 0 | AL9: 0 | AM9: 2992.271091 | AN9: 5849.915152 | AO9: 4606.09526 | AP9: 9983.585426 | AQ9: 19517.99348 | AR9: 15368.04123 | AS9: 58317.90165
B10: =Est2019TransRev!B10 -> Residential Docklands - Flexible Pricing | D10: 0 | E10: 0 | F10: 0 | G10: 0 | H10: 0 | I10: 0 | J10: 0 | K10: 0.35 | L10: 0.35 | M10: 0.35 | N10: 0.35 | O10: 0.35 | P10: 0.35 | R10: =Est2019DistRev!R10 -> 1 | S10: =Est2019DistRev!S10 -> 0 | T10: =Est2019DistRev!T10 -> 0 | U10: =Est2019DistRev!U10 -> 0 | V10: =Est2019DistRev!V10 -> 0 | W10: =Est2019DistRev!W10 -> 0 | X10: =Est2019DistRev!X10 -> 0 | Y10: =Est2019DistRev!Y10 -> 309.0358802 | Z10: =Est2019DistRev!Z10 -> 604.0795036 | AA10: =Est2019DistRev!AA10 -> 405.7754493 | AB10: =Est2019DistRev!AB10 -> 986.423121 | AC10: =Est2019DistRev!AC10 -> 1928.183837 | AD10: =Est2019DistRev!AD10 -> 1295.20975 | AF10: 0 | AG10: 0 | AH10: 0 | AI10: 0 | AJ10: 0 | AK10: 0 | AL10: 0 | AM10: 1.081625581 | AN10: 2.114278263 | AO10: 1.420214073 | AP10: 3.452480923 | AQ10: 6.748643429 | AR10: 4.533234124 | AS10: 19.35047639
B11: =Est2019TransRev!B11 -> Climate Saver - Flexible Pricing | D11: 0 | E11: 0 | F11: 0 | G11: 0 | H11: 0 | I11: 0 | J11: 0 | K11: 0.35 | L11: 0 | M11: 0 | N11: 0.35 | O11: 0 | P11: 0 | R11: =Est2019DistRev!R11 -> 55.66666667 | S11: =Est2019DistRev!S11 -> 0 | T11: =Est2019DistRev!T11 -> 0 | U11: =Est2019DistRev!U11 -> 0 | V11: =Est2019DistRev!V11 -> 0 | W11: =Est2019DistRev!W11 -> 0 | X11: =Est2019DistRev!X11 -> 0 | Y11: =Est2019DistRev!Y11 -> 27161.84141 | Z11: =Est2019DistRev!Z11 -> 0 | AA11: =Est2019DistRev!AA11 -> 0 | AB11: =Est2019DistRev!AB11 -> 70093.1803 | AC11: =Est2019DistRev!AC11 -> 0 | AD11: =Est2019DistRev!AD11 -> 0 | AF11: 0 | AG11: 0 | AH11: 0 | AI11: 0 | AJ11: 0 | AK11: 0 | AL11: 0 | AM11: 95.06644495 | AN11: 0 | AO11: 0 | AP11: 245.3261311 | AQ11: 0 | AR11: 0 | AS11: 340.392576
B12: =Est2019TransRev!B12 -> Docklands single rate | D12: 0 | E12: 0.35 | F12: 0 | G12: 0 | H12: 0 | I12: 0 | J12: 0 | K12: 0 | L12: 0 | M12: 0 | N12: 0 | O12: 0 | P12: 0 | R12: =Est2019DistRev!R12 -> 2 | S12: =Est2019DistRev!S12 -> 10976.15301 | T12: =Est2019DistRev!T12 -> 0 | U12: =Est2019DistRev!U12 -> 0 | V12: =Est2019DistRev!V12 -> 0 | W12: =Est2019DistRev!W12 -> 0 | X12: =Est2019DistRev!X12 -> 0 | Y12: =Est2019DistRev!Y12 -> 0 | Z12: =Est2019DistRev!Z12 -> 0 | AA12: =Est2019DistRev!AA12 -> 0 | AB12: =Est2019DistRev!AB12 -> 0 | AC12: =Est2019DistRev!AC12 -> 0 | AD12: =Est2019DistRev!AD12 -> 0 | AF12: 0 | AG12: 38.41653554 | AH12: 0 | AI12: 0 | AJ12: 0 | AK12: 0 | AL12: 0 | AM12: 0 | AN12: 0 | AO12: 0 | AP12: 0 | AQ12: 0 | AR12: 0 | AS12: 38.41653554
B13: =Est2019TransRev!B13 -> Residential Two Rate 5d | D13: 0 | E13: 0 | F13: 0.35 | G13: 0.35 | H13: 0 | I13: 0 | J13: 0 | K13: 0 | L13: 0 | M13: 0 | N13: 0 | O13: 0 | P13: 0 | R13: =Est2019DistRev!R13 -> 45261.75 | S13: =Est2019DistRev!S13 -> 0 | T13: =Est2019DistRev!T13 -> 125835358.1 | U13: =Est2019DistRev!U13 -> 115446252.5 | V13: =Est2019DistRev!V13 -> 0 | W13: =Est2019DistRev!W13 -> 0 | X13: =Est2019DistRev!X13 -> 0 | Y13: =Est2019DistRev!Y13 -> 0 | Z13: =Est2019DistRev!Z13 -> 0 | AA13: =Est2019DistRev!AA13 -> 0 | AB13: =Est2019DistRev!AB13 -> 0 | AC13: =Est2019DistRev!AC13 -> 0 | AD13: =Est2019DistRev!AD13 -> 0 | AF13: 0 | AG13: 0 | AH13: 440423.7534 | AI13: 404061.8836 | AJ13: 0 | AK13: 0 | AL13: 0 | AM13: 0 | AN13: 0 | AO13: 0 | AP13: 0 | AQ13: 0 | AR13: 0 | AS13: 844485.637
B14: =Est2019TransRev!B14 -> Docklands Two Rate 5d | D14: 0 | E14: 0 | F14: 0.35 | G14: 0.35 | H14: 0 | I14: 0 | J14: 0 | K14: 0 | L14: 0 | M14: 0 | N14: 0 | O14: 0 | P14: 0 | R14: =Est2019DistRev!R14 -> 586.5833333 | S14: =Est2019DistRev!S14 -> 0 | T14: =Est2019DistRev!T14 -> 1835821.192 | U14: =Est2019DistRev!U14 -> 1698531.857 | V14: =Est2019DistRev!V14 -> 0 | W14: =Est2019DistRev!W14 -> 0 | X14: =Est2019DistRev!X14 -> 0 | Y14: =Est2019DistRev!Y14 -> 0 | Z14: =Est2019DistRev!Z14 -> 0 | AA14: =Est2019DistRev!AA14 -> 0 | AB14: =Est2019DistRev!AB14 -> 0 | AC14: =Est2019DistRev!AC14 -> 0 | AD14: =Est2019DistRev!AD14 -> 0 | AF14: 0 | AG14: 0 | AH14: 6425.374173 | AI14: 5944.861498 | AJ14: 0 | AK14: 0 | AL14: 0 | AM14: 0 | AN14: 0 | AO14: 0 | AP14: 0 | AQ14: 0 | AR14: 0 | AS14: 12370.23567
B15: =Est2019TransRev!B15 -> Residential Interval | D15: 0 | E15: 0 | F15: 0.35 | G15: 0.35 | H15: 0 | I15: 0 | J15: 0 | K15: 0 | L15: 0 | M15: 0 | N15: 0 | O15: 0 | P15: 0 | R15: =Est2019DistRev!R15 -> 108582.9167 | S15: =Est2019DistRev!S15 -> 0 | T15: =Est2019DistRev!T15 -> 279956676 | U15: =Est2019DistRev!U15 -> 292807115.6 | V15: =Est2019DistRev!V15 -> 0 | W15: =Est2019DistRev!W15 -> 0 | X15: =Est2019DistRev!X15 -> 0 | Y15: =Est2019DistRev!Y15 -> 0 | Z15: =Est2019DistRev!Z15 -> 0 | AA15: =Est2019DistRev!AA15 -> 0 | AB15: =Est2019DistRev!AB15 -> 0 | AC15: =Est2019DistRev!AC15 -> 0 | AD15: =Est2019DistRev!AD15 -> 0 | AF15: 0 | AG15: 0 | AH15: 979848.3661 | AI15: 1024824.905 | AJ15: 0 | AK15: 0 | AL15: 0 | AM15: 0 | AN15: 0 | AO15: 0 | AP15: 0 | AQ15: 0 | AR15: 0 | AS15: 2004673.271
B16: =Est2019TransRev!B16 -> Residential Two Rate 5d - controlled load | D16: 0 | E16: 0 | F16: 0 | G16: 0.35 | H16: 0 | I16: 0 | J16: 0 | K16: 0 | L16: 0 | M16: 0 | N16: 0 | O16: 0 | P16: 0 | R16: =Est2019DistRev!R16 -> 43106.33333 | S16: =Est2019DistRev!S16 -> 0 | T16: =Est2019DistRev!T16 -> 0 | U16: =Est2019DistRev!U16 -> 83773204.99 | V16: =Est2019DistRev!V16 -> 0 | W16: =Est2019DistRev!W16 -> 0 | X16: =Est2019DistRev!X16 -> 0 | Y16: =Est2019DistRev!Y16 -> 0 | Z16: =Est2019DistRev!Z16 -> 0 | AA16: =Est2019DistRev!AA16 -> 0 | AB16: =Est2019DistRev!AB16 -> 0 | AC16: =Est2019DistRev!AC16 -> 0 | AD16: =Est2019DistRev!AD16 -> 0 | AF16: 0 | AG16: 0 | AH16: 0 | AI16: 293206.2175 | AJ16: 0 | AK16: 0 | AL16: 0 | AM16: 0 | AN16: 0 | AO16: 0 | AP16: 0 | AQ16: 0 | AR16: 0 | AS16: 293206.2175
B17: =Est2019TransRev!B17 -> Docklands Two Rate 5d - controlled load | D17: 0 | E17: 0 | F17: 0 | G17: 0.35 | H17: 0 | I17: 0 | J17: 0 | K17: 0 | L17: 0 | M17: 0 | N17: 0 | O17: 0 | P17: 0 | R17: =Est2019DistRev!R17 -> 71.33333333 | S17: =Est2019DistRev!S17 -> 0 | T17: =Est2019DistRev!T17 -> 0 | U17: =Est2019DistRev!U17 -> 132818.9122 | V17: =Est2019DistRev!V17 -> 0 | W17: =Est2019DistRev!W17 -> 0 | X17: =Est2019DistRev!X17 -> 0 | Y17: =Est2019DistRev!Y17 -> 0 | Z17: =Est2019DistRev!Z17 -> 0 | AA17: =Est2019DistRev!AA17 -> 0 | AB17: =Est2019DistRev!AB17 -> 0 | AC17: =Est2019DistRev!AC17 -> 0 | AD17: =Est2019DistRev!AD17 -> 0 | AF17: 0 | AG17: 0 | AH17: 0 | AI17: 464.8661928 | AJ17: 0 | AK17: 0 | AL17: 0 | AM17: 0 | AN17: 0 | AO17: 0 | AP17: 0 | AQ17: 0 | AR17: 0 | AS17: 464.8661928
B18: =Est2019TransRev!B18 -> Dedicated circuit | D18: 0 | E18: 0 | F18: 0 | G18: 0.35 | H18: 0 | I18: 0 | J18: 0 | K18: 0 | L18: 0 | M18: 0 | N18: 0 | O18: 0 | P18: 0 | R18: =Est2019DistRev!R18 -> 156808.8333 | S18: =Est2019DistRev!S18 -> 0 | T18: =Est2019DistRev!T18 -> 0 | U18: =Est2019DistRev!U18 -> 299067283.2 | V18: =Est2019DistRev!V18 -> 0 | W18: =Est2019DistRev!W18 -> 0 | X18: =Est2019DistRev!X18 -> 0 | Y18: =Est2019DistRev!Y18 -> 0 | Z18: =Est2019DistRev!Z18 -> 0 | AA18: =Est2019DistRev!AA18 -> 0 | AB18: =Est2019DistRev!AB18 -> 0 | AC18: =Est2019DistRev!AC18 -> 0 | AD18: =Est2019DistRev!AD18 -> 0 | AF18: 0 | AG18: 0 | AH18: 0 | AI18: 1046735.491 | AJ18: 0 | AK18: 0 | AL18: 0 | AM18: 0 | AN18: 0 | AO18: 0 | AP18: 0 | AQ18: 0 | AR18: 0 | AS18: 1046735.491
B19: =Est2019TransRev!B19 -> Hot Water Interval | D19: 0 | E19: 0 | F19: 0 | G19: 0.35 | H19: 0 | I19: 0 | J19: 0 | K19: 0 | L19: 0 | M19: 0 | N19: 0 | O19: 0 | P19: 0 | R19: =Est2019DistRev!R19 -> 5477.083333 | S19: =Est2019DistRev!S19 -> 0 | T19: =Est2019DistRev!T19 -> 0 | U19: =Est2019DistRev!U19 -> 10244581.41 | V19: =Est2019DistRev!V19 -> 0 | W19: =Est2019DistRev!W19 -> 0 | X19: =Est2019DistRev!X19 -> 0 | Y19: =Est2019DistRev!Y19 -> 0 | Z19: =Est2019DistRev!Z19 -> 0 | AA19: =Est2019DistRev!AA19 -> 0 | AB19: =Est2019DistRev!AB19 -> 0 | AC19: =Est2019DistRev!AC19 -> 0 | AD19: =Est2019DistRev!AD19 -> 0 | AF19: 0 | AG19: 0 | AH19: 0 | AI19: 35856.03494 | AJ19: 0 | AK19: 0 | AL19: 0 | AM19: 0 | AN19: 0 | AO19: 0 | AP19: 0 | AQ19: 0 | AR19: 0 | AS19: 35856.03494
B20: =Est2019TransRev!B20 -> Residential Demand | D20: 0 | E20: 0.35 | F20: 0 | G20: 0 | H20: 0 | I20: 0 | J20: 0 | K20: 0 | L20: 0 | M20: 0 | N20: 0 | O20: 0 | P20: 0 | R20: =Est2019DistRev!R20 -> 5 | S20: =Est2019DistRev!S20 -> 21993.75259 | T20: =Est2019DistRev!T20 -> 0 | U20: =Est2019DistRev!U20 -> 0 | V20: =Est2019DistRev!V20 -> 0 | W20: =Est2019DistRev!W20 -> 48.8255 | X20: =Est2019DistRev!X20 -> 122.10825 | Y20: =Est2019DistRev!Y20 -> 0 | Z20: =Est2019DistRev!Z20 -> 0 | AA20: =Est2019DistRev!AA20 -> 0 | AB20: =Est2019DistRev!AB20 -> 0 | AC20: =Est2019DistRev!AC20 -> 0 | AD20: =Est2019DistRev!AD20 -> 0 | AF20: 0 | AG20: 76.97813406 | AH20: 0 | AI20: 0 | AJ20: 0 | AK20: 0 | AL20: 0 | AM20: 0 | AN20: 0 | AO20: 0 | AP20: 0 | AQ20: 0 | AR20: 0 | AS20: 76.97813406
B21: =Est2019TransRev!B21 -> Newstead Residential Trial | D21: 0 | E21: 0 | F21: 0 | G21: 0 | H21: 0 | I21: 0 | J21: 0 | K21: 0 | L21: 0 | M21: 0 | N21: 0 | O21: 0 | P21: 0 | R21: =Est2019DistRev!R21 -> 100 | S21: =Est2019DistRev!S21 -> 410755.8279 | T21: =Est2019DistRev!T21 -> 0 | U21: =Est2019DistRev!U21 -> 0 | V21: =Est2019DistRev!V21 -> 0 | W21: =Est2019DistRev!W21 -> 976.51 | X21: =Est2019DistRev!X21 -> 2442.165 | Y21: =Est2019DistRev!Y21 -> 0 | Z21: =Est2019DistRev!Z21 -> 0 | AA21: =Est2019DistRev!AA21 -> 0 | AB21: =Est2019DistRev!AB21 -> 0 | AC21: =Est2019DistRev!AC21 -> 0 | AD21: =Est2019DistRev!AD21 -> 0 | AF21: 0 | AG21: 0 | AH21: 0 | AI21: 0 | AJ21: 0 | AK21: 0 | AL21: 0 | AM21: 0 | AN21: 0 | AO21: 0 | AP21: 0 | AQ21: 0 | AR21: 0 | AS21: 0
B22: =Est2019TransRev!B22 -> Non-Residential Single Rate | D22: 0 | E22: 0.35 | F22: 0 | G22: 0 | H22: 0 | I22: 0 | J22: 0 | K22: 0 | L22: 0 | M22: 0 | N22: 0 | O22: 0 | P22: 0 | R22: =Est2019DistRev!R22 -> 45028.58333 | S22: =Est2019DistRev!S22 -> 280140182.4 | T22: =Est2019DistRev!T22 -> 0 | U22: =Est2019DistRev!U22 -> 0 | V22: =Est2019DistRev!V22 -> 0 | W22: =Est2019DistRev!W22 -> 0 | X22: =Est2019DistRev!X22 -> 0 | Y22: =Est2019DistRev!Y22 -> 0 | Z22: =Est2019DistRev!Z22 -> 0 | AA22: =Est2019DistRev!AA22 -> 0 | AB22: =Est2019DistRev!AB22 -> 0 | AC22: =Est2019DistRev!AC22 -> 0 | AD22: =Est2019DistRev!AD22 -> 0 | AF22: 0 | AG22: 980490.6384 | AH22: 0 | AI22: 0 | AJ22: 0 | AK22: 0 | AL22: 0 | AM22: 0 | AN22: 0 | AO22: 0 | AP22: 0 | AQ22: 0 | AR22: 0 | AS22: 980490.6384
B23: =Est2019TransRev!B23 -> Non-Residential Flexible Pricing | D23: 0 | E23: 0 | F23: 0 | G23: 0 | H23: 0 | I23: 0 | J23: 0 | K23: 0.35 | L23: 0.35 | M23: 0.35 | N23: 0.35 | O23: 0.35 | P23: 0.35 | R23: =Est2019DistRev!R23 -> 176 | S23: =Est2019DistRev!S23 -> 0 | T23: =Est2019DistRev!T23 -> 0 | U23: =Est2019DistRev!U23 -> 0 | V23: =Est2019DistRev!V23 -> 0 | W23: =Est2019DistRev!W23 -> 0 | X23: =Est2019DistRev!X23 -> 0 | Y23: =Est2019DistRev!Y23 -> 460587.4825 | Z23: =Est2019DistRev!Z23 -> 155250.2893 | AA23: =Est2019DistRev!AA23 -> 469086.5931 | AB23: =Est2019DistRev!AB23 -> 1202029.851 | AC23: =Est2019DistRev!AC23 -> 405168.3755 | AD23: =Est2019DistRev!AD23 -> 1224210.62 | AF23: 0 | AG23: 0 | AH23: 0 | AI23: 0 | AJ23: 0 | AK23: 0 | AL23: 0 | AM23: 1612.056189 | AN23: 543.3760126 | AO23: 1641.803076 | AP23: 4207.104477 | AQ23: 1418.089314 | AR23: 4284.737169 | AS23: 13707.16624
B24: =Est2019TransRev!B24 -> Non-Residential Two Rate 5d | D24: 0 | E24: 0 | F24: 0.35 | G24: 0.35 | H24: 0 | I24: 0 | J24: 0 | K24: 0 | L24: 0 | M24: 0 | N24: 0 | O24: 0 | P24: 0 | R24: =Est2019DistRev!R24 -> 24187.41667 | S24: =Est2019DistRev!S24 -> 0 | T24: =Est2019DistRev!T24 -> 212822789.3 | U24: =Est2019DistRev!U24 -> 186173575.7 | V24: =Est2019DistRev!V24 -> 0 | W24: =Est2019DistRev!W24 -> 0 | X24: =Est2019DistRev!X24 -> 0 | Y24: =Est2019DistRev!Y24 -> 0 | Z24: =Est2019DistRev!Z24 -> 0 | AA24: =Est2019DistRev!AA24 -> 0 | AB24: =Est2019DistRev!AB24 -> 0 | AC24: =Est2019DistRev!AC24 -> 0 | AD24: =Est2019DistRev!AD24 -> 0 | AF24: 0 | AG24: 0 | AH24: 744879.7624 | AI24: 651607.515 | AJ24: 0 | AK24: 0 | AL24: 0 | AM24: 0 | AN24: 0 | AO24: 0 | AP24: 0 | AQ24: 0 | AR24: 0 | AS24: 1396487.277
B25: =Est2019TransRev!B25 -> Non-Residential Interval | D25: 0 | E25: 0 | F25: 0.35 | G25: 0.35 | H25: 0 | I25: 0 | J25: 0 | K25: 0 | L25: 0 | M25: 0 | N25: 0 | O25: 0 | P25: 0 | R25: =Est2019DistRev!R25 -> 12355.25 | S25: =Est2019DistRev!S25 -> 0 | T25: =Est2019DistRev!T25 -> 99993582.88 | U25: =Est2019DistRev!U25 -> 70295901.8 | V25: =Est2019DistRev!V25 -> 0 | W25: =Est2019DistRev!W25 -> 0 | X25: =Est2019DistRev!X25 -> 0 | Y25: =Est2019DistRev!Y25 -> 0 | Z25: =Est2019DistRev!Z25 -> 0 | AA25: =Est2019DistRev!AA25 -> 0 | AB25: =Est2019DistRev!AB25 -> 0 | AC25: =Est2019DistRev!AC25 -> 0 | AD25: =Est2019DistRev!AD25 -> 0 | AF25: 0 | AG25: 0 | AH25: 349977.5401 | AI25: 246035.6563 | AJ25: 0 | AK25: 0 | AL25: 0 | AM25: 0 | AN25: 0 | AO25: 0 | AP25: 0 | AQ25: 0 | AR25: 0 | AS25: 596013.1964
B26: =Est2019TransRev!B26 -> Non-Residential Two Rate 7d | D26: 0 | E26: 0 | F26: 0.35 | G26: 0.35 | H26: 0 | I26: 0 | J26: 0 | K26: 0 | L26: 0 | M26: 0 | N26: 0 | O26: 0 | P26: 0 | R26: =Est2019DistRev!R26 -> 7234.583333 | S26: =Est2019DistRev!S26 -> 0 | T26: =Est2019DistRev!T26 -> 60985545.4 | U26: =Est2019DistRev!U26 -> 23417400.61 | V26: =Est2019DistRev!V26 -> 0 | W26: =Est2019DistRev!W26 -> 0 | X26: =Est2019DistRev!X26 -> 0 | Y26: =Est2019DistRev!Y26 -> 0 | Z26: =Est2019DistRev!Z26 -> 0 | AA26: =Est2019DistRev!AA26 -> 0 | AB26: =Est2019DistRev!AB26 -> 0 | AC26: =Est2019DistRev!AC26 -> 0 | AD26: =Est2019DistRev!AD26 -> 0 | AF26: 0 | AG26: 0 | AH26: 213449.4089 | AI26: 81960.90212 | AJ26: 0 | AK26: 0 | AL26: 0 | AM26: 0 | AN26: 0 | AO26: 0 | AP26: 0 | AQ26: 0 | AR26: 0 | AS26: 295410.311
B27: =Est2019TransRev!B27 -> Non-Residential Demand | D27: 0 | E27: 0.35 | F27: 0 | G27: 0 | H27: 0 | I27: 0 | J27: 0 | K27: 0 | L27: 0 | M27: 0 | N27: 0 | O27: 0 | P27: 0 | R27: =Est2019DistRev!R27 -> 8 | S27: =Est2019DistRev!S27 -> 172734.2142 | T27: =Est2019DistRev!T27 -> 0 | U27: =Est2019DistRev!U27 -> 0 | V27: =Est2019DistRev!V27 -> 0 | W27: =Est2019DistRev!W27 -> 401.0346667 | X27: =Est2019DistRev!X27 -> 944.2736619 | Y27: =Est2019DistRev!Y27 -> 0 | Z27: =Est2019DistRev!Z27 -> 0 | AA27: =Est2019DistRev!AA27 -> 0 | AB27: =Est2019DistRev!AB27 -> 0 | AC27: =Est2019DistRev!AC27 -> 0 | AD27: =Est2019DistRev!AD27 -> 0 | AF27: 0 | AG27: 604.5697498 | AH27: 0 | AI27: 0 | AJ27: 0 | AK27: 0 | AL27: 0 | AM27: 0 | AN27: 0 | AO27: 0 | AP27: 0 | AQ27: 0 | AR27: 0 | AS27: 604.5697498
B28: =Est2019TransRev!B28 -> Medium business Demand | D28: 0 | E28: 0 | F28: 0.34 | G28: 0.34 | H28: 0 | I28: 0 | J28: 0 | K28: 0 | L28: 0 | M28: 0 | N28: 0 | O28: 0 | P28: 0 | R28: =Est2019DistRev!R28 -> 8262 | S28: =Est2019DistRev!S28 -> 0 | T28: =Est2019DistRev!T28 -> 580007155.2 | U28: =Est2019DistRev!U28 -> 499880481.1 | V28: =Est2019DistRev!V28 -> 0 | W28: =Est2019DistRev!W28 -> 1457250.07 | X28: =Est2019DistRev!X28 -> 2625240.713 | Y28: =Est2019DistRev!Y28 -> 0 | Z28: =Est2019DistRev!Z28 -> 0 | AA28: =Est2019DistRev!AA28 -> 0 | AB28: =Est2019DistRev!AB28 -> 0 | AC28: =Est2019DistRev!AC28 -> 0 | AD28: =Est2019DistRev!AD28 -> 0 | AF28: 0 | AG28: 0 | AH28: 1972024.328 | AI28: 1699593.636 | AJ28: 0 | AK28: 0 | AL28: 0 | AM28: 0 | AN28: 0 | AO28: 0 | AP28: 0 | AQ28: 0 | AR28: 0 | AS28: 3671617.964
B29: =Est2019TransRev!B29 -> Medium business Opt-out | D29: 0 | E29: 0 | F29: 0.34 | G29: 0.34 | H29: 0 | I29: 0 | J29: 0 | K29: 0 | L29: 0 | M29: 0 | N29: 0 | O29: 0 | P29: 0 | R29: =Est2019DistRev!R29 -> 37 | S29: =Est2019DistRev!S29 -> 0 | T29: =Est2019DistRev!T29 -> 1720096.265 | U29: =Est2019DistRev!U29 -> 1300622.09 | V29: =Est2019DistRev!V29 -> 0 | W29: =Est2019DistRev!W29 -> 0 | X29: =Est2019DistRev!X29 -> 0 | Y29: =Est2019DistRev!Y29 -> 0 | Z29: =Est2019DistRev!Z29 -> 0 | AA29: =Est2019DistRev!AA29 -> 0 | AB29: =Est2019DistRev!AB29 -> 0 | AC29: =Est2019DistRev!AC29 -> 0 | AD29: =Est2019DistRev!AD29 -> 0 | AF29: 0 | AG29: 0 | AH29: 5848.3273 | AI29: 4422.115105 | AJ29: 0 | AK29: 0 | AL29: 0 | AM29: 0 | AN29: 0 | AO29: 0 | AP29: 0 | AQ29: 0 | AR29: 0 | AS29: 10270.44241
B30: =Est2019TransRev!B30 -> Public Lighting | D30: 0 | E30: 0 | F30: 0 | G30: 0 | H30: 0 | I30: 0 | J30: 0 | K30: 0 | L30: 0 | M30: 0 | N30: 0 | O30: 0 | P30: 0 | R30: =Est2019DistRev!R30 -> 8323.166667 | S30: =Est2019DistRev!S30 -> 0 | T30: =Est2019DistRev!T30 -> 19761917.54 | U30: =Est2019DistRev!U30 -> 49460408.81 | V30: =Est2019DistRev!V30 -> 0 | W30: =Est2019DistRev!W30 -> 0 | X30: =Est2019DistRev!X30 -> 0 | Y30: =Est2019DistRev!Y30 -> 0 | Z30: =Est2019DistRev!Z30 -> 0 | AA30: =Est2019DistRev!AA30 -> 0 | AB30: =Est2019DistRev!AB30 -> 0 | AC30: =Est2019DistRev!AC30 -> 0 | AD30: =Est2019DistRev!AD30 -> 0 | AF30: 0 | AG30: 0 | AH30: 0 | AI30: 0 | AJ30: 0 | AK30: 0 | AL30: 0 | AM30: 0 | AN30: 0 | AO30: 0 | AP30: 0 | AQ30: 0 | AR30: 0 | AS30: 0
B31: =Est2019TransRev!B31 -> Large low Voltage | D31: 0 | E31: 0 | F31: 0.33 | G31: 0.33 | H31: 0 | I31: 0 | J31: 0 | K31: 0 | L31: 0 | M31: 0 | N31: 0 | O31: 0 | P31: 0 | R31: =Est2019DistRev!R31 -> 2876.666667 | S31: =Est2019DistRev!S31 -> 0 | T31: =Est2019DistRev!T31 -> 1367068924 | U31: =Est2019DistRev!U31 -> 1056980743 | V31: =Est2019DistRev!V31 -> 827848.3567 | W31: =Est2019DistRev!W31 -> 0 | X31: =Est2019DistRev!X31 -> 0 | Y31: =Est2019DistRev!Y31 -> 0 | Z31: =Est2019DistRev!Z31 -> 0 | AA31: =Est2019DistRev!AA31 -> 0 | AB31: =Est2019DistRev!AB31 -> 0 | AC31: =Est2019DistRev!AC31 -> 0 | AD31: =Est2019DistRev!AD31 -> 0 | AF31: 0 | AG31: 0 | AH31: 4511327.449 | AI31: 3488036.452 | AJ31: 0 | AK31: 0 | AL31: 0 | AM31: 0 | AN31: 0 | AO31: 0 | AP31: 0 | AQ31: 0 | AR31: 0 | AS31: 7999363.901
B32: =Est2019TransRev!B32 -> High Voltage | D32: 0 | E32: 0 | F32: 0 | G32: 0 | H32: 0 | I32: 0 | J32: 0 | K32: 0 | L32: 0 | M32: 0 | N32: 0 | O32: 0 | P32: 0 | R32: =Est2019DistRev!R32 -> 184.75 | S32: =Est2019DistRev!S32 -> 0 | T32: =Est2019DistRev!T32 -> 781036134.1 | U32: =Est2019DistRev!U32 -> 701560259 | V32: =Est2019DistRev!V32 -> 393019.5145 | W32: =Est2019DistRev!W32 -> 0 | X32: =Est2019DistRev!X32 -> 0 | Y32: =Est2019DistRev!Y32 -> 0 | Z32: =Est2019DistRev!Z32 -> 0 | AA32: =Est2019DistRev!AA32 -> 0 | AB32: =Est2019DistRev!AB32 -> 0 | AC32: =Est2019DistRev!AC32 -> 0 | AD32: =Est2019DistRev!AD32 -> 0 | AF32: 0 | AG32: 0 | AH32: 0 | AI32: 0 | AJ32: 0 | AK32: 0 | AL32: 0 | AM32: 0 | AN32: 0 | AO32: 0 | AP32: 0 | AQ32: 0 | AR32: 0 | AS32: 0
B33: =Est2019TransRev!B33 -> High Voltage Docklands | D33: 0 | E33: 0 | F33: 0 | G33: 0 | H33: 0 | I33: 0 | J33: 0 | K33: 0 | L33: 0 | M33: 0 | N33: 0 | O33: 0 | P33: 0 | R33: =Est2019DistRev!R33 -> 10 | S33: =Est2019DistRev!S33 -> 0 | T33: =Est2019DistRev!T33 -> 138103753.3 | U33: =Est2019DistRev!U33 -> 143551501.7 | V33: =Est2019DistRev!V33 -> 62633 | W33: =Est2019DistRev!W33 -> 0 | X33: =Est2019DistRev!X33 -> 0 | Y33: =Est2019DistRev!Y33 -> 0 | Z33: =Est2019DistRev!Z33 -> 0 | AA33: =Est2019DistRev!AA33 -> 0 | AB33: =Est2019DistRev!AB33 -> 0 | AC33: =Est2019DistRev!AC33 -> 0 | AD33: =Est2019DistRev!AD33 -> 0 | AF33: =D33*R33 -> 0 | AG33: =E33/100*S33 -> 0 | AH33: 0 | AI33: 0 | AJ33: 0 | AK33: 0 | AL33: 0 | AM33: 0 | AN33: 0 | AO33: 0 | AP33: 0 | AQ33: 0 | AR33: 0 | AS33: =SUM(AF33:AR33) -> 0
B34: =Est2019TransRev!B34 -> Subtransmission | D34: 0 | E34: 0 | F34: 0 | G34: 0 | H34: 0 | I34: 0 | J34: 0 | K34: 0 | L34: 0 | M34: 0 | N34: 0 | O34: 0 | P34: 0 | R34: =Est2019DistRev!R34 -> 12 | S34: =Est2019DistRev!S34 -> 0 | T34: =Est2019DistRev!T34 -> 527176996.7 | U34: =Est2019DistRev!U34 -> 513179936.1 | V34: =Est2019DistRev!V34 -> 251150.3106 | W34: =Est2019DistRev!W34 -> 0 | X34: =Est2019DistRev!X34 -> 0 | Y34: =Est2019DistRev!Y34 -> 0 | Z34: =Est2019DistRev!Z34 -> 0 | AA34: =Est2019DistRev!AA34 -> 0 | AB34: =Est2019DistRev!AB34 -> 0 | AC34: =Est2019DistRev!AC34 -> 0 | AD34: =Est2019DistRev!AD34 -> 0 | AF34: 0 | AG34: 0 | AH34: 0 | AI34: 0 | AJ34: 0 | AK34: 0 | AL34: 0 | AM34: 0 | AN34: 0 | AO34: 0 | AP34: 0 | AQ34: 0 | AR34: 0 | AS34: 0
R35: =Est2019DistRev!R35 -> 0 | S35: =Est2019DistRev!S35 -> 0 | T35: =Est2019DistRev!T35 -> 0 | U35: =Est2019DistRev!U35 -> 0 | V35: =Est2019DistRev!V35 -> 0 | W35: =Est2019DistRev!W35 -> 0 | X35: =Est2019DistRev!X35 -> 0 | Y35: =Est2019DistRev!Y35 -> 0 | Z35: =Est2019DistRev!Z35 -> 0 | AA35: =Est2019DistRev!AA35 -> 0 | AB35: =Est2019DistRev!AB35 -> 0 | AC35: =Est2019DistRev!AC35 -> 0 | AD35: =Est2019DistRev!AD35 -> 0 | AF35: =D35*R35 -> 0 | AG35: =E35/100*S35 -> 0 | AH35: =F35/100*T35 -> 0 | AI35: =G35/100*U35 -> 0 | AJ35: 0 | AK35: 0 | AL35: 0 | AM35: =K35/100*Y35 -> 0 | AN35: =L35/100*Z35 -> 0 | AO35: 0 | AP35: 0 | AQ35: 0 | AR35: 0 | AS35: =SUM(AF35:AR35) -> 0
R36: =Est2019DistRev!R36 -> 0 | S36: =Est2019DistRev!S36 -> 0 | T36: =Est2019DistRev!T36 -> 0 | U36: =Est2019DistRev!U36 -> 0 | V36: =Est2019DistRev!V36 -> 0 | W36: =Est2019DistRev!W36 -> 0 | X36: =Est2019DistRev!X36 -> 0 | Y36: =Est2019DistRev!Y36 -> 0 | Z36: =Est2019DistRev!Z36 -> 0 | AA36: =Est2019DistRev!AA36 -> 0 | AB36: =Est2019DistRev!AB36 -> 0 | AC36: =Est2019DistRev!AC36 -> 0 | AD36: =Est2019DistRev!AD36 -> 0 | AF36: 0 | AG36: 0 | AH36: 0 | AI36: 0 | AJ36: 0 | AK36: 0 | AL36: 0 | AM36: 0 | AN36: 0 | AO36: 0 | AP36: 0 | AQ36: 0 | AR36: 0 | AS36: 0
R37: =Est2019DistRev!R37 -> 0 | S37: =Est2019DistRev!S37 -> 0 | T37: =Est2019DistRev!T37 -> 0 | U37: =Est2019DistRev!U37 -> 0 | V37: =Est2019DistRev!V37 -> 0 | W37: =Est2019DistRev!W37 -> 0 | X37: =Est2019DistRev!X37 -> 0 | Y37: =Est2019DistRev!Y37 -> 0 | Z37: =Est2019DistRev!Z37 -> 0 | AA37: =Est2019DistRev!AA37 -> 0 | AB37: =Est2019DistRev!AB37 -> 0 | AC37: =Est2019DistRev!AC37 -> 0 | AD37: =Est2019DistRev!AD37 -> 0 | AF37: 0 | AG37: 0 | AH37: 0 | AI37: 0 | AJ37: 0 | AK37: 0 | AL37: 0 | AM37: 0 | AN37: 0 | AO37: 0 | AP37: 0 | AQ37: 0 | AR37: 0 | AS37: 0
R38: =Est2019DistRev!R38 -> 0 | S38: =Est2019DistRev!S38 -> 0 | T38: =Est2019DistRev!T38 -> 0 | U38: =Est2019DistRev!U38 -> 0 | V38: =Est2019DistRev!V38 -> 0 | W38: =Est2019DistRev!W38 -> 0 | X38: =Est2019DistRev!X38 -> 0 | Y38: =Est2019DistRev!Y38 -> 0 | Z38: =Est2019DistRev!Z38 -> 0 | AA38: =Est2019DistRev!AA38 -> 0 | AB38: =Est2019DistRev!AB38 -> 0 | AC38: =Est2019DistRev!AC38 -> 0 | AD38: =Est2019DistRev!AD38 -> 0 | AF38: 0 | AG38: 0 | AH38: 0 | AI38: 0 | AJ38: 0 | AK38: 0 | AL38: 0 | AM38: 0 | AN38: =L38/100*Z38 -> 0 | AO38: 0 | AP38: 0 | AQ38: 0 | AR38: 0 | AS38: 0
R39: =Est2019DistRev!R39 -> 0 | S39: =Est2019DistRev!S39 -> 0 | T39: =Est2019DistRev!T39 -> 0 | U39: =Est2019DistRev!U39 -> 0 | V39: =Est2019DistRev!V39 -> 0 | W39: =Est2019DistRev!W39 -> 0 | X39: =Est2019DistRev!X39 -> 0 | Y39: =Est2019DistRev!Y39 -> 0 | Z39: =Est2019DistRev!Z39 -> 0 | AA39: =Est2019DistRev!AA39 -> 0 | AB39: =Est2019DistRev!AB39 -> 0 | AC39: =Est2019DistRev!AC39 -> 0 | AD39: =Est2019DistRev!AD39 -> 0 | AF39: 0 | AG39: 0 | AH39: 0 | AI39: 0 | AJ39: 0 | AK39: 0 | AL39: 0 | AM39: 0 | AN39: 0 | AO39: 0 | AP39: 0 | AQ39: 0 | AR39: 0 | AS39: 0
R40: =Est2019DistRev!R40 -> 0 | S40: =Est2019DistRev!S40 -> 0 | T40: =Est2019DistRev!T40 -> 0 | U40: =Est2019DistRev!U40 -> 0 | V40: =Est2019DistRev!V40 -> 0 | W40: =Est2019DistRev!W40 -> 0 | X40: =Est2019DistRev!X40 -> 0 | Y40: =Est2019DistRev!Y40 -> 0 | Z40: =Est2019DistRev!Z40 -> 0 | AA40: =Est2019DistRev!AA40 -> 0 | AB40: =Est2019DistRev!AB40 -> 0 | AC40: =Est2019DistRev!AC40 -> 0 | AD40: =Est2019DistRev!AD40 -> 0 | AF40: 0 | AG40: 0 | AH40: 0 | AI40: 0 | AJ40: 0 | AK40: 0 | AL40: 0 | AM40: 0 | AN40: 0 | AO40: 0 | AP40: 0 | AQ40: 0 | AR40: 0 | AS40: 0
R41: =Est2019DistRev!R41 -> 0 | S41: =Est2019DistRev!S41 -> 0 | T41: =Est2019DistRev!T41 -> 0 | U41: =Est2019DistRev!U41 -> 0 | V41: =Est2019DistRev!V41 -> 0 | W41: =Est2019DistRev!W41 -> 0 | X41: =Est2019DistRev!X41 -> 0 | Y41: =Est2019DistRev!Y41 -> 0 | Z41: =Est2019DistRev!Z41 -> 0 | AA41: =Est2019DistRev!AA41 -> 0 | AB41: =Est2019DistRev!AB41 -> 0 | AC41: =Est2019DistRev!AC41 -> 0 | AD41: =Est2019DistRev!AD41 -> 0 | AF41: 0 | AG41: 0 | AH41: 0 | AI41: 0 | AJ41: 0 | AK41: 0 | AL41: 0 | AM41: 0 | AN41: 0 | AO41: 0 | AP41: 0 | AQ41: 0 | AR41: 0 | AS41: 0
R42: =Est2019DistRev!R42 -> 0 | S42: =Est2019DistRev!S42 -> 0 | T42: =Est2019DistRev!T42 -> 0 | U42: =Est2019DistRev!U42 -> 0 | V42: =Est2019DistRev!V42 -> 0 | W42: =Est2019DistRev!W42 -> 0 | X42: =Est2019DistRev!X42 -> 0 | Y42: =Est2019DistRev!Y42 -> 0 | Z42: =Est2019DistRev!Z42 -> 0 | AA42: =Est2019DistRev!AA42 -> 0 | AB42: =Est2019DistRev!AB42 -> 0 | AC42: =Est2019DistRev!AC42 -> 0 | AD42: =Est2019DistRev!AD42 -> 0 | AF42: 0 | AG42: 0 | AH42: 0 | AI42: 0 | AJ42: 0 | AK42: 0 | AL42: 0 | AM42: 0 | AN42: 0 | AO42: 0 | AP42: 0 | AQ42: 0 | AR42: 0 | AS42: 0
R43: =Est2019DistRev!R43 -> 0 | S43: =Est2019DistRev!S43 -> 0 | T43: =Est2019DistRev!T43 -> 0 | U43: =Est2019DistRev!U43 -> 0 | V43: =Est2019DistRev!V43 -> 0 | W43: =Est2019DistRev!W43 -> 0 | X43: =Est2019DistRev!X43 -> 0 | Y43: =Est2019DistRev!Y43 -> 0 | Z43: =Est2019DistRev!Z43 -> 0 | AA43: =Est2019DistRev!AA43 -> 0 | AB43: =Est2019DistRev!AB43 -> 0 | AC43: =Est2019DistRev!AC43 -> 0 | AD43: =Est2019DistRev!AD43 -> 0 | AF43: 0 | AG43: 0 | AH43: 0 | AI43: 0 | AJ43: 0 | AK43: 0 | AL43: 0 | AM43: 0 | AN43: 0 | AO43: 0 | AP43: 0 | AQ43: 0 | AR43: 0 | AS43: 0
R44: =Est2019DistRev!R44 -> 0 | S44: =Est2019DistRev!S44 -> 0 | T44: =Est2019DistRev!T44 -> 0 | U44: =Est2019DistRev!U44 -> 0 | V44: =Est2019DistRev!V44 -> 0 | W44: =Est2019DistRev!W44 -> 0 | X44: =Est2019DistRev!X44 -> 0 | Y44: =Est2019DistRev!Y44 -> 0 | Z44: =Est2019DistRev!Z44 -> 0 | AA44: =Est2019DistRev!AA44 -> 0 | AB44: =Est2019DistRev!AB44 -> 0 | AC44: =Est2019DistRev!AC44 -> 0 | AD44: =Est2019DistRev!AD44 -> 0 | AF44: 0 | AG44: 0 | AH44: 0 | AI44: 0 | AJ44: 0 | AK44: 0 | AL44: 0 | AM44: 0 | AN44: 0 | AO44: 0 | AP44: 0 | AQ44: 0 | AR44: 0 | AS44: 0
R45: =Est2019DistRev!R45 -> 0 | S45: =Est2019DistRev!S45 -> 0 | T45: =Est2019DistRev!T45 -> 0 | U45: =Est2019DistRev!U45 -> 0 | V45: =Est2019DistRev!V45 -> 0 | W45: =Est2019DistRev!W45 -> 0 | X45: =Est2019DistRev!X45 -> 0 | Y45: =Est2019DistRev!Y45 -> 0 | Z45: =Est2019DistRev!Z45 -> 0 | AA45: =Est2019DistRev!AA45 -> 0 | AB45: =Est2019DistRev!AB45 -> 0 | AC45: =Est2019DistRev!AC45 -> 0 | AD45: =Est2019DistRev!AD45 -> 0 | AF45: 0 | AG45: 0 | AH45: 0 | AI45: 0 | AJ45: 0 | AK45: 0 | AL45: 0 | AM45: 0 | AN45: 0 | AO45: 0 | AP45: 0 | AQ45: 0 | AR45: 0 | AS45: 0
R46: =Est2019DistRev!R46 -> 0 | S46: =Est2019DistRev!S46 -> 0 | T46: =Est2019DistRev!T46 -> 0 | U46: =Est2019DistRev!U46 -> 0 | V46: =Est2019DistRev!V46 -> 0 | W46: =Est2019DistRev!W46 -> 0 | X46: =Est2019DistRev!X46 -> 0 | Y46: =Est2019DistRev!Y46 -> 0 | Z46: =Est2019DistRev!Z46 -> 0 | AA46: =Est2019DistRev!AA46 -> 0 | AB46: =Est2019DistRev!AB46 -> 0 | AC46: =Est2019DistRev!AC46 -> 0 | AD46: =Est2019DistRev!AD46 -> 0 | AF46: 0 | AG46: 0 | AH46: 0 | AI46: 0 | AJ46: 0 | AK46: 0 | AL46: 0 | AM46: 0 | AN46: 0 | AO46: 0 | AP46: 0 | AQ46: 0 | AR46: 0 | AS46: 0
R47: =Est2019DistRev!R47 -> 0 | S47: =Est2019DistRev!S47 -> 0 | T47: =Est2019DistRev!T47 -> 0 | U47: =Est2019DistRev!U47 -> 0 | V47: =Est2019DistRev!V47 -> 0 | W47: =Est2019DistRev!W47 -> 0 | X47: =Est2019DistRev!X47 -> 0 | Y47: =Est2019DistRev!Y47 -> 0 | Z47: =Est2019DistRev!Z47 -> 0 | AA47: =Est2019DistRev!AA47 -> 0 | AB47: =Est2019DistRev!AB47 -> 0 | AC47: =Est2019DistRev!AC47 -> 0 | AD47: =Est2019DistRev!AD47 -> 0 | AF47: 0 | AG47: 0 | AH47: 0 | AI47: 0 | AJ47: 0 | AK47: 0 | AL47: 0 | AM47: 0 | AN47: 0 | AO47: 0 | AP47: 0 | AQ47: 0 | AR47: 0 | AS47: 0
R48: =Est2019DistRev!R48 -> 0 | S48: =Est2019DistRev!S48 -> 0 | T48: =Est2019DistRev!T48 -> 0 | U48: =Est2019DistRev!U48 -> 0 | V48: =Est2019DistRev!V48 -> 0 | W48: =Est2019DistRev!W48 -> 0 | X48: =Est2019DistRev!X48 -> 0 | Y48: =Est2019DistRev!Y48 -> 0 | Z48: =Est2019DistRev!Z48 -> 0 | AA48: =Est2019DistRev!AA48 -> 0 | AB48: =Est2019DistRev!AB48 -> 0 | AC48: =Est2019DistRev!AC48 -> 0 | AD48: =Est2019DistRev!AD48 -> 0 | AF48: 0 | AG48: 0 | AH48: 0 | AI48: 0 | AJ48: 0 | AK48: 0 | AL48: 0 | AM48: 0 | AN48: 0 | AO48: 0 | AP48: 0 | AQ48: 0 | AR48: 0 | AS48: 0
R49: =Est2019DistRev!R49 -> 0 | S49: =Est2019DistRev!S49 -> 0 | T49: =Est2019DistRev!T49 -> 0 | U49: =Est2019DistRev!U49 -> 0 | V49: =Est2019DistRev!V49 -> 0 | W49: =Est2019DistRev!W49 -> 0 | X49: =Est2019DistRev!X49 -> 0 | Y49: =Est2019DistRev!Y49 -> 0 | Z49: =Est2019DistRev!Z49 -> 0 | AA49: =Est2019DistRev!AA49 -> 0 | AB49: =Est2019DistRev!AB49 -> 0 | AC49: =Est2019DistRev!AC49 -> 0 | AD49: =Est2019DistRev!AD49 -> 0 | AF49: 0 | AG49: 0 | AH49: 0 | AI49: 0 | AJ49: 0 | AK49: 0 | AL49: 0 | AM49: 0 | AN49: 0 | AO49: 0 | AP49: 0 | AQ49: 0 | AR49: 0 | AS49: 0
R50: =Est2019DistRev!R50 -> 0 | S50: =Est2019DistRev!S50 -> 0 | T50: =Est2019DistRev!T50 -> 0 | U50: =Est2019DistRev!U50 -> 0 | V50: =Est2019DistRev!V50 -> 0 | W50: =Est2019DistRev!W50 -> 0 | X50: =Est2019DistRev!X50 -> 0 | Y50: =Est2019DistRev!Y50 -> 0 | Z50: =Est2019DistRev!Z50 -> 0 | AA50: =Est2019DistRev!AA50 -> 0 | AB50: =Est2019DistRev!AB50 -> 0 | AC50: =Est2019DistRev!AC50 -> 0 | AD50: =Est2019DistRev!AD50 -> 0 | AF50: 0 | AG50: 0 | AH50: 0 | AI50: 0 | AJ50: 0 | AK50: 0 | AL50: 0 | AM50: 0 | AN50: 0 | AO50: 0 | AP50: 0 | AQ50: 0 | AR50: 0 | AS50: 0
R51: =Est2019DistRev!R51 -> 0 | S51: =Est2019DistRev!S51 -> 0 | T51: =Est2019DistRev!T51 -> 0 | U51: =Est2019DistRev!U51 -> 0 | V51: =Est2019DistRev!V51 -> 0 | W51: =Est2019DistRev!W51 -> 0 | X51: =Est2019DistRev!X51 -> 0 | Y51: =Est2019DistRev!Y51 -> 0 | Z51: =Est2019DistRev!Z51 -> 0 | AA51: =Est2019DistRev!AA51 -> 0 | AB51: =Est2019DistRev!AB51 -> 0 | AC51: =Est2019DistRev!AC51 -> 0 | AD51: =Est2019DistRev!AD51 -> 0 | AF51: 0 | AG51: 0 | AH51: 0 | AI51: 0 | AJ51: 0 | AK51: 0 | AL51: 0 | AM51: 0 | AN51: 0 | AO51: 0 | AP51: 0 | AQ51: 0 | AR51: 0 | AS51: 0
R52: =Est2019DistRev!R52 -> 0 | S52: =Est2019DistRev!S52 -> 0 | T52: =Est2019DistRev!T52 -> 0 | U52: =Est2019DistRev!U52 -> 0 | V52: =Est2019DistRev!V52 -> 0 | W52: =Est2019DistRev!W52 -> 0 | X52: =Est2019DistRev!X52 -> 0 | Y52: =Est2019DistRev!Y52 -> 0 | Z52: =Est2019DistRev!Z52 -> 0 | AA52: =Est2019DistRev!AA52 -> 0 | AB52: =Est2019DistRev!AB52 -> 0 | AC52: =Est2019DistRev!AC52 -> 0 | AD52: =Est2019DistRev!AD52 -> 0 | AF52: 0 | AG52: 0 | AH52: 0 | AI52: 0 | AJ52: 0 | AK52: 0 | AL52: 0 | AM52: 0 | AN52: 0 | AO52: 0 | AP52: 0 | AQ52: 0 | AR52: 0 | AS52: 0
R53: =Est2019DistRev!R53 -> 0 | S53: =Est2019DistRev!S53 -> 0 | T53: =Est2019DistRev!T53 -> 0 | U53: =Est2019DistRev!U53 -> 0 | V53: =Est2019DistRev!V53 -> 0 | W53: =Est2019DistRev!W53 -> 0 | X53: =Est2019DistRev!X53 -> 0 | Y53: =Est2019DistRev!Y53 -> 0 | Z53: =Est2019DistRev!Z53 -> 0 | AA53: =Est2019DistRev!AA53 -> 0 | AB53: =Est2019DistRev!AB53 -> 0 | AC53: =Est2019DistRev!AC53 -> 0 | AD53: =Est2019DistRev!AD53 -> 0 | AF53: 0 | AG53: 0 | AH53: 0 | AI53: 0 | AJ53: 0 | AK53: 0 | AL53: 0 | AM53: 0 | AN53: 0 | AO53: 0 | AP53: 0 | AQ53: 0 | AR53: 0 | AS53: 0
R54: =Est2019DistRev!R54 -> 0 | S54: =Est2019DistRev!S54 -> 0 | T54: =Est2019DistRev!T54 -> 0 | U54: =Est2019DistRev!U54 -> 0 | V54: =Est2019DistRev!V54 -> 0 | W54: =Est2019DistRev!W54 -> 0 | X54: =Est2019DistRev!X54 -> 0 | Y54: =Est2019DistRev!Y54 -> 0 | Z54: =Est2019DistRev!Z54 -> 0 | AA54: =Est2019DistRev!AA54 -> 0 | AB54: =Est2019DistRev!AB54 -> 0 | AC54: =Est2019DistRev!AC54 -> 0 | AD54: =Est2019DistRev!AD54 -> 0 | AF54: 0 | AG54: 0 | AH54: 0 | AI54: 0 | AJ54: 0 | AK54: 0 | AL54: 0 | AM54: 0 | AN54: 0 | AO54: 0 | AP54: 0 | AQ54: 0 | AR54: 0 | AS54: 0
AF55: 0 | AG55: 0 | AH55: 0 | AI55: 0 | AJ55: 0 | AK55: 0 | AL55: 0 | AM55: 0 | AN55: 0 | AO55: 0 | AP55: 0 | AQ55: 0 | AR55: 0 | AS55: 0
AF56: 0 | AG56: 0 | AH56: 0 | AI56: 0 | AJ56: 0 | AK56: 0 | AL56: 0 | AM56: 0 | AN56: 0 | AO56: 0 | AP56: 0 | AQ56: 0 | AR56: 0 | AS56: 0
AF57: 0 | AG57: 0 | AH57: 0 | AI57: 0 | AJ57: 0 | AK57: 0 | AL57: 0 | AM57: 0 | AN57: 0 | AO57: 0 | AP57: 0 | AQ57: 0 | AR57: 0 | AS57: 0
AF58: 0 | AG58: 0 | AH58: 0 | AI58: 0 | AJ58: 0 | AK58: 0 | AL58: 0 | AM58: 0 | AN58: 0 | AO58: 0 | AP58: 0 | AQ58: 0 | AR58: 0 | AS58: 0
AF59: 0 | AG59: 0 | AH59: 0 | AI59: 0 | AJ59: 0 | AK59: 0 | AL59: 0 | AM59: 0 | AN59: 0 | AO59: 0 | AP59: 0 | AQ59: 0 | AR59: 0 | AS59: 0
AF60: 0 | AG60: 0 | AH60: 0 | AI60: 0 | AJ60: 0 | AK60: 0 | AL60: 0 | AM60: 0 | AN60: 0 | AO60: 0 | AP60: 0 | AQ60: 0 | AR60: 0 | AS60: 0
AF61: 0 | AG61: 0 | AH61: 0 | AI61: 0 | AJ61: 0 | AK61: 0 | AL61: 0 | AM61: 0 | AN61: 0 | AO61: 0 | AP61: 0 | AQ61: 0 | AR61: 0 | AS61: 0
AF62: 0 | AG62: 0 | AH62: 0 | AI62: 0 | AJ62: 0 | AK62: 0 | AL62: 0 | AM62: 0 | AN62: 0 | AO62: 0 | AP62: 0 | AQ62: 0 | AR62: 0 | AS62: 0
AF63: 0 | AG63: 0 | AH63: 0 | AI63: 0 | AJ63: 0 | AK63: 0 | AL63: 0 | AM63: 0 | AN63: 0 | AO63: 0 | AP63: 0 | AQ63: 0 | AR63: 0 | AS63: 0
AF64: 0 | AG64: 0 | AH64: 0 | AI64: 0 | AJ64: 0 | AK64: 0 | AL64: 0 | AM64: 0 | AN64: 0 | AO64: 0 | AP64: 0 | AQ64: 0 | AR64: 0 | AS64: 0
AF65: 0 | AG65: 0 | AH65: 0 | AI65: 0 | AJ65: 0 | AK65: 0 | AL65: 0 | AM65: 0 | AN65: 0 | AO65: 0 | AP65: 0 | AQ65: 0 | AR65: 0 | AS65: 0
R66: =SUM(R6:R65) -> 1060736.833 | S66: 2611833048 | T66: 4209290855 | U66: 4073446791 | V66: 1534651.182 | W66: 1458676.44 | X66: 2628749.26 | Y66: 1342992.957 | Z66: 1827258.698 | AA66: 1785519.586 | AB66: 4125562.433 | AC66: 5983666.126 | AD66: =SUM(AD6:AD65) -> 5616374.753 | AF66: 0 | AG66: 9139978.023 | AH66: 9269655.676 | AI66: 9068417.14 | AJ66: 0 | AK66: 0 | AL66: 0 | AM66: =SUM(AM6:AM65) -> 4700.47535 | AN66: 6395.405442 | AO66: 6249.318549 | AP66: 14439.46852 | AQ66: 20942.83144 | AR66: 19657.31164 | AS66: 27550435.65

Sheet 2020JSRevCont
B2: ="Tariff Approval - "&'Model update'!$C$3 -> Tariff Approval - Powercor | C2: ='Model update'!$C$5&"JSRevCont" -> 2020JSRevCont
B4: Jurisdictional Scheme Amounts (JSA)
B6: Year (t) | C6: ='Model update'!C5 -> 2020
B8: Table 1- Compliance with JSA Revenue Formula
B9: Revenue from Jurisdictional Scheme Amounts charges for year t | C9: =Prop2020JSTar!AS66 -> 33929947.5
B10: Total JSA related payments for year t | C10: =C17 -> 33930744.35
C11: =IF(C9="","",IF(C10>=C9,"JSA REVENUE FORMULA COMPLIANT","JSA REVENUE FORMULA BREACHED")) -> JSA REVENUE FORMULA COMPLIANT
B13: Table 2 - Total JSA related payments for year t
B14: PFIT & TFIT charges for year t | C14: =C22 -> 26000000
B15: JSA revenue under/over recovery approved | C15: =-E56*(1+E54)^0.5 -> 7930744.354
B16: JSA revenue under/over recovery for years 2014 and 2015
B17: Total JSA related payments for year t | C17: =SUM(C14:C16) -> 33930744.35
B19: Table 3 - PFIT & TFIT charges for year t
B20: PFIT | C20: 26000000
B21: TFIT | C21: 0
B22: PFIT & TFIT charges | C22: =SUM(C20:C21) -> 26000000
B27: Table 4 - JSA Recovery Arrangements
C28: Year t-2 | D28: Year t-1 | E28: Year t
C29: (actual) | D29: (estimate) | E29: (forecast)
C30: =D30-1 -> 2018 | D30: =E30-1 -> 2019 | E30: =C$6 -> 2020
B32: (A) Revenue from JSA proposal charges | C32: 26266208.32 | D32: =Est2019JSRev!AS66 -> 27550435.65 | E32: =C9 -> 33929947.5
B35: (B) Less Total JSA related payments = | C35: =SUM(C37:C39) -> 26956551.01 | D35: =SUM(D37:D39) -> 26000000 | E35: =SUM(E37:E39) -> 26000000
B37: + JSA revenue under/over recovery for years 2014 and 2015
B39: +PFIT & TFIT charges = | C39: =SUM(C40:C41) -> 26956551.01 | D39: =SUM(D40:D41) -> 26000000 | E39: =SUM(E40:E41) -> 26000000
B40: +PFIT amount | C40: ='JS cost audit template'!F4 -> 26956551.01 | D40: 26000000 | E40: =C20 -> 26000000
B41: +TFIT amount | C41: ='JS cost audit template'!F5 -> 0 | D41: 0 | E41: =C21 -> 0
B45: (A minus B) Under/over recovery of revenue for regulatory year | C45: =C32-C35 -> -690342.688 | D45: =D32-D35 -> 1550435.651 | E45: =E32-E35 -> 7929947.5
B49: Table 5 - JSA Unders and Overs Account
C50: Year t-2 | D50: Year t-1 | E50: Year t
C51: (actual) | D51: (estimate) | E51: (forecast)
B52: Calendar year | C52: =D52-1 -> 2018 | D52: =E52-1 -> 2019 | E52: =C$6 -> 2020
B54: Nominal WACC | C54: =(1+'Model update'!$B$47)*(1+'Model update'!$C$28)-1 -> 0.05565648259 | D54: =(1+'Model update'!$B$45)*(1+'Model update'!$C$29)-1 -> 0.0565862118 | E54: =(1+'Model update'!$B$43)*(1+'Model update'!$C$30)-1 -> 0.05008580414
B56: Opening balance | C56: -7695559.936 | D56: =C60 -> -8833161.33 | E56: =D60 -> -7739297.779
B57: Interest on Opening balance | C57: =C56*C54 -> -428307.7976 | D57: =D56*D54 -> -499835.1379 | E57: =E56*E54 -> -387628.9527
B58: Under/over recovery of revenue for regulatory year | C58: =C45 -> -690342.688 | D58: =D45 -> 1550435.651 | E58: =E45 -> 7929947.5
B59: Interest on under/over recovery for regulatory year | C59: =C58*((1+C54)^0.5-1) -> -18950.90794 | D59: =D58*((1+D54)^0.5-1) -> 43263.03857 | E59: =E58*((1+E54)^0.5-1) -> 196162.6662
B60: Closing balance of JSA overs/ (unders) account | C60: =SUM(C56:C59) -> -8833161.33 | D60: =SUM(D56:D59) -> -7739297.779 | E60: -816.5647349
B62: The DNSP is expected to achieve a closing balance as close to zero as practicable in its jurisdictional scheme amount unders and overs account in each forecast year in its annual pricing proposals in the 2016–20 regulatory control period.

Sheet JS cost audit template
B1: ="Tariff Approval - "&'Model update'!C3 -> Tariff Approval - Powercor
B2: Jurisdictional scheme amounts | F2: t-2 actual
B4: PFIT | F4: 26956551.01
E7: Total | F7: =SUM(F3:F6) -> 26956551.01
B10: Where the following definitions apply
B11: PFIT | C11: Premium feed-in tariff payments
B12: TFIT | C12: Transitional feed-in tariff payments

Sheet Prop2020TSSComp
B1: ="Tariff Approval - "&'Model update'!$C$3 -> Tariff Approval - Powercor | C1: ="Prop"&'Model update'!$C$5&"TSSComp" -> Prop2020TSSComp
B3: ="COMPARISON OF "&'Model update'!$C$5&" PROPOSED AND TSS INDICATIVE DISTRIBUTION TARIFFS" -> COMPARISON OF 2020 PROPOSED AND TSS INDICATIVE DISTRIBUTION TARIFFS | AT3: Materiality threshold
D4: ="Proposed NUOS Tariffs (Pt) for "&'Model update'!$C$5 -> Proposed NUOS Tariffs (Pt) for 2020 | R4: ="TSS indicative tariffs for "&'Model update'!$C$5 -> TSS indicative tariffs for 2020 | AG4: ="Percentage difference between proposed "&'Model update'!$C$5&" tariffs and indicative TSS tariffs" -> Percentage difference between proposed 2020 tariffs and indicative TSS tariffs | AT4: 0.1
B5: TSS name | C5: Proposal name | D5: PropTar Fixed | E5: PropTar Anytime | F5: PropTar PkBlk | G5: PropTar OPkBlk1 | H5: PropTar Dem kVA | I5: PropTar Dem kW Sum | J5: PropTar Dem kW Win | K5: PropTar SumBlk1 | L5: PropTar SumBlk2 | M5: PropTar SumBlk3 | N5: PropTar WtrBlk1 | O5: PropTar WtrBlk2 | P5: PropTar WtrBlk3 | R5: IndTar Fixed | S5: IndTar Anytime | T5: IndTar PkBlk | U5: IndTar OPkBlk1 | V5: IndTar Dem kVA | W5: IndTar Dem kW Sum | X5: IndTar Dem kW Win | Y5: IndTar SumBlk1 | Z5: IndTar SumBlk2 | AA5: IndTar SumBlk3 | AB5: IndTar WtrBlk1 | AC5: IndTar WtrBlk2 | AD5: IndTar WtrBlk3 | AG5: Fixed | AH5: PkBlk1 | AI5: PkBlk2 | AJ5: PkBlk3 | AK5: PkBlk4 | AL5: OPkBlk1 | AM5: OPkBlk2 | AN5: OPkBlk3 | AO5: OPkBlk4 | AP5: DemBlk1 | AQ5: DemBlk2 | AR5: DemBlk3 | AS5: DemBlk4 | AT5: Explanation required? | AU5: Explanation
B6: Residential flat | C6: =Prop2020DistTar!B6 -> Residential Single Rate | D6: =SUM(Prop2020DistTar!D6,Prop2020TransTar!D6,Prop2020JSTar!D6) -> 140 | E6: =SUM(Prop2020DistTar!E6,Prop2020TransTar!E6,Prop2020JSTar!E6) -> 7.98 | F6: =SUM(Prop2020DistTar!F6,Prop2020TransTar!F6,Prop2020JSTar!F6) -> 0 | G6: =SUM(Prop2020DistTar!G6,Prop2020TransTar!G6,Prop2020JSTar!G6) -> 0 | H6: =SUM(Prop2020DistTar!H6,Prop2020TransTar!H6,Prop2020JSTar!H6) -> 0 | I6: =SUM(Prop2020DistTar!I6,Prop2020TransTar!I6,Prop2020JSTar!I6) -> 0 | J6: =SUM(Prop2020DistTar!J6,Prop2020TransTar!J6,Prop2020JSTar!J6) -> 0 | K6: =SUM(Prop2020DistTar!K6,Prop2020TransTar!K6,Prop2020JSTar!K6) -> 0 | L6: =SUM(Prop2020DistTar!L6,Prop2020TransTar!L6,Prop2020JSTar!L6) -> 0 | M6: =SUM(Prop2020DistTar!M6,Prop2020TransTar!M6,Prop2020JSTar!M6) -> 0 | N6: =SUM(Prop2020DistTar!N6,Prop2020TransTar!N6,Prop2020JSTar!N6) -> 0 | O6: =SUM(Prop2020DistTar!O6,Prop2020TransTar!O6,Prop2020JSTar!O6) -> 0 | P6: =SUM(Prop2020DistTar!P6,Prop2020TransTar!P6,Prop2020JSTar!P6) -> 0 | Q6: D1 | R6: 135 | S6: 7.51 | T6: 0 | U6: 0 | V6: 0 | W6: 0 | X6: 0 | Y6: 0 | Z6: 0 | AA6: 0 | AB6: 0 | AC6: 0 | AD6: 0 | AG6: =IFERROR(D6/R6-1,0) -> 0.03703703704 | AH6: 0.06258322237 | AI6: 0 | AJ6: 0 | AK6: 0 | AL6: 0 | AM6: 0 | AN6: 0 | AO6: 0 | AP6: 0 | AQ6: 0 | AR6: 0 | AS6: 0 | AT6: =IF(MAX(ABS(AG6:AS6))>$AT$4,"EXPLAIN","") -> 
B7: Residential climate saver | C7: =Prop2020DistTar!B7 -> Climate Saver | D7: =SUM(Prop2020DistTar!D7,Prop2020TransTar!D7,Prop2020JSTar!D7) -> 0 | E7: =SUM(Prop2020DistTar!E7,Prop2020TransTar!E7,Prop2020JSTar!E7) -> 0 | F7: =SUM(Prop2020DistTar!F7,Prop2020TransTar!F7,Prop2020JSTar!F7) -> 11.14 | G7: =SUM(Prop2020DistTar!G7,Prop2020TransTar!G7,Prop2020JSTar!G7) -> 2.56 | H7: =SUM(Prop2020DistTar!H7,Prop2020TransTar!H7,Prop2020JSTar!H7) -> 0 | I7: =SUM(Prop2020DistTar!I7,Prop2020TransTar!I7,Prop2020JSTar!I7) -> 0 | J7: =SUM(Prop2020DistTar!J7,Prop2020TransTar!J7,Prop2020JSTar!J7) -> 0 | K7: =SUM(Prop2020DistTar!K7,Prop2020TransTar!K7,Prop2020JSTar!K7) -> 0 | L7: =SUM(Prop2020DistTar!L7,Prop2020TransTar!L7,Prop2020JSTar!L7) -> 0 | M7: =SUM(Prop2020DistTar!M7,Prop2020TransTar!M7,Prop2020JSTar!M7) -> 0 | N7: =SUM(Prop2020DistTar!N7,Prop2020TransTar!N7,Prop2020JSTar!N7) -> 0 | O7: =SUM(Prop2020DistTar!O7,Prop2020TransTar!O7,Prop2020JSTar!O7) -> 0 | P7: =SUM(Prop2020DistTar!P7,Prop2020TransTar!P7,Prop2020JSTar!P7) -> 0 | Q7: D1CS | R7: 0 | S7: 0 | T7: 10.48 | U7: 2.41 | V7: 0 | W7: 0 | X7: 0 | Y7: 0 | Z7: 0 | AA7: 0 | AB7: 0 | AC7: 0 | AD7: 0 | AG7: 0 | AH7: 0 | AI7: 0.06297709924 | AJ7: 0.0622406639 | AK7: 0 | AL7: 0 | AM7: 0 | AN7: 0 | AO7: 0 | AP7: 0 | AQ7: 0 | AR7: 0 | AS7: 0 | AT7: =IF(MAX(ABS(AG7:AS7))>$AT$4,"EXPLAIN","") -> 
B8: Residential climate saver interval | C8: =Prop2020DistTar!B8 -> Climate Saver Interval | D8: =SUM(Prop2020DistTar!D8,Prop2020TransTar!D8,Prop2020JSTar!D8) -> 0 | E8: =SUM(Prop2020DistTar!E8,Prop2020TransTar!E8,Prop2020JSTar!E8) -> 0 | F8: =SUM(Prop2020DistTar!F8,Prop2020TransTar!F8,Prop2020JSTar!F8) -> 11.14 | G8: =SUM(Prop2020DistTar!G8,Prop2020TransTar!G8,Prop2020JSTar!G8) -> 2.56 | H8: =SUM(Prop2020DistTar!H8,Prop2020TransTar!H8,Prop2020JSTar!H8) -> 0 | I8: =SUM(Prop2020DistTar!I8,Prop2020TransTar!I8,Prop2020JSTar!I8) -> 0 | J8: =SUM(Prop2020DistTar!J8,Prop2020TransTar!J8,Prop2020JSTar!J8) -> 0 | K8: =SUM(Prop2020DistTar!K8,Prop2020TransTar!K8,Prop2020JSTar!K8) -> 0 | L8: =SUM(Prop2020DistTar!L8,Prop2020TransTar!L8,Prop2020JSTar!L8) -> 0 | M8: =SUM(Prop2020DistTar!M8,Prop2020TransTar!M8,Prop2020JSTar!M8) -> 0 | N8: =SUM(Prop2020DistTar!N8,Prop2020TransTar!N8,Prop2020JSTar!N8) -> 0 | O8: =SUM(Prop2020DistTar!O8,Prop2020TransTar!O8,Prop2020JSTar!O8) -> 0 | P8: =SUM(Prop2020DistTar!P8,Prop2020TransTar!P8,Prop2020JSTar!P8) -> 0 | Q8: D3CS | R8: 0 | S8: 0 | T8: 10.48 | U8: 2.41 | V8: 0 | W8: 0 | X8: 0 | Y8: 0 | Z8: 0 | AA8: 0 | AB8: 0 | AC8: 0 | AD8: 0 | AG8: 0 | AH8: 0 | AI8: 0.06297709924 | AJ8: 0.0622406639 | AK8: 0 | AL8: 0 | AM8: 0 | AN8: 0 | AO8: 0 | AP8: 0 | AQ8: 0 | AR8: 0 | AS8: 0 | AT8: =IF(MAX(ABS(AG8:AS8))>$AT$4,"EXPLAIN","") -> 
